Workbook

Sheet Assumptions
A1: Lettuce Interactive Spreadsheet Tool
A2: This Lettuce Interactive Spreadsheet Tool estimates the capital investment and operating expenses for building and operating a year-round Controlled Environment vegetable facility in NYS. This tool allows the user to modify the key inputs and then to have an estimate of the revenue, expenses, and profitability of a model Greenhouse operation. The tables and figures in this spreadsheet change as the variables are modified. The user's own management system, available resources, and location can affect the performance of the operation. Thus, the user should experiment with their own yields, inputs, and prices to develop a budget that will accurately represent their own operation.
A3: Guidelines for using this tool: 1. Input your data for the variables in the Inputs tab; 2. Make different input choices for the parameters and input costs of the items in the Cost estimates tab; 3. Open the Results tab to view the total costs, revenue, and profits of a Greenhouse operation based on the previous inputs; 4. Open the Analysis tab to compare profits under different scenarios. The function of each tab is described below.
A5: Spreadsheet | B5: Explanation
A6: Inputs | B6: This spreadsheet requires information on production area, spacing, lighting, heating, and labor. The numbers in the blue box are prepopulated but user can make changes to the blue box to reflect their own operation. They can observe the resulting production and energy specifications in the yellow box.
A8: Cost estimates | B8: This spreadsheet includes items needed to calculate the variable costs and the fixed costs of a Greenhouse operation. User can make different choices for fuel use, lighting, and growing system. They can change parameters and costs of the items in the blue box to calculate the variable costs and the fixed costs for their operation.
A13: Results | B13: This spreadsheet presents the total revenue, expenses and annual operating profit. Total annual costs and profitability are calculated on a per head, per square foot, per house, and per acre basis. These results are based on the inputs user provide in the blue box mentioned above and those results can change as the parameters change.
A14: Analysis | B14: The analysis tab reflects profits under an alternative price and yield. User can conduct sensitivity analysis under different assumptions to compare different scenarios. 1. Analysis with 20% Increase and 20% Decrease in Labor cost 2. Analysis with 20% Increase and 20% Decrease in Ulility cost 3. Analysis with 20% Increase and 20% Decrease in Packaging cost
A20: Notes:
B21: 1 | C21: Four options are available for user to choose the type of Greenhouse. User can choose the type they wish to build.
B22: 2 | C22: Square feet week calculator is used for space efficiency and continuous production. Supplemental lighting to achieve 17 mol/m2/d is assumed here. User should consult their cooperative extension educator or crop consultant to determine realistic crop schedules and spacing given their production system, geographic location, and environmental conditions (temperature, light, carbon dioxide, etc.)
B23: 3 | C23: A daily goal of 17 mol of Integrated Photosynthetic Photon Flux (PPF) per square meter is assumed here. The user should make adjustments for the season and their location while filling information for lighting.
B24: 4 | C24: NYS Climate zones are used in this spreadsheet. The user from other states should select "Other State" in the "Input tab". User should consult with experts to determine realistic fuel use and need to input their own estimates for fuel in the "Cost estmates" tab.
B25: 5 | C25: NYS user can make different choices for glazing material and ASHRAE Climate Zone based on their Greenhouse and location. For Air changes per hour 0.5 to 1.0 are common values. For evapotranspiration latent load, 10 W/ft2 is a decent number for lettuce. Other assumptions regarding Custom transmittance, Boiler efficiency are standard and can be used for most of the Greenhouse.
B26: 6 | C26: Assumptions based on hour needed for per thousand plant per job in a year.
B27: 7 | C27: Require information on quantities for packaged items.
B28: 8 | C28: Variable costs require information on cost for production supplies, labor, packaging, etc. Variable costs are not auto adjusted for Greenhouse size or costs that changes with production.
B29: 9 | C29: The assumption is made for lacewing larvae. User can modify the no. of beneficial insects per package, area covered per insects in the 'Inputs tab' based on the insects they use.
B30: 10 | C30: Fungicide/pesticide use will vary by amount needed and frequency of application depending on specific diseases and pests.
B31: 11 | C31: Sticky trap is used for monitoring populations of insects.
B32: 12 | C32: Fringe benefit consists of workers compensation, social security, medical insurance, and other benefits which is included as a separate cost. We are assuming 30% of the wage as fringe benefits.
B33: 13 | C33: Three different fuel systems are available in this tool for heating. NYS user can select the heating system they wish to use. Calculations will automatically be updated when selecting different fuel heating systems. Fuel prices based on New York as of December, 2016. Check your local availability and price and make change accordingly.
B34: 14 | C34: The user from other states should input their own estimates for fuel use and their local cost for fuel here. Ignore the previous fuel choice designed for NYS user.
B35: 15 | C35: Depending on how user use electricity, they are charged for different electric services. Along with a basic customer charge (measured in kilowatt-hours, abbreviated kWh), larger user of electricity are also charged for demand (measured in kilowatts, abbreviated kW).
B36: 16 | C36: Fixed costs tend to be those costs that are incurred regardless of the level of production. Typical fixed costs include structure/building, machinery, and equipment.
B37: 17 | C37: Two options are available in this tool for lighting. Select the 'Yes' button if you wish to use light, or select 'none' to not include lights in the budget. Calculations will automatically be updated when selecting different options.
B38: 18 | C38: Two growing systems are available in this tool. Select the button for the system you wish to use.
B39: 19 | C39: Land rent is the cost associated with either owning or renting 1 acre of land for the greenhouse. Rates based on New York, 2016. Check your local rates.
B40: 20 | C40: The annual fixed cost rate is an estimation of the cost of owning fixed assets per year. Costs include depreciation, interest, insurance, maintenance, and any taxes.
B41: 21 | C41: Typical price for New York. Lettuce prices can vary significantly depending on market conditions. Be sure to check current lettuce prices in your market.
A49: Acknowledgement:
A50: 1 | B50: Cornell CEA team, Cornell Univeristy
A51: 2 | B51: Kale Harbick, CEO, Greenhouse Logic.
A52: 3 | B52: Miguel I. Gomez, Associate Professor, Charles H. Dyson School of Applied Economics & Management, Cornell University.
A53: 4 | B53: Neil S. Mattson, Associate Professor, Horticulture (HORT), Cornell University.
A54: 5 | B54: Paul Askew, Owner, Paul's Nursery.

Sheet Inputs
W2: Surface area: | X2: Side of the roof (if Gable) | Y2: =SQRT(($F$13/2)^2+$F$15^2) -> 15.8113883 | Z2: Feet
C3: *** Please enter information in the Blue box | W3: Freestanding Gable | X3: Sides | Y3: =IF(params!$A$31=1, 2*Inputs!$F$14*Inputs!$F$16,0) -> 2000 | Z3: Square feet
X4: Ends | Y4: =IF(params!$A$31=1, 2*Inputs!$F$16*Inputs!$F$13,0) -> 600 | Z4: Square feet
B5: Production | J5: Production and Energy specification based on the information provided in the Blue box: | X5: Roof side | Y5: =IF(params!$A$31=1, 2*Inputs!$Y$2*Inputs!$F$14,0) -> 3162.27766 | Z5: Square feet
C6: Choose type of Greenhouse1 : | E6: 1 | F6: No. of bay | X6: Roof peak | Y6: =IF(params!$A$31=1, 2*1/2*Inputs!$F$13*Inputs!$F$15,0) -> 150 | Z6: Square feet
F7: 1 | J7: Greenhouse area | K7: =IF(params!A31=1,Inputs!F13*Inputs!F14,IF(params!A31=2,Inputs!F13*Inputs!F14, IF(params!A31=3, Inputs!F13*Inputs!F14*Inputs!F9, IF(params!A31=4, Inputs!F13*Inputs!F14*Inputs!F10,0)))) -> 3000 | L7: sq. feet | X7: Total SA area | Y7: =SUM(Y3:Y6) -> 5912.27766 | Z7: Square feet
F8: 1 | J8: Surface Area | K8: =CHOOSE(params!$A$31,Y7,Y12,Y18,Y23) -> 5912.27766 | L8: sq. feet
F9: 3 | J9: Net production area | K9: =FLOOR(Inputs!K7*Inputs!F17,1) -> 2700 | L9: sq. feet | W9: Freestanding Quonset | X9: Sides | Y9: =IF(params!$A$31=2, 2*Inputs!$F$14*Inputs!$F$16,0) -> 0 | Z9: Square feet
F10: 2 | J10: Plant harvested (week) | K10: =FLOOR(K9/Inputs!G33,1) -> 2783 | L10: heads | X10: Ends | Y10: =IF(params!$A$31=2, 2*Inputs!$F$16*Inputs!$F$13,0) -> 0 | Z10: Square feet
J11: Plant harvested (year) | K11: =K10*52 -> 144716 | L11: heads | X11: Roof | Y11: =IF(params!$A$31=2,PI()*$F$15^2+PI()*$F$15*$F$14,0) -> 0 | Z11: Square feet
J12: Seed | K12: =CEILING(K11+(K11*Inputs!F19),1) -> 151952 | X12: Total SA area | Y12: =SUM(Y9:Y11) -> 0 | Z12: Square feet
C13: Greenhouse dimension | D13: Width | F13: 30 | G13: feet | J13: Net annual production | K13: =FLOOR(K11-(K11*Inputs!F20),1) -> 130244 | L13: heads
D14: Length | F14: 100 | G14: feet | J14: Annual heating load | K14: =IF($X$27="5A",-SUMIF(elmira!R2:R8761,"<0")*3600/1000000000,-SUMIF(nyc!R2:R8761,"<0")*3600/1000000000) -> 1909.984288 | L14: GJ | W14: Gutter Connected (Gable) | X14: Sides | Y14: =IF(params!$A$31=3, 2*Inputs!F14*Inputs!F16,0) -> 0 | Z14: Square feet
D15: Peak Height (Gutter to peak) | F15: 5 | G15: feet | J15: Annual heating load | K15: =K14/1.0551 -> 1810.240061 | L15: MMBtu | X15: Ends | Y15: =IF(params!$A$31=3, F9*2*Inputs!$F$16*Inputs!$F$13,0) -> 0 | Z15: Square feet
D16: Height (Ground to Gutter) | F16: 10 | G16: feet | J16: Fuel use: | X16: Roof side | Y16: =IF(params!$A$31=3, F9*2*Inputs!$Y$2*Inputs!$F$14,0) -> 0 | Z16: Square feet
D17: Space use efficiency | F17: 0.9 | J17: Propane | K17: =$K$15*1000000/91330/$X$50 -> 23318.67064 | L17: gal | X17: Roof peak | Y17: =IF(params!$A$31=3, F9*2*1/2*Inputs!$F$13*Inputs!$F$15,0) -> 0 | Z17: Square feet
D18: Concrete-% of floor | F18: 0.1 | J18: Natural gas | K18: =$K$15*1000000/100000/$X$50 -> 21296.94189 | L18: therms | X18: Total SA area | Y18: =SUM(Y14:Y17) -> 0 | Z18: Square feet
D19: Overseeding | F19: 0.05 | J19: Fuel oil | K19: =$K$15*1000000/139600/$X$50 -> 15255.68903 | L19: gal
D20: Shrink | F20: 0.1 | J20: Pond pump energy | K20: =K7*10.7 -> 32100 | L20: kWh | W20: Gutter Connected (Quonset) | X20: Sides | Y20: =IF(params!$A$31=4, 2*Inputs!$F$14*Inputs!$F$16,0) -> 0 | Z20: Square feet
D21: Price21 | F21: 1.35 | G21: per head | J21: Pond pump energy | K21: =(10*(F14*F13))/8000 -> 3.75 | L21: kW | X21: Ends | Y21: =IF(params!$A$31=4, F10*2*Inputs!$F$16*Inputs!$F$13,0) -> 0 | Z21: Square feet
X22: Roof | Y22: =IF(params!$A$31=4,F10*(PI()*$F$15^2+PI()*$F$15*$F$14),0) -> 0 | Z22: Square feet
X23: Total SA area | Y23: =SUM(Y20:Y22) -> 0 | Z23: Square feet
B25: Spacing- Square foot weeks2 | C25: Please enter value in the Blue box on the spacing and time in each crop production stage. Remember that your greenhouse environment and lighting will impact length of time in each production stage, the numbers below should be average values from across the year | J25: Reference: | W25: Greenhouse air temp | X25: =F51 -> 70 | Y25: F
C26: Spacing no. | E26: plants/ft2 | F26: days@spacing | G26: per harvested plant | J26: Square-foot: weeks calculator- Louis A. Albright, CEA Program Director, Professor, Dept. of Biological and Environmental Engineering, Cornell University | W26: Greenhouse air temp | X26: =(X25-32)*5/9 -> 21.11111111 | Y26: C
G27: ft2-weeks | W27: ASHRAE climate zone | X27: =IF(params!A11=1,"4A", IF(params!A11=2,"5A",0)) -> 4A
C28: 1 | E28: 144 | F28: 11 | G28: =IF(E28=0,0,(F28/E28)/7) -> 0.01091269841 | W28: Air changes per hour | X28: =F49 -> 1 | Y28: ACH
C29: 2 | E29: 7.53 | F29: 10 | G29: =IF(E29=0,0,(F29/E29)/7) -> 0.1897173212 | W29: Infiltration rate | X29: =X28*X31/3600 -> 0.294966874 | Y29: m3/s
C30: 3 | E30: 2.6 | F30: 14 | G30: =IF(E30=0,0,(F30/E30)/7) -> 0.7692307692 | W30: Greenhouse volume | X30: =IF(params!A31=1,((F15/2*F13*F14)+(F13*F14*F16)),IF(params!A31=2,(PI()*F15^2*100)/2+(F13*F14*F16),IF(params!A31=3,(PI()*F15^2*100)/2+(F13*F14*F16)*F9,IF(params!A31=4,((F15/2*F13*F14)+(F13*F14*F16))*F10)))) -> 37500 | Y30: ft3
C31: 4 | E31: 0 | F31: 0 | G31: =IF(E31=0,0,(F31/E31)/7) -> 0 | W31: Greenhouse volume | X31: =X30/35.3147 -> 1061.880747 | Y31: m3
C32: 5 | E32: 0 | F32: 0 | G32: =IF(E32=0,0,(F32/E32)/7) -> 0 | W32: Greenhouse surface area | X32: =K8/10.7639 -> 549.2690995 | Y32: m2
C33: Totals | F33: =SUM(F28:F32) -> 35 | G33: =SUM(G28:G32) -> 0.9698607888 | W33: Greenhouse area | X33: =K7/10.7639 -> 278.7093897 | Y33: m2
W35: Glazing material | X35: =IF(params!A2=1,"Glass",IF(params!A2=2,"Poly",IF(params!A2=3,"Double poly",IF(params!A2=4,"Custom",0)))) -> Glass
W36: u-value | X36: =IF(params!A2=4,F47,VLOOKUP(Inputs!X35,glazing_prop,2,0)) -> 1.098901099 | Y36: Btu/(sqft*degF*h)
B37: Lighting3 | C37: Number of lamps in Greenhouse | F37: 20 | G37: lamps | W37: u-value | X37: =X36*10.7639/3.412/(5/9) -> 6.240102805 | Y37: W/(m2*degC)
C38: Watt consumption per lamp | F38: 1000 | G38: watt | W38: Transmittance | X38: =IF(params!A2=4,F48,VLOOKUP(X35,glazing_prop,3,0)) -> 0.7
C39: Hours operated per year | F39: =(8*180)+(5*180) -> 2340 | G39: hour
W40: Lighting power | X40: =F37*F38 -> 20000 | Y40: W
W41: Lighting hours | X41: =F39 -> 2340 | Y41: h
B42: The energy model below can only be used by NYS user. User from other states please select location as "Other state" in the box below: | J42: Energy Model-Kale Harbick, CEO, Greenhouse Logic
C43: Location4 | W43: ET latent load | X43: =F52 -> 10 | Y43: W/ft2
B44: Heating5 | C44: =IF(params!A36=1, "Ideally use energy model from Cornell CEA or other model or use the folowing formula to get a reasonably accurate estimate to help in making decisions relative to the size of the greenhouse or type of heating", "No need to fill this information below. Please input your own estimation for fuel use in the Cost estimates tab") -> Ideally use energy model from Cornell CEA or other model or use the folowing formula to get a reasonably accurate estimate to help in making decisions relative to the size of the greenhouse or type of heating
W45: ET latent load | X45: =X43*10.7639 -> 107.639 | Y45: W/m2
C46: Glazing material | W46: Greenhouse RH | X46: =F53 -> 0.7
C47: Custom u-value | F47: 1 | G47: Btu/(sqft*degF*h) | J47: 0.5 to 1.0 are common values | W47: Saturation pressure | X47: =EXP(77.345+0.0057*(X26+273.15)-7235/(X26+273.15))/(X26+273.15)^8.2 -> 2496.506861 | Y47: Pa
C48: Custom transmittance | F48: 0.9 | W48: Humidity ratio @ sat. | X48: =0.62198*X47/(101325-X47) -> 0.01571183864 | Y48: kg/kg
C49: Air changes per hour | F49: 1 | G49: ACH | W49: Humidity ratio | X49: =X46*X48 -> 0.01099828705 | Y49: kg/kg
C50: ASHRAE Climate Zone | J50: 4A: NYC, Buffalo, Albany. 5A: Elmira, Ithaca | W50: Boiler efficiency | X50: =F54 -> 0.85
C51: Greenhouse air temperature | F51: 70 | G51: F
C52: Evapotranspiration latent load | F52: 10 | G52: W/ft2
C53: Greenhouse RH% | F53: 0.7
C54: Boiler efficiency | F54: 0.85
B58: Labor6 | C58: Seed/ Transplant/Harvest/ Package | F58: 26 | G58: hrs/per thousand
C59: Delivering to market | F59: 3 | G59: hrs/per thousand
C60: Production management | F60: 2 | G60: hrs/per thousand
C61: Other (Marketing, Maintainence, etc.) | F61: 1 | G61: hrs/per thousand
B65: Others7 | C65: No. of Pelleted seed | F65: 5000 | G65: /per package
C66: No. of Horticubes | F66: 5520 | G66: /per case
C67: No. of beneficial insects | F67: 650 | G67: /per package
C68: Sq. feet covered per insects | F68: 0.9 | G68: /Sq. feet
C69: Clamshell per case | F69: 344 | G69: /case
C70: Clamshell per box | F70: 12 | G70: /box
C71: Labels per roll | F71: 2500 | G71: /roll

Sheet Cost estimates
C3: *** Please enter information in the Blue box
D5: Quantity/Year | E5: Unit | F5: Price ($) / Unit | H5: Total Cost per year
A6: VARIABLE COSTS8
B7: Production Supplies
C8: Seed (package) | D8: =CEILING((Inputs!K11+(Inputs!K11*Inputs!F19))/Inputs!F65,1) -> 31 | E8: packages | F8: 110 | G8: /packages | H8: =D8*F8 -> 3410 | J8: References:
C9: Horticubes | D9: =CEILING(Inputs!K11/Inputs!F66,1) -> 27 | E9: cases | F9: 65 | G9: /cases | H9: 1755
C10: Beneficial Insects9 | D10: =CEILING((Inputs!K7/Inputs!F68)/Inputs!F67,1) -> 6 | E10: packages | F10: 40 | G10: /packages | H10: 240 | J10: Hydroponic Lettuce Budget Analysis- The Ohio State University Extension. http://u.osu.edu/greenhouse/hydroponic-crop-program-economic-budgets/
C11: Fertilizer
C12: Blended Mix | D12: =CEILING(Inputs!K7*0.162760416666666,1) -> 489 | E12: pounds | F12: 1 | G12: /pounds | H12: 489
C13: CaNO3 | D13: =CEILING(Inputs!K7*0.162760416666666,1) -> 489 | E13: pounds | F13: 0.46 | G13: /pounds | H13: 224.94
C14: Additions | D14: =CEILING(Inputs!K7*0.00217013888888888,1) -> 7 | E14: pounds | F14: 1 | G14: /pounds | H14: 7
C15: Fungicide/Pesticide10 | D15: =CEILING(Inputs!K7*0.00217013888888888,1) -> 7 | E15: gallons | F15: 60 | G15: /gallons | H15: 420
C16: Sanitizer | D16: =CEILING(Inputs!K13/29545,1) -> 5 | E16: gallons | F16: 35 | G16: /gallons | H16: 175
C17: Sticky Traps11 | D17: =CEILING(Inputs!K7*0.0001,1) -> 1 | E17: packages | F17: 30 | G17: /packages | H17: 30
C19: Total Production Supplies cost | H19: =SUM(H8:H17) -> 6750.94
B21: Production Labor
C22: Seed/ Transplant/Harvest/ Package | D22: =(Inputs!F58*Inputs!K13)/1000 -> 3386.344 | E22: hours/year | F22: 13 | G22: /hour | H22: =D22*F22 -> 44022.472 | J22: www.labor.ny.gov
C23: Delivering to market | D23: =(Inputs!F59*Inputs!K13)/1000 -> 390.732 | E23: hours/year | F23: 12 | G23: /hour | H23: =D23*F23 -> 4688.784
C24: Production management | D24: =(Inputs!F60*Inputs!K13)/1000 -> 260.488 | E24: hours/year | F24: 13 | G24: /hour | H24: =D24*F24 -> 3386.344
C25: Other (Marketing, Maintainence, etc.) | D25: =(Inputs!F61*Inputs!K13)/1000 -> 130.244 | E25: hours/year | F25: 12 | G25: /hour | H25: =D25*F25 -> 1562.928
C26: Fringe benefit12 | F26: 0.3 | G26: /hour | H26: =(F22*F26*D22)+(F23*F26*D23)+(F24*F26*D24)+(F25*F26*D25) -> 16098.1584
C28: Total Production Labor | H28: =SUM(H22:H26) -> 69758.6864 | M28: =H28*20% -> 13951.73728 | N28: 20% change in labor
B30: Packaging Costs
C31: Clamshell | D31: =CEILING((Inputs!K13/2)/Inputs!F69,1) -> 190 | E31: cases | F31: 80 | G31: /case | H31: =D31*F31 -> 15200 | J31: http://avisbag.com/about-us.html
C32: Box | D32: =CEILING(((Inputs!K13/2)/Inputs!F70),1) -> 5427 | E32: box | F32: 1 | G32: box | H32: =D32*F32 -> 5427
C33: Labels | D33: =CEILING((Inputs!K13/2)/Inputs!F71,1) -> 27 | E33: roll | F33: 50 | G33: /roll | H33: =D33*F33 -> 1350
C35: Total Packaging Costs | H35: =SUM(H31:H33) -> 21977 | M35: =H35*20% -> 4395.4 | N35: 20% change in packaging
B37: Utilities
B38: 13 | C38: =IF(params!A36=1, "Fuel choice only for NYS user (choose one):", "Ignore this Fuel choice if Other State user:") -> Fuel choice only for NYS user (choose one): | D38: 3
D39: =IF(params!A17=1,Inputs!K17, 0) -> 0 | E39: gal | F39: 2.48 | G39: $/gallon | H39: =IF(params!$A$36=1,D39*F39,0) -> 0 | J39: www.eia.gov, NYSERDA
D40: =IF(params!A17=2,Inputs!K18,0) -> 21296.94189 | E40: therms | F40: 0.55 | G40: $/therm | H40: =IF(params!$A$36=1,D40*F40,0) -> 11713.31804 | J40: www.eia.gov, NYSERDA | M40: =H40*20% -> 2342.663608 | N40: 20% change in energy
D41: =IF(params!A17=3,Inputs!K19,0) -> 0 | E41: gal | F41: 2.38 | G41: $/gallon | H41: =IF(params!$A$36=1,D41*F41,0) -> 0 | J41: www.eia.gov, NYSERDA
B42: 14 | C42: =IF(params!A36=2, "Fuel Choice (for Other State user):", "Ignore Fuel choice below if NYS user:") -> Ignore Fuel choice below if NYS user:
C43: Liquid Propane | E43: gal | G43: $/gallon | H43: =IF(params!$A$36=2,D43*F43,0) -> 0
C44: Natural Gas | D44: 20000 | E44: therms | F44: 2.5 | G44: $/therm | H44: =IF(params!$A$36=2,D44*F44,0) -> 0
C45: Fuel Oil | E45: gal | G45: $/gallon | H45: =IF(params!$A$36=2,D45*F45,0) -> 0
C46: Electricity (general - non fans) | D46: 500 | E46: kWh | F46: 0.06 | G46: /kWh | H46: =D46*F46 -> 30
C47: Electricity (fans and pads) | D47: 10000 | E47: kWh | F47: 0.06 | G47: /kWh | H47: 600
C48: Electricity (fanjets/Horizontal Air Fans) | D48: 2000 | E48: kWh | F48: 0.06 | G48: /kWh | H48: 120
C49: Electricity (lights) | D49: =Inputs!F37*Inputs!F38*Inputs!F39/1000 -> 46800 | E49: kWh | F49: 0.06 | G49: /kWh | H49: =IF(params!A22=2, D49*F49,0) -> 2808
C50: Pond Pump Energy (DWS) | D50: =Inputs!K20 -> 32100 | E50: kWh | F50: 0.06 | G50: /kWh | H50: =IF(params!A26=2, D50*F50,0) -> 1926
C51: Pump Energy (NFT) | D51: =Inputs!K20 -> 32100 | E51: kWh | F51: 0.06 | G51: /kWh | H51: =IF(params!A26=1, D51*F51,0) -> 0
C52: Demand charge15 (fans) | D52: =7*(Inputs!F13*Inputs!F14)/8000 -> 2.625 | E52: kW | F52: =10*12 -> 120 | G52: /kW | H52: =D52*F52 -> 315
C53: Demand charge (lights) | D53: =Inputs!F37*Inputs!F38/1000 -> 20 | E53: kW | F53: =10*12 -> 120 | G53: /kW | H53: =IF(params!A22=2, D53*F53,0) -> 2400 | M53: =SUM(H46:H58) -> 11048.51
C54: Demand charge (pond pump) | D54: =10*(Inputs!F13*Inputs!F14)/8000 -> 3.75 | E54: kW | F54: =10*12 -> 120 | G54: /kW | H54: =IF(params!A26=2,D54*F54,0) -> 450 | M54: =M53*20% -> 2209.702 | N54: 20% change in electricity
C55: Demand charge (NFT) | D55: =10*(Inputs!F13*Inputs!F14)/8000 -> 3.75 | F55: =10*12 -> 120 | G55: /kW | H55: =IF(params!A26=1,D55*F55,0) -> 0
C56: Water and Sewer | D56: 100000 | E56: gallons | F56: 0.0131951 | G56: /gallon | H56: 1319.51
C57: Telephone | D57: 12 | E57: months | F57: 50 | G57: /month | H57: 600
C58: Cell Phone | D58: 12 | E58: months | F58: 40 | G58: /month | H58: 480
C60: Total Utilities Costs | H60: =SUM(H39:H58) -> 22761.82804 | M60: =H60*20% -> 4552.365608 | N60: 20% change in utility
B63: Miscellaneous Costs
C64: Advertising, Mailings, Flyers | D64: 1 | E64: campaigns | F64: 200 | G64: /campaigns | H64: =F64*D64 -> 200
C65: Continuing Education | D65: 1 | E65: meetings | F65: 75 | G65: /meetings | H65: =D65*F65 -> 75
C66: Internet Service | D66: 12 | E66: months | F66: 20 | G66: /months | H66: 240 | J66: Hydroponic Lettuce Budget Analysis- The Ohio State University Extension. http://u.osu.edu/greenhouse/hydroponic-crop-program-economic-budgets/
C67: Laboratory Fees | D67: 36 | E67: tests | F67: 20 | G67: /tests | H67: 720
C68: Office Supplies | D68: 12 | E68: months | F68: 25 | G68: /months | H68: 300
C69: Postage | D69: 12 | E69: months | F69: 15 | G69: /months | H69: 180
C70: Marketing Materials & Promotions | D70: 1 | E70: promos | F70: 300 | G70: /promos | H70: 300
C71: Record Keeping | D71: 12 | E71: months | F71: 50 | G71: /months | H71: 600
C72: Software | D72: 3 | E72: programs | F72: 50 | G72: /programs | H72: 150
C73: Subscriptions | D73: 3 | E73: subscriptions | F73: 35 | G73: /subscriptions | H73: 105
C74: Marketing & Trade Shows | D74: 0 | E74: trade show | F74: 500 | G74: /trade show | H74: 0
C76: Total Miscellaneous Costs | H76: =SUM(H64:H74) -> 2870
B78: Professional Services
C79: Accountant | D79: 5 | E79: hours | F79: 50 | G79: /hour | H79: =D79*F79 -> 250
C80: Lawyer | D80: 4 | E80: hours | F80: 125 | G80: /hour | H80: =D80*F80 -> 500
C82: Total Professional Services | H82: =SUM(H79:H80) -> 750
C84: TOTAL VARIABLE COSTS | H84: =SUM(H82,H76,H60,H35,H28,H19) -> 124868.4544
A87: Fixed Costs16
D88: Quantity/Year | E88: Unit | F88: Price/Unit | H88: Total Cost per year
B89: Greenhouse Structure
C90: Concrete | D90: =Inputs!K7*Inputs!F18 -> 300 | E90: sq. ft. | F90: 2 | G90: /sq. ft. | H90: =D90*F90 -> 600 | J90: http://griffins.com/publications#pdf
C91: Frame, Ends, Door | D91: =IF(params!A31=1,Inputs!F7,IF(params!A31=2,Inputs!F8,IF(params!A31=3,Inputs!F9,IF(params!A31=4,Inputs!F10)))) -> 1 | E91: houses | F91: 15000 | G91: /houses | H91: 15000
C92: Glazing material (Glass/poly/ double poly) | D92: =IF(params!A31=1,Inputs!F7,IF(params!A31=2,Inputs!F8,IF(params!A31=3,Inputs!F9,IF(params!A31=4,Inputs!F10)))) -> 1 | E92: houses | F92: 5000 | G92: /houses | H92: =D92*F92 -> 5000
C93: Energy/Shade Curtains | D93: =Inputs!K7-D90 -> 2700 | E93: sq. ft. | F93: 4 | G93: /sq. ft. | H93: 10800
C94: Ground Cover | D94: =Inputs!K7-D90 -> 2700 | E94: sq. ft. | F94: 0.075 | G94: /sq. ft. | H94: 202.5
C95: Permits | D95: 4 | E95: permits | F95: 80 | G95: /permits | H95: 320
C96: Site Preparation | D96: =IF(params!A31=1,Inputs!F7,IF(params!A31=2,Inputs!F8,IF(params!A31=3,Inputs!F9,IF(params!A31=4,Inputs!F10)))) -> 1 | E96: houses | F96: 1000 | G96: /houses | H96: 1000
C97: House Construction | D97: =150*D96 -> 150 | E97: hours | F97: 10 | G97: /hours | H97: 1500
C99: Total Greenhouse Structure Costs | H99: =SUM(H90:H97) -> 34422.5
C101: Total Annual Greenhouse Stucture Costs20 (Annual costs of owning the greenhouse includes depreciation and/or principal payments, interest, repairs, taxes, and insurance) | F101: 0.2 | H101: =H99*F101 -> 6884.5
B103: Greenhouse Environmental Control Equipment | J103: https://www.greenhousemegastore.com/category/gas-greenhouse-heaters
C105: Back-up Generator | D105: 1 | E105: generators | F105: 6000 | G105: /generators | H105: =D105*F105 -> 6000
C106: Cooling System (fan, vent, & pad) | D106: 1 | E106: systems | F106: 2000 | G106: /systems | H106: 2000
C107: Fanjets, 30" 1hp / Horizontal Air Fans | D107: 1 | E107: fanjets / HAF | F107: 1500 | G107: /fanjets / HAF | H107: 1500
C108: Electrical Panel | D108: 1 | E108: panels | F108: 1500 | G108: /panels | H108: 1500
C109: Computer for Environmental Control | D109: 1 | E109: computers | F109: 2500 | G109: /computers | H109: 2500
C110: Extra Building Supplies | D110: 1 | E110: houses | F110: 1500 | G110: /houses | H110: 1500
C111: Heating System (reflects utility choice from above)
C112: Liquid Propane | D112: 1 | E112: heaters | F112: 2500 | G112: /heaters | H112: =IF(params!A17=1, D112*F112,0) -> 0
C113: Natural Gas | D113: 1 | E113: heaters | F113: 2000 | G113: /heaters | H113: =IF(params!A17=2, D113*F113,0) -> 2000
C114: Fuel Oil | D114: 1 | E114: heaters | F114: 2000 | G114: /heaters | H114: =IF(params!A17=3, D114*F114,0) -> 0
C115: Poly Inflation Kit | D115: 1 | E115: kits | F115: 150 | G115: /kits | H115: =D115*F115 -> 150
C116: Low Voltage Wiring Package | D116: 1 | E116: packages | F116: 400 | G116: /packages | H116: =D116*F116 -> 400
C117: Protective Equipment (PPE) | D117: 1 | E117: sets | F117: 50 | G117: /sets | H117: =D117*F117 -> 50
C118: Grow Lights17 | D118: 2
H119: =IF(params!A22=1,0,0) -> 0
D120: =Inputs!F37 -> 20 | E120: Lights | F120: 460 | G120: /Lights | H120: =IF(params!A22=2,D120*F120,0) -> 9200
C123: Total Greenhouse Environmental Control Equipment Costs | H123: =SUM(H105:H121) -> 26800
C125: Total Annual Equipment Costs (Annual costs of owning the equipment includes depreciation and/or principal payments, interest, repairs, taxes, and insurance) | F125: 0.2 | H125: =H123*F125 -> 5360
B127: Growing & Delivery
C129: Back Pack Sprayer | D129: 1 | E129: sprayers | F129: 100 | G129: /sprayers | H129: =D129*F129 -> 100
C130: Carbon Dioxide Generator | D130: 1 | E130: generators | F130: 480 | G130: /generators | H130: 480
C131: Cooler | D131: 1 | E131: coolers | F131: 2500 | G131: /coolers | H131: 2500
C132: Delivery Van with A/C | D132: 1 | E132: vans | F132: 6000 | G132: /vans | H132: 6000
C133: Fertilizer Mixing Pump | D133: 1 | E133: pumps | F133: 30 | G133: /pumps | H133: 30
C134: Meters and Sensors- EC | D134: 1 | E134: meters | F134: 160 | G134: /meters | H134: 160
C135: pH | D135: 1 | E135: sensors | F135: 50 | G135: /sensors | H135: 50
C136: Thermometer | D136: 1 | E136: thermometers | F136: 25 | G136: /thermometers | H136: 25
C137: Monitor- Humidity | D137: 1 | E137: sensors | F137: 120 | G137: /sensors | H137: 120
C138: CO2 | D138: 1 | E138: sensors | F138: 500 | G138: /sensors | H138: 500
B139: 1 | C139: Growing system (Choose one)18:
D140: 1 | E140: system | F140: 20000 | G140: /system | H140: =IF(params!A26=1,D140*F140,0) -> 0 | J140: https://shop.amhydro.com/collections/complete-nft-systems
D141: 1 | E141: system | F141: 16500 | G141: /system | H141: =IF(params!A26=2,D141*F141,0) -> 16500 | J141: Controlled Environment Agriculture Scoping Study (1996), CEA Program, Cornell University
C143: Scale | D143: 1 | E143: scales | F143: 100 | G143: /scales | H143: =D143*F143 -> 100
C146: Total Other Equipment | H146: =SUM(H129:H143) -> 26565
C148: Total Annual Growing & Delivery Costs (Annual costs of owning the greenhouse includes depreciation and/or principal payments, interest, repairs, taxes, and insurance) | F148: 0.2 | H148: =H146*F148 -> 5313
B150: Miscellaneous
C152: Land Rent19 | D152: 1 | E152: Acre | F152: 100 | G152: /acre | H152: =D152*F152 -> 100 | J152: https://www.ers.usda.gov/topics/farm-economy/land-use-land-value-tenure/farmland-value/
C154: Total Miscellaneous Costs | H154: =H152 -> 100
C158: TOTAL ANNUAL FIXED COSTS | H158: =H154+H148+H125+H101 -> 17657.5
C160: TOTAL ANNUAL COSTS | E160: (Variable Costs + Annual Fixed Costs) | H160: =SUM(H158,H84) -> 142525.9544

Sheet Results
B5: Total Annual Revenue and Expenses
B7: REVENUE
C8: Price per Head | E8: =Inputs!F21 -> 1.35
C9: Total Heads Sold | E9: =FLOOR(Inputs!K11-(Inputs!K11*Inputs!F20),1) -> 130244
C11: Annual Revenue | F11: =E8*E9 -> 175829.4
B13: EXPENSES
C14: Variable cost | E14: ='Cost estimates'!H84 -> 124868.4544
C15: Annual Fixed costs | E15: ='Cost estimates'!H158 -> 17657.5
C17: Total Annual Expenses | F17: =SUM(E14:E15) -> 142525.9544
B19: Annual Operating Profit | F19: =F11-F17 -> 33303.44556
C22: Variable Costs ($) | D22: Fixed Costs ($) | E22: Total Annual Costs ($) | F22: Annual Profit ($)
B24: Per Head | C24: ='Cost estimates'!H84/Inputs!K13 -> 0.9587271156 | D24: ='Cost estimates'!H158/Inputs!K13 -> 0.135572464 | E24: ='Cost estimates'!H160/Inputs!K13 -> 1.09429958 | F24: =F19/Inputs!K13 -> 0.2557004204
B25: Per Square Foot | C25: ='Cost estimates'!H84/Inputs!K7 -> 41.62281815 | D25: ='Cost estimates'!H158/Inputs!K7 -> 5.885833333 | E25: ='Cost estimates'!H160/Inputs!K7 -> 47.50865148 | F25: =F19/Inputs!K7 -> 11.10114852
B26: Per House | C26: ='Cost estimates'!H84/'Cost estimates'!D91 -> 124868.4544 | D26: ='Cost estimates'!H158/'Cost estimates'!D91 -> 17657.5 | E26: ='Cost estimates'!H160/'Cost estimates'!D91 -> 142525.9544 | F26: =F19/'Cost estimates'!D91 -> 33303.44556
B27: Acre (43,560 sq. ft./acre) | C27: ='Cost estimates'!H84/(Inputs!K7/43560) -> 1813089.958 | D27: ='Cost estimates'!H158/(Inputs!K7/43560) -> 256386.9 | E27: ='Cost estimates'!H160/(Inputs!K7/43560) -> 2069476.858 | F27: =F19/(Inputs!K7/43560) -> 483566.0295

Sheet Sim1I (hidden)
C3: *** Please enter information in the Blue box
B5: Production
C6: Choose type of Greenhouse : | E6: 1
C7: 1 | J7: Outputs based on the information provided in the Blue box
J10: Greenhouse area | K10: =Inputs!K7 -> 3000 | L10: Sq. feet | S10: Note:
C11: Greenhouse dimension | D11: Width | F11: =Inputs!F13 -> 30 | G11: Feet | J11: Side of the roof (if Gable) | K11: =Inputs!Y2 -> 15.8113883 | L11: Feet | Q11: Surface area:
D12: Length | F12: =Inputs!F14 -> 100 | G12: Feet | J12: Surface Area | K12: =Inputs!K8 -> 5912.27766 | L12: Sq. feet | S12: Freestanding Gable | T12: Sides | U12: =IF(Sim1I!C7=1, 2*Sim1I!F12*Sim1I!F14,0) -> 2000 | V12: Square feet
D13: Radius of the roof | F13: =Inputs!F15 -> 5 | G13: Feet | J13: Net production area | K13: =Inputs!K9 -> 2700 | L13: Sq. feet | T13: Ends | U13: =IF(Sim1I!C7=1, 2*Sim1I!F14*Sim1I!F11,0) -> 600 | V13: Square feet
D14: Height | F14: =Inputs!F16 -> 10 | G14: Feet | J14: Plant harvested (week) | K14: =FLOOR(K13/Sim1I!G33,1) -> 3210 | L14: Heads | T14: Roof | U14: =IF(Sim1I!C7=1, 2*Sim1I!K11*Sim1I!F12,0) -> 3162.27766 | V14: Square feet
D15: Space use efficiency | F15: =Inputs!F17 -> 0.9 | J15: Plant harvested (year) | K15: =K14*52 -> 166920 | L15: Heads | T15: Roof peak | U15: =IF(Sim1I!C7=1, 2*1/2*Sim1I!F11*Sim1I!F13) -> 150 | V15: Square feet
D16: Concrete-% of floor | F16: =Inputs!F18 -> 0.1 | J16: Seed | K16: =CEILING(K15+(K15*Sim1I!F17),1) -> 175266 | T16: Total SA area | U16: =SUM(U12:U15) -> 5912.27766 | V16: Square feet
D17: Overseeding | F17: =Inputs!F19 -> 0.05 | J17: Net annual production | K17: =FLOOR(K15-(K15*Sim1I!F18),1) -> 150228 | L17: Heads
D18: % shrink | F18: =Inputs!F20 -> 0.1 | S18: Freestanding Quonset | T18: Sides | U18: 2000 | V18: Square feet
D19: Price | F19: =Inputs!F21 -> 1.35 | G19: per head | T19: Ends | U19: 600 | V19: Square feet
T20: Roof | U20: 2648.5 | V20: Square feet
T21: Total SA area | U21: 5248.5 | V21: Square feet
J22: Annual heating load | K22: =Inputs!K14 -> 1909.984288 | L22: GJ
B23: Spacing- Square foot week1 | C23: Please enter value in the Blue box on the spacing and time in each crop production stage | J23: Annual heating load | K23: =Inputs!K15 -> 1810.240061 | L23: MMBtu
C24: Remember that your greenhouse environment and lighting will impact length of time in each production stage, the numbers below should be average values from across the year
J25: Fuel use:
C26: Spacing no. | E26: plants/ft2 | F26: days@spacing | G26: per harvested plant | J26: Propane | K26: =Inputs!K17 -> 23318.67064 | L26: gal
G27: ft2-weeks | J27: Natural gas | K27: =Inputs!K18 -> 21296.94189 | L27: therms
C28: 1 | E28: 144 | F28: 11 | G28: =IF(E28=0,0,(F28/E28)/7) -> 0.01091269841 | J28: Fuel oil | K28: =Inputs!K19 -> 15255.68903 | L28: gal
C29: 2 | E29: 7.53 | F29: 9 | G29: =IF(E29=0,0,(F29/E29)/7) -> 0.1707455891
C30: 3 | E30: 2.6 | F30: 12 | G30: =IF(E30=0,0,(F30/E30)/7) -> 0.6593406593 | J30: Pond pump energy | K30: =Inputs!K20 -> 32100 | L30: kWh
C31: 4 | E31: 0 | F31: 8 | G31: =IF(E31=0,0,(F31/E31)/7) -> 0 | J31: Pond pump energy | K31: =Inputs!K21 -> 3.75 | L31: kW
C32: 5 | E32: 0 | F32: 8 | G32: =IF(E32=0,0,(F32/E32)/7) -> 0
C33: Totals | F33: =SUM(F28:F32) -> 48 | G33: =SUM(G28:G32) -> 0.8409989468
B37: Lighting | C37: Number of lamps in Greenhouse | F37: =Inputs!F37 -> 20 | G37: lamps
C38: Watt consumption per lamp | F38: =Inputs!F38 -> 1000 | G38: watt
C39: Hours operated per year | F39: =Inputs!F39 -> 2340 | G39: hour
E42: 1 | T42: Use Degree -days if you are in NYS from the following table or from nearby weather station data:
B43: Heating4 | C43: Ideally use energy model from Cornell CEA or other model | U43: Albany | V43: 4302
C44: OR use the folowing formula to get a reasonably accurate estimate to help in making decisions relative to the size of the greenhouse or type of heating.
C46: Glazing material | F46: =Inputs!F46 -> 0 | U46: Binghamton | V46: 4296
C47: Custom u-value | F47: 1 | G47: Btu/(sqft*degF*h) | U47: Buffalo | V47: 4316
C48: Custom transmittance | F48: 0.9 | U48: Ithaca | V48: 4023
C49: Air changes per hour | F49: 1 | G49: ACH | U49: New york | V49: 3089
C50: ASHRAE Climate Zone | F50: 5A | U50: Rochester | V50: 4231
C51: Greenhouse air temperature | F51: 70 | G51: F
C52: Evapotranspiration latent load | F52: 10 | G52: W/ft2
C53: Greenhouse RH% | F53: 0.7
C54: Boiler efficiency | F54: 0.85
B58: Labor | C58: Seed/ Transplant/Harvest/ Package | F58: =Inputs!F58 -> 26 | G58: hrs/per thousand
C59: Delivering to market | F59: =Inputs!F59 -> 3 | G59: hrs/per thousand
C60: Production management | F60: =Inputs!F60 -> 2 | G60: hrs/per thousand
C61: Other (Marketing, Maintainence, etc.) | F61: =Inputs!F61 -> 1 | G61: hrs/per thousand
B64: Others | C64: No. of Pelleted seed | F64: =Inputs!F65 -> 5000 | G64: /per package
C65: No. of Horticubes | F65: =Inputs!F66 -> 5520 | G65: /per case
C66: No. of beneficial insects | F66: =Inputs!F67 -> 650 | G66: /per package
C67: Sq. feet covered per insects | F67: =Inputs!F68 -> 0.9 | G67: /per insects
C68: Clamshell per case | F68: =Inputs!F69 -> 344 | G68: /case
C69: Clamshell per box | F69: =Inputs!F70 -> 12 | G69: /box
C70: Labels per roll | F70: =Inputs!F71 -> 2500 | G70: /roll

Sheet Sim1C (hidden)
C3: *** Please enter information in the Blue box
D5: Quantity/Year | E5: Unit | F5: Price ($) / Unit | H5: Total Cost per year | N5: Notes
A6: VARIABLE COSTS
B7: Production Supplies
C8: Seed (package) | D8: =CEILING((Sim1I!K15+(Sim1I!K15*Inputs!F19))/Inputs!F65,1) -> 36 | E8: packages | F8: ='Cost estimates'!F8 -> 110 | G8: /packages | H8: =D8*F8 -> 3960 | N8: 31= total harvest*5% overseeding/5000
C9: Horticubes | D9: =CEILING(Sim1I!K15/Inputs!F66,1) -> 31 | E9: cases | F9: ='Cost estimates'!F9 -> 65 | G9: /cases | H9: 2015 | N9: 27= total harvest/ 5520
C10: Beneficial Insects | D10: =CEILING((Inputs!K7/Inputs!F68)/Inputs!F67,1) -> 6 | E10: packages | F10: ='Cost estimates'!F10 -> 40 | G10: /packages | H10: 240 | N10: 6= ((total area/area covered by 1000 insects)*(1000/no. of insects in 1 package))
C11: Fertilizer | H11: 0
C12: Blended Mix | D12: =CEILING(Inputs!K7*0.162760416666666,1) -> 489 | E12: pounds | F12: ='Cost estimates'!F12 -> 1 | G12: /pounds | H12: 489 | N12: 489= 0.162760*total area
C13: CaNO3 | D13: =CEILING(Inputs!K7*0.162760416666666,1) -> 489 | E13: pounds | F13: ='Cost estimates'!F13 -> 0.46 | G13: /pounds | H13: 224.94 | N13: 489= 0.162760*total area
C14: Additions | D14: =CEILING(Inputs!K7*0.00217013888888888,1) -> 7 | E14: pounds | F14: ='Cost estimates'!F14 -> 1 | G14: /pounds | H14: 7 | N14: 7= 0.00217014*total area
C15: Fungicide/Pesticide3 | D15: =CEILING(Inputs!K7*0.00217013888888888,1) -> 7 | E15: gallons | F15: ='Cost estimates'!F15 -> 60 | G15: /gallons | H15: 420 | N15: 7= 0.00217014*total area
C16: Sanitizer | D16: =CEILING(Sim1I!K17/29545,1) -> 6 | E16: gallons | F16: ='Cost estimates'!F16 -> 35 | G16: /gallons | H16: 210
C17: Sticky Traps4 | D17: =CEILING(Inputs!K7*0.0001,1) -> 1 | E17: packages | F17: ='Cost estimates'!F17 -> 30 | G17: /packages | H17: 30
C19: Total Production Supplies cost | H19: =SUM(H8:H17) -> 7595.94
B21: Production Labor
C22: Seed/ Transplant/Harvest/ Package | D22: =(Inputs!F58*Sim1I!K17)/1000 -> 3905.928 | E22: hours/year | F22: ='Cost estimates'!F22 -> 13 | G22: /hour | H22: =D22*F22 -> 50777.064
C23: Delivering to market | D23: =(Inputs!F59*Sim1I!K17)/1000 -> 450.684 | E23: hours/year | F23: ='Cost estimates'!F23 -> 12 | G23: /hour | H23: =D23*F23 -> 5408.208 | N23: **Source: rate, NYS dept of labor
C24: Production management | D24: =(Inputs!F60*Sim1I!K17)/1000 -> 300.456 | E24: hours/year | F24: ='Cost estimates'!F24 -> 13 | G24: /hour | H24: =D24*F24 -> 3905.928
C25: Other (Marketing, Maintainence, etc.) | D25: =(Inputs!F61*Sim1I!K17)/1000 -> 150.228 | E25: hours/year | F25: ='Cost estimates'!F25 -> 12 | G25: /hour | H25: =D25*F25 -> 1802.736
C26: Fringe benefit | F26: ='Cost estimates'!F26 -> 0.3 | G26: /hour | H26: =(F22*F26*D22)+(F23*F26*D23)+(F24*F26*D24) -> 18027.36
C28: Total Production Labor | H28: =SUM(H22:H26) -> 79921.296 | J28: =H28*20% -> 15984.2592 | K28: 20% change in labor
B30: Packaging Costs
C31: Clamshell | D31: =CEILING((Sim1I!K17/2)/Inputs!F69,1) -> 219 | E31: cases | F31: ='Cost estimates'!F31 -> 80 | G31: /case | H31: =D31*F31 -> 17520 | N31: *** http://avisbag.com/about-us.html
C32: Box | D32: =CEILING(((Sim1I!K17/2)/Inputs!F70),1) -> 6260 | E32: box | F32: ='Cost estimates'!F32 -> 1 | G32: box | H32: =D32*F32 -> 6260
C33: Labels | D33: =CEILING((Sim1I!K17/2)/Inputs!F71,1) -> 31 | E33: roll | F33: ='Cost estimates'!F33 -> 50 | G33: /roll | H33: =D33*F33 -> 1550
C35: Total Packaging Costs | H35: =SUM(H31:H33) -> 25330 | J35: =H35*20% -> 5066 | K35: 20% change in packaging
B37: Utilities
C38: Fuel Choice (choose one)7: | D38: 2 | N38: ** sources: https://www.nyserda.ny.gov/Researchers-and-Policymakers/Energy-Prices/Propane/Monthly-Average-Propane-Prices
D39: ='Cost estimates'!D39 -> 0 | E39: ='Cost estimates'!E39 -> gal | F39: ='Cost estimates'!F39 -> 2.48 | G39: ='Cost estimates'!G39 -> $/gallon | H39: ='Cost estimates'!H39 -> 0 | N39: ** sources: www.eia.gov, NYSERDA
D40: ='Cost estimates'!D40 -> 21296.94189 | E40: ='Cost estimates'!E40 -> therms | F40: ='Cost estimates'!F40 -> 0.55 | G40: ='Cost estimates'!G40 -> $/therm | H40: ='Cost estimates'!H40 -> 11713.31804
D41: ='Cost estimates'!D41 -> 0 | E41: ='Cost estimates'!E41 -> gal | F41: ='Cost estimates'!F41 -> 2.38 | G41: ='Cost estimates'!G41 -> $/gallon | H41: ='Cost estimates'!H41 -> 0
C42: For other state user
C43: Liquid Propane | D43: ='Cost estimates'!D43 -> 0 | F43: ='Cost estimates'!F43 -> 0 | H43: ='Cost estimates'!H43 -> 0
C44: Natural Gas | D44: ='Cost estimates'!D44 -> 20000 | F44: ='Cost estimates'!F44 -> 2.5 | H44: ='Cost estimates'!H44 -> 0
C45: Fuel Oil | D45: ='Cost estimates'!D45 -> 0 | F45: ='Cost estimates'!F45 -> 0 | H45: ='Cost estimates'!H45 -> 0
C46: Electricity (general - non fans) | D46: ='Cost estimates'!D46 -> 500 | E46: kilowatt-hr | F46: ='Cost estimates'!F46 -> 0.06 | G46: /kilowatt-hr | H46: =D46*F46 -> 30
C47: Electricity (fans and pads) | D47: ='Cost estimates'!D47 -> 10000 | E47: kilowatt-hr | F47: ='Cost estimates'!F47 -> 0.06 | G47: /kilowatt-hr | H47: 600
C48: Electricity (fanjets/Horizontal Air Fans) | D48: ='Cost estimates'!D48 -> 2000 | E48: kilowatt-hr | F48: ='Cost estimates'!F48 -> 0.06 | G48: /kilowatt-hr | H48: 120
C49: Electricity (lights) | D49: ='Cost estimates'!D49 -> 46800 | E49: kilowatt-hr | F49: ='Cost estimates'!F49 -> 0.06 | G49: /kilowatt-hr | H49: 2808
C50: Pond Pump Energy (DWS) | D50: ='Cost estimates'!D50 -> 32100 | E50: kWh | F50: 0.06 | G50: /kWh | H50: =D50*F50 -> 1926
C51: Pump Energy (NFT) | D51: ='Cost estimates'!D51 -> 32100 | E51: kW | F51: 0.06 | G51: /kW | H51: 1926
C52: Demand charge13 (fans) | D52: ='Cost estimates'!D52 -> 2.625 | E52: kW | F52: ='Cost estimates'!F52 -> 120 | G52: /kW | H52: 315 | J52: =H60*20% -> 5027.565608 | K52: 20% change in Utility
C53: Demand charge (lights) | D53: ='Cost estimates'!D53 -> 20 | E53: kW | F53: ='Cost estimates'!F53 -> 120 | G53: /kW | H53: 2400
C54: Demand charge (pond pump) | D54: ='Cost estimates'!D54 -> 3.75 | E54: kW | F54: ='Cost estimates'!F54 -> 120 | G54: /kW | H54: 450
C55: Demand charge (NFT) | D55: ='Cost estimates'!D55 -> 3.75 | F55: ='Cost estimates'!F55 -> 120 | G55: /kW | H55: 450
C56: Water and Sewer | D56: ='Cost estimates'!D56 -> 100000 | E56: gallons | F56: ='Cost estimates'!F56 -> 0.0131951 | G56: /gallons | H56: 1319.51
C57: Telephone | D57: ='Cost estimates'!D57 -> 12 | E57: months | F57: ='Cost estimates'!F57 -> 50 | G57: /month | H57: 600
C58: Cell Phone | D58: ='Cost estimates'!D58 -> 12 | E58: months | F58: ='Cost estimates'!F58 -> 40 | G58: /month | H58: 480
C60: Total Utilities Costs | H60: =SUM(H39:H58) -> 25137.82804
B62: Miscellaneous Costs
C63: Advertising, Mailings, Flyers | D63: ='Cost estimates'!D64 -> 1 | E63: campaigns | F63: ='Cost estimates'!F64 -> 200 | G63: /campaigns | H63: =F63*D63 -> 200
C64: Continuing Education | D64: ='Cost estimates'!D65 -> 1 | E64: meetings | F64: ='Cost estimates'!F65 -> 75 | G64: /meetings | H64: =D64*F64 -> 75
C65: Internet Service | D65: ='Cost estimates'!D66 -> 12 | E65: months | F65: ='Cost estimates'!F66 -> 20 | G65: /months | H65: 240
C66: Laboratory Fees | D66: ='Cost estimates'!D67 -> 36 | E66: tests | F66: ='Cost estimates'!F67 -> 20 | G66: /tests | H66: 720
C67: Office Supplies | D67: ='Cost estimates'!D68 -> 12 | E67: months | F67: ='Cost estimates'!F68 -> 25 | G67: /months | H67: 300
C68: Postage | D68: ='Cost estimates'!D69 -> 12 | E68: months | F68: ='Cost estimates'!F69 -> 15 | G68: /months | H68: 180
C69: Marketing Materials & Promotions | D69: ='Cost estimates'!D70 -> 1 | E69: promos | F69: ='Cost estimates'!F70 -> 300 | G69: /promos | H69: 300
C70: Record Keeping | D70: ='Cost estimates'!D71 -> 12 | E70: months | F70: ='Cost estimates'!F71 -> 50 | G70: /months | H70: 600
C71: Software | D71: ='Cost estimates'!D72 -> 3 | E71: programs | F71: ='Cost estimates'!F72 -> 50 | G71: /programs | H71: 150
C72: Subscriptions | D72: ='Cost estimates'!D73 -> 3 | E72: subscriptions | F72: ='Cost estimates'!F73 -> 35 | G72: /subscriptions | H72: 105
C73: Marketing & Trade Shows | D73: ='Cost estimates'!D74 -> 0 | E73: trade show | F73: ='Cost estimates'!F74 -> 500 | G73: /trade show | H73: 0
C75: Total Miscellaneous Costs | H75: =SUM(H63:H73) -> 2870
B77: Professional Services
C79: Accountant | D79: ='Cost estimates'!D79 -> 5 | E79: hours | F79: ='Cost estimates'!F79 -> 50 | G79: /hour | H79: =D79*F79 -> 250
C80: Lawyer | D80: ='Cost estimates'!D80 -> 4 | E80: hours | F80: ='Cost estimates'!F80 -> 125 | G80: /hour | H80: =D80*F80 -> 500 | N80: ** Total area- Concrete area
N81: **Ground cover= Total area - Concrete area
A82: Fixed Cost13 | C82: Total Professional Services | H82: =SUM(H79:H80) -> 750
C84: TOTAL VARIABLE COSTS | H84: =SUM(H82,H75,H60,H35,H28,H19) -> 141605.064
B88: Greenhouse Structure | D88: Quantity/Year | E88: Unit | F88: Price/Unit | H88: Total Cost per year
C90: Concrete-% of floor | D90: =Inputs!K7*Inputs!F18 -> 300 | E90: sq. ft. | F90: ='Cost estimates'!F90 -> 2 | G90: /sq. ft. | H90: =D90*F90 -> 600
C91: Frame, Ends, Door | D91: ='Cost estimates'!D91 -> 1 | E91: houses | F91: ='Cost estimates'!F91 -> 15000 | G91: /houses | H91: 15000
C92: Glazing material (Glass/Poly/Double poly) | D92: ='Cost estimates'!D92 -> 1 | E92: houses | F92: ='Cost estimates'!F92 -> 5000 | G92: /houses | H92: 5000
C93: Energy/Shade Curtains | D93: =Inputs!K7-D90 -> 2700 | E93: sq. ft. | F93: ='Cost estimates'!F93 -> 4 | G93: /sq. ft. | H93: 10800
C94: Ground Cover | D94: =Inputs!K7-D90 -> 2700 | E94: sq. ft. | F94: ='Cost estimates'!F94 -> 0.075 | G94: /sq. ft. | H94: 202.5
C95: Permits | D95: ='Cost estimates'!D95 -> 4 | E95: permits | F95: ='Cost estimates'!F95 -> 80 | G95: /permits | H95: 320
C96: Site Preparation | D96: ='Cost estimates'!D96 -> 1 | E96: houses | F96: ='Cost estimates'!F96 -> 1000 | G96: /houses | H96: 1000
C97: House Construction | D97: ='Cost estimates'!D97 -> 150 | E97: hours | F97: ='Cost estimates'!F97 -> 10 | G97: /hours | H97: 1500
C99: Total Greenhouse Structure Costs | H99: =SUM(H90:H97) -> 34422.5
C101: Total Annual Greenhouse Stucture Costs (Annual costs of owning the greenhouse includes depreciation and/or principal payments, interest, repairs, taxes, and insurance) | F101: ='Cost estimates'!F101 -> 0.2 | H101: =H99*F101 -> 6884.5
B102: Greenhouse Environmental Control Equipment
N103: *** https://www.greenhousemegastore.com/category/gas-greenhouse-heaters
C105: Back-up Generator | D105: ='Cost estimates'!D105 -> 1 | E105: generators | F105: ='Cost estimates'!F105 -> 6000 | G105: /generators | H105: =D105*F105 -> 6000
C106: Cooling System (fan, vent, & pad) | D106: ='Cost estimates'!D106 -> 1 | E106: systems | F106: ='Cost estimates'!F106 -> 2000 | G106: /systems | H106: 2000
C107: Fanjets, 30" 1hp / Horizontal Air Fans | D107: ='Cost estimates'!D107 -> 1 | E107: fanjets / HAF | F107: ='Cost estimates'!F107 -> 1500 | G107: /fanjets / HAF | H107: 1500
C108: Electrical Panel | D108: ='Cost estimates'!D108 -> 1 | E108: panels | F108: ='Cost estimates'!F108 -> 1500 | G108: /panels | H108: 1500
C109: Computer for Environmental Control | D109: ='Cost estimates'!D109 -> 1 | E109: computers | F109: ='Cost estimates'!F109 -> 2500 | G109: /computers | H109: 2500
C110: Extra Building Supplies | D110: ='Cost estimates'!D110 -> 1 | E110: houses | F110: ='Cost estimates'!F110 -> 1500 | G110: /houses | H110: 1500
C111: Heating System (reflects utility choice from above)
C112: Liquid Propane | D112: ='Cost estimates'!D112 -> 1 | E112: heaters | F112: ='Cost estimates'!F112 -> 2500 | G112: /heaters | H112: =IF(D38=1, D112*F112,0) -> 0
C113: Natural Gas | D113: ='Cost estimates'!D113 -> 1 | E113: heaters | F113: ='Cost estimates'!F113 -> 2000 | G113: /heaters | H113: =IF(D38=2, D113*F113,0) -> 2000
C114: Fuel Oil | D114: ='Cost estimates'!D114 -> 1 | E114: heaters | F114: ='Cost estimates'!F114 -> 2000 | G114: /heaters | H114: =IF(D38=3, D114*F114,0) -> 0
C115: Poly Inflation Kit | D115: ='Cost estimates'!D115 -> 1 | E115: kits | F115: ='Cost estimates'!F115 -> 150 | G115: /kits | H115: =D115*F115 -> 150
C116: Low Voltage Wiring Package | D116: ='Cost estimates'!D116 -> 1 | E116: packages | F116: ='Cost estimates'!F116 -> 400 | G116: /packages | H116: =D116*F116 -> 400
C117: Protective Equipment (PPE) | D117: ='Cost estimates'!D117 -> 1 | E117: sets | F117: ='Cost estimates'!F117 -> 50 | G117: /sets | H117: =D117*F117 -> 50
C118: Grow Lights10 | D118: 2
H119: ='Cost estimates'!H119 -> 0
D120: =Inputs!F37 -> 20 | E120: Lights | F120: ='Cost estimates'!F120 -> 460 | G120: /Lights | H120: ='Cost estimates'!H120 -> 9200
C123: Total Greenhouse Environmental Control Equipment Costs | H123: =SUM(H105:H121) -> 26800
C125: Total Annual Equipment Costs (Annual costs of owning the equipment includes depreciation and/or principal payments, interest, repairs, taxes, and insurance) | F125: ='Cost estimates'!F125 -> 0.2 | H125: =H123*F125 -> 5360
B126: Growing & Delivery
C129: Back Pack Sprayer | D129: ='Cost estimates'!D129 -> 1 | E129: sprayers | F129: ='Cost estimates'!F129 -> 100 | G129: /sprayers | H129: =D129*F129 -> 100
C130: Carbon Dioxide Generator | D130: ='Cost estimates'!D130 -> 1 | E130: generators | F130: ='Cost estimates'!F130 -> 480 | G130: /generators | H130: 480
C131: Cooler | D131: ='Cost estimates'!D131 -> 1 | E131: coolers | F131: ='Cost estimates'!F131 -> 2500 | G131: /coolers | H131: 2500 | N131: **https://shop.amhydro.com/collections/complete-nft-systems
C132: Delivery Van with A/C | D132: ='Cost estimates'!D132 -> 1 | E132: vans | F132: ='Cost estimates'!F132 -> 6000 | G132: /vans | H132: 6000
C133: Fertilizer Mixing Pump | D133: ='Cost estimates'!D133 -> 1 | E133: pumps | F133: ='Cost estimates'!F133 -> 30 | G133: /pumps | H133: 30
C134: Meters and Sensors- EC | D134: ='Cost estimates'!D134 -> 1 | E134: meters | F134: ='Cost estimates'!F134 -> 160 | G134: /meters | H134: 160
C135: pH | D135: ='Cost estimates'!D135 -> 1 | E135: sensors | F135: ='Cost estimates'!F135 -> 50 | G135: /sensors | H135: 50
C136: Thermometer | D136: ='Cost estimates'!D136 -> 1 | E136: thermometers | F136: ='Cost estimates'!F136 -> 25 | G136: /thermometers | H136: 25
C137: Monitor- Humidity | D137: ='Cost estimates'!D137 -> 1 | E137: sensors | F137: ='Cost estimates'!F137 -> 120 | G137: /sensors | H137: 120
B138: 2 | C138: CO2 | D138: ='Cost estimates'!D138 -> 1 | E138: sensors | F138: ='Cost estimates'!F138 -> 500 | G138: /sensors | H138: 500
C139: Growing system (Choose one)13:
D140: ='Cost estimates'!D140 -> 1 | E140: system | F140: ='Cost estimates'!F140 -> 20000 | G140: /system | H140: ='Cost estimates'!H140 -> 0
D141: ='Cost estimates'!D141 -> 1 | E141: system | F141: ='Cost estimates'!F141 -> 16500 | G141: /system | H141: ='Cost estimates'!H141 -> 16500
C142: Scale | D142: ='Cost estimates'!D143 -> 1 | E142: scales | F142: ='Cost estimates'!F143 -> 100 | G142: /scales | H142: =D142*F142 -> 100 | N142: ** Crop land Source: Quickstat, USDA, https://www.ers.usda.gov/topics/farm-economy/land-use-land-value-tenure/farmland-value/
C145: Total Other Equipment | H145: =SUM(H129:H142) -> 26565
C147: Total Annual Growing & Delivery Costs (Annual costs of owning the greenhouse includes depreciation and/or principal payments, interest, repairs, taxes, and insurance) | F147: ='Cost estimates'!F148 -> 0.2 | H147: =H145*F147 -> 5313
B148: Miscellaneous
C151: Land Rent14 | D151: ='Cost estimates'!D152 -> 1 | E151: Acre | F151: ='Cost estimates'!F152 -> 100 | G151: /acre | H151: =D151*F151 -> 100
C153: Total Miscellaneous Costs | H153: =H151 -> 100
C157: TOTAL ANNUAL FIXED COSTS16 | H157: =H153+H147+H125+H101 -> 17657.5
C159: TOTAL ANNUAL COSTS | E159: (Variable Costs + Annual Fixed Costs) | H159: =SUM(H157,H84) -> 159262.564

Sheet Sim2I (hidden)
C3: *** Please enter information in the Blue box
B5: Production
C6: Choose type of Greenhouse : | E6: 1
C7: 1 | J7: Outputs based on the information provided in the Blue box
J10: Greenhouse area | K10: =Inputs!K7 -> 3000 | L10: Sq. feet | S10: Note:
C11: Greenhouse dimension | D11: Width | F11: =Inputs!F13 -> 30 | G11: Feet | J11: Side of the roof (if Gable) | K11: =Inputs!Y2 -> 15.8113883 | L11: Feet | Q11: Surface area:
D12: Length | F12: =Inputs!F14 -> 100 | G12: Feet | J12: Surface Area | K12: =Inputs!K8 -> 5912.27766 | L12: Sq. feet | S12: Freestanding Gable | T12: Sides | U12: =IF([1]Sim2_Input!C7=1, 2*[1]Sim2_Input!F12*[1]Sim2_Input!F14,0) -> 2000 | V12: Square feet
D13: Radius of the roof | F13: =Inputs!F15 -> 5 | G13: Feet | J13: Net production area | K13: =Inputs!K9 -> 2700 | L13: Sq. feet | T13: Ends | U13: =IF([1]Sim2_Input!C7=1, 2*[1]Sim2_Input!F14*[1]Sim2_Input!F11,0) -> 600 | V13: Square feet
D14: Height | F14: =Inputs!F16 -> 10 | G14: Feet | J14: Plant harvested (week) | K14: =FLOOR(K13/Sim2I!G33,1) -> 2632 | L14: Heads | T14: Roof | U14: =IF([1]Sim2_Input!C7=1, 2*[1]Sim2_Input!K11*[1]Sim2_Input!F12,0) -> 3162.27766 | V14: Square feet
D15: Space use efficiency | F15: =Inputs!F17 -> 0.9 | J15: Plant harvested (year) | K15: =K14*52 -> 136864 | L15: Heads | T15: Roof peak | U15: =IF([1]Sim2_Input!C7=1, 2*1/2*[1]Sim2_Input!F11*[1]Sim2_Input!F13) -> 150 | V15: Square feet
D16: Concrete-% of floor | F16: =Inputs!F18 -> 0.1 | J16: Seed | K16: =CEILING(K15+(K15*Sim2I!F17),1) -> 143708 | T16: Total SA area | U16: =SUM(U12:U15) -> 5912.27766 | V16: Square feet
D17: Overseeding | F17: =Inputs!F19 -> 0.05 | J17: Net annual production | K17: =FLOOR(K15-(K15*F18),1) -> 123177 | L17: Heads
D18: % shrink | F18: =Inputs!F20 -> 0.1 | S18: Freestanding Quonset | T18: Sides | U18: 2000 | V18: Square feet
D19: Price | F19: =Inputs!F21 -> 1.35 | G19: per head | T19: Ends | U19: 600 | V19: Square feet
T20: Roof | U20: 2648.5 | V20: Square feet
T21: Total SA area | U21: 5248.5 | V21: Square feet
B23: Spacing- Square foot week1 | C23: Please enter value in the Blue box on the spacing and time in each crop production stage | J23: Annual heating load | K23: =Inputs!K14 -> 1909.984288 | L23: GJ
C24: Remember that your greenhouse environment and lighting will impact length of time in each production stage, the numbers below should be average values from across the year | J24: Annual heating load | K24: =Inputs!K15 -> 1810.240061 | L24: MMBtu
C26: Spacing no. | E26: plants/ft2 | F26: days@spacing | G26: per harvested plant | J26: Fuel use:
G27: ft2-weeks | J27: Propane | K27: =Inputs!K17 -> 23318.67064 | L27: gal
C28: 1 | E28: 144 | F28: 12 | G28: =IF(E28=0,0,(F28/E28)/7) -> 0.0119047619 | J28: Natural gas | K28: =Inputs!K18 -> 21296.94189 | L28: therms
C29: 2 | E29: 7.53 | F29: 10 | G29: =IF(E29=0,0,(F29/E29)/7) -> 0.1897173212 | J29: Fuel oil | K29: =Inputs!K19 -> 15255.68903 | L29: gal
C30: 3 | E30: 2.6 | F30: 15 | G30: =IF(E30=0,0,(F30/E30)/7) -> 0.8241758242
C31: 4 | E31: 0 | F31: 0 | G31: =IF(E31=0,0,(F31/E31)/7) -> 0 | J31: Pond pump energy | K31: =Inputs!K20 -> 32100 | L31: kWh
C32: 5 | E32: 0 | F32: 0 | G32: =IF(E32=0,0,(F32/E32)/7) -> 0 | J32: Pond pump energy | K32: =Inputs!K21 -> 3.75 | L32: kW
C33: Totals | F33: =SUM(F28:F32) -> 37 | G33: =SUM(G28:G32) -> 1.025797907
B37: Lighting | C37: Number of lamps in Greenhouse | F37: =Inputs!F37 -> 20 | G37: lamps
C38: Watt consumption per lamp | F38: =Inputs!F38 -> 1000 | G38: watt
C39: Hours operated per year | F39: =Inputs!F39 -> 2340 | G39: hour
B42: Heating4 | C42: Ideally use energy model from Cornell CEA or other model | T42: Use Degree -days if you are in NYS from the following table or from nearby weather station data:
C43: OR use the folowing formula to get a reasonably accurate estimate to help in making decisions relative to the size of the greenhouse or type of heating. | U43: Albany | V43: 4302
C45: Glazing material | F45: =Inputs!F46 -> 0
C46: Custom u-value | F46: =Inputs!F47 -> 1 | G46: Btu/(sqft*degF*h) | U46: Binghamton | V46: 4296
C47: Custom transmittance | F47: =Inputs!F48 -> 0.9 | U47: Buffalo | V47: 4316
C48: Air changes per hour | F48: =Inputs!F49 -> 1 | G48: ACH | U48: Ithaca | V48: 4023
C49: ASHRAE Climate Zone | F49: =Inputs!F50 -> 0 | U49: New york | V49: 3089
C50: Greenhouse air temperature | F50: =Inputs!F51 -> 70 | G50: F | U50: Rochester | V50: 4231
C51: Evapotranspiration latent load | F51: =Inputs!F52 -> 10 | G51: W/ft2
C52: Greenhouse RH% | F52: =Inputs!F53 -> 0.7
C53: Boiler efficiency | F53: =Inputs!F54 -> 0.85
E54: 1
B58: Labor | C58: Seed/ Transplant/Harvest/ Package | F58: =Inputs!F58 -> 26 | G58: hrs/per thousand
C59: Delivering to market | F59: =Inputs!F59 -> 3 | G59: hrs/per thousand
C60: Production management | F60: =Inputs!F60 -> 2 | G60: hrs/per thousand
C61: Other (Marketing, Maintainence, etc.) | F61: =Inputs!F61 -> 1 | G61: hrs/per thousand
B63: Others | C63: No. of Pelleted seed | F63: =Inputs!F65 -> 5000 | G63: /per package
C64: No. of Horticubes | F64: =Inputs!F66 -> 5520 | G64: /per case
C65: No. of beneficial insects | F65: =Inputs!F67 -> 650 | G65: /per package
C66: Area covered per insects | F66: =Inputs!F68 -> 0.9 | G66: /per insects
C67: Clamshell per case | F67: =Inputs!F69 -> 344 | G67: /case
C68: Clamshell per box | F68: =Inputs!F70 -> 12 | G68: /box
C69: Labels per roll | F69: =Inputs!F71 -> 2500 | G69: /roll

Sheet Sim2C (hidden)
C3: *** Please enter information in the Blue box
D5: Quantity/Year | E5: Unit | F5: Price ($) / Unit | H5: Total Cost per year | N5: Notes
A6: VARIABLE COSTS
B7: Production Supplies
C8: Seed (package) | D8: =CEILING((Sim2I!K15+(Sim2I!K15*Inputs!F19))/Inputs!F65,1) -> 29 | E8: packages | F8: ='Cost estimates'!F8 -> 110 | G8: /packages | H8: =D8*F8 -> 3190 | N8: 31= total harvest*5% overseeding/5000
C9: Horticubes | D9: =CEILING(Sim2I!K15/Inputs!F66,1) -> 25 | E9: cases | F9: ='Cost estimates'!F9 -> 65 | G9: /cases | H9: 1625 | N9: 27= total harvest/ 5520
C10: Beneficial Insects | D10: =CEILING((Inputs!K7/Inputs!F68)/Inputs!F67,1) -> 6 | E10: packages | F10: ='Cost estimates'!F10 -> 40 | G10: /packages | H10: 240 | N10: 6= ((total area/area covered by 1000 insects)*(1000/no. of insects in 1 package))
C11: Fertilizer | F11: ='Cost estimates'!F11 -> 0 | H11: 0
C12: Blended Mix | D12: =CEILING(Inputs!K7*0.162760416666666,1) -> 489 | E12: pounds | F12: ='Cost estimates'!F12 -> 1 | G12: /pounds | H12: 489 | N12: 489= 0.162760*total area
C13: CaNO3 | D13: =CEILING(Inputs!K7*0.162760416666666,1) -> 489 | E13: pounds | F13: ='Cost estimates'!F13 -> 0.46 | G13: /pounds | H13: 224.94 | N13: 489= 0.162760*total area
C14: Additions | D14: =CEILING(Inputs!K7*0.00217013888888888,1) -> 7 | E14: pounds | F14: ='Cost estimates'!F14 -> 1 | G14: /pounds | H14: 7 | N14: 7= 0.00217014*total area
C15: Fungicide/Pesticide3 | D15: =CEILING(Inputs!K7*0.00217013888888888,1) -> 7 | E15: gallons | F15: ='Cost estimates'!F15 -> 60 | G15: /gallons | H15: 420 | N15: 7= 0.00217014*total area
C16: Sanitizer | D16: =CEILING(Sim2I!K17/29545,1) -> 5 | E16: gallons | F16: ='Cost estimates'!F16 -> 35 | G16: /gallons | H16: 175
C17: Sticky Traps4 | D17: =CEILING(Inputs!K7*0.0001,1) -> 1 | E17: packages | F17: ='Cost estimates'!F17 -> 30 | G17: /packages | H17: 30
C19: Total Production Supplies cost | H19: =SUM(H8:H17) -> 6400.94
B21: Production Labor
C22: Seed/ Transplant/Harvest/ Package | D22: =(Inputs!F58*Sim2I!K17)/1000 -> 3202.602 | E22: hours/year | F22: ='Cost estimates'!F22 -> 13 | G22: /hour | H22: =D22*F22 -> 41633.826
C23: Delivering to market | D23: =(Inputs!F59*Sim2I!K17)/1000 -> 369.531 | E23: hours/year | F23: ='Cost estimates'!F23 -> 12 | G23: /hour | H23: =D23*F23 -> 4434.372 | N23: **Source: rate, NYS dept of labor
C24: Production management | D24: =(Inputs!F60*Sim2I!K17)/1000 -> 246.354 | E24: hours/year | F24: ='Cost estimates'!F24 -> 13 | G24: /hour | H24: =D24*F24 -> 3202.602
C25: Other (Marketing, Maintainence, etc.) | D25: =(Inputs!F61*Sim2I!K17)/1000 -> 123.177 | E25: hours/year | F25: ='Cost estimates'!F25 -> 12 | G25: /hour | H25: =D25*F25 -> 1478.124
C26: Fringe benefit | F26: ='Cost estimates'!F26 -> 0.3 | G26: /hour | H26: =(F22*F26*D22)+(F23*F26*D23)+(F24*F26*D24)+(F25*F26*D25) -> 15224.6772
C28: Total Production Labor | H28: =SUM(H22:H25) -> 50748.924 | J28: =H28*20% -> 10149.7848 | K28: 20% change in labor
B30: Packaging Costs
C31: Clamshell | D31: =CEILING((Sim2I!K17/2)/Inputs!F69,1) -> 180 | E31: cases | F31: ='Cost estimates'!F31 -> 80 | G31: /case | H31: =D31*F31 -> 14400 | N31: *** Avisbag, NY
C32: Box | D32: =CEILING(((Sim2I!K17/2)/Inputs!F70),1) -> 5133 | E32: box | F32: ='Cost estimates'!F32 -> 1 | G32: box | H32: =D32*F32 -> 5133 | N32: *** http://avisbag.com/about-us.html
C33: Labels | D33: =CEILING((Sim2I!K17/2)/Inputs!F71,1) -> 25 | E33: roll | F33: ='Cost estimates'!F33 -> 50 | G33: /roll | H33: =D33*F33 -> 1250
C35: Total Packaging Costs | H35: =SUM(H31:H33) -> 20783 | J35: =H35*20% -> 4156.6 | K35: 20% change in packaging
B37: Utilities
C38: Fuel Choice (choose one)7: | D38: 2
D39: ='Cost estimates'!D39 -> 0 | E39: ='Cost estimates'!E39 -> gal | F39: ='Cost estimates'!F39 -> 2.48 | G39: ='Cost estimates'!G39 -> $/gallon | H39: ='Cost estimates'!H39 -> 0 | N39: ** sources: https://www.nyserda.ny.gov/Researchers-and-Policymakers/Energy-Prices/Propane/Monthly-Average-Propane-Prices
D40: ='Cost estimates'!D40 -> 21296.94189 | E40: ='Cost estimates'!E40 -> therms | F40: ='Cost estimates'!F40 -> 0.55 | G40: ='Cost estimates'!G40 -> $/therm | H40: ='Cost estimates'!H40 -> 11713.31804 | N40: ** sources: www.eia.gov, NYSERDA
D41: ='Cost estimates'!D41 -> 0 | E41: ='Cost estimates'!E41 -> gal | F41: ='Cost estimates'!F41 -> 2.38 | G41: ='Cost estimates'!G41 -> $/gallon | H41: ='Cost estimates'!H41 -> 0
C42: For other state | H42: ='Cost estimates'!H42 -> 0
C43: Liquid Propane | D43: ='Cost estimates'!D43 -> 0 | F43: ='Cost estimates'!F43 -> 0 | H43: ='Cost estimates'!H43 -> 0
C44: Natural Gas | D44: ='Cost estimates'!D44 -> 20000 | H44: ='Cost estimates'!H44 -> 0
C45: Fuel Oil | D45: ='Cost estimates'!D45 -> 0 | H45: ='Cost estimates'!H45 -> 0
C46: Electricity (general - non fans) | D46: ='Cost estimates'!D46 -> 500 | E46: ='Cost estimates'!E46 -> kWh | F46: ='Cost estimates'!F46 -> 0.06 | G46: ='Cost estimates'!G46 -> /kWh | H46: =D46*F46 -> 30
C47: Electricity (fans and pads) | D47: ='Cost estimates'!D47 -> 10000 | E47: ='Cost estimates'!E47 -> kWh | F47: ='Cost estimates'!F47 -> 0.06 | G47: ='Cost estimates'!G47 -> /kWh | H47: 600
C48: Electricity (fanjets/Horizontal Air Fans) | D48: ='Cost estimates'!D48 -> 2000 | E48: ='Cost estimates'!E48 -> kWh | F48: ='Cost estimates'!F48 -> 0.06 | G48: ='Cost estimates'!G48 -> /kWh | H48: 120
C49: Electricity (lights) | D49: =Inputs!F37*Inputs!F38*Inputs!F39/1000 -> 46800 | E49: ='Cost estimates'!E49 -> kWh | F49: ='Cost estimates'!F49 -> 0.06 | G49: ='Cost estimates'!G49 -> /kWh | H49: 2808
C50: Pond Pump Energy (DWS) | D50: ='Cost estimates'!D50 -> 32100 | E50: kWh | F50: ='Cost estimates'!F50 -> 0.06 | G50: /kWh | H50: 1926
C51: Pump Energy (NFT) | D51: ='Cost estimates'!D51 -> 32100 | E51: kWh | F51: ='Cost estimates'!F51 -> 0.06 | G51: /kWh | H51: 1926
C52: Demand charge13 (fans) | D52: ='Cost estimates'!D52 -> 2.625 | E52: kW | F52: ='Cost estimates'!F52 -> 120 | G52: /kW | H52: 315
C53: Demand charge (lights) | D53: ='Cost estimates'!D53 -> 20 | E53: kW | F53: ='Cost estimates'!F53 -> 120 | G53: /kW | H53: 2400
C54: Demand charge (pond pump) | D54: ='Cost estimates'!D54 -> 3.75 | E54: kW | F54: ='Cost estimates'!F54 -> 120 | G54: /kW | H54: 450
C55: Demand charge (NFT) | D55: ='Cost estimates'!D55 -> 3.75 | E55: kW | F55: ='Cost estimates'!F55 -> 120 | G55: /kW | H55: 450
C56: Water and Sewer | D56: ='Cost estimates'!D56 -> 100000 | E56: gallons | F56: ='Cost estimates'!F56 -> 0.0131951 | G56: /gallons | H56: 1319.51 | J56: =H60*20% -> 5027.565608 | K56: 20% change in utility
C57: Telephone | D57: ='Cost estimates'!D57 -> 12 | E57: months | F57: ='Cost estimates'!F57 -> 50 | G57: /month | H57: 600
C58: Cell Phone | D58: ='Cost estimates'!D58 -> 12 | E58: months | F58: ='Cost estimates'!F58 -> 40 | G58: /month | H58: 480
C60: Total Utilities Costs | H60: =SUM(H39:H58) -> 25137.82804
B63: Miscellaneous Costs
C64: Advertising, Mailings, Flyers | D64: ='Cost estimates'!D64 -> 1 | E64: campaigns | F64: ='Cost estimates'!F64 -> 200 | G64: /campaigns | H64: =F64*D64 -> 200
C65: Continuing Education | D65: ='Cost estimates'!D65 -> 1 | E65: meetings | F65: ='Cost estimates'!F65 -> 75 | G65: /meetings | H65: =D65*F65 -> 75
C66: Internet Service | D66: ='Cost estimates'!D66 -> 12 | E66: months | F66: ='Cost estimates'!F66 -> 20 | G66: /months | H66: 240
C67: Laboratory Fees | D67: ='Cost estimates'!D67 -> 36 | E67: tests | F67: ='Cost estimates'!F67 -> 20 | G67: /tests | H67: 720
C68: Office Supplies | D68: ='Cost estimates'!D68 -> 12 | E68: months | F68: ='Cost estimates'!F68 -> 25 | G68: /months | H68: 300
C69: Postage | D69: ='Cost estimates'!D69 -> 12 | E69: months | F69: ='Cost estimates'!F69 -> 15 | G69: /months | H69: 180
C70: Marketing Materials & Promotions | D70: ='Cost estimates'!D70 -> 1 | E70: promos | F70: ='Cost estimates'!F70 -> 300 | G70: /promos | H70: 300
C71: Record Keeping | D71: ='Cost estimates'!D71 -> 12 | E71: months | F71: ='Cost estimates'!F71 -> 50 | G71: /months | H71: 600
C72: Software | D72: ='Cost estimates'!D72 -> 3 | E72: programs | F72: ='Cost estimates'!F72 -> 50 | G72: /programs | H72: 150
C73: Subscriptions | D73: ='Cost estimates'!D73 -> 3 | E73: subscriptions | F73: ='Cost estimates'!F73 -> 35 | G73: /subscriptions | H73: 105
C74: Marketing & Trade Shows | D74: ='Cost estimates'!D74 -> 0 | E74: trade show | F74: ='Cost estimates'!F74 -> 500 | G74: /trade show | H74: 0
C76: Total Miscellaneous Costs | H76: =SUM(H64:H74) -> 2870
B78: Professional Services
C79: Accountant | D79: ='Cost estimates'!D79 -> 5 | E79: hours | F79: ='Cost estimates'!F79 -> 50 | G79: /hour | H79: =D79*F79 -> 250
C80: Lawyer | D80: ='Cost estimates'!D80 -> 4 | E80: hours | F80: ='Cost estimates'!F80 -> 125 | G80: /hour | H80: =D80*F80 -> 500
C82: Total Professional Services | H82: =SUM(H79:H80) -> 750
C84: TOTAL VARIABLE COSTS | H84: =SUM(H82,H76,H60,H35,H28,H19) -> 106690.692
N85: ** Total area- Concrete area
A86: Fixed Cost13 | N86: **Ground cover= Total area - Concrete area
B88: Greenhouse Structure | D88: Quantity/Year | E88: Unit | F88: Price/Unit | H88: Total Cost per year
C90: Concrete-% of floor | D90: =Inputs!K7*Inputs!F18 -> 300 | E90: sq. ft. | F90: ='Cost estimates'!F90 -> 2 | G90: /sq. ft. | H90: =D90*F90 -> 600
C91: Frame, Ends, Door | D91: ='Cost estimates'!D91 -> 1 | E91: houses | F91: ='Cost estimates'!F91 -> 15000 | G91: /houses | H91: 15000
C92: Glazing material (Glass/Poly/Double poly) | D92: ='Cost estimates'!D92 -> 1 | E92: houses | F92: ='Cost estimates'!F92 -> 5000 | G92: /houses | H92: 5000
C93: Energy/Shade Curtains | D93: =Inputs!K7-D90 -> 2700 | E93: sq. ft. | F93: ='Cost estimates'!F93 -> 4 | G93: /sq. ft. | H93: 10800
C94: Ground Cover | D94: =Inputs!K7-D90 -> 2700 | E94: sq. ft. | F94: ='Cost estimates'!F94 -> 0.075 | G94: /sq. ft. | H94: 202.5
C95: Permits | D95: ='Cost estimates'!D95 -> 4 | E95: permits | F95: ='Cost estimates'!F95 -> 80 | G95: /permits | H95: 320
C96: Site Preparation | D96: ='Cost estimates'!D96 -> 1 | E96: houses | F96: ='Cost estimates'!F96 -> 1000 | G96: /houses | H96: 1000
C97: House Construction | D97: ='Cost estimates'!D97 -> 150 | E97: hours | F97: ='Cost estimates'!F97 -> 10 | G97: /hours | H97: 1500
C99: Total Greenhouse Structure Costs | H99: =SUM(H90:H97) -> 34422.5
C101: Total Annual Greenhouse Stucture Costs (Annual costs of owning the greenhouse includes depreciation and/or principal payments, interest, repairs, taxes, and insurance) | F101: ='Cost estimates'!F101 -> 0.2 | H101: =H99*F101 -> 6884.5
B102: Greenhouse Environmental Control Equipment
C105: Back-up Generator | D105: ='Cost estimates'!D105 -> 1 | E105: generators | F105: ='Cost estimates'!F105 -> 6000 | G105: /generators | H105: ='Cost estimates'!H105 -> 6000
C106: Cooling System (fan, vent, & pad) | D106: ='Cost estimates'!D106 -> 1 | E106: systems | F106: ='Cost estimates'!F106 -> 2000 | G106: /systems | H106: ='Cost estimates'!H106 -> 2000
C107: Fanjets, 30" 1hp / Horizontal Air Fans | D107: ='Cost estimates'!D107 -> 1 | E107: fanjets / HAF | F107: ='Cost estimates'!F107 -> 1500 | G107: /fanjets / HAF | H107: ='Cost estimates'!H107 -> 1500
C108: Electrical Panel | D108: ='Cost estimates'!D108 -> 1 | E108: panels | F108: ='Cost estimates'!F108 -> 1500 | G108: /panels | H108: ='Cost estimates'!H108 -> 1500 | N108: *** https://www.greenhousemegastore.com/category/gas-greenhouse-heaters
C109: Computer for Environmental Control | D109: ='Cost estimates'!D109 -> 1 | E109: computers | F109: ='Cost estimates'!F109 -> 2500 | G109: /computers | H109: ='Cost estimates'!H109 -> 2500
C110: Extra Building Supplies | D110: ='Cost estimates'!D110 -> 1 | E110: houses | F110: ='Cost estimates'!F110 -> 1500 | G110: /houses | H110: ='Cost estimates'!H110 -> 1500
C111: Heating System (reflects utility choice from above)
C112: Liquid Propane | D112: ='Cost estimates'!D112 -> 1 | E112: heaters | F112: ='Cost estimates'!F112 -> 2500 | G112: /heaters | H112: ='Cost estimates'!H112 -> 0
C113: Natural Gas | D113: ='Cost estimates'!D113 -> 1 | E113: heaters | F113: ='Cost estimates'!F113 -> 2000 | G113: /heaters | H113: ='Cost estimates'!H113 -> 2000
C114: Fuel Oil | D114: ='Cost estimates'!D114 -> 1 | E114: heaters | F114: ='Cost estimates'!F114 -> 2000 | G114: /heaters | H114: ='Cost estimates'!H114 -> 0
C115: Poly Inflation Kit | D115: ='Cost estimates'!D115 -> 1 | E115: kits | F115: ='Cost estimates'!F115 -> 150 | G115: /kits | H115: ='Cost estimates'!H115 -> 150
C116: Low Voltage Wiring Package | D116: ='Cost estimates'!D116 -> 1 | E116: packages | F116: ='Cost estimates'!F116 -> 400 | G116: /packages | H116: ='Cost estimates'!H116 -> 400
C117: Protective Equipment (PPE) | D117: ='Cost estimates'!D117 -> 1 | E117: sets | F117: ='Cost estimates'!F117 -> 50 | G117: /sets | H117: ='Cost estimates'!H117 -> 50
C118: Grow Lights10 | D118: 1 | H118: ='Cost estimates'!H118 -> 0
H119: ='Cost estimates'!H119 -> 0
D120: =Inputs!F37 -> 20 | E120: Lights | F120: ='Cost estimates'!F120 -> 460 | G120: /Lights | H120: ='Cost estimates'!H120 -> 9200
C123: Total Greenhouse Environmental Control Equipment Costs | H123: =SUM(H105:H121) -> 26800
C125: Total Annual Equipment Costs (Annual costs of owning the equipment includes depreciation and/or principal payments, interest, repairs, taxes, and insurance) | F125: ='Cost estimates'!F125 -> 0.2 | H125: =H123*F125 -> 5360
B126: Growing & Delivery
C129: Back Pack Sprayer | D129: ='Cost estimates'!D129 -> 1 | E129: sprayers | F129: ='Cost estimates'!F129 -> 100 | G129: /sprayers | H129: =D129*F129 -> 100
C130: Carbon Dioxide Generator | D130: ='Cost estimates'!D130 -> 1 | E130: generators | F130: ='Cost estimates'!F130 -> 480 | G130: /generators | H130: 480
C131: Cooler | D131: ='Cost estimates'!D131 -> 1 | E131: coolers | F131: ='Cost estimates'!F131 -> 2500 | G131: /coolers | H131: 2500
C132: Delivery Van with A/C | D132: ='Cost estimates'!D132 -> 1 | E132: vans | F132: ='Cost estimates'!F132 -> 6000 | G132: /vans | H132: 6000
C133: Fertilizer Mixing Pump | D133: ='Cost estimates'!D133 -> 1 | E133: pumps | F133: ='Cost estimates'!F133 -> 30 | G133: /pumps | H133: 30
C134: Meters and Sensors- EC | D134: ='Cost estimates'!D134 -> 1 | E134: meters | F134: ='Cost estimates'!F134 -> 160 | G134: /meters | H134: 160
C135: pH | D135: ='Cost estimates'!D135 -> 1 | E135: sensors | F135: ='Cost estimates'!F135 -> 50 | G135: /sensors | H135: 50
C136: Thermometer | D136: ='Cost estimates'!D136 -> 1 | E136: thermometers | F136: ='Cost estimates'!F136 -> 25 | G136: /thermometers | H136: 25 | N136: **https://shop.amhydro.com/collections/complete-nft-systems
C137: Monitor- Humidity | D137: ='Cost estimates'!D137 -> 1 | E137: sensors | F137: ='Cost estimates'!F137 -> 120 | G137: /sensors | H137: 120
B138: 2 | C138: CO2 | D138: ='Cost estimates'!D138 -> 1 | E138: sensors | F138: ='Cost estimates'!F138 -> 500 | G138: /sensors | H138: 500
C139: Growing system (Choose one)13:
D140: ='Cost estimates'!D140 -> 1 | E140: system | F140: ='Cost estimates'!F140 -> 20000 | G140: /system | H140: ='Cost estimates'!H140 -> 0
D141: ='Cost estimates'!D141 -> 1 | E141: system | F141: ='Cost estimates'!F141 -> 16500 | G141: /system | H141: ='Cost estimates'!H141 -> 16500
C142: Scale | D142: ='Cost estimates'!D143 -> 1 | E142: scales | F142: ='Cost estimates'!F143 -> 100 | G142: /scales | H142: =D142*F142 -> 100
C145: Total Other Equipment | H145: =SUM(H129:H142) -> 26565
C147: Total Annual Growing & Delivery Costs (Annual costs of owning the greenhouse includes depreciation and/or principal payments, interest, repairs, taxes, and insurance) | F147: ='Cost estimates'!F148 -> 0.2 | H147: =H145*F147 -> 5313 | N147: ** Crop land Source: Quickstat, USDA, https://www.ers.usda.gov/topics/farm-economy/land-use-land-value-tenure/farmland-value/
B148: Miscellaneous
C151: Land Rent14 | D151: ='Cost estimates'!D152 -> 1 | E151: Acre | F151: ='Cost estimates'!F152 -> 100 | G151: /acre | H151: =D151*F151 -> 100
C153: Total Miscellaneous Costs | H153: =H151 -> 100
C157: TOTAL ANNUAL FIXED COSTS16 | H157: =H153+H147+H125+H101 -> 17657.5
C159: TOTAL ANNUAL COSTS | E159: (Variable Costs + Annual Fixed Costs) | H159: =SUM(H157,H84) -> 124348.192

Sheet Sim3I (hidden)
C3: *** Please enter information in the Blue box
B5: Production
C6: Choose type of Greenhouse : | E6: 1
C7: 1 | J7: Outputs based on the information provided in the Blue box
J10: Greenhouse area | K10: =Inputs!K7 -> 3000 | L10: Sq. feet | S10: Note:
J11: Side of the roof (if Gable) | K11: =Inputs!Y2 -> 15.8113883 | L11: Feet
C12: Greenhouse dimension | D12: Width | F12: =Inputs!F13 -> 30 | G12: Feet | J12: Surface Area | K12: =Inputs!K8 -> 5912.27766 | L12: Sq. feet | Q12: Surface area:
D13: Length | F13: =Inputs!F14 -> 100 | G13: Feet | J13: Net production area | K13: =Inputs!K9 -> 2700 | L13: Sq. feet | S13: Freestanding Gable | T13: Sides | U13: =IF([1]Sim2_Input!C7=1, 2*[1]Sim2_Input!F12*[1]Sim2_Input!F14,0) -> 2000 | V13: Square feet
D14: Radius of the roof | F14: =Inputs!F15 -> 5 | G14: Feet | J14: Plant harvested (week) | K14: =FLOOR(K13/G34,1) -> 1609 | L14: Heads | T14: Ends | U14: =IF([1]Sim2_Input!C7=1, 2*[1]Sim2_Input!F14*[1]Sim2_Input!F11,0) -> 600 | V14: Square feet
D15: Height | F15: =Inputs!F16 -> 10 | G15: Feet | J15: Plant harvested (year) | K15: =K14*52 -> 83668 | L15: Heads | T15: Roof | U15: =IF([1]Sim2_Input!C7=1, 2*[1]Sim2_Input!K11*[1]Sim2_Input!F12,0) -> 3162.27766 | V15: Square feet
D16: Space use efficiency | F16: =Inputs!F17 -> 0.9 | J16: Seed | K16: =CEILING(K15+(K15*F18),1) -> 87852 | T16: Roof peak | U16: =IF([1]Sim2_Input!C7=1, 2*1/2*[1]Sim2_Input!F11*[1]Sim2_Input!F13) -> 150 | V16: Square feet
D17: Concrete-% of floor | F17: =Inputs!F18 -> 0.1 | J17: Net annual production | K17: =K15-(K15*F19) -> 75301.2 | L17: Heads | T17: Total SA area | U17: =SUM(U13:U16) -> 5912.27766 | V17: Square feet
D18: Overseeding | F18: =Inputs!F19 -> 0.05
D19: % shrink | F19: =Inputs!F20 -> 0.1 | S19: Freestanding Quonset | T19: Sides | U19: 2000 | V19: Square feet
D20: Price | F20: =Inputs!F21 -> 1.35 | G20: per head | T20: Ends | U20: 600 | V20: Square feet
T21: Roof | U21: 2648.5 | V21: Square feet
T22: Total SA area | U22: 5248.5 | V22: Square feet
B24: Spacing- Square foot week1 | C24: Please enter value in the Blue box on the spacing and time in each crop production stage | J24: Annual heating load | K24: =Inputs!K14 -> 1909.984288 | L24: GJ
C25: Remember that your greenhouse environment and lighting will impact length of time in each production stage, the numbers below should be average values from across the year | J25: Annual heating load | K25: =Inputs!K15 -> 1810.240061 | L25: MMBtu
J26: Fuel use: | L26: gal
C27: Spacing no. | E27: plants/ft2 | F27: days@spacing | G27: per harvested plant | J27: Propane | K27: =Inputs!K17 -> 23318.67064 | L27: therms
G28: ft2-weeks | J28: Natural gas | K28: =Inputs!K18 -> 21296.94189 | L28: gal
C29: 1 | E29: 144 | F29: 20 | G29: =IF(E29=0,0,(F29/E29)/7) -> 0.01984126984 | J29: Fuel oil | K29: =Inputs!K19 -> 15255.68903
C30: 2 | E30: 7.53 | F30: 15 | G30: =IF(E30=0,0,(F30/E30)/7) -> 0.2845759818 | J30: Pond pump energy | K30: =Inputs!K20 -> 32100 | L30: kWh
C31: 3 | E31: 2.6 | F31: 25 | G31: =IF(E31=0,0,(F31/E31)/7) -> 1.373626374 | J31: Pond pump energy | K31: =Inputs!K21 -> 3.75 | L31: kW
C32: 4 | E32: 0 | F32: 0 | G32: =IF(E32=0,0,(F32/E32)/7) -> 0
C33: 5 | E33: 0 | F33: 0 | G33: =IF(E33=0,0,(F33/E33)/7) -> 0
C34: Totals | F34: =SUM(F29:F33) -> 60 | G34: =SUM(G29:G33) -> 1.678043625
B38: Lighting | C38: Number of lamps in Greenhouse | F38: =Inputs!F37 -> 20 | G38: lamps
C39: Watt consumption per lamp | F39: =Inputs!F38 -> 1000 | G39: watt
C40: Hours operated per year | F40: =Inputs!F39 -> 2340 | G40: hour
B43: Heating4 | C43: Ideally use energy model from Cornell CEA or other model | T43: Use Degree -days if you are in NYS from the following table or from nearby weather station data:
C44: OR use the folowing formula to get a reasonably accurate estimate to help in making decisions relative to the size of the greenhouse or type of heating. | U44: Albany | V44: 4302
C46: Glazing material | F46: =Inputs!F46 -> 0
C47: Custom u-value | F47: =Inputs!F47 -> 1 | G47: Btu/(sqft*degF*h) | U47: Binghamton | V47: 4296
C48: Custom transmittance | F48: =Inputs!F48 -> 0.9 | U48: Buffalo | V48: 4316
C49: Air changes per hour | F49: =Inputs!F49 -> 1 | G49: ACH | U49: Ithaca | V49: 4023
C50: ASHRAE Climate Zone | F50: =Inputs!F50 -> 0 | U50: New york | V50: 3089
C51: Greenhouse air temperature | F51: =Inputs!F51 -> 70 | G51: F | U51: Rochester | V51: 4231
C52: Evapotranspiration latent load | F52: =Inputs!F52 -> 10 | G52: W/ft2
C53: Greenhouse RH% | F53: =Inputs!F53 -> 0.7
C54: Boiler efficiency | F54: =Inputs!F54 -> 0.85
E55: 1
B59: Labor | C59: Seed/ Transplant/Harvest/ Package | F59: =Inputs!F58 -> 26 | G59: hrs/per thousand
C60: Delivering to market | F60: =Inputs!F59 -> 3 | G60: hrs/per thousand
C61: Production management | F61: =Inputs!F60 -> 2 | G61: hrs/per thousand
C62: Other (Marketing, Maintainence, etc.) | F62: =Inputs!F61 -> 1 | G62: hrs/per thousand
B64: Others | C64: No. of Pelleted seed | F64: =Inputs!F65 -> 5000 | G64: /per package
C65: No. of Horticubes | F65: =Inputs!F66 -> 5520 | G65: /per case
C66: No. of beneficial insects | F66: =Inputs!F67 -> 650 | G66: /per package
C67: Area covered per insects | F67: =Inputs!F68 -> 0.9 | G67: /per insects
C68: Clamshell per case | F68: =Inputs!F69 -> 344 | G68: /case
C69: Clamshell per box | F69: =Inputs!F70 -> 12 | G69: /box
C70: Labels per roll | F70: =Inputs!F71 -> 2500 | G70: /roll

Sheet Sim3C (hidden)
C3: *** Please enter information in the Blue box
D5: Quantity/Year | E5: Unit | F5: Price ($) / Unit | H5: Total Cost per year | N5: Notes
A6: VARIABLE COSTS
B7: Production Supplies
C8: Seed (package) | D8: =CEILING(('Sim3I '!K16+('Sim3I '!K16*'Sim3I '!F18))/Inputs!F65,1) -> 19 | E8: packages | F8: ='Cost estimates'!F8 -> 110 | G8: /packages | H8: =D8*F8 -> 2090 | N8: 31= total harvest*5% overseeding/5000
C9: Horticubes | D9: =CEILING('Sim3I '!K16/Inputs!F66,1) -> 16 | E9: cases | F9: ='Cost estimates'!F9 -> 65 | G9: /cases | H9: 1040 | N9: 27= total harvest/ 5520
C10: Beneficial Insects | D10: =CEILING((Inputs!K7/0.9)/Inputs!F67,1) -> 6 | E10: packages | F10: ='Cost estimates'!F10 -> 40 | G10: /packages | H10: 240 | N10: 6= ((total area/area covered by 1000 insects)*(1000/no. of insects in 1 package))
C11: Fertilizer | F11: ='Cost estimates'!F11 -> 0 | H11: 0
C12: Blended Mix | D12: =CEILING(Inputs!K7*0.162760416666666,1) -> 489 | E12: pounds | F12: ='Cost estimates'!F12 -> 1 | G12: /pounds | H12: 489 | N12: 489= 0.162760*total area
C13: CaNO3 | D13: =CEILING(Inputs!K7*0.162760416666666,1) -> 489 | E13: pounds | F13: ='Cost estimates'!F13 -> 0.46 | G13: /pounds | H13: 224.94 | N13: 489= 0.162760*total area
C14: Additions | D14: =CEILING(Inputs!K7*0.00217013888888888,1) -> 7 | E14: pounds | F14: ='Cost estimates'!F14 -> 1 | G14: /pounds | H14: 7 | N14: 7= 0.00217014*total area
C15: Fungicide/Pesticide3 | D15: =CEILING(Inputs!K7*0.00217013888888888,1) -> 7 | E15: gallons | F15: ='Cost estimates'!F15 -> 60 | G15: /gallons | H15: 420 | N15: 7= 0.00217014*total area
C16: Sanitizer | D16: =CEILING('Sim3I '!K17/29545,1) -> 3 | E16: gallons | F16: ='Cost estimates'!F16 -> 35 | G16: /gallons | H16: 105
C17: Sticky Traps4 | D17: =CEILING(Inputs!K7*0.0001,1) -> 1 | E17: packages | F17: ='Cost estimates'!F17 -> 30 | G17: /packages | H17: 30
C19: Total Production Supplies cost | H19: =SUM(H8:H17) -> 4645.94
B21: Production Labor
C22: Seed/ Transplant/Harvest/ Package | D22: =(Inputs!$F58*'Sim3I '!$K$17)/1000 -> 1957.8312 | E22: hours/year | F22: ='Cost estimates'!F22 -> 13 | G22: /hour | H22: =D22*F22 -> 25451.8056
C23: Delivering to market | D23: =(Inputs!$F59*'Sim3I '!$K$17)/1000 -> 225.9036 | E23: hours/year | F23: ='Cost estimates'!F23 -> 12 | G23: /hour | H23: =D23*F23 -> 2710.8432 | N23: **Source: rate, NYS dept of labor
C24: Production management | D24: =(Inputs!$F60*'Sim3I '!$K$17)/1000 -> 150.6024 | E24: hours/year | F24: ='Cost estimates'!F24 -> 13 | G24: /hour | H24: =D24*F24 -> 1957.8312
C25: Other (Marketing, Maintainence, etc.) | D25: =(Inputs!$F61*'Sim3I '!$K$17)/1000 -> 75.3012 | E25: hours/year | F25: ='Cost estimates'!F25 -> 12 | G25: /hour | H25: =D25*F25 -> 903.6144
C26: Fringe benefit | F26: ='Cost estimates'!F26 -> 0.3 | G26: /hour | H26: =(F22*F26*D22)+(F23*F26*D23)+(F24*F26*D24)+(F25*F26*D25) -> 9307.22832
C28: Total Production Labor | H28: =SUM(H22:H25) -> 31024.0944 | J28: =H28*20% -> 6204.81888 | K28: 20% change in labor
B30: Packaging Costs
C31: Clamshell | D31: =CEILING(('Sim3I '!$K$17/2)/Inputs!$F69,1) -> 110 | E31: cases | F31: ='Cost estimates'!F31 -> 80 | G31: /case | H31: =D31*F31 -> 8800 | N31: *** Avisbag, NY
C32: Box | D32: =CEILING(('Sim3I '!$K$17/2)/Inputs!$F70,1) -> 3138 | E32: box | F32: ='Cost estimates'!F32 -> 1 | G32: box | H32: =D32*F32 -> 3138 | N32: *** http://avisbag.com/about-us.html
C33: Labels | D33: =CEILING(('Sim3I '!$K$17/2)/Inputs!$F71,1) -> 16 | E33: roll | F33: ='Cost estimates'!F33 -> 50 | G33: /roll | H33: =D33*F33 -> 800
C35: Total Packaging Costs | H35: =SUM(H31:H33) -> 12738 | J35: =H35*20% -> 2547.6 | K35: 20% change in packaging
B37: Utilities
C38: Fuel Choice (choose one)7: | D38: 2
D39: ='Cost estimates'!D39 -> 0 | E39: ='Cost estimates'!E39 -> gal | F39: ='Cost estimates'!F39 -> 2.48 | G39: ='Cost estimates'!G39 -> $/gallon | H39: ='Cost estimates'!H39 -> 0 | N39: ** sources: https://www.nyserda.ny.gov/Researchers-and-Policymakers/Energy-Prices/Propane/Monthly-Average-Propane-Prices
D40: ='Cost estimates'!D40 -> 21296.94189 | E40: ='Cost estimates'!E40 -> therms | F40: ='Cost estimates'!F40 -> 0.55 | G40: ='Cost estimates'!G40 -> $/therm | H40: ='Cost estimates'!H40 -> 11713.31804 | N40: ** sources: www.eia.gov, NYSERDA
D41: ='Cost estimates'!D41 -> 0 | E41: ='Cost estimates'!E41 -> gal | F41: ='Cost estimates'!F41 -> 2.38 | G41: ='Cost estimates'!G41 -> $/gallon | H41: ='Cost estimates'!H41 -> 0
C42: For other state user
C43: Liquid Propane | D43: ='Cost estimates'!D43 -> 0 | F43: ='Cost estimates'!F43 -> 0 | H43: ='Cost estimates'!H43 -> 0
C44: Natural Gas | D44: ='Cost estimates'!D44 -> 20000 | F44: ='Cost estimates'!F44 -> 2.5 | H44: ='Cost estimates'!H44 -> 0
C45: Fuel Oil | D45: ='Cost estimates'!D45 -> 0 | F45: ='Cost estimates'!F45 -> 0 | H45: ='Cost estimates'!H45 -> 0
C46: Electricity (general - non fans) | D46: ='Cost estimates'!D46 -> 500 | E46: ='Cost estimates'!E46 -> kWh | F46: ='Cost estimates'!F46 -> 0.06 | G46: /kilowatt-hr | H46: =D46*F46 -> 30
C47: Electricity (fans and pads) | D47: ='Cost estimates'!D47 -> 10000 | E47: ='Cost estimates'!E47 -> kWh | F47: ='Cost estimates'!F47 -> 0.06 | G47: /kilowatt-hr | H47: 600
C48: Electricity (fanjets/Horizontal Air Fans) | D48: ='Cost estimates'!D48 -> 2000 | E48: ='Cost estimates'!E48 -> kWh | F48: ='Cost estimates'!F48 -> 0.06 | G48: /kilowatt-hr | H48: 120
C49: Electricity (lights) | D49: =Inputs!F37*Inputs!F38*Inputs!F39/1000 -> 46800 | E49: ='Cost estimates'!E49 -> kWh | F49: ='Cost estimates'!F49 -> 0.06 | G49: /kilowatt-hr | H49: 2808
C50: Pond Pump Energy (DWS) | D50: ='Cost estimates'!D50 -> 32100 | E50: kWh | F50: ='Cost estimates'!F50 -> 0.06 | G50: /kWh | H50: 1926
C51: Pump Energy (NFT) | D51: ='Cost estimates'!D51 -> 32100 | E51: kWh | F51: ='Cost estimates'!F51 -> 0.06 | G51: /kWh | H51: =D51*F51 -> 1926
C52: Demand charge13 (fans) | D52: ='Cost estimates'!D52 -> 2.625 | E52: kW | F52: ='Cost estimates'!F52 -> 120 | G52: /kW | H52: =D52*F52 -> 315
C53: Demand charge (lights) | D53: ='Cost estimates'!D53 -> 20 | E53: kW | F53: ='Cost estimates'!F53 -> 120 | G53: /kW | H53: =D53*F53 -> 2400
C54: Demand charge (pond pump) | D54: ='Cost estimates'!D54 -> 3.75 | E54: kW | F54: ='Cost estimates'!F54 -> 120 | G54: /kW | H54: =D54*F54 -> 450 | J54: =H60*20% -> 5027.565608 | K54: 20% change in utility
C55: Demand charge (NFT) | D55: ='Cost estimates'!D55 -> 3.75 | E55: kW | F55: ='Cost estimates'!F55 -> 120 | G55: /kW | H55: =D55*F55 -> 450
C56: Water and Sewer | D56: ='Cost estimates'!D56 -> 100000 | E56: gallons | F56: ='Cost estimates'!F56 -> 0.0131951 | G56: /gallons | H56: 1319.51
C57: Telephone | D57: ='Cost estimates'!D57 -> 12 | E57: months | F57: ='Cost estimates'!F57 -> 50 | G57: /month | H57: 600
C58: Cell Phone | D58: ='Cost estimates'!D58 -> 12 | E58: months | F58: ='Cost estimates'!F58 -> 40 | G58: /month | H58: 480
C60: Total Utilities Costs | H60: =SUM(H39:H58) -> 25137.82804
B63: Miscellaneous Costs
C64: Advertising, Mailings, Flyers | D64: ='Cost estimates'!D64 -> 1 | E64: campaigns | F64: ='Cost estimates'!F64 -> 200 | G64: /campaigns | H64: =F64*D64 -> 200
C65: Continuing Education | D65: ='Cost estimates'!D65 -> 1 | E65: meetings | F65: ='Cost estimates'!F65 -> 75 | G65: /meetings | H65: =D65*F65 -> 75
C66: Internet Service | D66: ='Cost estimates'!D66 -> 12 | E66: months | F66: ='Cost estimates'!F66 -> 20 | G66: /months | H66: 240
C67: Laboratory Fees | D67: ='Cost estimates'!D67 -> 36 | E67: tests | F67: ='Cost estimates'!F67 -> 20 | G67: /tests | H67: 720
C68: Office Supplies | D68: ='Cost estimates'!D68 -> 12 | E68: months | F68: ='Cost estimates'!F68 -> 25 | G68: /months | H68: 300
C69: Postage | D69: ='Cost estimates'!D69 -> 12 | E69: months | F69: ='Cost estimates'!F69 -> 15 | G69: /months | H69: 180
C70: Marketing Materials & Promotions | D70: ='Cost estimates'!D70 -> 1 | E70: promos | F70: ='Cost estimates'!F70 -> 300 | G70: /promos | H70: 300
C71: Record Keeping | D71: ='Cost estimates'!D71 -> 12 | E71: months | F71: ='Cost estimates'!F71 -> 50 | G71: /months | H71: 600
C72: Software | D72: ='Cost estimates'!D72 -> 3 | E72: programs | F72: ='Cost estimates'!F72 -> 50 | G72: /programs | H72: 150
C73: Subscriptions | D73: ='Cost estimates'!D73 -> 3 | E73: subscriptions | F73: ='Cost estimates'!F73 -> 35 | G73: /subscriptions | H73: 105
C74: Marketing & Trade Shows | D74: ='Cost estimates'!D74 -> 0 | E74: trade show | F74: ='Cost estimates'!F74 -> 500 | G74: /trade show | H74: 0
C76: Total Miscellaneous Costs | H76: =SUM(H64:H74) -> 2870
B78: Professional Services
C79: Accountant | D79: ='Cost estimates'!D79 -> 5 | E79: hours | F79: ='Cost estimates'!F79 -> 50 | G79: /hour | H79: =D79*F79 -> 250
C80: Lawyer | D80: ='Cost estimates'!D80 -> 4 | E80: hours | F80: ='Cost estimates'!F80 -> 125 | G80: /hour | H80: =D80*F80 -> 500 | N80: ** Total area- Concrete area
N81: **Ground cover= Total area - Concrete area
C82: Total Professional Services | H82: =SUM(H79:H80) -> 750
C84: TOTAL VARIABLE COSTS | H84: =SUM(H82,H76,H60,H35,H28,H19) -> 77165.86244
A87: Fixed Cost13
D88: Quantity/Year | E88: Unit | F88: Price/Unit | H88: Total Cost per year
B89: Greenhouse Structure
C90: Concrete-% of floor | D90: =Inputs!K7*Inputs!F18 -> 300 | E90: sq. ft. | F90: ='Cost estimates'!F90 -> 2 | G90: /sq. ft. | H90: =D90*F90 -> 600
C91: Frame, Ends, Door | D91: ='Cost estimates'!D91 -> 1 | E91: houses | F91: ='Cost estimates'!F91 -> 15000 | G91: /houses | H91: 15000
C92: Glazing material (Glass/Poly/Double poly) | D92: ='Cost estimates'!D92 -> 1 | E92: houses | F92: ='Cost estimates'!F92 -> 5000 | G92: /houses | H92: 5000
C93: Energy/Shade Curtains | D93: =Inputs!K7-D90 -> 2700 | E93: sq. ft. | F93: ='Cost estimates'!F93 -> 4 | G93: /sq. ft. | H93: 10800
C94: Ground Cover | D94: =Inputs!K7-D90 -> 2700 | E94: sq. ft. | F94: ='Cost estimates'!F94 -> 0.075 | G94: /sq. ft. | H94: 202.5
C95: Permits | D95: ='Cost estimates'!D95 -> 4 | E95: permits | F95: ='Cost estimates'!F95 -> 80 | G95: /permits | H95: 320
C96: Site Preparation | D96: ='Cost estimates'!D96 -> 1 | E96: houses | F96: ='Cost estimates'!F96 -> 1000 | G96: /houses | H96: 1000
C97: House Construction | D97: ='Cost estimates'!D97 -> 150 | E97: hours | F97: ='Cost estimates'!F97 -> 10 | G97: /hours | H97: 1500
C99: Total Greenhouse Structure Costs | H99: =SUM(H90:H97) -> 34422.5
C101: Total Annual Greenhouse Stucture Costs (Annual costs of owning the greenhouse includes depreciation and/or principal payments, interest, repairs, taxes, and insurance) | F101: ='Cost estimates'!F101 -> 0.2 | H101: =H99*F101 -> 6884.5
B103: Greenhouse Environmental Control Equipment | N103: *** https://www.greenhousemegastore.com/category/gas-greenhouse-heaters
C105: Back-up Generator | D105: 1 | E105: generators | F105: 6000 | G105: /generators | H105: =D105*F105 -> 6000
C106: Cooling System (fan, vent, & pad) | D106: 1 | E106: systems | F106: 2000 | G106: /systems | H106: 2000
C107: Fanjets, 30" 1hp / Horizontal Air Fans | D107: 1 | E107: fanjets / HAF | F107: 1500 | G107: /fanjets / HAF | H107: 1500
C108: Electrical Panel | D108: 1 | E108: panels | F108: 1500 | G108: /panels | H108: 1500
C109: Computer for Environmental Control | D109: 1 | E109: computers | F109: 2500 | G109: /computers | H109: 2500
C110: Extra Building Supplies | D110: 1 | E110: houses | F110: 1500 | G110: /houses | H110: 1500
C111: Heating System (reflects utility choice from above)
C112: Liquid Propane | D112: 1 | E112: heaters | F112: 2500 | G112: /heaters | H112: =IF(D38=1, D112*F112,0) -> 0
C113: Natural Gas | D113: 1 | E113: heaters | F113: 2000 | G113: /heaters | H113: =IF(D38=2, D113*F113,0) -> 2000
C114: Fuel Oil | D114: 1 | E114: heaters | F114: 2000 | G114: /heaters | H114: =IF(D38=3, D114*F114,0) -> 0
C115: Poly Inflation Kit | D115: 1 | E115: kits | F115: 150 | G115: /kits | H115: =D115*F115 -> 150
C116: Low Voltage Wiring Package | D116: 1 | E116: packages | F116: 400 | G116: /packages | H116: =D116*F116 -> 400
C117: Protective Equipment (PPE) | D117: 1 | E117: sets | F117: 50 | G117: /sets | H117: =D117*F117 -> 50
C118: Grow Lights10 | D118: 2
H119: ='Cost estimates'!H119 -> 0
D120: =Inputs!F37 -> 20 | E120: Lights | F120: 460 | G120: /Lights | H120: ='Cost estimates'!H120 -> 9200
C123: Total Greenhouse Environmental Control Equipment Costs | H123: =SUM(H105:H121) -> 26800
C125: Total Annual Equipment Costs (Annual costs of owning the equipment includes depreciation and/or principal payments, interest, repairs, taxes, and insurance) | F125: ='Cost estimates'!F125 -> 0.2 | H125: =H123*F125 -> 5360
B127: Growing & Delivery
C129: Back Pack Sprayer | D129: 1 | E129: sprayers | F129: 100 | G129: /sprayers | H129: =D129*F129 -> 100
C130: Carbon Dioxide Generator | D130: 1 | E130: generators | F130: 480 | G130: /generators | H130: 480
C131: Cooler | D131: 1 | E131: coolers | F131: 2500 | G131: /coolers | H131: 2500 | N131: **https://shop.amhydro.com/collections/complete-nft-systems
C132: Delivery Van with A/C | D132: 1 | E132: vans | F132: 6000 | G132: /vans | H132: 6000
C133: Fertilizer Mixing Pump | D133: 1 | E133: pumps | F133: 30 | G133: /pumps | H133: 30
C134: Meters and Sensors- EC | D134: 1 | E134: meters | F134: 160 | G134: /meters | H134: 160
C135: pH | D135: 1 | E135: sensors | F135: 50 | G135: /sensors | H135: 50
C136: Thermometer | D136: 1 | E136: thermometers | F136: 25 | G136: /thermometers | H136: 25
C137: Monitor- Humidity | D137: 1 | E137: sensors | F137: 120 | G137: /sensors | H137: 120
C138: CO2 | D138: 1 | E138: sensors | F138: 500 | G138: /sensors | H138: 500
B139: 2 | C139: Growing system (Choose one)13:
D140: 1 | E140: system | F140: 15000 | G140: /system | H140: ='Cost estimates'!H140 -> 0
D141: 1 | E141: system | F141: 10000 | G141: /system | H141: ='Cost estimates'!H141 -> 16500
C142: Scale | D142: 1 | E142: scales | F142: 100 | G142: /scales | H142: =D142*F142 -> 100 | N142: ** Crop land Source: Quickstat, USDA, https://www.ers.usda.gov/topics/farm-economy/land-use-land-value-tenure/farmland-value/
C145: Total Other Equipment | H145: =SUM(H129:H142) -> 26565
C147: Total Annual Growing & Delivery Costs (Annual costs of owning the greenhouse includes depreciation and/or principal payments, interest, repairs, taxes, and insurance) | F147: ='Cost estimates'!F148 -> 0.2 | H147: =H145*F147 -> 5313
B149: Miscellaneous
C151: Land Rent14 | D151: 1 | E151: Acre | F151: 70 | G151: /acre | H151: =D151*F151 -> 70
C153: Total Miscellaneous Costs | H153: =H151 -> 70
C157: TOTAL ANNUAL FIXED COSTS16 | H157: =H153+H147+H125+H101 -> 17627.5
C159: TOTAL ANNUAL COSTS | E159: (Variable Costs + Annual Fixed Costs) | H159: =SUM(H157,H84) -> 94793.36244

Sheet Analysis
F3: Annual Profit Based On Different Assumptions
E12: Price
E13: Actual | F13: High | G13: Average | H13: Low
E14: =Inputs!F21 -> 1.35 | F14: 2 | G14: 1.5 | H14: 1
B15: Annual Output | C15: Actual | D15: =Inputs!$K$13 -> 130244 | E15: =($D$15*$E$14)-'Cost estimates'!$H$160 -> 33303.44556 | F15: =$D$15*$F$14-'Cost estimates'!$H$160 -> 117962.0456 | G15: =$D$15*$G$14-'Cost estimates'!$H$160 -> 52840.04556 | H15: =$D$15*$H$14-'Cost estimates'!$H$160 -> -12281.95444
C16: High | D16: =Sim1I!$K$17 -> 150228 | E16: =($D$16*$E$14)-Sim1C!$H$159 -> 43545.23596 | F16: =($D$16*$F$14)-Sim1C!$H$159 -> 141193.436 | G16: =($D$16*$G$14)-Sim1C!$H$159 -> 66079.43596 | H16: =($D$16*$H$14)-Sim1C!$H$159 -> -9034.564041
C17: Average | D17: =Sim2I!$K$17 -> 123177 | E17: =($D$17*$E$14)-Sim2C!$H$159 -> 41940.75796 | F17: =$D$17*$F$14-Sim2C!$H$159 -> 122005.808 | G17: =$D$17*$G$14-Sim2C!$H$159 -> 60417.30796 | H17: =$D$17*$H$14-Sim2C!$H$159 -> -1171.192041
C18: Poor | D18: ='Sim3I '!$K$17 -> 75301.2 | E18: =($D$18*$E$14)-Sim3C!$H$159 -> 6863.257559 | F18: =$D$18*$F$14-Sim3C!$H$159 -> 55809.03756 | G18: =$D$18*$G$14-Sim3C!$H$159 -> 18158.43756 | H18: =$D$18*$H$14-Sim3C!$H$159 -> -19492.16244
H25: With 20% Increase in Labor Cost
E35: Price
E36: Actual | F36: High | G36: Average | H36: Low
E37: =Inputs!F21 -> 1.35 | F37: 2 | G37: 1.5 | H37: 1
B38: Annual Output | C38: Actual | D38: =Inputs!$K$13 -> 130244 | E38: =E15-'Cost estimates'!$M$28 -> 19351.70828 | F38: =F15-'Cost estimates'!$M$28 -> 104010.3083 | G38: =G15-'Cost estimates'!$M$28 -> 38888.30828 | H38: =H15-'Cost estimates'!$M$28 -> -26233.69172
C39: High | D39: =Sim1I!$K$17 -> 150228 | E39: =E16-Sim1C!J28 -> 27560.97676 | F39: =F16-Sim1C!J28 -> 125209.1768 | G39: =G16-Sim1C!J28 -> 50095.17676 | H39: =H16-Sim1C!J28 -> -25018.82324
C40: Average | D40: =Sim2I!$K$17 -> 123177 | E40: =E17-Sim2C!J28 -> 31790.97316 | F40: =F17-Sim2C!J28 -> 111856.0232 | G40: =G17-Sim2C!J28 -> 50267.52316 | H40: =H17-Sim2C!J28 -> -11320.97684
C41: Poor | D41: ='Sim3I '!$K$17 -> 75301.2 | E41: =E18-Sim3C!J28 -> 658.4386794 | F41: =F18-Sim3C!J28 -> 49604.21868 | G41: =G18-Sim3C!J28 -> 11953.61868 | H41: =H18-Sim3C!J28 -> -25696.98132
H47: With 20% Decrease in Labor Cost
E57: Price
E59: Actual | F59: High | G59: Average | H59: Low
E60: =Inputs!F21 -> 1.35 | F60: 2 | G60: 1.5 | H60: 1
B61: Annual Output | C61: Actual | D61: =Inputs!$K$13 -> 130244 | E61: =E15+'Cost estimates'!$M$28 -> 47255.18284 | F61: =F15+'Cost estimates'!$M$28 -> 131913.7828 | G61: =G15+'Cost estimates'!$M$28 -> 66791.78284 | H61: =H15+'Cost estimates'!$M$28 -> 1669.782839
C62: High | D62: =Sim1I!$K$17 -> 150228 | E62: =E16+Sim1C!J28 -> 59529.49516 | F62: =F16+Sim1C!J28 -> 157177.6952 | G62: =G16+Sim1C!J28 -> 82063.69516 | H62: =H16+Sim1C!J28 -> 6949.695159
C63: Average | D63: =Sim2I!$K$17 -> 123177 | E63: =E17+Sim2C!J28 -> 52090.54276 | F63: =F17+Sim2C!J28 -> 132155.5928 | G63: =G17+Sim2C!J28 -> 70567.09276 | H63: =H17+Sim2C!J28 -> 8978.592759
C64: Poor | D64: ='Sim3I '!$K$17 -> 75301.2 | E64: =E18+Sim3C!J28 -> 13068.07644 | F64: =F18+Sim3C!J28 -> 62013.85644 | G64: =G18+Sim3C!J28 -> 24363.25644 | H64: =H18+Sim3C!J28 -> -13287.34356
H71: With 20% Increase in Utility Cost
E79: Price
E81: Actual | F81: High | G81: Average | H81: Low
E82: =Inputs!F21 -> 1.35 | F82: 2 | G82: 1.5 | H82: 1
B83: Annual Output | C83: Actual | D83: =Inputs!$K$13 -> 130244 | E83: =$E$15-'Cost estimates'!$M$60 -> 28751.07995 | F83: =$F$15-'Cost estimates'!$M$60 -> 113409.68 | G83: =$G$15-'Cost estimates'!$M$60 -> 48287.67995 | H83: =$H$15-'Cost estimates'!$M$60 -> -16834.32005
C84: High | D84: =Sim1I!$K$17 -> 150228 | E84: =$E$16-Sim1C!$J$52 -> 38517.67035 | F84: =$F$16-Sim1C!$J$52 -> 136165.8704 | G84: =$G$16-Sim1C!$J$52 -> 61051.87035 | H84: =$H$16-Sim1C!$J$52 -> -14062.12965
C85: Average | D85: =Sim2I!$K$17 -> 123177 | E85: =$E$17-Sim2C!$J$56 -> 36913.19235 | F85: =$F$17-Sim2C!$J$56 -> 116978.2424 | G85: =$G$17-Sim2C!$J$56 -> 55389.74235 | H85: =$H$17-Sim2C!$J$56 -> -6198.757649
C86: Poor | D86: ='Sim3I '!$K$17 -> 75301.2 | E86: =$E$18-Sim3C!$J$54 -> 1835.691951 | F86: =$F$18-Sim3C!$J$54 -> 50781.47195 | G86: =$G$18-Sim3C!$J$54 -> 13130.87195 | H86: =$H$18-Sim3C!$J$54 -> -24519.72805
H95: With 20% Decrease in Utility Cost
E105: Price
E107: Actual | F107: High | G107: Average | H107: Low
E108: =Inputs!F21 -> 1.35 | F108: 2 | G108: 1.5 | H108: 1
B109: Annual Output | C109: Actual | D109: =Inputs!$K$13 -> 130244 | E109: =E$15+'Cost estimates'!$M$60 -> 37855.81117 | F109: =F$15+'Cost estimates'!$M$60 -> 122514.4112 | G109: =G$15+'Cost estimates'!$M$60 -> 57392.41117 | H109: =H$15+'Cost estimates'!$M$60 -> -7729.588832
C110: High | D110: =Sim1I!$K$17 -> 150228 | E110: =$E$16+Sim1C!$J$52 -> 48572.80157 | F110: =$F$16+Sim1C!$J$52 -> 146221.0016 | G110: =$G$16+Sim1C!$J$52 -> 71107.00157 | H110: =$H$16+Sim1C!$J$52 -> -4006.998432
C111: Average | D111: =Sim2I!$K$17 -> 123177 | E111: =$E$17+Sim1C!$J$52 -> 46968.32357 | F111: =$F$17+Sim2C!$J$56 -> 127033.3736 | G111: =$G$17+Sim2C!$J$56 -> 65444.87357 | H111: =$H$17+Sim2C!$J$56 -> 3856.373568
C112: Poor | D112: ='Sim3I '!$K$17 -> 75301.2 | E112: =$E$18+Sim1C!$J$52 -> 11890.82317 | F112: =$F$18+Sim3C!$J$54 -> 60836.60317 | G112: =$G$18+Sim3C!$J$54 -> 23186.00317 | H112: =$H$18+Sim3C!$J$54 -> -14464.59683
D114: =(E109-E15)*100/E15 -> 13.66935322
H120: With 20% Increase in Packaging Cost
E130: Price
E132: Actual | F132: High | G132: Average | H132: Low
E133: =Inputs!F21 -> 1.35 | F133: 2 | G133: 1.5 | H133: 1
B134: Annual Output | C134: Actual | D134: =Inputs!$K$13 -> 130244 | E134: =E$15-'Cost estimates'!$M$35 -> 28908.04556 | F134: =F$15-'Cost estimates'!$M$35 -> 113566.6456 | G134: =G$15-'Cost estimates'!$M$35 -> 48444.64556 | H134: =H$15-'Cost estimates'!$M$35 -> -16677.35444
C135: High | D135: =Sim1I!$K$17 -> 150228 | E135: =E$16-Sim1C!$J$35 -> 38479.23596 | F135: =F$16-Sim1C!$J$35 -> 136127.436 | G135: =G$16-Sim1C!$J$35 -> 61013.43596 | H135: =H$16-Sim1C!$J$35 -> -14100.56404
C136: Average | D136: =Sim2I!$K$17 -> 123177 | E136: =E$17-Sim2C!$J$35 -> 37784.15796 | F136: =F$17-Sim2C!$J$35 -> 117849.208 | G136: =G$17-Sim2C!$J$35 -> 56260.70796 | H136: =H$17-Sim2C!$J$35 -> -5327.792041
C137: Poor | D137: ='Sim3I '!$K$17 -> 75301.2 | E137: =E$18-Sim3C!$J$35 -> 4315.657559 | F137: =F$18-Sim3C!$J$35 -> 53261.43756 | G137: =G$18-Sim3C!$J$35 -> 15610.83756 | H137: =H$18-Sim3C!$J$35 -> -22039.76244
H144: With 20% Decrease in Packaging Cost
E153: Price
E155: Actual | F155: High | G155: Average | H155: Low
E156: =Inputs!F21 -> 1.35 | F156: 2 | G156: 1.5 | H156: 1
B157: Annual Output | C157: Actual | D157: =Inputs!$K$13 -> 130244 | E157: =E$15+'Cost estimates'!$M$35 -> 37698.84556 | F157: =F$15+'Cost estimates'!$M$35 -> 122357.4456 | G157: =G$15+'Cost estimates'!$M$35 -> 57235.44556 | H157: =H$15+'Cost estimates'!$M$35 -> -7886.554441
C158: High | D158: =Sim1I!$K$17 -> 150228 | E158: =E$16+Sim1C!$J$35 -> 48611.23596 | F158: =F$16+Sim1C!$J$35 -> 146259.436 | G158: =G$16+Sim1C!$J$35 -> 71145.43596 | H158: =H$16+Sim1C!$J$35 -> -3968.564041
C159: Average | D159: =Sim2I!$K$17 -> 123177 | E159: =E$17+Sim2C!$J$35 -> 46097.35796 | F159: =F$17+Sim2C!$J$35 -> 126162.408 | G159: =G$17+Sim2C!$J$35 -> 64573.90796 | H159: =H$17+Sim2C!$J$35 -> 2985.407959
C160: Poor | D160: ='Sim3I '!$K$17 -> 75301.2 | E160: =E$18+Sim3C!$J$35 -> 9410.857559 | F160: =F$18+Sim3C!$J$35 -> 58356.63756 | G160: =G$18+Sim3C!$J$35 -> 20706.03756 | H160: =H$18+Sim3C!$J$35 -> -16944.56244
D163: =(E157-E15)*100/E15 -> 13.1980338

Sheet elmira (hidden)
A1: Date (MM/DD/YYYY) | B1: Time (HH:MM) | C1: GHI (W/m^2) | D1: TotCld (tenths) | E1: Dry-bulb (C) | F1: Dew-point (C) | G1: RHum (%) | H1: Conduction (W) | I1: Solar (W) | J1: Infiltration (W) | K1: Lights (W) | L1: ET (W) | M1: pws (Pa) | N1: hrsat (kg/kg) | O1: hr (kg/kg) | P1: Ventilation (m3/s) | Q1: Vent load (W) | R1: Htg Load (W)
A2: 2001-01-01 | B2: 01:00:00 | C2: 0 | D2: 10 | E2: -6 | F2: -10 | G2: 70 | H2: =Inputs!$X$37*Inputs!$X$32*(E2-Inputs!$X$26) -> -92923.21535 | I2: =Inputs!$X$33*C2*Inputs!$X$38 -> 0 | J2: =params!$C$15*Inputs!$X$29*(E2-Inputs!$X$26) -> -9653.799 | K2: =Inputs!$X$40*Inputs!$X$41/8760 -> 5342.465753 | L2: =-Inputs!$X$45*Inputs!$X$33 -> -30000 | M2: =EXP(77.345+0.0057*(E2+273.15)-7235/(E2+273.15))/(E2+273.15)^8.2 -> 389.766162 | N2: =0.62198*M2/(101325-M2) -> 0.00240180508 | O2: =N2*G2/100 -> 0.001681263556 | P2: =-L2/(1.202*2465560*MAX(0,(Inputs!$X$49-O2))) -> 1.086485716 | Q2: =params!$C$15*P2*(E2-Inputs!$X$26) -> -35558.9581 | R2: =H2+I2+J2+K2+L2+Q2 -> -162793.5067
A3: 2001-01-01 | B3: 02:00:00 | C3: 0 | D3: 10 | E3: -6 | F3: -9 | G3: 77 | H3: =Inputs!$X$37*Inputs!$X$32*(E3-Inputs!$X$26) -> -92923.21535 | I3: =Inputs!$X$33*C3*Inputs!$X$38 -> 0 | J3: =params!$C$15*Inputs!$X$29*(E3-Inputs!$X$26) -> -9653.799 | K3: =Inputs!$X$40*Inputs!$X$41/8760 -> 5342.465753 | L3: =-Inputs!$X$45*Inputs!$X$33 -> -30000 | M3: =EXP(77.345+0.0057*(E3+273.15)-7235/(E3+273.15))/(E3+273.15)^8.2 -> 389.766162 | N3: =0.62198*M3/(101325-M3) -> 0.00240180508 | O3: =N3*G3/100 -> 0.001849389912 | P3: =-L3/(1.202*2465560*MAX(0,(Inputs!$X$49-O3))) -> 1.106451716 | Q3: =params!$C$15*P3*(E3-Inputs!$X$26) -> -36212.4137 | R3: =H3+I3+J3+K3+L3+Q3 -> -163446.9623
A4: 2001-01-01 | B4: 03:00:00 | C4: 0 | D4: 10 | E4: -6 | F4: -8 | G4: 84 | H4: =Inputs!$X$37*Inputs!$X$32*(E4-Inputs!$X$26) -> -92923.21535 | I4: =Inputs!$X$33*C4*Inputs!$X$38 -> 0 | J4: =params!$C$15*Inputs!$X$29*(E4-Inputs!$X$26) -> -9653.799 | K4: =Inputs!$X$40*Inputs!$X$41/8760 -> 5342.465753 | L4: =-Inputs!$X$45*Inputs!$X$33 -> -30000 | M4: 389.766162 | N4: 0.00240180508 | O4: 0.002017516267 | P4: =-L4/(1.202*2465560*MAX(0,(Inputs!$X$49-O4))) -> 1.127165272 | Q4: =params!$C$15*P4*(E4-Inputs!$X$26) -> -36890.33559 | R4: -164124.8842
A5: 2001-01-01 | B5: 04:00:00 | C5: 0 | D5: 10 | E5: -6 | F5: -9 | G5: 77 | H5: =Inputs!$X$37*Inputs!$X$32*(E5-Inputs!$X$26) -> -92923.21535 | I5: =Inputs!$X$33*C5*Inputs!$X$38 -> 0 | J5: =params!$C$15*Inputs!$X$29*(E5-Inputs!$X$26) -> -9653.799 | K5: =Inputs!$X$40*Inputs!$X$41/8760 -> 5342.465753 | L5: =-Inputs!$X$45*Inputs!$X$33 -> -30000 | M5: 389.766162 | N5: 0.00240180508 | O5: 0.001849389912 | P5: =-L5/(1.202*2465560*MAX(0,(Inputs!$X$49-O5))) -> 1.106451716 | Q5: =params!$C$15*P5*(E5-Inputs!$X$26) -> -36212.4137 | R5: -163446.9623
A6: 2001-01-01 | B6: 05:00:00 | C6: 0 | D6: 10 | E6: -6 | F6: -9 | G6: 77 | H6: =Inputs!$X$37*Inputs!$X$32*(E6-Inputs!$X$26) -> -92923.21535 | I6: =Inputs!$X$33*C6*Inputs!$X$38 -> 0 | J6: =params!$C$15*Inputs!$X$29*(E6-Inputs!$X$26) -> -9653.799 | K6: =Inputs!$X$40*Inputs!$X$41/8760 -> 5342.465753 | L6: =-Inputs!$X$45*Inputs!$X$33 -> -30000 | M6: 389.766162 | N6: 0.00240180508 | O6: 0.001849389912 | P6: =-L6/(1.202*2465560*MAX(0,(Inputs!$X$49-O6))) -> 1.106451716 | Q6: =params!$C$15*P6*(E6-Inputs!$X$26) -> -36212.4137 | R6: -163446.9623
A7: 2001-01-01 | B7: 06:00:00 | C7: 0 | D7: 10 | E7: -6 | F7: -10 | G7: 70 | H7: =Inputs!$X$37*Inputs!$X$32*(E7-Inputs!$X$26) -> -92923.21535 | I7: =Inputs!$X$33*C7*Inputs!$X$38 -> 0 | J7: =params!$C$15*Inputs!$X$29*(E7-Inputs!$X$26) -> -9653.799 | K7: =Inputs!$X$40*Inputs!$X$41/8760 -> 5342.465753 | L7: =-Inputs!$X$45*Inputs!$X$33 -> -30000 | M7: 389.766162 | N7: 0.00240180508 | O7: 0.001681263556 | P7: =-L7/(1.202*2465560*MAX(0,(Inputs!$X$49-O7))) -> 1.086485716 | Q7: =params!$C$15*P7*(E7-Inputs!$X$26) -> -35558.9581 | R7: -162793.5067
A8: 2001-01-01 | B8: 07:00:00 | C8: 0 | D8: 10 | E8: -7 | F8: -11 | G8: 70 | H8: =Inputs!$X$37*Inputs!$X$32*(E8-Inputs!$X$26) -> -96350.711 | I8: =Inputs!$X$33*C8*Inputs!$X$38 -> 0 | J8: =params!$C$15*Inputs!$X$29*(E8-Inputs!$X$26) -> -10009.88175 | K8: =Inputs!$X$40*Inputs!$X$41/8760 -> 5342.465753 | L8: =-Inputs!$X$45*Inputs!$X$33 -> -30000 | M8: 360.9876215 | N8: 0.002223832785 | O8: 0.00155668295 | P8: =-L8/(1.202*2465560*MAX(0,(Inputs!$X$49-O8))) -> 1.072149693 | Q8: =params!$C$15*P8*(E8-Inputs!$X$26) -> -36384.0573 | R8: -167402.1843
A9: 2001-01-01 | B9: 08:00:00 | C9: 0 | D9: 4 | E9: -8 | F9: -12 | G9: 70 | H9: =Inputs!$X$37*Inputs!$X$32*(E9-Inputs!$X$26) -> -99778.20665 | I9: =Inputs!$X$33*C9*Inputs!$X$38 -> 0 | J9: =params!$C$15*Inputs!$X$29*(E9-Inputs!$X$26) -> -10365.9645 | K9: =Inputs!$X$40*Inputs!$X$41/8760 -> 5342.465753 | L9: =-Inputs!$X$45*Inputs!$X$33 -> -30000 | M9: 334.1161189 | N9: 0.002057745567 | O9: 0.001440421897 | P9: =-L9/(1.202*2465560*MAX(0,(Inputs!$X$49-O9))) -> 1.059108156 | Q9: =params!$C$15*P9*(E9-Inputs!$X$26) -> -37220.03558 | R9: -172021.741
A10: 2001-01-01 | B10: 09:00:00 | C10: 94 | D10: 4 | E10: -7 | F10: -12 | G10: 64 | H10: =Inputs!$X$37*Inputs!$X$32*(E10-Inputs!$X$26) -> -96350.711 | I10: =Inputs!$X$33*C10*Inputs!$X$38 -> 18339.07784 | J10: =params!$C$15*Inputs!$X$29*(E10-Inputs!$X$26) -> -10009.88175 | K10: =Inputs!$X$40*Inputs!$X$41/8760 -> 5342.465753 | L10: =-Inputs!$X$45*Inputs!$X$33 -> -30000 | M10: 360.9876215 | N10: 0.002223832785 | O10: 0.001423252982 | P10: =-L10/(1.202*2465560*MAX(0,(Inputs!$X$49-O10))) -> 1.057209078 | Q10: =params!$C$15*P10*(E10-Inputs!$X$26) -> -35877.03836 | R10: -148556.0875
A11: 2001-01-01 | B11: 10:00:00 | C11: 237 | D11: 4 | E11: -7 | F11: -12 | G11: 64 | H11: =Inputs!$X$37*Inputs!$X$32*(E11-Inputs!$X$26) -> -96350.711 | I11: =Inputs!$X$33*C11*Inputs!$X$38 -> 46237.88775 | J11: =params!$C$15*Inputs!$X$29*(E11-Inputs!$X$26) -> -10009.88175 | K11: =Inputs!$X$40*Inputs!$X$41/8760 -> 5342.465753 | L11: =-Inputs!$X$45*Inputs!$X$33 -> -30000 | M11: 360.9876215 | N11: 0.002223832785 | O11: 0.001423252982 | P11: =-L11/(1.202*2465560*MAX(0,(Inputs!$X$49-O11))) -> 1.057209078 | Q11: =params!$C$15*P11*(E11-Inputs!$X$26) -> -35877.03836 | R11: -120657.2776
A12: 2001-01-01 | B12: 11:00:00 | C12: 332 | D12: 4 | E12: -6 | F12: -11 | G12: 64 | H12: =Inputs!$X$37*Inputs!$X$32*(E12-Inputs!$X$26) -> -92923.21535 | I12: =Inputs!$X$33*C12*Inputs!$X$38 -> 64772.06217 | J12: =params!$C$15*Inputs!$X$29*(E12-Inputs!$X$26) -> -9653.799 | K12: =Inputs!$X$40*Inputs!$X$41/8760 -> 5342.465753 | L12: =-Inputs!$X$45*Inputs!$X$33 -> -30000 | M12: 389.766162 | N12: 0.00240180508 | O12: 0.001537155251 | P12: =-L12/(1.202*2465560*MAX(0,(Inputs!$X$49-O12))) -> 1.069936785 | Q12: =params!$C$15*P12*(E12-Inputs!$X$26) -> -35017.33779 | R12: -97479.82422
A13: 2001-01-01 | B13: 12:00:00 | C13: 372 | D13: 0 | E13: -4 | F13: -12 | G13: 50 | H13: =Inputs!$X$37*Inputs!$X$32*(E13-Inputs!$X$26) -> -86068.22406 | I13: =Inputs!$X$33*C13*Inputs!$X$38 -> 72575.92508 | J13: =params!$C$15*Inputs!$X$29*(E13-Inputs!$X$26) -> -8941.6335 | K13: =Inputs!$X$40*Inputs!$X$41/8760 -> 5342.465753 | L13: =-Inputs!$X$45*Inputs!$X$33 -> -30000 | M13: 453.5153204 | N13: 0.002796404355 | O13: 0.001398202177 | P13: =-L13/(1.202*2465560*MAX(0,(Inputs!$X$49-O13))) -> 1.054450359 | Q13: =params!$C$15*P13*(E13-Inputs!$X$26) -> -31964.63563 | R13: -79056.10235
A14: 2001-01-01 | B14: 13:00:00 | C14: 411 | D14: 0 | E14: -3 | F14: -12 | G14: 46 | H14: =Inputs!$X$37*Inputs!$X$32*(E14-Inputs!$X$26) -> -82640.72841 | I14: =Inputs!$X$33*C14*Inputs!$X$38 -> 80184.69142 | J14: =params!$C$15*Inputs!$X$29*(E14-Inputs!$X$26) -> -8585.55075 | K14: =Inputs!$X$40*Inputs!$X$41/8760 -> 5342.465753 | L14: =-Inputs!$X$45*Inputs!$X$33 -> -30000 | M14: 488.7362191 | N14: 0.003014631266 | O14: 0.001386730382 | P14: =-L14/(1.202*2465560*MAX(0,(Inputs!$X$49-O14))) -> 1.053191828 | Q14: =params!$C$15*P14*(E14-Inputs!$X$26) -> -30655.07583 | R14: -66354.19781
A15: 2001-01-01 | B15: 14:00:00 | C15: 366 | D15: 0 | E15: -3 | F15: -12 | G15: 46 | H15: =Inputs!$X$37*Inputs!$X$32*(E15-Inputs!$X$26) -> -82640.72841 | I15: =Inputs!$X$33*C15*Inputs!$X$38 -> 71405.34565 | J15: =params!$C$15*Inputs!$X$29*(E15-Inputs!$X$26) -> -8585.55075 | K15: =Inputs!$X$40*Inputs!$X$41/8760 -> 5342.465753 | L15: =-Inputs!$X$45*Inputs!$X$33 -> -30000 | M15: 488.7362191 | N15: 0.003014631266 | O15: 0.001386730382 | P15: =-L15/(1.202*2465560*MAX(0,(Inputs!$X$49-O15))) -> 1.053191828 | Q15: =params!$C$15*P15*(E15-Inputs!$X$26) -> -30655.07583 | R15: -75133.54359
A16: 2001-01-01 | B16: 15:00:00 | C16: 269 | D16: 0 | E16: -3 | F16: -12 | G16: 46 | H16: =Inputs!$X$37*Inputs!$X$32*(E16-Inputs!$X$26) -> -82640.72841 | I16: =Inputs!$X$33*C16*Inputs!$X$38 -> 52480.97808 | J16: =params!$C$15*Inputs!$X$29*(E16-Inputs!$X$26) -> -8585.55075 | K16: =Inputs!$X$40*Inputs!$X$41/8760 -> 5342.465753 | L16: =-Inputs!$X$45*Inputs!$X$33 -> -30000 | M16: 488.7362191 | N16: 0.003014631266 | O16: 0.001386730382 | P16: =-L16/(1.202*2465560*MAX(0,(Inputs!$X$49-O16))) -> 1.053191828 | Q16: =params!$C$15*P16*(E16-Inputs!$X$26) -> -30655.07583 | R16: -94057.91115
A17: 2001-01-01 | B17: 16:00:00 | C17: 139 | D17: 0 | E17: -4 | F17: -12 | G17: 50 | H17: =Inputs!$X$37*Inputs!$X$32*(E17-Inputs!$X$26) -> -86068.22406 | I17: =Inputs!$X$33*C17*Inputs!$X$38 -> 27118.42362 | J17: =params!$C$15*Inputs!$X$29*(E17-Inputs!$X$26) -> -8941.6335 | K17: =Inputs!$X$40*Inputs!$X$41/8760 -> 5342.465753 | L17: =-Inputs!$X$45*Inputs!$X$33 -> -30000 | M17: 453.5153204 | N17: 0.002796404355 | O17: 0.001398202177 | P17: =-L17/(1.202*2465560*MAX(0,(Inputs!$X$49-O17))) -> 1.054450359 | Q17: =params!$C$15*P17*(E17-Inputs!$X$26) -> -31964.63563 | R17: -124513.6038
A18: 2001-01-01 | B18: 17:00:00 | C18: 15 | D18: 0 | E18: -6 | F18: -13 | G18: 54 | H18: =Inputs!$X$37*Inputs!$X$32*(E18-Inputs!$X$26) -> -92923.21535 | I18: =Inputs!$X$33*C18*Inputs!$X$38 -> 2926.448592 | J18: =params!$C$15*Inputs!$X$29*(E18-Inputs!$X$26) -> -9653.799 | K18: =Inputs!$X$40*Inputs!$X$41/8760 -> 5342.465753 | L18: =-Inputs!$X$45*Inputs!$X$33 -> -30000 | M18: 389.766162 | N18: 0.00240180508 | O18: 0.001296974743 | P18: =-L18/(1.202*2465560*MAX(0,(Inputs!$X$49-O18))) -> 1.043447795 | Q18: =params!$C$15*P18*(E18-Inputs!$X$26) -> -34150.39508 | R18: -158458.4951
A19: 2001-01-01 | B19: 18:00:00 | C19: 0 | D19: 0 | E19: -8 | F19: -13 | G19: 64 | H19: =Inputs!$X$37*Inputs!$X$32*(E19-Inputs!$X$26) -> -99778.20665 | I19: =Inputs!$X$33*C19*Inputs!$X$38 -> 0 | J19: =params!$C$15*Inputs!$X$29*(E19-Inputs!$X$26) -> -10365.9645 | K19: =Inputs!$X$40*Inputs!$X$41/8760 -> 5342.465753 | L19: =-Inputs!$X$45*Inputs!$X$33 -> -30000 | M19: 334.1161189 | N19: 0.002057745567 | O19: 0.001316957163 | P19: =-L19/(1.202*2465560*MAX(0,(Inputs!$X$49-O19))) -> 1.045601488 | Q19: =params!$C$15*P19*(E19-Inputs!$X$26) -> -36745.37334 | R19: -171547.0787
A20: 2001-01-01 | B20: 19:00:00 | C20: 0 | D20: 0 | E20: -12 | F20: -14 | G20: 83 | H20: =Inputs!$X$37*Inputs!$X$32*(E20-Inputs!$X$26) -> -113488.1892 | I20: =Inputs!$X$33*C20*Inputs!$X$38 -> 0 | J20: =params!$C$15*Inputs!$X$29*(E20-Inputs!$X$26) -> -11790.2955 | K20: =Inputs!$X$40*Inputs!$X$41/8760 -> 5342.465753 | L20: =-Inputs!$X$45*Inputs!$X$33 -> -30000 | M20: 243.5669654 | N20: 0.001498730049 | O20: 0.001243945941 | P20: =-L20/(1.202*2465560*MAX(0,(Inputs!$X$49-O20))) -> 1.037775163 | Q20: =params!$C$15*P20*(E20-Inputs!$X$26) -> -41481.52527 | R20: -191417.5443
A21: 2001-01-01 | B21: 20:00:00 | C21: 0 | D21: 0 | E21: -14 | F21: -16 | G21: 83 | H21: =Inputs!$X$37*Inputs!$X$32*(E21-Inputs!$X$26) -> -120343.1805 | I21: =Inputs!$X$33*C21*Inputs!$X$38 -> 0 | J21: =params!$C$15*Inputs!$X$29*(E21-Inputs!$X$26) -> -12502.461 | K21: =Inputs!$X$40*Inputs!$X$41/8760 -> 5342.465753 | L21: =-Inputs!$X$45*Inputs!$X$33 -> -30000 | M21: 207.1044257 | N21: 0.001273907155 | O21: 0.001057342939 | P21: =-L21/(1.202*2465560*MAX(0,(Inputs!$X$49-O21))) -> 1.018294925 | Q21: =params!$C$15*P21*(E21-Inputs!$X$26) -> -43161.4317 | R21: -200664.6075
A22: 2001-01-01 | B22: 21:00:00 | C22: 0 | D22: 0 | E22: -15 | F22: -17 | G22: 83 | H22: =Inputs!$X$37*Inputs!$X$32*(E22-Inputs!$X$26) -> -123770.6762 | I22: =Inputs!$X$33*C22*Inputs!$X$38 -> 0 | J22: =params!$C$15*Inputs!$X$29*(E22-Inputs!$X$26) -> -12858.54375 | K22: =Inputs!$X$40*Inputs!$X$41/8760 -> 5342.465753 | L22: =-Inputs!$X$45*Inputs!$X$33 -> -30000 | M22: 190.7720143 | N22: 0.001173256372 | O22: 0.0009738027891 | P22: =-L22/(1.202*2465560*MAX(0,(Inputs!$X$49-O22))) -> 1.009808852 | Q22: =params!$C$15*P22*(E22-Inputs!$X$26) -> -44020.77806 | R22: -205307.5322
A23: 2001-01-01 | B23: 22:00:00 | C23: 0 | D23: 0 | E23: -15 | F23: -17 | G23: 83 | H23: =Inputs!$X$37*Inputs!$X$32*(E23-Inputs!$X$26) -> -123770.6762 | I23: =Inputs!$X$33*C23*Inputs!$X$38 -> 0 | J23: =params!$C$15*Inputs!$X$29*(E23-Inputs!$X$26) -> -12858.54375 | K23: =Inputs!$X$40*Inputs!$X$41/8760 -> 5342.465753 | L23: =-Inputs!$X$45*Inputs!$X$33 -> -30000 | M23: 190.7720143 | N23: 0.001173256372 | O23: 0.0009738027891 | P23: =-L23/(1.202*2465560*MAX(0,(Inputs!$X$49-O23))) -> 1.009808852 | Q23: =params!$C$15*P23*(E23-Inputs!$X$26) -> -44020.77806 | R23: -205307.5322
A24: 2001-01-01 | B24: 23:00:00 | C24: 0 | D24: 0 | E24: -17 | F24: -18 | G24: 91 | H24: =Inputs!$X$37*Inputs!$X$32*(E24-Inputs!$X$26) -> -130625.6675 | I24: =Inputs!$X$33*C24*Inputs!$X$38 -> 0 | J24: =params!$C$15*Inputs!$X$29*(E24-Inputs!$X$26) -> -13570.70925 | K24: =Inputs!$X$40*Inputs!$X$41/8760 -> 5342.465753 | L24: =-Inputs!$X$45*Inputs!$X$33 -> -30000 | M24: 161.519815 | N24: 0.0009930668096 | O24: 0.0009036907967 | P24: =-L24/(1.202*2465560*MAX(0,(Inputs!$X$49-O24))) -> 1.002795227 | Q24: =params!$C$15*P24*(E24-Inputs!$X$26) -> -46136.17208 | R24: -214990.0831
A25: 2001-01-01 | B25: 1 | C25: 0 | D25: 10 | E25: -14 | F25: -16 | G25: 83 | H25: =Inputs!$X$37*Inputs!$X$32*(E25-Inputs!$X$26) -> -120343.1805 | I25: =Inputs!$X$33*C25*Inputs!$X$38 -> 0 | J25: =params!$C$15*Inputs!$X$29*(E25-Inputs!$X$26) -> -12502.461 | K25: =Inputs!$X$40*Inputs!$X$41/8760 -> 5342.465753 | L25: =-Inputs!$X$45*Inputs!$X$33 -> -30000 | M25: 207.1044257 | N25: 0.001273907155 | O25: 0.001057342939 | P25: =-L25/(1.202*2465560*MAX(0,(Inputs!$X$49-O25))) -> 1.018294925 | Q25: =params!$C$15*P25*(E25-Inputs!$X$26) -> -43161.4317 | R25: -200664.6075
A26: 2001-01-02 | B26: 01:00:00 | C26: 0 | D26: 10 | E26: -12 | F26: -14 | G26: 83 | H26: =Inputs!$X$37*Inputs!$X$32*(E26-Inputs!$X$26) -> -113488.1892 | I26: =Inputs!$X$33*C26*Inputs!$X$38 -> 0 | J26: =params!$C$15*Inputs!$X$29*(E26-Inputs!$X$26) -> -11790.2955 | K26: =Inputs!$X$40*Inputs!$X$41/8760 -> 5342.465753 | L26: =-Inputs!$X$45*Inputs!$X$33 -> -30000 | M26: 243.5669654 | N26: 0.001498730049 | O26: 0.001243945941 | P26: =-L26/(1.202*2465560*MAX(0,(Inputs!$X$49-O26))) -> 1.037775163 | Q26: =params!$C$15*P26*(E26-Inputs!$X$26) -> -41481.52527 | R26: -191417.5443
A27: 2001-01-02 | B27: 02:00:00 | C27: 0 | D27: 10 | E27: -12 | F27: -13 | G27: 91 | H27: =Inputs!$X$37*Inputs!$X$32*(E27-Inputs!$X$26) -> -113488.1892 | I27: =Inputs!$X$33*C27*Inputs!$X$38 -> 0 | J27: =params!$C$15*Inputs!$X$29*(E27-Inputs!$X$26) -> -11790.2955 | K27: =Inputs!$X$40*Inputs!$X$41/8760 -> 5342.465753 | L27: =-Inputs!$X$45*Inputs!$X$33 -> -30000 | M27: 243.5669654 | N27: 0.001498730049 | O27: 0.001363844345 | P27: =-L27/(1.202*2465560*MAX(0,(Inputs!$X$49-O27))) -> 1.050690035 | Q27: =params!$C$15*P27*(E27-Inputs!$X$26) -> -41997.75323 | R27: -191933.7722
A28: 2001-01-02 | B28: 03:00:00 | C28: 0 | D28: 10 | E28: -12 | F28: -13 | G28: 91 | H28: =Inputs!$X$37*Inputs!$X$32*(E28-Inputs!$X$26) -> -113488.1892 | I28: =Inputs!$X$33*C28*Inputs!$X$38 -> 0 | J28: =params!$C$15*Inputs!$X$29*(E28-Inputs!$X$26) -> -11790.2955 | K28: =Inputs!$X$40*Inputs!$X$41/8760 -> 5342.465753 | L28: =-Inputs!$X$45*Inputs!$X$33 -> -30000 | M28: 243.5669654 | N28: 0.001498730049 | O28: 0.001363844345 | P28: =-L28/(1.202*2465560*MAX(0,(Inputs!$X$49-O28))) -> 1.050690035 | Q28: =params!$C$15*P28*(E28-Inputs!$X$26) -> -41997.75323 | R28: -191933.7722
A29: 2001-01-02 | B29: 04:00:00 | C29: 0 | D29: 10 | E29: -11 | F29: -13 | G29: 84 | H29: =Inputs!$X$37*Inputs!$X$32*(E29-Inputs!$X$26) -> -110060.6936 | I29: =Inputs!$X$33*C29*Inputs!$X$38 -> 0 | J29: =params!$C$15*Inputs!$X$29*(E29-Inputs!$X$26) -> -11434.21275 | K29: =Inputs!$X$40*Inputs!$X$41/8760 -> 5342.465753 | L29: =-Inputs!$X$45*Inputs!$X$33 -> -30000 | M29: 263.8639748 | N29: 0.001623948844 | O29: 0.001364117029 | P29: =-L29/(1.202*2465560*MAX(0,(Inputs!$X$49-O29))) -> 1.050719773 | Q29: =params!$C$15*P29*(E29-Inputs!$X$26) -> -40730.51751 | R29: -186882.9581
A30: 2001-01-02 | B30: 05:00:00 | C30: 0 | D30: 10 | E30: -12 | F30: -13 | G30: 91 | H30: =Inputs!$X$37*Inputs!$X$32*(E30-Inputs!$X$26) -> -113488.1892 | I30: =Inputs!$X$33*C30*Inputs!$X$38 -> 0 | J30: =params!$C$15*Inputs!$X$29*(E30-Inputs!$X$26) -> -11790.2955 | K30: =Inputs!$X$40*Inputs!$X$41/8760 -> 5342.465753 | L30: =-Inputs!$X$45*Inputs!$X$33 -> -30000 | M30: 243.5669654 | N30: 0.001498730049 | O30: 0.001363844345 | P30: =-L30/(1.202*2465560*MAX(0,(Inputs!$X$49-O30))) -> 1.050690035 | Q30: =params!$C$15*P30*(E30-Inputs!$X$26) -> -41997.75323 | R30: -191933.7722
A31: 2001-01-02 | B31: 06:00:00 | C31: 0 | D31: 4 | E31: -12 | F31: -14 | G31: 83 | H31: =Inputs!$X$37*Inputs!$X$32*(E31-Inputs!$X$26) -> -113488.1892 | I31: =Inputs!$X$33*C31*Inputs!$X$38 -> 0 | J31: =params!$C$15*Inputs!$X$29*(E31-Inputs!$X$26) -> -11790.2955 | K31: =Inputs!$X$40*Inputs!$X$41/8760 -> 5342.465753 | L31: =-Inputs!$X$45*Inputs!$X$33 -> -30000 | M31: 243.5669654 | N31: 0.001498730049 | O31: 0.001243945941 | P31: =-L31/(1.202*2465560*MAX(0,(Inputs!$X$49-O31))) -> 1.037775163 | Q31: =params!$C$15*P31*(E31-Inputs!$X$26) -> -41481.52527 | R31: -191417.5443
A32: 2001-01-02 | B32: 07:00:00 | C32: 0 | D32: 8 | E32: -13 | F32: -14 | G32: 91 | H32: =Inputs!$X$37*Inputs!$X$32*(E32-Inputs!$X$26) -> -116915.6849 | I32: =Inputs!$X$33*C32*Inputs!$X$38 -> 0 | J32: =params!$C$15*Inputs!$X$29*(E32-Inputs!$X$26) -> -12146.37825 | K32: =Inputs!$X$40*Inputs!$X$41/8760 -> 5342.465753 | L32: =-Inputs!$X$45*Inputs!$X$33 -> -30000 | M32: 224.6756667 | N32: 0.001382228713 | O32: 0.001257828129 | P32: =-L32/(1.202*2465560*MAX(0,(Inputs!$X$49-O32))) -> 1.03925421 | Q32: =params!$C$15*P32*(E32-Inputs!$X$26) -> -42795.22835 | R32: -196514.8257
A33: 2001-01-02 | B33: 08:00:00 | C33: 0 | D33: 10 | E33: -11 | F33: -15 | G33: 70 | H33: =Inputs!$X$37*Inputs!$X$32*(E33-Inputs!$X$26) -> -110060.6936 | I33: =Inputs!$X$33*C33*Inputs!$X$38 -> 0 | J33: =params!$C$15*Inputs!$X$29*(E33-Inputs!$X$26) -> -11434.21275 | K33: =Inputs!$X$40*Inputs!$X$41/8760 -> 5342.465753 | L33: =-Inputs!$X$45*Inputs!$X$33 -> -30000 | M33: 263.8639748 | N33: 0.001623948844 | O33: 0.001136764191 | P33: =-L33/(1.202*2465560*MAX(0,(Inputs!$X$49-O33))) -> 1.026495916 | Q33: =params!$C$15*P33*(E33-Inputs!$X$26) -> -39791.4943 | R33: -185943.9349
A34: 2001-01-02 | B34: 09:00:00 | C34: 105 | D34: 10 | E34: -11 | F34: -15 | G34: 70 | H34: =Inputs!$X$37*Inputs!$X$32*(E34-Inputs!$X$26) -> -110060.6936 | I34: =Inputs!$X$33*C34*Inputs!$X$38 -> 20485.14014 | J34: =params!$C$15*Inputs!$X$29*(E34-Inputs!$X$26) -> -11434.21275 | K34: =Inputs!$X$40*Inputs!$X$41/8760 -> 5342.465753 | L34: =-Inputs!$X$45*Inputs!$X$33 -> -30000 | M34: 263.8639748 | N34: 0.001623948844 | O34: 0.001136764191 | P34: =-L34/(1.202*2465560*MAX(0,(Inputs!$X$49-O34))) -> 1.026495916 | Q34: =params!$C$15*P34*(E34-Inputs!$X$26) -> -39791.4943 | R34: -165458.7948
A35: 2001-01-02 | B35: 10:00:00 | C35: 223 | D35: 10 | E35: -10 | F35: -16 | G35: 58 | H35: =Inputs!$X$37*Inputs!$X$32*(E35-Inputs!$X$26) -> -106633.1979 | I35: =Inputs!$X$33*C35*Inputs!$X$38 -> 43506.53574 | J35: =params!$C$15*Inputs!$X$29*(E35-Inputs!$X$26) -> -11078.13 | K35: =Inputs!$X$40*Inputs!$X$41/8760 -> 5342.465753 | L35: =-Inputs!$X$45*Inputs!$X$33 -> -30000 | M35: 285.6569595 | N35: 0.0017584528 | O35: 0.001019902624 | P35: =-L35/(1.202*2465560*MAX(0,(Inputs!$X$49-O35))) -> 1.014474138 | Q35: =params!$C$15*P35*(E35-Inputs!$X$26) -> -38100.8085 | R35: -136963.135
A36: 2001-01-02 | B36: 11:00:00 | C36: 287 | D36: 8 | E36: -9 | F36: -15 | G36: 58 | H36: =Inputs!$X$37*Inputs!$X$32*(E36-Inputs!$X$26) -> -103205.7023 | I36: =Inputs!$X$33*C36*Inputs!$X$38 -> 55992.71639 | J36: =params!$C$15*Inputs!$X$29*(E36-Inputs!$X$26) -> -10722.04725 | K36: =Inputs!$X$40*Inputs!$X$41/8760 -> 5342.465753 | L36: =-Inputs!$X$45*Inputs!$X$33 -> -30000 | M36: 309.040986 | N36: 0.001902841039 | O36: 0.001103647803 | P36: =-L36/(1.202*2465560*MAX(0,(Inputs!$X$49-O36))) -> 1.023060335 | Q36: =params!$C$15*P36*(E36-Inputs!$X$26) -> -37188.24794 | R36: -119780.8153
A37: 2001-01-02 | B37: 12:00:00 | C37: 142 | D37: 8 | E37: -9 | F37: -14 | G37: 64 | H37: =Inputs!$X$37*Inputs!$X$32*(E37-Inputs!$X$26) -> -103205.7023 | I37: =Inputs!$X$33*C37*Inputs!$X$38 -> 27703.71334 | J37: =params!$C$15*Inputs!$X$29*(E37-Inputs!$X$26) -> -10722.04725 | K37: =Inputs!$X$40*Inputs!$X$41/8760 -> 5342.465753 | L37: =-Inputs!$X$45*Inputs!$X$33 -> -30000 | M37: 309.040986 | N37: 0.001902841039 | O37: 0.001217818265 | P37: =-L37/(1.202*2465560*MAX(0,(Inputs!$X$49-O37))) -> 1.035002837 | Q37: =params!$C$15*P37*(E37-Inputs!$X$26) -> -37622.35796 | R37: -148503.9284
A38: 2001-01-02 | B38: 13:00:00 | C38: 411 | D38: 3 | E38: -8 | F38: -14 | G38: 58 | H38: =Inputs!$X$37*Inputs!$X$32*(E38-Inputs!$X$26) -> -99778.20665 | I38: =Inputs!$X$33*C38*Inputs!$X$38 -> 80184.69142 | J38: =params!$C$15*Inputs!$X$29*(E38-Inputs!$X$26) -> -10365.9645 | K38: =Inputs!$X$40*Inputs!$X$41/8760 -> 5342.465753 | L38: =-Inputs!$X$45*Inputs!$X$33 -> -30000 | M38: 334.1161189 | N38: 0.002057745567 | O38: 0.001193492429 | P38: =-L38/(1.202*2465560*MAX(0,(Inputs!$X$49-O38))) -> 1.03243498 | Q38: =params!$C$15*P38*(E38-Inputs!$X$26) -> -36282.66525 | R38: -90899.67923
A39: 2001-01-02 | B39: 14:00:00 | C39: 366 | D39: 3 | E39: -7 | F39: -14 | G39: 54 | H39: =Inputs!$X$37*Inputs!$X$32*(E39-Inputs!$X$26) -> -96350.711 | I39: =Inputs!$X$33*C39*Inputs!$X$38 -> 71405.34565 | J39: =params!$C$15*Inputs!$X$29*(E39-Inputs!$X$26) -> -10009.88175 | K39: =Inputs!$X$40*Inputs!$X$41/8760 -> 5342.465753 | L39: =-Inputs!$X$45*Inputs!$X$33 -> -30000 | M39: 360.9876215 | N39: 0.002223832785 | O39: 0.001200869704 | P39: =-L39/(1.202*2465560*MAX(0,(Inputs!$X$49-O39))) -> 1.033212385 | Q39: =params!$C$15*P39*(E39-Inputs!$X$26) -> -35062.69586 | R39: -94675.47721
A40: 2001-01-02 | B40: 15:00:00 | C40: 275 | D40: 0 | E40: -6 | F40: -15 | G40: 45 | H40: =Inputs!$X$37*Inputs!$X$32*(E40-Inputs!$X$26) -> -92923.21535 | I40: =Inputs!$X$33*C40*Inputs!$X$38 -> 53651.55752 | J40: =params!$C$15*Inputs!$X$29*(E40-Inputs!$X$26) -> -9653.799 | K40: =Inputs!$X$40*Inputs!$X$41/8760 -> 5342.465753 | L40: =-Inputs!$X$45*Inputs!$X$33 -> -30000 | M40: 389.766162 | N40: 0.00240180508 | O40: 0.001080812286 | P40: =-L40/(1.202*2465560*MAX(0,(Inputs!$X$49-O40))) -> 1.020704683 | Q40: =params!$C$15*P40*(E40-Inputs!$X$26) -> -33406.04901 | R40: -106989.0401
A41: 2001-01-02 | B41: 16:00:00 | C41: 145 | D41: 10 | E41: -7 | F41: -16 | G41: 45 | H41: =Inputs!$X$37*Inputs!$X$32*(E41-Inputs!$X$26) -> -96350.711 | I41: =Inputs!$X$33*C41*Inputs!$X$38 -> 28289.00306 | J41: =params!$C$15*Inputs!$X$29*(E41-Inputs!$X$26) -> -10009.88175 | K41: =Inputs!$X$40*Inputs!$X$41/8760 -> 5342.465753 | L41: =-Inputs!$X$45*Inputs!$X$33 -> -30000 | M41: 360.9876215 | N41: 0.002223832785 | O41: 0.001000724753 | P41: =-L41/(1.202*2465560*MAX(0,(Inputs!$X$49-O41))) -> 1.012528118 | Q41: =params!$C$15*P41*(E41-Inputs!$X$26) -> -34360.76259 | R41: -137089.8865
A42: 2001-01-02 | B42: 17:00:00 | C42: 15 | D42: 10 | E42: -7 | F42: -15 | G42: 49 | H42: =Inputs!$X$37*Inputs!$X$32*(E42-Inputs!$X$26) -> -96350.711 | I42: =Inputs!$X$33*C42*Inputs!$X$38 -> 2926.448592 | J42: =params!$C$15*Inputs!$X$29*(E42-Inputs!$X$26) -> -10009.88175 | K42: =Inputs!$X$40*Inputs!$X$41/8760 -> 5342.465753 | L42: =-Inputs!$X$45*Inputs!$X$33 -> -30000 | M42: 360.9876215 | N42: 0.002223832785 | O42: 0.001089678065 | P42: =-L42/(1.202*2465560*MAX(0,(Inputs!$X$49-O42))) -> 1.021617964 | Q42: =params!$C$15*P42*(E42-Inputs!$X$26) -> -34669.23209 | R42: -162760.9105
A43: 2001-01-02 | B43: 18:00:00 | C43: 0 | D43: 10 | E43: -8 | F43: -14 | G43: 58 | H43: =Inputs!$X$37*Inputs!$X$32*(E43-Inputs!$X$26) -> -99778.20665 | I43: =Inputs!$X$33*C43*Inputs!$X$38 -> 0 | J43: =params!$C$15*Inputs!$X$29*(E43-Inputs!$X$26) -> -10365.9645 | K43: =Inputs!$X$40*Inputs!$X$41/8760 -> 5342.465753 | L43: =-Inputs!$X$45*Inputs!$X$33 -> -30000 | M43: 334.1161189 | N43: 0.002057745567 | O43: 0.001193492429 | P43: =-L43/(1.202*2465560*MAX(0,(Inputs!$X$49-O43))) -> 1.03243498 | Q43: =params!$C$15*P43*(E43-Inputs!$X$26) -> -36282.66525 | R43: -171084.3706
A44: 2001-01-02 | B44: 19:00:00 | C44: 0 | D44: 10 | E44: -10 | F44: -14 | G44: 70 | H44: =Inputs!$X$37*Inputs!$X$32*(E44-Inputs!$X$26) -> -106633.1979 | I44: =Inputs!$X$33*C44*Inputs!$X$38 -> 0 | J44: =params!$C$15*Inputs!$X$29*(E44-Inputs!$X$26) -> -11078.13 | K44: =Inputs!$X$40*Inputs!$X$41/8760 -> 5342.465753 | L44: =-Inputs!$X$45*Inputs!$X$33 -> -30000 | M44: 285.6569595 | N44: 0.0017584528 | O44: 0.00123091696 | P44: =-L44/(1.202*2465560*MAX(0,(Inputs!$X$49-O44))) -> 1.036390845 | Q44: =params!$C$15*P44*(E44-Inputs!$X$26) -> -38923.93865 | R44: -181292.8008
A45: 2001-01-02 | B45: 20:00:00 | C45: 0 | D45: 10 | E45: -9 | F45: -13 | G45: 70 | H45: =Inputs!$X$37*Inputs!$X$32*(E45-Inputs!$X$26) -> -103205.7023 | I45: =Inputs!$X$33*C45*Inputs!$X$38 -> 0 | J45: =params!$C$15*Inputs!$X$29*(E45-Inputs!$X$26) -> -10722.04725 | K45: =Inputs!$X$40*Inputs!$X$41/8760 -> 5342.465753 | L45: =-Inputs!$X$45*Inputs!$X$33 -> -30000 | M45: 309.040986 | N45: 0.001902841039 | O45: 0.001331988728 | P45: =-L45/(1.202*2465560*MAX(0,(Inputs!$X$49-O45))) -> 1.04722745 | Q45: =params!$C$15*P45*(E45-Inputs!$X$26) -> -38066.72269 | R45: -176652.0065
A46: 2001-01-02 | B46: 21:00:00 | C46: 0 | D46: 10 | E46: -8 | F46: -13 | G46: 64 | H46: =Inputs!$X$37*Inputs!$X$32*(E46-Inputs!$X$26) -> -99778.20665 | I46: =Inputs!$X$33*C46*Inputs!$X$38 -> 0 | J46: =params!$C$15*Inputs!$X$29*(E46-Inputs!$X$26) -> -10365.9645 | K46: =Inputs!$X$40*Inputs!$X$41/8760 -> 5342.465753 | L46: =-Inputs!$X$45*Inputs!$X$33 -> -30000 | M46: 334.1161189 | N46: 0.002057745567 | O46: 0.001316957163 | P46: =-L46/(1.202*2465560*MAX(0,(Inputs!$X$49-O46))) -> 1.045601488 | Q46: =params!$C$15*P46*(E46-Inputs!$X$26) -> -36745.37334 | R46: -171547.0787
A47: 2001-01-02 | B47: 22:00:00 | C47: 0 | D47: 10 | E47: -8 | F47: -11 | G47: 77 | H47: =Inputs!$X$37*Inputs!$X$32*(E47-Inputs!$X$26) -> -99778.20665 | I47: =Inputs!$X$33*C47*Inputs!$X$38 -> 0 | J47: =params!$C$15*Inputs!$X$29*(E47-Inputs!$X$26) -> -10365.9645 | K47: =Inputs!$X$40*Inputs!$X$41/8760 -> 5342.465753 | L47: =-Inputs!$X$45*Inputs!$X$33 -> -30000 | M47: 334.1161189 | N47: 0.002057745567 | O47: 0.001584464087 | P47: =-L47/(1.202*2465560*MAX(0,(Inputs!$X$49-O47))) -> 1.075313715 | Q47: =params!$C$15*P47*(E47-Inputs!$X$26) -> -37789.54443 | R47: -172591.2498
A48: 2001-01-02 | B48: 23:00:00 | C48: 0 | D48: 10 | E48: -8 | F48: -11 | G48: 77 | H48: =Inputs!$X$37*Inputs!$X$32*(E48-Inputs!$X$26) -> -99778.20665 | I48: =Inputs!$X$33*C48*Inputs!$X$38 -> 0 | J48: =params!$C$15*Inputs!$X$29*(E48-Inputs!$X$26) -> -10365.9645 | K48: =Inputs!$X$40*Inputs!$X$41/8760 -> 5342.465753 | L48: =-Inputs!$X$45*Inputs!$X$33 -> -30000 | M48: 334.1161189 | N48: 0.002057745567 | O48: 0.001584464087 | P48: =-L48/(1.202*2465560*MAX(0,(Inputs!$X$49-O48))) -> 1.075313715 | Q48: =params!$C$15*P48*(E48-Inputs!$X$26) -> -37789.54443 | R48: -172591.2498
A49: 2001-01-02 | B49: 1 | C49: 0 | D49: 10 | E49: -7 | F49: -9 | G49: 84 | H49: =Inputs!$X$37*Inputs!$X$32*(E49-Inputs!$X$26) -> -96350.711 | I49: =Inputs!$X$33*C49*Inputs!$X$38 -> 0 | J49: =params!$C$15*Inputs!$X$29*(E49-Inputs!$X$26) -> -10009.88175 | K49: =Inputs!$X$40*Inputs!$X$41/8760 -> 5342.465753 | L49: =-Inputs!$X$45*Inputs!$X$33 -> -30000 | M49: 360.9876215 | N49: 0.002223832785 | O49: 0.001868019539 | P49: =-L49/(1.202*2465560*MAX(0,(Inputs!$X$49-O49))) -> 1.108709348 | Q49: =params!$C$15*P49*(E49-Inputs!$X$26) -> -37624.73161 | R49: -168642.8586
A50: 2001-01-03 | B50: 01:00:00 | C50: 0 | D50: 10 | E50: -6 | F50: -10 | G50: 70 | H50: =Inputs!$X$37*Inputs!$X$32*(E50-Inputs!$X$26) -> -92923.21535 | I50: =Inputs!$X$33*C50*Inputs!$X$38 -> 0 | J50: =params!$C$15*Inputs!$X$29*(E50-Inputs!$X$26) -> -9653.799 | K50: =Inputs!$X$40*Inputs!$X$41/8760 -> 5342.465753 | L50: =-Inputs!$X$45*Inputs!$X$33 -> -30000 | M50: 389.766162 | N50: 0.00240180508 | O50: 0.001681263556 | P50: =-L50/(1.202*2465560*MAX(0,(Inputs!$X$49-O50))) -> 1.086485716 | Q50: =params!$C$15*P50*(E50-Inputs!$X$26) -> -35558.9581 | R50: -162793.5067
A51: 2001-01-03 | B51: 02:00:00 | C51: 0 | D51: 10 | E51: -5 | F51: -9 | G51: 71 | H51: =Inputs!$X$37*Inputs!$X$32*(E51-Inputs!$X$26) -> -89495.71971 | I51: =Inputs!$X$33*C51*Inputs!$X$38 -> 0 | J51: =params!$C$15*Inputs!$X$29*(E51-Inputs!$X$26) -> -9297.71625 | K51: =Inputs!$X$40*Inputs!$X$41/8760 -> 5342.465753 | L51: =-Inputs!$X$45*Inputs!$X$33 -> -30000 | M51: 420.5680235 | N51: 0.002592402475 | O51: 0.001840605757 | P51: =-L51/(1.202*2465560*MAX(0,(Inputs!$X$49-O51))) -> 1.105390395 | Q51: =params!$C$15*P51*(E51-Inputs!$X$26) -> -34843.25577 | R51: -158294.226
A52: 2001-01-03 | B52: 03:00:00 | C52: 0 | D52: 10 | E52: -6 | F52: -9 | G52: 77 | H52: =Inputs!$X$37*Inputs!$X$32*(E52-Inputs!$X$26) -> -92923.21535 | I52: =Inputs!$X$33*C52*Inputs!$X$38 -> 0 | J52: =params!$C$15*Inputs!$X$29*(E52-Inputs!$X$26) -> -9653.799 | K52: =Inputs!$X$40*Inputs!$X$41/8760 -> 5342.465753 | L52: =-Inputs!$X$45*Inputs!$X$33 -> -30000 | M52: 389.766162 | N52: 0.00240180508 | O52: 0.001849389912 | P52: =-L52/(1.202*2465560*MAX(0,(Inputs!$X$49-O52))) -> 1.106451716 | Q52: =params!$C$15*P52*(E52-Inputs!$X$26) -> -36212.4137 | R52: -163446.9623
A53: 2001-01-03 | B53: 04:00:00 | C53: 0 | D53: 10 | E53: -6 | F53: -9 | G53: 77 | H53: =Inputs!$X$37*Inputs!$X$32*(E53-Inputs!$X$26) -> -92923.21535 | I53: =Inputs!$X$33*C53*Inputs!$X$38 -> 0 | J53: =params!$C$15*Inputs!$X$29*(E53-Inputs!$X$26) -> -9653.799 | K53: =Inputs!$X$40*Inputs!$X$41/8760 -> 5342.465753 | L53: =-Inputs!$X$45*Inputs!$X$33 -> -30000 | M53: 389.766162 | N53: 0.00240180508 | O53: 0.001849389912 | P53: =-L53/(1.202*2465560*MAX(0,(Inputs!$X$49-O53))) -> 1.106451716 | Q53: =params!$C$15*P53*(E53-Inputs!$X$26) -> -36212.4137 | R53: -163446.9623
A54: 2001-01-03 | B54: 05:00:00 | C54: 0 | D54: 8 | E54: -6 | F54: -10 | G54: 70 | H54: =Inputs!$X$37*Inputs!$X$32*(E54-Inputs!$X$26) -> -92923.21535 | I54: =Inputs!$X$33*C54*Inputs!$X$38 -> 0 | J54: =params!$C$15*Inputs!$X$29*(E54-Inputs!$X$26) -> -9653.799 | K54: =Inputs!$X$40*Inputs!$X$41/8760 -> 5342.465753 | L54: =-Inputs!$X$45*Inputs!$X$33 -> -30000 | M54: 389.766162 | N54: 0.00240180508 | O54: 0.001681263556 | P54: =-L54/(1.202*2465560*MAX(0,(Inputs!$X$49-O54))) -> 1.086485716 | Q54: =params!$C$15*P54*(E54-Inputs!$X$26) -> -35558.9581 | R54: -162793.5067
A55: 2001-01-03 | B55: 06:00:00 | C55: 0 | D55: 3 | E55: -7 | F55: -11 | G55: 70 | H55: =Inputs!$X$37*Inputs!$X$32*(E55-Inputs!$X$26) -> -96350.711 | I55: =Inputs!$X$33*C55*Inputs!$X$38 -> 0 | J55: =params!$C$15*Inputs!$X$29*(E55-Inputs!$X$26) -> -10009.88175 | K55: =Inputs!$X$40*Inputs!$X$41/8760 -> 5342.465753 | L55: =-Inputs!$X$45*Inputs!$X$33 -> -30000 | M55: 360.9876215 | N55: 0.002223832785 | O55: 0.00155668295 | P55: =-L55/(1.202*2465560*MAX(0,(Inputs!$X$49-O55))) -> 1.072149693 | Q55: =params!$C$15*P55*(E55-Inputs!$X$26) -> -36384.0573 | R55: -167402.1843
A56: 2001-01-03 | B56: 07:00:00 | C56: 0 | D56: 3 | E56: -8 | F56: -12 | G56: 70 | H56: =Inputs!$X$37*Inputs!$X$32*(E56-Inputs!$X$26) -> -99778.20665 | I56: =Inputs!$X$33*C56*Inputs!$X$38 -> 0 | J56: =params!$C$15*Inputs!$X$29*(E56-Inputs!$X$26) -> -10365.9645 | K56: =Inputs!$X$40*Inputs!$X$41/8760 -> 5342.465753 | L56: =-Inputs!$X$45*Inputs!$X$33 -> -30000 | M56: 334.1161189 | N56: 0.002057745567 | O56: 0.001440421897 | P56: =-L56/(1.202*2465560*MAX(0,(Inputs!$X$49-O56))) -> 1.059108156 | Q56: =params!$C$15*P56*(E56-Inputs!$X$26) -> -37220.03558 | R56: -172021.741
A57: 2001-01-03 | B57: 08:00:00 | C57: 0 | D57: 0 | E57: -8 | F57: -12 | G57: 70 | H57: =Inputs!$X$37*Inputs!$X$32*(E57-Inputs!$X$26) -> -99778.20665 | I57: =Inputs!$X$33*C57*Inputs!$X$38 -> 0 | J57: =params!$C$15*Inputs!$X$29*(E57-Inputs!$X$26) -> -10365.9645 | K57: =Inputs!$X$40*Inputs!$X$41/8760 -> 5342.465753 | L57: =-Inputs!$X$45*Inputs!$X$33 -> -30000 | M57: 334.1161189 | N57: 0.002057745567 | O57: 0.001440421897 | P57: =-L57/(1.202*2465560*MAX(0,(Inputs!$X$49-O57))) -> 1.059108156 | Q57: =params!$C$15*P57*(E57-Inputs!$X$26) -> -37220.03558 | R57: -172021.741
A58: 2001-01-03 | B58: 09:00:00 | C58: 105 | D58: 0 | E58: -7 | F58: -11 | G58: 70 | H58: =Inputs!$X$37*Inputs!$X$32*(E58-Inputs!$X$26) -> -96350.711 | I58: =Inputs!$X$33*C58*Inputs!$X$38 -> 20485.14014 | J58: =params!$C$15*Inputs!$X$29*(E58-Inputs!$X$26) -> -10009.88175 | K58: =Inputs!$X$40*Inputs!$X$41/8760 -> 5342.465753 | L58: =-Inputs!$X$45*Inputs!$X$33 -> -30000 | M58: 360.9876215 | N58: 0.002223832785 | O58: 0.00155668295 | P58: =-L58/(1.202*2465560*MAX(0,(Inputs!$X$49-O58))) -> 1.072149693 | Q58: =params!$C$15*P58*(E58-Inputs!$X$26) -> -36384.0573 | R58: -146917.0442
A59: 2001-01-03 | B59: 10:00:00 | C59: 237 | D59: 0 | E59: -6 | F59: -11 | G59: 64 | H59: =Inputs!$X$37*Inputs!$X$32*(E59-Inputs!$X$26) -> -92923.21535 | I59: =Inputs!$X$33*C59*Inputs!$X$38 -> 46237.88775 | J59: =params!$C$15*Inputs!$X$29*(E59-Inputs!$X$26) -> -9653.799 | K59: =Inputs!$X$40*Inputs!$X$41/8760 -> 5342.465753 | L59: =-Inputs!$X$45*Inputs!$X$33 -> -30000 | M59: 389.766162 | N59: 0.00240180508 | O59: 0.001537155251 | P59: =-L59/(1.202*2465560*MAX(0,(Inputs!$X$49-O59))) -> 1.069936785 | Q59: =params!$C$15*P59*(E59-Inputs!$X$26) -> -35017.33779 | R59: -116013.9986
A60: 2001-01-03 | B60: 11:00:00 | C60: 345 | D60: 1 | E60: -5 | F60: -11 | G60: 59 | H60: =Inputs!$X$37*Inputs!$X$32*(E60-Inputs!$X$26) -> -89495.71971 | I60: =Inputs!$X$33*C60*Inputs!$X$38 -> 67308.31762 | J60: =params!$C$15*Inputs!$X$29*(E60-Inputs!$X$26) -> -9297.71625 | K60: =Inputs!$X$40*Inputs!$X$41/8760 -> 5342.465753 | L60: =-Inputs!$X$45*Inputs!$X$33 -> -30000 | M60: 420.5680235 | N60: 0.002592402475 | O60: 0.00152951746 | P60: =-L60/(1.202*2465560*MAX(0,(Inputs!$X$49-O60))) -> 1.069073742 | Q60: =params!$C$15*P60*(E60-Inputs!$X$26) -> -33698.51051 | R60: -89841.16309
A61: 2001-01-03 | B61: 12:00:00 | C61: 403 | D61: 1 | E61: -4 | F61: -11 | G61: 54 | H61: =Inputs!$X$37*Inputs!$X$32*(E61-Inputs!$X$26) -> -86068.22406 | I61: =Inputs!$X$33*C61*Inputs!$X$38 -> 78623.91884 | J61: =params!$C$15*Inputs!$X$29*(E61-Inputs!$X$26) -> -8941.6335 | K61: =Inputs!$X$40*Inputs!$X$41/8760 -> 5342.465753 | L61: =-Inputs!$X$45*Inputs!$X$33 -> -30000 | M61: 453.5153204 | N61: 0.002796404355 | O61: 0.001510058351 | P61: =-L61/(1.202*2465560*MAX(0,(Inputs!$X$49-O61))) -> 1.066881213 | Q61: =params!$C$15*P61*(E61-Inputs!$X$26) -> -32341.46486 | R61: -73384.93782
A62: 2001-01-03 | B62: 13:00:00 | C62: 417 | D62: 1 | E62: -3 | F62: -11 | G62: 50 | H62: =Inputs!$X$37*Inputs!$X$32*(E62-Inputs!$X$26) -> -82640.72841 | I62: =Inputs!$X$33*C62*Inputs!$X$38 -> 81355.27086 | J62: =params!$C$15*Inputs!$X$29*(E62-Inputs!$X$26) -> -8585.55075 | K62: =Inputs!$X$40*Inputs!$X$41/8760 -> 5342.465753 | L62: =-Inputs!$X$45*Inputs!$X$33 -> -30000 | M62: 488.7362191 | N62: 0.003014631266 | O62: 0.001507315633 | P62: =-L62/(1.202*2465560*MAX(0,(Inputs!$X$49-O62))) -> 1.066572903 | Q62: =params!$C$15*P62*(E62-Inputs!$X$26) -> -31044.55651 | R62: -65573.09906
A63: 2001-01-03 | B63: 14:00:00 | C63: 372 | D63: 0 | E63: -2 | F63: -11 | G63: 46 | H63: =Inputs!$X$37*Inputs!$X$32*(E63-Inputs!$X$26) -> -79213.23276 | I63: =Inputs!$X$33*C63*Inputs!$X$38 -> 72575.92508 | J63: =params!$C$15*Inputs!$X$29*(E63-Inputs!$X$26) -> -8229.468 | K63: =Inputs!$X$40*Inputs!$X$41/8760 -> 5342.465753 | L63: =-Inputs!$X$45*Inputs!$X$33 -> -30000 | M63: 526.3651631 | N63: 0.003247946807 | O63: 0.001494055531 | P63: =-L63/(1.202*2465560*MAX(0,(Inputs!$X$49-O63))) -> 1.065084843 | Q63: =params!$C$15*P63*(E63-Inputs!$X$26) -> -29715.47793 | R63: -69239.78785
A64: 2001-01-03 | B64: 15:00:00 | C64: 275 | D64: 0 | E64: -2 | F64: -11 | G64: 46 | H64: =Inputs!$X$37*Inputs!$X$32*(E64-Inputs!$X$26) -> -79213.23276 | I64: =Inputs!$X$33*C64*Inputs!$X$38 -> 53651.55752 | J64: =params!$C$15*Inputs!$X$29*(E64-Inputs!$X$26) -> -8229.468 | K64: =Inputs!$X$40*Inputs!$X$41/8760 -> 5342.465753 | L64: =-Inputs!$X$45*Inputs!$X$33 -> -30000 | M64: 526.3651631 | N64: 0.003247946807 | O64: 0.001494055531 | P64: =-L64/(1.202*2465560*MAX(0,(Inputs!$X$49-O64))) -> 1.065084843 | Q64: =params!$C$15*P64*(E64-Inputs!$X$26) -> -29715.47793 | R64: -88164.15542
A65: 2001-01-03 | B65: 16:00:00 | C65: 145 | D65: 0 | E65: -2 | F65: -12 | G65: 42 | H65: =Inputs!$X$37*Inputs!$X$32*(E65-Inputs!$X$26) -> -79213.23276 | I65: =Inputs!$X$33*C65*Inputs!$X$38 -> 28289.00306 | J65: =params!$C$15*Inputs!$X$29*(E65-Inputs!$X$26) -> -8229.468 | K65: =Inputs!$X$40*Inputs!$X$41/8760 -> 5342.465753 | L65: =-Inputs!$X$45*Inputs!$X$33 -> -30000 | M65: 526.3651631 | N65: 0.003247946807 | O65: 0.001364137659 | P65: =-L65/(1.202*2465560*MAX(0,(Inputs!$X$49-O65))) -> 1.050722023 | Q65: =params!$C$15*P65*(E65-Inputs!$X$26) -> -29314.76049 | R65: -113125.9924
A66: 2001-01-03 | B66: 17:00:00 | C66: 18 | D66: 4 | E66: -3 | F66: -12 | G66: 46 | H66: =Inputs!$X$37*Inputs!$X$32*(E66-Inputs!$X$26) -> -82640.72841 | I66: =Inputs!$X$33*C66*Inputs!$X$38 -> 3511.73831 | J66: =params!$C$15*Inputs!$X$29*(E66-Inputs!$X$26) -> -8585.55075 | K66: =Inputs!$X$40*Inputs!$X$41/8760 -> 5342.465753 | L66: =-Inputs!$X$45*Inputs!$X$33 -> -30000 | M66: 488.7362191 | N66: 0.003014631266 | O66: 0.001386730382 | P66: =-L66/(1.202*2465560*MAX(0,(Inputs!$X$49-O66))) -> 1.053191828 | Q66: =params!$C$15*P66*(E66-Inputs!$X$26) -> -30655.07583 | R66: -143027.1509
A67: 2001-01-03 | B67: 18:00:00 | C67: 0 | D67: 10 | E67: -3 | F67: -12 | G67: 46 | H67: =Inputs!$X$37*Inputs!$X$32*(E67-Inputs!$X$26) -> -82640.72841 | I67: =Inputs!$X$33*C67*Inputs!$X$38 -> 0 | J67: =params!$C$15*Inputs!$X$29*(E67-Inputs!$X$26) -> -8585.55075 | K67: =Inputs!$X$40*Inputs!$X$41/8760 -> 5342.465753 | L67: =-Inputs!$X$45*Inputs!$X$33 -> -30000 | M67: =EXP(77.345+0.0057*(E67+273.15)-7235/(E67+273.15))/(E67+273.15)^8.2 -> 488.7362191 | N67: =0.62198*M67/(101325-M67) -> 0.003014631266 | O67: =N67*G67/100 -> 0.001386730382 | P67: =-L67/(1.202*2465560*MAX(0,(Inputs!$X$49-O67))) -> 1.053191828 | Q67: =params!$C$15*P67*(E67-Inputs!$X$26) -> -30655.07583 | R67: =H67+I67+J67+K67+L67+Q67 -> -146538.8892
A68: 2001-01-03 | B68: 19:00:00 | C68: 0 | D68: 10 | E68: -3 | F68: -12 | G68: 46 | H68: =Inputs!$X$37*Inputs!$X$32*(E68-Inputs!$X$26) -> -82640.72841 | I68: =Inputs!$X$33*C68*Inputs!$X$38 -> 0 | J68: =params!$C$15*Inputs!$X$29*(E68-Inputs!$X$26) -> -8585.55075 | K68: =Inputs!$X$40*Inputs!$X$41/8760 -> 5342.465753 | L68: =-Inputs!$X$45*Inputs!$X$33 -> -30000 | M68: 488.7362191 | N68: 0.003014631266 | O68: 0.001386730382 | P68: =-L68/(1.202*2465560*MAX(0,(Inputs!$X$49-O68))) -> 1.053191828 | Q68: =params!$C$15*P68*(E68-Inputs!$X$26) -> -30655.07583 | R68: -146538.8892
A69: 2001-01-03 | B69: 20:00:00 | C69: 0 | D69: 10 | E69: -4 | F69: -12 | G69: 50 | H69: =Inputs!$X$37*Inputs!$X$32*(E69-Inputs!$X$26) -> -86068.22406 | I69: =Inputs!$X$33*C69*Inputs!$X$38 -> 0 | J69: =params!$C$15*Inputs!$X$29*(E69-Inputs!$X$26) -> -8941.6335 | K69: =Inputs!$X$40*Inputs!$X$41/8760 -> 5342.465753 | L69: =-Inputs!$X$45*Inputs!$X$33 -> -30000 | M69: 453.5153204 | N69: 0.002796404355 | O69: 0.001398202177 | P69: =-L69/(1.202*2465560*MAX(0,(Inputs!$X$49-O69))) -> 1.054450359 | Q69: =params!$C$15*P69*(E69-Inputs!$X$26) -> -31964.63563 | R69: -151632.0274
A70: 2001-01-03 | B70: 21:00:00 | C70: 0 | D70: 10 | E70: -4 | F70: -12 | G70: 50 | H70: =Inputs!$X$37*Inputs!$X$32*(E70-Inputs!$X$26) -> -86068.22406 | I70: =Inputs!$X$33*C70*Inputs!$X$38 -> 0 | J70: =params!$C$15*Inputs!$X$29*(E70-Inputs!$X$26) -> -8941.6335 | K70: =Inputs!$X$40*Inputs!$X$41/8760 -> 5342.465753 | L70: =-Inputs!$X$45*Inputs!$X$33 -> -30000 | M70: 453.5153204 | N70: 0.002796404355 | O70: 0.001398202177 | P70: =-L70/(1.202*2465560*MAX(0,(Inputs!$X$49-O70))) -> 1.054450359 | Q70: =params!$C$15*P70*(E70-Inputs!$X$26) -> -31964.63563 | R70: -151632.0274
A71: 2001-01-03 | B71: 22:00:00 | C71: 0 | D71: 10 | E71: -4 | F71: -11 | G71: 54 | H71: =Inputs!$X$37*Inputs!$X$32*(E71-Inputs!$X$26) -> -86068.22406 | I71: =Inputs!$X$33*C71*Inputs!$X$38 -> 0 | J71: =params!$C$15*Inputs!$X$29*(E71-Inputs!$X$26) -> -8941.6335 | K71: =Inputs!$X$40*Inputs!$X$41/8760 -> 5342.465753 | L71: =-Inputs!$X$45*Inputs!$X$33 -> -30000 | M71: 453.5153204 | N71: 0.002796404355 | O71: 0.001510058351 | P71: =-L71/(1.202*2465560*MAX(0,(Inputs!$X$49-O71))) -> 1.066881213 | Q71: =params!$C$15*P71*(E71-Inputs!$X$26) -> -32341.46486 | R71: -152008.8567
A72: 2001-01-03 | B72: 23:00:00 | C72: 0 | D72: 10 | E72: -4 | F72: -11 | G72: 54 | H72: =Inputs!$X$37*Inputs!$X$32*(E72-Inputs!$X$26) -> -86068.22406 | I72: =Inputs!$X$33*C72*Inputs!$X$38 -> 0 | J72: =params!$C$15*Inputs!$X$29*(E72-Inputs!$X$26) -> -8941.6335 | K72: =Inputs!$X$40*Inputs!$X$41/8760 -> 5342.465753 | L72: =-Inputs!$X$45*Inputs!$X$33 -> -30000 | M72: 453.5153204 | N72: 0.002796404355 | O72: 0.001510058351 | P72: =-L72/(1.202*2465560*MAX(0,(Inputs!$X$49-O72))) -> 1.066881213 | Q72: =params!$C$15*P72*(E72-Inputs!$X$26) -> -32341.46486 | R72: -152008.8567
A73: 2001-01-03 | B73: 1 | C73: 0 | D73: 10 | E73: -5 | F73: -10 | G73: 65 | H73: =Inputs!$X$37*Inputs!$X$32*(E73-Inputs!$X$26) -> -89495.71971 | I73: =Inputs!$X$33*C73*Inputs!$X$38 -> 0 | J73: =params!$C$15*Inputs!$X$29*(E73-Inputs!$X$26) -> -9297.71625 | K73: =Inputs!$X$40*Inputs!$X$41/8760 -> 5342.465753 | L73: =-Inputs!$X$45*Inputs!$X$33 -> -30000 | M73: 420.5680235 | N73: 0.002592402475 | O73: 0.001685061609 | P73: =-L73/(1.202*2465560*MAX(0,(Inputs!$X$49-O73))) -> 1.086928798 | Q73: =params!$C$15*P73*(E73-Inputs!$X$26) -> -34261.3237 | R73: -157712.2939
A74: 2001-01-04 | B74: 01:00:00 | C74: 0 | D74: 10 | E74: -5 | F74: -9 | G74: 71 | H74: =Inputs!$X$37*Inputs!$X$32*(E74-Inputs!$X$26) -> -89495.71971 | I74: =Inputs!$X$33*C74*Inputs!$X$38 -> 0 | J74: =params!$C$15*Inputs!$X$29*(E74-Inputs!$X$26) -> -9297.71625 | K74: =Inputs!$X$40*Inputs!$X$41/8760 -> 5342.465753 | L74: =-Inputs!$X$45*Inputs!$X$33 -> -30000 | M74: 420.5680235 | N74: 0.002592402475 | O74: 0.001840605757 | P74: =-L74/(1.202*2465560*MAX(0,(Inputs!$X$49-O74))) -> 1.105390395 | Q74: =params!$C$15*P74*(E74-Inputs!$X$26) -> -34843.25577 | R74: -158294.226
A75: 2001-01-04 | B75: 02:00:00 | C75: 0 | D75: 10 | E75: -5 | F75: -9 | G75: 71 | H75: =Inputs!$X$37*Inputs!$X$32*(E75-Inputs!$X$26) -> -89495.71971 | I75: =Inputs!$X$33*C75*Inputs!$X$38 -> 0 | J75: =params!$C$15*Inputs!$X$29*(E75-Inputs!$X$26) -> -9297.71625 | K75: =Inputs!$X$40*Inputs!$X$41/8760 -> 5342.465753 | L75: =-Inputs!$X$45*Inputs!$X$33 -> -30000 | M75: 420.5680235 | N75: 0.002592402475 | O75: 0.001840605757 | P75: =-L75/(1.202*2465560*MAX(0,(Inputs!$X$49-O75))) -> 1.105390395 | Q75: =params!$C$15*P75*(E75-Inputs!$X$26) -> -34843.25577 | R75: -158294.226
A76: 2001-01-04 | B76: 03:00:00 | C76: 0 | D76: 10 | E76: -4 | F76: -9 | G76: 65 | H76: =Inputs!$X$37*Inputs!$X$32*(E76-Inputs!$X$26) -> -86068.22406 | I76: =Inputs!$X$33*C76*Inputs!$X$38 -> 0 | J76: =params!$C$15*Inputs!$X$29*(E76-Inputs!$X$26) -> -8941.6335 | K76: =Inputs!$X$40*Inputs!$X$41/8760 -> 5342.465753 | L76: =-Inputs!$X$45*Inputs!$X$33 -> -30000 | M76: 453.5153204 | N76: 0.002796404355 | O76: 0.00181766283 | P76: =-L76/(1.202*2465560*MAX(0,(Inputs!$X$49-O76))) -> 1.102627958 | Q76: =params!$C$15*P76*(E76-Inputs!$X$26) -> -33425.09264 | R76: -153092.4844
A77: 2001-01-04 | B77: 04:00:00 | C77: 0 | D77: 10 | E77: -4 | F77: -9 | G77: 65 | H77: =Inputs!$X$37*Inputs!$X$32*(E77-Inputs!$X$26) -> -86068.22406 | I77: =Inputs!$X$33*C77*Inputs!$X$38 -> 0 | J77: =params!$C$15*Inputs!$X$29*(E77-Inputs!$X$26) -> -8941.6335 | K77: =Inputs!$X$40*Inputs!$X$41/8760 -> 5342.465753 | L77: =-Inputs!$X$45*Inputs!$X$33 -> -30000 | M77: 453.5153204 | N77: 0.002796404355 | O77: 0.00181766283 | P77: =-L77/(1.202*2465560*MAX(0,(Inputs!$X$49-O77))) -> 1.102627958 | Q77: =params!$C$15*P77*(E77-Inputs!$X$26) -> -33425.09264 | R77: -153092.4844
A78: 2001-01-04 | B78: 05:00:00 | C78: 0 | D78: 10 | E78: -4 | F78: -8 | G78: 71 | H78: =Inputs!$X$37*Inputs!$X$32*(E78-Inputs!$X$26) -> -86068.22406 | I78: =Inputs!$X$33*C78*Inputs!$X$38 -> 0 | J78: =params!$C$15*Inputs!$X$29*(E78-Inputs!$X$26) -> -8941.6335 | K78: =Inputs!$X$40*Inputs!$X$41/8760 -> 5342.465753 | L78: =-Inputs!$X$45*Inputs!$X$33 -> -30000 | M78: 453.5153204 | N78: 0.002796404355 | O78: 0.001985447092 | P78: =-L78/(1.202*2465560*MAX(0,(Inputs!$X$49-O78))) -> 1.123154631 | Q78: =params!$C$15*P78*(E78-Inputs!$X$26) -> -34047.33873 | R78: -153714.7305
A79: 2001-01-04 | B79: 06:00:00 | C79: 0 | D79: 10 | E79: -4 | F79: -8 | G79: 71 | H79: =Inputs!$X$37*Inputs!$X$32*(E79-Inputs!$X$26) -> -86068.22406 | I79: =Inputs!$X$33*C79*Inputs!$X$38 -> 0 | J79: =params!$C$15*Inputs!$X$29*(E79-Inputs!$X$26) -> -8941.6335 | K79: =Inputs!$X$40*Inputs!$X$41/8760 -> 5342.465753 | L79: =-Inputs!$X$45*Inputs!$X$33 -> -30000 | M79: 453.5153204 | N79: 0.002796404355 | O79: 0.001985447092 | P79: =-L79/(1.202*2465560*MAX(0,(Inputs!$X$49-O79))) -> 1.123154631 | Q79: =params!$C$15*P79*(E79-Inputs!$X$26) -> -34047.33873 | R79: -153714.7305
A80: 2001-01-04 | B80: 07:00:00 | C80: 0 | D80: 10 | E80: -4 | F80: -8 | G80: 71 | H80: =Inputs!$X$37*Inputs!$X$32*(E80-Inputs!$X$26) -> -86068.22406 | I80: =Inputs!$X$33*C80*Inputs!$X$38 -> 0 | J80: =params!$C$15*Inputs!$X$29*(E80-Inputs!$X$26) -> -8941.6335 | K80: =Inputs!$X$40*Inputs!$X$41/8760 -> 5342.465753 | L80: =-Inputs!$X$45*Inputs!$X$33 -> -30000 | M80: 453.5153204 | N80: 0.002796404355 | O80: 0.001985447092 | P80: =-L80/(1.202*2465560*MAX(0,(Inputs!$X$49-O80))) -> 1.123154631 | Q80: =params!$C$15*P80*(E80-Inputs!$X$26) -> -34047.33873 | R80: -153714.7305
A81: 2001-01-04 | B81: 08:00:00 | C81: 0 | D81: 10 | E81: -4 | F81: -8 | G81: 71 | H81: =Inputs!$X$37*Inputs!$X$32*(E81-Inputs!$X$26) -> -86068.22406 | I81: =Inputs!$X$33*C81*Inputs!$X$38 -> 0 | J81: =params!$C$15*Inputs!$X$29*(E81-Inputs!$X$26) -> -8941.6335 | K81: =Inputs!$X$40*Inputs!$X$41/8760 -> 5342.465753 | L81: =-Inputs!$X$45*Inputs!$X$33 -> -30000 | M81: 453.5153204 | N81: 0.002796404355 | O81: 0.001985447092 | P81: =-L81/(1.202*2465560*MAX(0,(Inputs!$X$49-O81))) -> 1.123154631 | Q81: =params!$C$15*P81*(E81-Inputs!$X$26) -> -34047.33873 | R81: -153714.7305
A82: 2001-01-04 | B82: 09:00:00 | C82: 95 | D82: 10 | E82: -4 | F82: -8 | G82: 71 | H82: =Inputs!$X$37*Inputs!$X$32*(E82-Inputs!$X$26) -> -86068.22406 | I82: =Inputs!$X$33*C82*Inputs!$X$38 -> 18534.17442 | J82: =params!$C$15*Inputs!$X$29*(E82-Inputs!$X$26) -> -8941.6335 | K82: =Inputs!$X$40*Inputs!$X$41/8760 -> 5342.465753 | L82: =-Inputs!$X$45*Inputs!$X$33 -> -30000 | M82: 453.5153204 | N82: 0.002796404355 | O82: 0.001985447092 | P82: =-L82/(1.202*2465560*MAX(0,(Inputs!$X$49-O82))) -> 1.123154631 | Q82: =params!$C$15*P82*(E82-Inputs!$X$26) -> -34047.33873 | R82: -135180.5561
A83: 2001-01-04 | B83: 10:00:00 | C83: 94 | D83: 10 | E83: -3 | F83: -8 | G83: 65 | H83: =Inputs!$X$37*Inputs!$X$32*(E83-Inputs!$X$26) -> -82640.72841 | I83: =Inputs!$X$33*C83*Inputs!$X$38 -> 18339.07784 | J83: =params!$C$15*Inputs!$X$29*(E83-Inputs!$X$26) -> -8585.55075 | K83: =Inputs!$X$40*Inputs!$X$41/8760 -> 5342.465753 | L83: =-Inputs!$X$45*Inputs!$X$33 -> -30000 | M83: 488.7362191 | N83: 0.003014631266 | O83: 0.001959510323 | P83: =-L83/(1.202*2465560*MAX(0,(Inputs!$X$49-O83))) -> 1.119931739 | Q83: =params!$C$15*P83*(E83-Inputs!$X$26) -> -32597.66309 | R83: -130142.3987
A84: 2001-01-04 | B84: 11:00:00 | C84: 137 | D84: 10 | E84: -2 | F84: -8 | G84: 60 | H84: =Inputs!$X$37*Inputs!$X$32*(E84-Inputs!$X$26) -> -79213.23276 | I84: =Inputs!$X$33*C84*Inputs!$X$38 -> 26728.23047 | J84: =params!$C$15*Inputs!$X$29*(E84-Inputs!$X$26) -> -8229.468 | K84: =Inputs!$X$40*Inputs!$X$41/8760 -> 5342.465753 | L84: =-Inputs!$X$45*Inputs!$X$33 -> -30000 | M84: 526.3651631 | N84: 0.003247946807 | O84: 0.001948768084 | P84: =-L84/(1.202*2465560*MAX(0,(Inputs!$X$49-O84))) -> 1.118602323 | Q84: =params!$C$15*P84*(E84-Inputs!$X$26) -> -31208.59606 | R84: -116580.6006
A85: 2001-01-04 | B85: 12:00:00 | C85: 316 | D85: 8 | E85: -1 | F85: -9 | G85: 50 | H85: =Inputs!$X$37*Inputs!$X$32*(E85-Inputs!$X$26) -> -75785.73711 | I85: =Inputs!$X$33*C85*Inputs!$X$38 -> 61650.51701 | J85: =params!$C$15*Inputs!$X$29*(E85-Inputs!$X$26) -> -7873.38525 | K85: =Inputs!$X$40*Inputs!$X$41/8760 -> 5342.465753 | L85: =-Inputs!$X$45*Inputs!$X$33 -> -30000 | M85: 566.5431037 | N85: 0.00349725959 | O85: 0.001748629795 | P85: =-L85/(1.202*2465560*MAX(0,(Inputs!$X$49-O85))) -> 1.094398707 | Q85: =params!$C$15*P85*(E85-Inputs!$X$26) -> -29212.17057 | R85: -75878.31017
A86: 2001-01-04 | B86: 13:00:00 | C86: 131 | D86: 10 | E86: -2 | F86: -9 | G86: 55 | H86: =Inputs!$X$37*Inputs!$X$32*(E86-Inputs!$X$26) -> -79213.23276 | I86: =Inputs!$X$33*C86*Inputs!$X$38 -> 25557.65104 | J86: =params!$C$15*Inputs!$X$29*(E86-Inputs!$X$26) -> -8229.468 | K86: =Inputs!$X$40*Inputs!$X$41/8760 -> 5342.465753 | L86: =-Inputs!$X$45*Inputs!$X$33 -> -30000 | M86: 526.3651631 | N86: 0.003247946807 | O86: 0.001786370744 | P86: =-L86/(1.202*2465560*MAX(0,(Inputs!$X$49-O86))) -> 1.098882426 | Q86: =params!$C$15*P86*(E86-Inputs!$X$26) -> -30658.41814 | R86: -117201.0021
A87: 2001-01-04 | B87: 14:00:00 | C87: 69 | D87: 10 | E87: -2 | F87: -8 | G87: 60 | H87: =Inputs!$X$37*Inputs!$X$32*(E87-Inputs!$X$26) -> -79213.23276 | I87: =Inputs!$X$33*C87*Inputs!$X$38 -> 13461.66352 | J87: =params!$C$15*Inputs!$X$29*(E87-Inputs!$X$26) -> -8229.468 | K87: =Inputs!$X$40*Inputs!$X$41/8760 -> 5342.465753 | L87: =-Inputs!$X$45*Inputs!$X$33 -> -30000 | M87: 526.3651631 | N87: 0.003247946807 | O87: 0.001948768084 | P87: =-L87/(1.202*2465560*MAX(0,(Inputs!$X$49-O87))) -> 1.118602323 | Q87: =params!$C$15*P87*(E87-Inputs!$X$26) -> -31208.59606 | R87: -129847.1675
A88: 2001-01-04 | B88: 15:00:00 | C88: 59 | D88: 10 | E88: -2 | F88: -8 | G88: 60 | H88: =Inputs!$X$37*Inputs!$X$32*(E88-Inputs!$X$26) -> -79213.23276 | I88: =Inputs!$X$33*C88*Inputs!$X$38 -> 11510.6978 | J88: =params!$C$15*Inputs!$X$29*(E88-Inputs!$X$26) -> -8229.468 | K88: =Inputs!$X$40*Inputs!$X$41/8760 -> 5342.465753 | L88: =-Inputs!$X$45*Inputs!$X$33 -> -30000 | M88: 526.3651631 | N88: 0.003247946807 | O88: 0.001948768084 | P88: =-L88/(1.202*2465560*MAX(0,(Inputs!$X$49-O88))) -> 1.118602323 | Q88: =params!$C$15*P88*(E88-Inputs!$X$26) -> -31208.59606 | R88: -131798.1333
A89: 2001-01-04 | B89: 16:00:00 | C89: 47 | D89: 10 | E89: -2 | F89: -7 | G89: 65 | H89: =Inputs!$X$37*Inputs!$X$32*(E89-Inputs!$X$26) -> -79213.23276 | I89: =Inputs!$X$33*C89*Inputs!$X$38 -> 9169.538922 | J89: =params!$C$15*Inputs!$X$29*(E89-Inputs!$X$26) -> -8229.468 | K89: =Inputs!$X$40*Inputs!$X$41/8760 -> 5342.465753 | L89: =-Inputs!$X$45*Inputs!$X$33 -> -30000 | M89: 526.3651631 | N89: 0.003247946807 | O89: 0.002111165424 | P89: =-L89/(1.202*2465560*MAX(0,(Inputs!$X$49-O89))) -> 1.139042917 | Q89: =params!$C$15*P89*(E89-Inputs!$X$26) -> -31778.88115 | R89: -134709.5772
A90: 2001-01-04 | B90: 17:00:00 | C90: 10 | D90: 10 | E90: -2 | F90: -8 | G90: 60 | H90: =Inputs!$X$37*Inputs!$X$32*(E90-Inputs!$X$26) -> -79213.23276 | I90: =Inputs!$X$33*C90*Inputs!$X$38 -> 1950.965728 | J90: =params!$C$15*Inputs!$X$29*(E90-Inputs!$X$26) -> -8229.468 | K90: =Inputs!$X$40*Inputs!$X$41/8760 -> 5342.465753 | L90: =-Inputs!$X$45*Inputs!$X$33 -> -30000 | M90: 526.3651631 | N90: 0.003247946807 | O90: 0.001948768084 | P90: =-L90/(1.202*2465560*MAX(0,(Inputs!$X$49-O90))) -> 1.118602323 | Q90: =params!$C$15*P90*(E90-Inputs!$X$26) -> -31208.59606 | R90: -141357.8653
A91: 2001-01-04 | B91: 18:00:00 | C91: 0 | D91: 10 | E91: -3 | F91: -8 | G91: 65 | H91: =Inputs!$X$37*Inputs!$X$32*(E91-Inputs!$X$26) -> -82640.72841 | I91: =Inputs!$X$33*C91*Inputs!$X$38 -> 0 | J91: =params!$C$15*Inputs!$X$29*(E91-Inputs!$X$26) -> -8585.55075 | K91: =Inputs!$X$40*Inputs!$X$41/8760 -> 5342.465753 | L91: =-Inputs!$X$45*Inputs!$X$33 -> -30000 | M91: 488.7362191 | N91: 0.003014631266 | O91: 0.001959510323 | P91: =-L91/(1.202*2465560*MAX(0,(Inputs!$X$49-O91))) -> 1.119931739 | Q91: =params!$C$15*P91*(E91-Inputs!$X$26) -> -32597.66309 | R91: -148481.4765
A92: 2001-01-04 | B92: 19:00:00 | C92: 0 | D92: 10 | E92: -3 | F92: -8 | G92: 65 | H92: =Inputs!$X$37*Inputs!$X$32*(E92-Inputs!$X$26) -> -82640.72841 | I92: =Inputs!$X$33*C92*Inputs!$X$38 -> 0 | J92: =params!$C$15*Inputs!$X$29*(E92-Inputs!$X$26) -> -8585.55075 | K92: =Inputs!$X$40*Inputs!$X$41/8760 -> 5342.465753 | L92: =-Inputs!$X$45*Inputs!$X$33 -> -30000 | M92: 488.7362191 | N92: 0.003014631266 | O92: 0.001959510323 | P92: =-L92/(1.202*2465560*MAX(0,(Inputs!$X$49-O92))) -> 1.119931739 | Q92: =params!$C$15*P92*(E92-Inputs!$X$26) -> -32597.66309 | R92: -148481.4765
A93: 2001-01-04 | B93: 20:00:00 | C93: 0 | D93: 10 | E93: -3 | F93: -8 | G93: 65 | H93: =Inputs!$X$37*Inputs!$X$32*(E93-Inputs!$X$26) -> -82640.72841 | I93: =Inputs!$X$33*C93*Inputs!$X$38 -> 0 | J93: =params!$C$15*Inputs!$X$29*(E93-Inputs!$X$26) -> -8585.55075 | K93: =Inputs!$X$40*Inputs!$X$41/8760 -> 5342.465753 | L93: =-Inputs!$X$45*Inputs!$X$33 -> -30000 | M93: 488.7362191 | N93: 0.003014631266 | O93: 0.001959510323 | P93: =-L93/(1.202*2465560*MAX(0,(Inputs!$X$49-O93))) -> 1.119931739 | Q93: =params!$C$15*P93*(E93-Inputs!$X$26) -> -32597.66309 | R93: -148481.4765
A94: 2001-01-04 | B94: 21:00:00 | C94: 0 | D94: 10 | E94: -3 | F94: -8 | G94: 65 | H94: =Inputs!$X$37*Inputs!$X$32*(E94-Inputs!$X$26) -> -82640.72841 | I94: =Inputs!$X$33*C94*Inputs!$X$38 -> 0 | J94: =params!$C$15*Inputs!$X$29*(E94-Inputs!$X$26) -> -8585.55075 | K94: =Inputs!$X$40*Inputs!$X$41/8760 -> 5342.465753 | L94: =-Inputs!$X$45*Inputs!$X$33 -> -30000 | M94: 488.7362191 | N94: 0.003014631266 | O94: 0.001959510323 | P94: =-L94/(1.202*2465560*MAX(0,(Inputs!$X$49-O94))) -> 1.119931739 | Q94: =params!$C$15*P94*(E94-Inputs!$X$26) -> -32597.66309 | R94: -148481.4765
A95: 2001-01-04 | B95: 22:00:00 | C95: 0 | D95: 8 | E95: -4 | F95: -9 | G95: 65 | H95: =Inputs!$X$37*Inputs!$X$32*(E95-Inputs!$X$26) -> -86068.22406 | I95: =Inputs!$X$33*C95*Inputs!$X$38 -> 0 | J95: =params!$C$15*Inputs!$X$29*(E95-Inputs!$X$26) -> -8941.6335 | K95: =Inputs!$X$40*Inputs!$X$41/8760 -> 5342.465753 | L95: =-Inputs!$X$45*Inputs!$X$33 -> -30000 | M95: 453.5153204 | N95: 0.002796404355 | O95: 0.00181766283 | P95: =-L95/(1.202*2465560*MAX(0,(Inputs!$X$49-O95))) -> 1.102627958 | Q95: =params!$C$15*P95*(E95-Inputs!$X$26) -> -33425.09264 | R95: -153092.4844
A96: 2001-01-04 | B96: 23:00:00 | C96: 0 | D96: 10 | E96: -5 | F96: -10 | G96: 65 | H96: =Inputs!$X$37*Inputs!$X$32*(E96-Inputs!$X$26) -> -89495.71971 | I96: =Inputs!$X$33*C96*Inputs!$X$38 -> 0 | J96: =params!$C$15*Inputs!$X$29*(E96-Inputs!$X$26) -> -9297.71625 | K96: =Inputs!$X$40*Inputs!$X$41/8760 -> 5342.465753 | L96: =-Inputs!$X$45*Inputs!$X$33 -> -30000 | M96: 420.5680235 | N96: 0.002592402475 | O96: 0.001685061609 | P96: =-L96/(1.202*2465560*MAX(0,(Inputs!$X$49-O96))) -> 1.086928798 | Q96: =params!$C$15*P96*(E96-Inputs!$X$26) -> -34261.3237 | R96: -157712.2939
A97: 2001-01-04 | B97: 1 | C97: 0 | D97: 3 | E97: -7 | F97: -11 | G97: 70 | H97: =Inputs!$X$37*Inputs!$X$32*(E97-Inputs!$X$26) -> -96350.711 | I97: =Inputs!$X$33*C97*Inputs!$X$38 -> 0 | J97: =params!$C$15*Inputs!$X$29*(E97-Inputs!$X$26) -> -10009.88175 | K97: =Inputs!$X$40*Inputs!$X$41/8760 -> 5342.465753 | L97: =-Inputs!$X$45*Inputs!$X$33 -> -30000 | M97: 360.9876215 | N97: 0.002223832785 | O97: 0.00155668295 | P97: =-L97/(1.202*2465560*MAX(0,(Inputs!$X$49-O97))) -> 1.072149693 | Q97: =params!$C$15*P97*(E97-Inputs!$X$26) -> -36384.0573 | R97: -167402.1843
A98: 2001-01-05 | B98: 01:00:00 | C98: 0 | D98: 5 | E98: -8 | F98: -11 | G98: 77 | H98: =Inputs!$X$37*Inputs!$X$32*(E98-Inputs!$X$26) -> -99778.20665 | I98: =Inputs!$X$33*C98*Inputs!$X$38 -> 0 | J98: =params!$C$15*Inputs!$X$29*(E98-Inputs!$X$26) -> -10365.9645 | K98: =Inputs!$X$40*Inputs!$X$41/8760 -> 5342.465753 | L98: =-Inputs!$X$45*Inputs!$X$33 -> -30000 | M98: 334.1161189 | N98: 0.002057745567 | O98: 0.001584464087 | P98: =-L98/(1.202*2465560*MAX(0,(Inputs!$X$49-O98))) -> 1.075313715 | Q98: =params!$C$15*P98*(E98-Inputs!$X$26) -> -37789.54443 | R98: -172591.2498
A99: 2001-01-05 | B99: 02:00:00 | C99: 0 | D99: 8 | E99: -8 | F99: -11 | G99: 77 | H99: =Inputs!$X$37*Inputs!$X$32*(E99-Inputs!$X$26) -> -99778.20665 | I99: =Inputs!$X$33*C99*Inputs!$X$38 -> 0 | J99: =params!$C$15*Inputs!$X$29*(E99-Inputs!$X$26) -> -10365.9645 | K99: =Inputs!$X$40*Inputs!$X$41/8760 -> 5342.465753 | L99: =-Inputs!$X$45*Inputs!$X$33 -> -30000 | M99: 334.1161189 | N99: 0.002057745567 | O99: 0.001584464087 | P99: =-L99/(1.202*2465560*MAX(0,(Inputs!$X$49-O99))) -> 1.075313715 | Q99: =params!$C$15*P99*(E99-Inputs!$X$26) -> -37789.54443 | R99: -172591.2498
A100: 2001-01-05 | B100: 03:00:00 | C100: 0 | D100: 7 | E100: -9 | F100: -11 | G100: 84 | H100: =Inputs!$X$37*Inputs!$X$32*(E100-Inputs!$X$26) -> -103205.7023 | I100: =Inputs!$X$33*C100*Inputs!$X$38 -> 0 | J100: =params!$C$15*Inputs!$X$29*(E100-Inputs!$X$26) -> -10722.04725 | K100: =Inputs!$X$40*Inputs!$X$41/8760 -> 5342.465753 | L100: =-Inputs!$X$45*Inputs!$X$33 -> -30000 | M100: 309.040986 | N100: 0.001902841039 | O100: 0.001598386473 | P100: =-L100/(1.202*2465560*MAX(0,(Inputs!$X$49-O100))) -> 1.076906384 | Q100: =params!$C$15*P100*(E100-Inputs!$X$26) -> -39145.55209 | R100: -177730.8359
A101: 2001-01-05 | B101: 04:00:00 | C101: 0 | D101: 9 | E101: -9 | F101: -11 | G101: 84 | H101: =Inputs!$X$37*Inputs!$X$32*(E101-Inputs!$X$26) -> -103205.7023 | I101: =Inputs!$X$33*C101*Inputs!$X$38 -> 0 | J101: =params!$C$15*Inputs!$X$29*(E101-Inputs!$X$26) -> -10722.04725 | K101: =Inputs!$X$40*Inputs!$X$41/8760 -> 5342.465753 | L101: =-Inputs!$X$45*Inputs!$X$33 -> -30000 | M101: 309.040986 | N101: 0.001902841039 | O101: 0.001598386473 | P101: =-L101/(1.202*2465560*MAX(0,(Inputs!$X$49-O101))) -> 1.076906384 | Q101: =params!$C$15*P101*(E101-Inputs!$X$26) -> -39145.55209 | R101: -177730.8359
A102: 2001-01-05 | B102: 05:00:00 | C102: 0 | D102: 10 | E102: -7 | F102: -8 | G102: 92 | H102: =Inputs!$X$37*Inputs!$X$32*(E102-Inputs!$X$26) -> -96350.711 | I102: =Inputs!$X$33*C102*Inputs!$X$38 -> 0 | J102: =params!$C$15*Inputs!$X$29*(E102-Inputs!$X$26) -> -10009.88175 | K102: =Inputs!$X$40*Inputs!$X$41/8760 -> 5342.465753 | L102: =-Inputs!$X$45*Inputs!$X$33 -> -30000 | M102: 360.9876215 | N102: 0.002223832785 | O102: 0.002045926162 | P102: =-L102/(1.202*2465560*MAX(0,(Inputs!$X$49-O102))) -> 1.130742277 | Q102: =params!$C$15*P102*(E102-Inputs!$X$26) -> -38372.43258 | R102: -169390.5596
A103: 2001-01-05 | B103: 06:00:00 | C103: 0 | D103: 10 | E103: -5 | F103: -8 | G103: 77 | H103: =Inputs!$X$37*Inputs!$X$32*(E103-Inputs!$X$26) -> -89495.71971 | I103: =Inputs!$X$33*C103*Inputs!$X$38 -> 0 | J103: =params!$C$15*Inputs!$X$29*(E103-Inputs!$X$26) -> -9297.71625 | K103: =Inputs!$X$40*Inputs!$X$41/8760 -> 5342.465753 | L103: =-Inputs!$X$45*Inputs!$X$33 -> -30000 | M103: 420.5680235 | N103: 0.002592402475 | O103: 0.001996149906 | P103: =-L103/(1.202*2465560*MAX(0,(Inputs!$X$49-O103))) -> 1.124489971 | Q103: =params!$C$15*P103*(E103-Inputs!$X$26) -> -35445.29776 | R103: -158896.268
A104: 2001-01-05 | B104: 07:00:00 | C104: 0 | D104: 10 | E104: -4 | F104: -7 | G104: 77 | H104: =Inputs!$X$37*Inputs!$X$32*(E104-Inputs!$X$26) -> -86068.22406 | I104: =Inputs!$X$33*C104*Inputs!$X$38 -> 0 | J104: =params!$C$15*Inputs!$X$29*(E104-Inputs!$X$26) -> -8941.6335 | K104: =Inputs!$X$40*Inputs!$X$41/8760 -> 5342.465753 | L104: =-Inputs!$X$45*Inputs!$X$33 -> -30000 | M104: 453.5153204 | N104: 0.002796404355 | O104: 0.002153231353 | P104: =-L104/(1.202*2465560*MAX(0,(Inputs!$X$49-O104))) -> 1.144460056 | Q104: =params!$C$15*P104*(E104-Inputs!$X$26) -> -34693.19194 | R104: -154360.5837
A105: 2001-01-05 | B105: 08:00:00 | C105: 0 | D105: 10 | E105: -4 | F105: -7 | G105: 77 | H105: =Inputs!$X$37*Inputs!$X$32*(E105-Inputs!$X$26) -> -86068.22406 | I105: =Inputs!$X$33*C105*Inputs!$X$38 -> 0 | J105: =params!$C$15*Inputs!$X$29*(E105-Inputs!$X$26) -> -8941.6335 | K105: =Inputs!$X$40*Inputs!$X$41/8760 -> 5342.465753 | L105: =-Inputs!$X$45*Inputs!$X$33 -> -30000 | M105: 453.5153204 | N105: 0.002796404355 | O105: 0.002153231353 | P105: =-L105/(1.202*2465560*MAX(0,(Inputs!$X$49-O105))) -> 1.144460056 | Q105: =params!$C$15*P105*(E105-Inputs!$X$26) -> -34693.19194 | R105: -154360.5837
A106: 2001-01-05 | B106: 09:00:00 | C106: 74 | D106: 10 | E106: -4 | F106: -7 | G106: 77 | H106: =Inputs!$X$37*Inputs!$X$32*(E106-Inputs!$X$26) -> -86068.22406 | I106: =Inputs!$X$33*C106*Inputs!$X$38 -> 14437.14639 | J106: =params!$C$15*Inputs!$X$29*(E106-Inputs!$X$26) -> -8941.6335 | K106: =Inputs!$X$40*Inputs!$X$41/8760 -> 5342.465753 | L106: =-Inputs!$X$45*Inputs!$X$33 -> -30000 | M106: 453.5153204 | N106: 0.002796404355 | O106: 0.002153231353 | P106: =-L106/(1.202*2465560*MAX(0,(Inputs!$X$49-O106))) -> 1.144460056 | Q106: =params!$C$15*P106*(E106-Inputs!$X$26) -> -34693.19194 | R106: -139923.4374
A107: 2001-01-05 | B107: 10:00:00 | C107: 108 | D107: 10 | E107: -4 | F107: -6 | G107: 84 | H107: =Inputs!$X$37*Inputs!$X$32*(E107-Inputs!$X$26) -> -86068.22406 | I107: =Inputs!$X$33*C107*Inputs!$X$38 -> 21070.42986 | J107: =params!$C$15*Inputs!$X$29*(E107-Inputs!$X$26) -> -8941.6335 | K107: =Inputs!$X$40*Inputs!$X$41/8760 -> 5342.465753 | L107: =-Inputs!$X$45*Inputs!$X$33 -> -30000 | M107: 453.5153204 | N107: 0.002796404355 | O107: 0.002348979658 | P107: =-L107/(1.202*2465560*MAX(0,(Inputs!$X$49-O107))) -> 1.170361103 | Q107: =params!$C$15*P107*(E107-Inputs!$X$26) -> -35478.35695 | R107: -134075.3189
A108: 2001-01-05 | B108: 11:00:00 | C108: 59 | D108: 10 | E108: -4 | F108: -7 | G108: 77 | H108: =Inputs!$X$37*Inputs!$X$32*(E108-Inputs!$X$26) -> -86068.22406 | I108: =Inputs!$X$33*C108*Inputs!$X$38 -> 11510.6978 | J108: =params!$C$15*Inputs!$X$29*(E108-Inputs!$X$26) -> -8941.6335 | K108: =Inputs!$X$40*Inputs!$X$41/8760 -> 5342.465753 | L108: =-Inputs!$X$45*Inputs!$X$33 -> -30000 | M108: 453.5153204 | N108: 0.002796404355 | O108: 0.002153231353 | P108: =-L108/(1.202*2465560*MAX(0,(Inputs!$X$49-O108))) -> 1.144460056 | Q108: =params!$C$15*P108*(E108-Inputs!$X$26) -> -34693.19194 | R108: -142849.8859
A109: 2001-01-05 | B109: 12:00:00 | C109: 105 | D109: 10 | E109: -3 | F109: -7 | G109: 71 | H109: =Inputs!$X$37*Inputs!$X$32*(E109-Inputs!$X$26) -> -82640.72841 | I109: =Inputs!$X$33*C109*Inputs!$X$38 -> 20485.14014 | J109: =params!$C$15*Inputs!$X$29*(E109-Inputs!$X$26) -> -8585.55075 | K109: =Inputs!$X$40*Inputs!$X$41/8760 -> 5342.465753 | L109: =-Inputs!$X$45*Inputs!$X$33 -> -30000 | M109: 488.7362191 | N109: 0.003014631266 | O109: 0.002140388199 | P109: =-L109/(1.202*2465560*MAX(0,(Inputs!$X$49-O109))) -> 1.142800692 | Q109: =params!$C$15*P109*(E109-Inputs!$X$26) -> -33263.30583 | R109: -128661.9791
A110: 2001-01-05 | B110: 13:00:00 | C110: 107 | D110: 10 | E110: -2 | F110: -6 | G110: 71 | H110: =Inputs!$X$37*Inputs!$X$32*(E110-Inputs!$X$26) -> -79213.23276 | I110: =Inputs!$X$33*C110*Inputs!$X$38 -> 20875.33329 | J110: =params!$C$15*Inputs!$X$29*(E110-Inputs!$X$26) -> -8229.468 | K110: =Inputs!$X$40*Inputs!$X$41/8760 -> 5342.465753 | L110: =-Inputs!$X$45*Inputs!$X$33 -> -30000 | M110: 526.3651631 | N110: 0.003247946807 | O110: 0.002306042233 | P110: =-L110/(1.202*2465560*MAX(0,(Inputs!$X$49-O110))) -> 1.164579824 | Q110: =params!$C$15*P110*(E110-Inputs!$X$26) -> -32491.35153 | R110: -123716.2532
A111: 2001-01-05 | B111: 14:00:00 | C111: 195 | D111: 10 | E111: -2 | F111: -6 | G111: 71 | H111: =Inputs!$X$37*Inputs!$X$32*(E111-Inputs!$X$26) -> -79213.23276 | I111: =Inputs!$X$33*C111*Inputs!$X$38 -> 38043.8317 | J111: =params!$C$15*Inputs!$X$29*(E111-Inputs!$X$26) -> -8229.468 | K111: =Inputs!$X$40*Inputs!$X$41/8760 -> 5342.465753 | L111: =-Inputs!$X$45*Inputs!$X$33 -> -30000 | M111: 526.3651631 | N111: 0.003247946807 | O111: 0.002306042233 | P111: =-L111/(1.202*2465560*MAX(0,(Inputs!$X$49-O111))) -> 1.164579824 | Q111: =params!$C$15*P111*(E111-Inputs!$X$26) -> -32491.35153 | R111: -106547.7548
A112: 2001-01-05 | B112: 15:00:00 | C112: 97 | D112: 10 | E112: -2 | F112: -6 | G112: 71 | H112: =Inputs!$X$37*Inputs!$X$32*(E112-Inputs!$X$26) -> -79213.23276 | I112: =Inputs!$X$33*C112*Inputs!$X$38 -> 18924.36756 | J112: =params!$C$15*Inputs!$X$29*(E112-Inputs!$X$26) -> -8229.468 | K112: =Inputs!$X$40*Inputs!$X$41/8760 -> 5342.465753 | L112: =-Inputs!$X$45*Inputs!$X$33 -> -30000 | M112: 526.3651631 | N112: 0.003247946807 | O112: 0.002306042233 | P112: =-L112/(1.202*2465560*MAX(0,(Inputs!$X$49-O112))) -> 1.164579824 | Q112: =params!$C$15*P112*(E112-Inputs!$X$26) -> -32491.35153 | R112: -125667.219
A113: 2001-01-05 | B113: 16:00:00 | C113: 24 | D113: 10 | E113: -1 | F113: -6 | G113: 66 | H113: =Inputs!$X$37*Inputs!$X$32*(E113-Inputs!$X$26) -> -75785.73711 | I113: =Inputs!$X$33*C113*Inputs!$X$38 -> 4682.317747 | J113: =params!$C$15*Inputs!$X$29*(E113-Inputs!$X$26) -> -7873.38525 | K113: =Inputs!$X$40*Inputs!$X$41/8760 -> 5342.465753 | L113: =-Inputs!$X$45*Inputs!$X$33 -> -30000 | M113: 566.5431037 | N113: 0.00349725959 | O113: 0.002308191329 | P113: =-L113/(1.202*2465560*MAX(0,(Inputs!$X$49-O113))) -> 1.164867829 | Q113: =params!$C$15*P113*(E113-Inputs!$X$26) -> -31093.16331 | R113: -134727.5022
A114: 2001-01-05 | B114: 17:00:00 | C114: 20 | D114: 10 | E114: -2 | F114: -5 | G114: 78 | H114: =Inputs!$X$37*Inputs!$X$32*(E114-Inputs!$X$26) -> -79213.23276 | I114: =Inputs!$X$33*C114*Inputs!$X$38 -> 3901.931456 | J114: =params!$C$15*Inputs!$X$29*(E114-Inputs!$X$26) -> -8229.468 | K114: =Inputs!$X$40*Inputs!$X$41/8760 -> 5342.465753 | L114: =-Inputs!$X$45*Inputs!$X$33 -> -30000 | M114: 526.3651631 | N114: 0.003247946807 | O114: 0.002533398509 | P114: =-L114/(1.202*2465560*MAX(0,(Inputs!$X$49-O114))) -> 1.195858976 | Q114: =params!$C$15*P114*(E114-Inputs!$X$26) -> -33364.02843 | R114: -141562.332
A115: 2001-01-05 | B115: 18:00:00 | C115: 0 | D115: 10 | E115: -2 | F115: -4 | G115: 85 | H115: =Inputs!$X$37*Inputs!$X$32*(E115-Inputs!$X$26) -> -79213.23276 | I115: =Inputs!$X$33*C115*Inputs!$X$38 -> 0 | J115: =params!$C$15*Inputs!$X$29*(E115-Inputs!$X$26) -> -8229.468 | K115: =Inputs!$X$40*Inputs!$X$41/8760 -> 5342.465753 | L115: =-Inputs!$X$45*Inputs!$X$33 -> -30000 | M115: 526.3651631 | N115: 0.003247946807 | O115: 0.002760754786 | P115: =-L115/(1.202*2465560*MAX(0,(Inputs!$X$49-O115))) -> 1.228864739 | Q115: =params!$C$15*P115*(E115-Inputs!$X$26) -> -34284.87718 | R115: -146385.1122
A116: 2001-01-05 | B116: 19:00:00 | C116: 0 | D116: 10 | E116: -2 | F116: -5 | G116: 78 | H116: =Inputs!$X$37*Inputs!$X$32*(E116-Inputs!$X$26) -> -79213.23276 | I116: =Inputs!$X$33*C116*Inputs!$X$38 -> 0 | J116: =params!$C$15*Inputs!$X$29*(E116-Inputs!$X$26) -> -8229.468 | K116: =Inputs!$X$40*Inputs!$X$41/8760 -> 5342.465753 | L116: =-Inputs!$X$45*Inputs!$X$33 -> -30000 | M116: 526.3651631 | N116: 0.003247946807 | O116: 0.002533398509 | P116: =-L116/(1.202*2465560*MAX(0,(Inputs!$X$49-O116))) -> 1.195858976 | Q116: =params!$C$15*P116*(E116-Inputs!$X$26) -> -33364.02843 | R116: -145464.2634
A117: 2001-01-05 | B117: 20:00:00 | C117: 0 | D117: 10 | E117: -3 | F117: -4 | G117: 92 | H117: =Inputs!$X$37*Inputs!$X$32*(E117-Inputs!$X$26) -> -82640.72841 | I117: =Inputs!$X$33*C117*Inputs!$X$38 -> 0 | J117: =params!$C$15*Inputs!$X$29*(E117-Inputs!$X$26) -> -8585.55075 | K117: =Inputs!$X$40*Inputs!$X$41/8760 -> 5342.465753 | L117: =-Inputs!$X$45*Inputs!$X$33 -> -30000 | M117: 488.7362191 | N117: 0.003014631266 | O117: 0.002773460765 | P117: =-L117/(1.202*2465560*MAX(0,(Inputs!$X$49-O117))) -> 1.23076313 | Q117: =params!$C$15*P117*(E117-Inputs!$X$26) -> -35823.61357 | R117: -151707.427
A118: 2001-01-05 | B118: 21:00:00 | C118: 0 | D118: 10 | E118: -2 | F118: -4 | G118: 85 | H118: =Inputs!$X$37*Inputs!$X$32*(E118-Inputs!$X$26) -> -79213.23276 | I118: =Inputs!$X$33*C118*Inputs!$X$38 -> 0 | J118: =params!$C$15*Inputs!$X$29*(E118-Inputs!$X$26) -> -8229.468 | K118: =Inputs!$X$40*Inputs!$X$41/8760 -> 5342.465753 | L118: =-Inputs!$X$45*Inputs!$X$33 -> -30000 | M118: 526.3651631 | N118: 0.003247946807 | O118: 0.002760754786 | P118: =-L118/(1.202*2465560*MAX(0,(Inputs!$X$49-O118))) -> 1.228864739 | Q118: =params!$C$15*P118*(E118-Inputs!$X$26) -> -34284.87718 | R118: -146385.1122
A119: 2001-01-05 | B119: 22:00:00 | C119: 0 | D119: 10 | E119: -2 | F119: -4 | G119: 85 | H119: =Inputs!$X$37*Inputs!$X$32*(E119-Inputs!$X$26) -> -79213.23276 | I119: =Inputs!$X$33*C119*Inputs!$X$38 -> 0 | J119: =params!$C$15*Inputs!$X$29*(E119-Inputs!$X$26) -> -8229.468 | K119: =Inputs!$X$40*Inputs!$X$41/8760 -> 5342.465753 | L119: =-Inputs!$X$45*Inputs!$X$33 -> -30000 | M119: 526.3651631 | N119: 0.003247946807 | O119: 0.002760754786 | P119: =-L119/(1.202*2465560*MAX(0,(Inputs!$X$49-O119))) -> 1.228864739 | Q119: =params!$C$15*P119*(E119-Inputs!$X$26) -> -34284.87718 | R119: -146385.1122
A120: 2001-01-05 | B120: 23:00:00 | C120: 0 | D120: 10 | E120: -1.9 | F120: -4 | G120: 84 | H120: =Inputs!$X$37*Inputs!$X$32*(E120-Inputs!$X$26) -> -78870.4832 | I120: =Inputs!$X$33*C120*Inputs!$X$38 -> 0 | J120: =params!$C$15*Inputs!$X$29*(E120-Inputs!$X$26) -> -8193.859725 | K120: =Inputs!$X$40*Inputs!$X$41/8760 -> 5342.465753 | L120: =-Inputs!$X$45*Inputs!$X$33 -> -30000 | M120: 530.2658689 | N120: 0.003272142816 | O120: 0.002748599965 | P120: =-L120/(1.202*2465560*MAX(0,(Inputs!$X$49-O120))) -> 1.22705417 | Q120: =params!$C$15*P120*(E120-Inputs!$X$26) -> -34086.2335 | R120: -145808.1107
A121: 2001-01-05 | B121: 1 | C121: 0 | D121: 10 | E121: -2 | F121: -4 | G121: 85 | H121: =Inputs!$X$37*Inputs!$X$32*(E121-Inputs!$X$26) -> -79213.23276 | I121: =Inputs!$X$33*C121*Inputs!$X$38 -> 0 | J121: =params!$C$15*Inputs!$X$29*(E121-Inputs!$X$26) -> -8229.468 | K121: =Inputs!$X$40*Inputs!$X$41/8760 -> 5342.465753 | L121: =-Inputs!$X$45*Inputs!$X$33 -> -30000 | M121: 526.3651631 | N121: 0.003247946807 | O121: 0.002760754786 | P121: =-L121/(1.202*2465560*MAX(0,(Inputs!$X$49-O121))) -> 1.228864739 | Q121: =params!$C$15*P121*(E121-Inputs!$X$26) -> -34284.87718 | R121: -146385.1122
A122: 2001-01-06 | B122: 01:00:00 | C122: 0 | D122: 10 | E122: -2 | F122: -4 | G122: 85 | H122: =Inputs!$X$37*Inputs!$X$32*(E122-Inputs!$X$26) -> -79213.23276 | I122: =Inputs!$X$33*C122*Inputs!$X$38 -> 0 | J122: =params!$C$15*Inputs!$X$29*(E122-Inputs!$X$26) -> -8229.468 | K122: =Inputs!$X$40*Inputs!$X$41/8760 -> 5342.465753 | L122: =-Inputs!$X$45*Inputs!$X$33 -> -30000 | M122: 526.3651631 | N122: 0.003247946807 | O122: 0.002760754786 | P122: =-L122/(1.202*2465560*MAX(0,(Inputs!$X$49-O122))) -> 1.228864739 | Q122: =params!$C$15*P122*(E122-Inputs!$X$26) -> -34284.87718 | R122: -146385.1122
A123: 2001-01-06 | B123: 02:00:00 | C123: 0 | D123: 10 | E123: -3 | F123: -4 | G123: 92 | H123: =Inputs!$X$37*Inputs!$X$32*(E123-Inputs!$X$26) -> -82640.72841 | I123: =Inputs!$X$33*C123*Inputs!$X$38 -> 0 | J123: =params!$C$15*Inputs!$X$29*(E123-Inputs!$X$26) -> -8585.55075 | K123: =Inputs!$X$40*Inputs!$X$41/8760 -> 5342.465753 | L123: =-Inputs!$X$45*Inputs!$X$33 -> -30000 | M123: 488.7362191 | N123: 0.003014631266 | O123: 0.002773460765 | P123: =-L123/(1.202*2465560*MAX(0,(Inputs!$X$49-O123))) -> 1.23076313 | Q123: =params!$C$15*P123*(E123-Inputs!$X$26) -> -35823.61357 | R123: -151707.427
A124: 2001-01-06 | B124: 03:00:00 | C124: 0 | D124: 10 | E124: -3 | F124: -4 | G124: 92 | H124: =Inputs!$X$37*Inputs!$X$32*(E124-Inputs!$X$26) -> -82640.72841 | I124: =Inputs!$X$33*C124*Inputs!$X$38 -> 0 | J124: =params!$C$15*Inputs!$X$29*(E124-Inputs!$X$26) -> -8585.55075 | K124: =Inputs!$X$40*Inputs!$X$41/8760 -> 5342.465753 | L124: =-Inputs!$X$45*Inputs!$X$33 -> -30000 | M124: 488.7362191 | N124: 0.003014631266 | O124: 0.002773460765 | P124: =-L124/(1.202*2465560*MAX(0,(Inputs!$X$49-O124))) -> 1.23076313 | Q124: =params!$C$15*P124*(E124-Inputs!$X$26) -> -35823.61357 | R124: -151707.427
A125: 2001-01-06 | B125: 04:00:00 | C125: 0 | D125: 10 | E125: -1 | F125: -5 | G125: 71 | H125: =Inputs!$X$37*Inputs!$X$32*(E125-Inputs!$X$26) -> -75785.73711 | I125: =Inputs!$X$33*C125*Inputs!$X$38 -> 0 | J125: =params!$C$15*Inputs!$X$29*(E125-Inputs!$X$26) -> -7873.38525 | K125: =Inputs!$X$40*Inputs!$X$41/8760 -> 5342.465753 | L125: =-Inputs!$X$45*Inputs!$X$33 -> -30000 | M125: 566.5431037 | N125: 0.00349725959 | O125: 0.002483054309 | P125: =-L125/(1.202*2465560*MAX(0,(Inputs!$X$49-O125))) -> 1.188788756 | Q125: =params!$C$15*P125*(E125-Inputs!$X$26) -> -31731.67119 | R125: -140048.3278
A126: 2001-01-06 | B126: 05:00:00 | C126: 0 | D126: 10 | E126: -1 | F126: -6 | G126: 66 | H126: =Inputs!$X$37*Inputs!$X$32*(E126-Inputs!$X$26) -> -75785.73711 | I126: =Inputs!$X$33*C126*Inputs!$X$38 -> 0 | J126: =params!$C$15*Inputs!$X$29*(E126-Inputs!$X$26) -> -7873.38525 | K126: =Inputs!$X$40*Inputs!$X$41/8760 -> 5342.465753 | L126: =-Inputs!$X$45*Inputs!$X$33 -> -30000 | M126: 566.5431037 | N126: 0.00349725959 | O126: 0.002308191329 | P126: =-L126/(1.202*2465560*MAX(0,(Inputs!$X$49-O126))) -> 1.164867829 | Q126: =params!$C$15*P126*(E126-Inputs!$X$26) -> -31093.16331 | R126: -139409.8199
A127: 2001-01-06 | B127: 06:00:00 | C127: 0 | D127: 9 | E127: -2 | F127: -7 | G127: 65 | H127: =Inputs!$X$37*Inputs!$X$32*(E127-Inputs!$X$26) -> -79213.23276 | I127: =Inputs!$X$33*C127*Inputs!$X$38 -> 0 | J127: =params!$C$15*Inputs!$X$29*(E127-Inputs!$X$26) -> -8229.468 | K127: =Inputs!$X$40*Inputs!$X$41/8760 -> 5342.465753 | L127: =-Inputs!$X$45*Inputs!$X$33 -> -30000 | M127: 526.3651631 | N127: 0.003247946807 | O127: 0.002111165424 | P127: =-L127/(1.202*2465560*MAX(0,(Inputs!$X$49-O127))) -> 1.139042917 | Q127: =params!$C$15*P127*(E127-Inputs!$X$26) -> -31778.88115 | R127: -143879.1162
A128: 2001-01-06 | B128: 07:00:00 | C128: 0 | D128: 10 | E128: -1 | F128: -6 | G128: 66 | H128: =Inputs!$X$37*Inputs!$X$32*(E128-Inputs!$X$26) -> -75785.73711 | I128: =Inputs!$X$33*C128*Inputs!$X$38 -> 0 | J128: =params!$C$15*Inputs!$X$29*(E128-Inputs!$X$26) -> -7873.38525 | K128: =Inputs!$X$40*Inputs!$X$41/8760 -> 5342.465753 | L128: =-Inputs!$X$45*Inputs!$X$33 -> -30000 | M128: 566.5431037 | N128: 0.00349725959 | O128: 0.002308191329 | P128: =-L128/(1.202*2465560*MAX(0,(Inputs!$X$49-O128))) -> 1.164867829 | Q128: =params!$C$15*P128*(E128-Inputs!$X$26) -> -31093.16331 | R128: -139409.8199
A129: 2001-01-06 | B129: 08:00:00 | C129: 0 | D129: 10 | E129: -2 | F129: -6 | G129: 71 | H129: =Inputs!$X$37*Inputs!$X$32*(E129-Inputs!$X$26) -> -79213.23276 | I129: =Inputs!$X$33*C129*Inputs!$X$38 -> 0 | J129: =params!$C$15*Inputs!$X$29*(E129-Inputs!$X$26) -> -8229.468 | K129: =Inputs!$X$40*Inputs!$X$41/8760 -> 5342.465753 | L129: =-Inputs!$X$45*Inputs!$X$33 -> -30000 | M129: 526.3651631 | N129: 0.003247946807 | O129: 0.002306042233 | P129: =-L129/(1.202*2465560*MAX(0,(Inputs!$X$49-O129))) -> 1.164579824 | Q129: =params!$C$15*P129*(E129-Inputs!$X$26) -> -32491.35153 | R129: -144591.5865
A130: 2001-01-06 | B130: 09:00:00 | C130: 31 | D130: 10 | E130: -2 | F130: -7 | G130: 65 | H130: =Inputs!$X$37*Inputs!$X$32*(E130-Inputs!$X$26) -> -79213.23276 | I130: =Inputs!$X$33*C130*Inputs!$X$38 -> 6047.993757 | J130: =params!$C$15*Inputs!$X$29*(E130-Inputs!$X$26) -> -8229.468 | K130: =Inputs!$X$40*Inputs!$X$41/8760 -> 5342.465753 | L130: =-Inputs!$X$45*Inputs!$X$33 -> -30000 | M130: 526.3651631 | N130: 0.003247946807 | O130: 0.002111165424 | P130: =-L130/(1.202*2465560*MAX(0,(Inputs!$X$49-O130))) -> 1.139042917 | Q130: =params!$C$15*P130*(E130-Inputs!$X$26) -> -31778.88115 | R130: -137831.1224
A131: 2001-01-06 | B131: 10:00:00 | C131: 94 | D131: 10 | E131: -2 | F131: -8 | G131: 60 | H131: =Inputs!$X$37*Inputs!$X$32*(E131-Inputs!$X$26) -> -79213.23276 | I131: =Inputs!$X$33*C131*Inputs!$X$38 -> 18339.07784 | J131: =params!$C$15*Inputs!$X$29*(E131-Inputs!$X$26) -> -8229.468 | K131: =Inputs!$X$40*Inputs!$X$41/8760 -> 5342.465753 | L131: =-Inputs!$X$45*Inputs!$X$33 -> -30000 | M131: =EXP(77.345+0.0057*(E131+273.15)-7235/(E131+273.15))/(E131+273.15)^8.2 -> 526.3651631 | N131: =0.62198*M131/(101325-M131) -> 0.003247946807 | O131: =N131*G131/100 -> 0.001948768084 | P131: =-L131/(1.202*2465560*MAX(0,(Inputs!$X$49-O131))) -> 1.118602323 | Q131: =params!$C$15*P131*(E131-Inputs!$X$26) -> -31208.59606 | R131: =H131+I131+J131+K131+L131+Q131 -> -124969.7532
A132: 2001-01-06 | B132: 11:00:00 | C132: 287 | D132: 4 | E132: -2 | F132: -8 | G132: 60 | H132: =Inputs!$X$37*Inputs!$X$32*(E132-Inputs!$X$26) -> -79213.23276 | I132: =Inputs!$X$33*C132*Inputs!$X$38 -> 55992.71639 | J132: =params!$C$15*Inputs!$X$29*(E132-Inputs!$X$26) -> -8229.468 | K132: =Inputs!$X$40*Inputs!$X$41/8760 -> 5342.465753 | L132: =-Inputs!$X$45*Inputs!$X$33 -> -30000 | M132: 526.3651631 | N132: 0.003247946807 | O132: 0.001948768084 | P132: =-L132/(1.202*2465560*MAX(0,(Inputs!$X$49-O132))) -> 1.118602323 | Q132: =params!$C$15*P132*(E132-Inputs!$X$26) -> -31208.59606 | R132: -87316.11467
A133: 2001-01-06 | B133: 12:00:00 | C133: 180 | D133: 4 | E133: -1 | F133: -9 | G133: 50 | H133: =Inputs!$X$37*Inputs!$X$32*(E133-Inputs!$X$26) -> -75785.73711 | I133: =Inputs!$X$33*C133*Inputs!$X$38 -> 35117.3831 | J133: =params!$C$15*Inputs!$X$29*(E133-Inputs!$X$26) -> -7873.38525 | K133: =Inputs!$X$40*Inputs!$X$41/8760 -> 5342.465753 | L133: =-Inputs!$X$45*Inputs!$X$33 -> -30000 | M133: 566.5431037 | N133: 0.00349725959 | O133: 0.001748629795 | P133: =-L133/(1.202*2465560*MAX(0,(Inputs!$X$49-O133))) -> 1.094398707 | Q133: =params!$C$15*P133*(E133-Inputs!$X$26) -> -29212.17057 | R133: -102411.4441
A134: 2001-01-06 | B134: 13:00:00 | C134: 424 | D134: 5 | E134: -1 | F134: -10 | G134: 46 | H134: =Inputs!$X$37*Inputs!$X$32*(E134-Inputs!$X$26) -> -75785.73711 | I134: =Inputs!$X$33*C134*Inputs!$X$38 -> 82720.94687 | J134: =params!$C$15*Inputs!$X$29*(E134-Inputs!$X$26) -> -7873.38525 | K134: =Inputs!$X$40*Inputs!$X$41/8760 -> 5342.465753 | L134: =-Inputs!$X$45*Inputs!$X$33 -> -30000 | M134: 566.5431037 | N134: 0.00349725959 | O134: 0.001608739411 | P134: =-L134/(1.202*2465560*MAX(0,(Inputs!$X$49-O134))) -> 1.078093783 | Q134: =params!$C$15*P134*(E134-Inputs!$X$26) -> -28776.9524 | R134: -54372.66214
A135: 2001-01-06 | B135: 14:00:00 | C135: 379 | D135: 8 | E135: -2 | F135: -9 | G135: 55 | H135: =Inputs!$X$37*Inputs!$X$32*(E135-Inputs!$X$26) -> -79213.23276 | I135: =Inputs!$X$33*C135*Inputs!$X$38 -> 73941.60109 | J135: =params!$C$15*Inputs!$X$29*(E135-Inputs!$X$26) -> -8229.468 | K135: =Inputs!$X$40*Inputs!$X$41/8760 -> 5342.465753 | L135: =-Inputs!$X$45*Inputs!$X$33 -> -30000 | M135: 526.3651631 | N135: 0.003247946807 | O135: 0.001786370744 | P135: =-L135/(1.202*2465560*MAX(0,(Inputs!$X$49-O135))) -> 1.098882426 | Q135: =params!$C$15*P135*(E135-Inputs!$X$26) -> -30658.41814 | R135: -68817.05205
A136: 2001-01-06 | B136: 15:00:00 | C136: 260 | D136: 8 | E136: -2 | F136: -9 | G136: 55 | H136: =Inputs!$X$37*Inputs!$X$32*(E136-Inputs!$X$26) -> -79213.23276 | I136: =Inputs!$X$33*C136*Inputs!$X$38 -> 50725.10893 | J136: =params!$C$15*Inputs!$X$29*(E136-Inputs!$X$26) -> -8229.468 | K136: =Inputs!$X$40*Inputs!$X$41/8760 -> 5342.465753 | L136: =-Inputs!$X$45*Inputs!$X$33 -> -30000 | M136: 526.3651631 | N136: 0.003247946807 | O136: 0.001786370744 | P136: =-L136/(1.202*2465560*MAX(0,(Inputs!$X$49-O136))) -> 1.098882426 | Q136: =params!$C$15*P136*(E136-Inputs!$X$26) -> -30658.41814 | R136: -92033.54421
A137: 2001-01-06 | B137: 16:00:00 | C137: 156 | D137: 8 | E137: -2 | F137: -9 | G137: 55 | H137: =Inputs!$X$37*Inputs!$X$32*(E137-Inputs!$X$26) -> -79213.23276 | I137: =Inputs!$X$33*C137*Inputs!$X$38 -> 30435.06536 | J137: =params!$C$15*Inputs!$X$29*(E137-Inputs!$X$26) -> -8229.468 | K137: =Inputs!$X$40*Inputs!$X$41/8760 -> 5342.465753 | L137: =-Inputs!$X$45*Inputs!$X$33 -> -30000 | M137: 526.3651631 | N137: 0.003247946807 | O137: 0.001786370744 | P137: =-L137/(1.202*2465560*MAX(0,(Inputs!$X$49-O137))) -> 1.098882426 | Q137: =params!$C$15*P137*(E137-Inputs!$X$26) -> -30658.41814 | R137: -112323.5878
A138: 2001-01-06 | B138: 17:00:00 | C138: 11 | D138: 10 | E138: -2 | F138: -8 | G138: 60 | H138: =Inputs!$X$37*Inputs!$X$32*(E138-Inputs!$X$26) -> -79213.23276 | I138: =Inputs!$X$33*C138*Inputs!$X$38 -> 2146.062301 | J138: =params!$C$15*Inputs!$X$29*(E138-Inputs!$X$26) -> -8229.468 | K138: =Inputs!$X$40*Inputs!$X$41/8760 -> 5342.465753 | L138: =-Inputs!$X$45*Inputs!$X$33 -> -30000 | M138: 526.3651631 | N138: 0.003247946807 | O138: 0.001948768084 | P138: =-L138/(1.202*2465560*MAX(0,(Inputs!$X$49-O138))) -> 1.118602323 | Q138: =params!$C$15*P138*(E138-Inputs!$X$26) -> -31208.59606 | R138: -141162.7688
A139: 2001-01-06 | B139: 18:00:00 | C139: 0 | D139: 10 | E139: -3 | F139: -8 | G139: 65 | H139: =Inputs!$X$37*Inputs!$X$32*(E139-Inputs!$X$26) -> -82640.72841 | I139: =Inputs!$X$33*C139*Inputs!$X$38 -> 0 | J139: =params!$C$15*Inputs!$X$29*(E139-Inputs!$X$26) -> -8585.55075 | K139: =Inputs!$X$40*Inputs!$X$41/8760 -> 5342.465753 | L139: =-Inputs!$X$45*Inputs!$X$33 -> -30000 | M139: 488.7362191 | N139: 0.003014631266 | O139: 0.001959510323 | P139: =-L139/(1.202*2465560*MAX(0,(Inputs!$X$49-O139))) -> 1.119931739 | Q139: =params!$C$15*P139*(E139-Inputs!$X$26) -> -32597.66309 | R139: -148481.4765
A140: 2001-01-06 | B140: 19:00:00 | C140: 0 | D140: 10 | E140: -3 | F140: -7 | G140: 71 | H140: =Inputs!$X$37*Inputs!$X$32*(E140-Inputs!$X$26) -> -82640.72841 | I140: =Inputs!$X$33*C140*Inputs!$X$38 -> 0 | J140: =params!$C$15*Inputs!$X$29*(E140-Inputs!$X$26) -> -8585.55075 | K140: =Inputs!$X$40*Inputs!$X$41/8760 -> 5342.465753 | L140: =-Inputs!$X$45*Inputs!$X$33 -> -30000 | M140: 488.7362191 | N140: 0.003014631266 | O140: 0.002140388199 | P140: =-L140/(1.202*2465560*MAX(0,(Inputs!$X$49-O140))) -> 1.142800692 | Q140: =params!$C$15*P140*(E140-Inputs!$X$26) -> -33263.30583 | R140: -149147.1192
A141: 2001-01-06 | B141: 20:00:00 | C141: 0 | D141: 10 | E141: -3 | F141: -7 | G141: 71 | H141: =Inputs!$X$37*Inputs!$X$32*(E141-Inputs!$X$26) -> -82640.72841 | I141: =Inputs!$X$33*C141*Inputs!$X$38 -> 0 | J141: =params!$C$15*Inputs!$X$29*(E141-Inputs!$X$26) -> -8585.55075 | K141: =Inputs!$X$40*Inputs!$X$41/8760 -> 5342.465753 | L141: =-Inputs!$X$45*Inputs!$X$33 -> -30000 | M141: 488.7362191 | N141: 0.003014631266 | O141: 0.002140388199 | P141: =-L141/(1.202*2465560*MAX(0,(Inputs!$X$49-O141))) -> 1.142800692 | Q141: =params!$C$15*P141*(E141-Inputs!$X$26) -> -33263.30583 | R141: -149147.1192
A142: 2001-01-06 | B142: 21:00:00 | C142: 0 | D142: 10 | E142: -3 | F142: -6 | G142: 77 | H142: =Inputs!$X$37*Inputs!$X$32*(E142-Inputs!$X$26) -> -82640.72841 | I142: =Inputs!$X$33*C142*Inputs!$X$38 -> 0 | J142: =params!$C$15*Inputs!$X$29*(E142-Inputs!$X$26) -> -8585.55075 | K142: =Inputs!$X$40*Inputs!$X$41/8760 -> 5342.465753 | L142: =-Inputs!$X$45*Inputs!$X$33 -> -30000 | M142: 488.7362191 | N142: 0.003014631266 | O142: 0.002321266075 | P142: =-L142/(1.202*2465560*MAX(0,(Inputs!$X$49-O142))) -> 1.16662308 | Q142: =params!$C$15*P142*(E142-Inputs!$X$26) -> -33956.70004 | R142: -149840.5134
A143: 2001-01-06 | B143: 22:00:00 | C143: 0 | D143: 10 | E143: -3 | F143: -6 | G143: 77 | H143: =Inputs!$X$37*Inputs!$X$32*(E143-Inputs!$X$26) -> -82640.72841 | I143: =Inputs!$X$33*C143*Inputs!$X$38 -> 0 | J143: =params!$C$15*Inputs!$X$29*(E143-Inputs!$X$26) -> -8585.55075 | K143: =Inputs!$X$40*Inputs!$X$41/8760 -> 5342.465753 | L143: =-Inputs!$X$45*Inputs!$X$33 -> -30000 | M143: 488.7362191 | N143: 0.003014631266 | O143: 0.002321266075 | P143: =-L143/(1.202*2465560*MAX(0,(Inputs!$X$49-O143))) -> 1.16662308 | Q143: =params!$C$15*P143*(E143-Inputs!$X$26) -> -33956.70004 | R143: -149840.5134
A144: 2001-01-06 | B144: 23:00:00 | C144: 0 | D144: 10 | E144: -4 | F144: -6 | G144: 84 | H144: =Inputs!$X$37*Inputs!$X$32*(E144-Inputs!$X$26) -> -86068.22406 | I144: =Inputs!$X$33*C144*Inputs!$X$38 -> 0 | J144: =params!$C$15*Inputs!$X$29*(E144-Inputs!$X$26) -> -8941.6335 | K144: =Inputs!$X$40*Inputs!$X$41/8760 -> 5342.465753 | L144: =-Inputs!$X$45*Inputs!$X$33 -> -30000 | M144: 453.5153204 | N144: 0.002796404355 | O144: 0.002348979658 | P144: =-L144/(1.202*2465560*MAX(0,(Inputs!$X$49-O144))) -> 1.170361103 | Q144: =params!$C$15*P144*(E144-Inputs!$X$26) -> -35478.35695 | R144: -155145.7488
A145: 2001-01-06 | B145: 1 | C145: 0 | D145: 10 | E145: -4 | F145: -7 | G145: 77 | H145: =Inputs!$X$37*Inputs!$X$32*(E145-Inputs!$X$26) -> -86068.22406 | I145: =Inputs!$X$33*C145*Inputs!$X$38 -> 0 | J145: =params!$C$15*Inputs!$X$29*(E145-Inputs!$X$26) -> -8941.6335 | K145: =Inputs!$X$40*Inputs!$X$41/8760 -> 5342.465753 | L145: =-Inputs!$X$45*Inputs!$X$33 -> -30000 | M145: 453.5153204 | N145: 0.002796404355 | O145: 0.002153231353 | P145: =-L145/(1.202*2465560*MAX(0,(Inputs!$X$49-O145))) -> 1.144460056 | Q145: =params!$C$15*P145*(E145-Inputs!$X$26) -> -34693.19194 | R145: -154360.5837
A146: 2001-01-07 | B146: 01:00:00 | C146: 0 | D146: 10 | E146: -3 | F146: -6 | G146: 77 | H146: =Inputs!$X$37*Inputs!$X$32*(E146-Inputs!$X$26) -> -82640.72841 | I146: =Inputs!$X$33*C146*Inputs!$X$38 -> 0 | J146: =params!$C$15*Inputs!$X$29*(E146-Inputs!$X$26) -> -8585.55075 | K146: =Inputs!$X$40*Inputs!$X$41/8760 -> 5342.465753 | L146: =-Inputs!$X$45*Inputs!$X$33 -> -30000 | M146: 488.7362191 | N146: 0.003014631266 | O146: 0.002321266075 | P146: =-L146/(1.202*2465560*MAX(0,(Inputs!$X$49-O146))) -> 1.16662308 | Q146: =params!$C$15*P146*(E146-Inputs!$X$26) -> -33956.70004 | R146: -149840.5134
A147: 2001-01-07 | B147: 02:00:00 | C147: 0 | D147: 5 | E147: -6 | F147: -7 | G147: 92 | H147: =Inputs!$X$37*Inputs!$X$32*(E147-Inputs!$X$26) -> -92923.21535 | I147: =Inputs!$X$33*C147*Inputs!$X$38 -> 0 | J147: =params!$C$15*Inputs!$X$29*(E147-Inputs!$X$26) -> -9653.799 | K147: =Inputs!$X$40*Inputs!$X$41/8760 -> 5342.465753 | L147: =-Inputs!$X$45*Inputs!$X$33 -> -30000 | M147: 389.766162 | N147: 0.00240180508 | O147: 0.002209660674 | P147: =-L147/(1.202*2465560*MAX(0,(Inputs!$X$49-O147))) -> 1.151808315 | Q147: =params!$C$15*P147*(E147-Inputs!$X$26) -> -37696.86341 | R147: -164931.412
A148: 2001-01-07 | B148: 03:00:00 | C148: 0 | D148: 10 | E148: -6 | F148: -7 | G148: 92 | H148: =Inputs!$X$37*Inputs!$X$32*(E148-Inputs!$X$26) -> -92923.21535 | I148: =Inputs!$X$33*C148*Inputs!$X$38 -> 0 | J148: =params!$C$15*Inputs!$X$29*(E148-Inputs!$X$26) -> -9653.799 | K148: =Inputs!$X$40*Inputs!$X$41/8760 -> 5342.465753 | L148: =-Inputs!$X$45*Inputs!$X$33 -> -30000 | M148: 389.766162 | N148: 0.00240180508 | O148: 0.002209660674 | P148: =-L148/(1.202*2465560*MAX(0,(Inputs!$X$49-O148))) -> 1.151808315 | Q148: =params!$C$15*P148*(E148-Inputs!$X$26) -> -37696.86341 | R148: -164931.412
A149: 2001-01-07 | B149: 04:00:00 | C149: 0 | D149: 10 | E149: -5 | F149: -7 | G149: 84 | H149: =Inputs!$X$37*Inputs!$X$32*(E149-Inputs!$X$26) -> -89495.71971 | I149: =Inputs!$X$33*C149*Inputs!$X$38 -> 0 | J149: =params!$C$15*Inputs!$X$29*(E149-Inputs!$X$26) -> -9297.71625 | K149: =Inputs!$X$40*Inputs!$X$41/8760 -> 5342.465753 | L149: =-Inputs!$X$45*Inputs!$X$33 -> -30000 | M149: 420.5680235 | N149: 0.002592402475 | O149: 0.002177618079 | P149: =-L149/(1.202*2465560*MAX(0,(Inputs!$X$49-O149))) -> 1.147624174 | Q149: =params!$C$15*P149*(E149-Inputs!$X$26) -> -36174.51608 | R149: -159625.4863
A150: 2001-01-07 | B150: 05:00:00 | C150: 0 | D150: 3 | E150: -8 | F150: -9 | G150: 92 | H150: =Inputs!$X$37*Inputs!$X$32*(E150-Inputs!$X$26) -> -99778.20665 | I150: =Inputs!$X$33*C150*Inputs!$X$38 -> 0 | J150: =params!$C$15*Inputs!$X$29*(E150-Inputs!$X$26) -> -10365.9645 | K150: =Inputs!$X$40*Inputs!$X$41/8760 -> 5342.465753 | L150: =-Inputs!$X$45*Inputs!$X$33 -> -30000 | M150: 334.1161189 | N150: 0.002057745567 | O150: 0.001893125922 | P150: =-L150/(1.202*2465560*MAX(0,(Inputs!$X$49-O150))) -> 1.11176648 | Q150: =params!$C$15*P150*(E150-Inputs!$X$26) -> -39070.597 | R150: -173872.3024
A151: 2001-01-07 | B151: 06:00:00 | C151: 0 | D151: 10 | E151: -6 | F151: -7 | G151: 92 | H151: =Inputs!$X$37*Inputs!$X$32*(E151-Inputs!$X$26) -> -92923.21535 | I151: =Inputs!$X$33*C151*Inputs!$X$38 -> 0 | J151: =params!$C$15*Inputs!$X$29*(E151-Inputs!$X$26) -> -9653.799 | K151: =Inputs!$X$40*Inputs!$X$41/8760 -> 5342.465753 | L151: =-Inputs!$X$45*Inputs!$X$33 -> -30000 | M151: 389.766162 | N151: 0.00240180508 | O151: 0.002209660674 | P151: =-L151/(1.202*2465560*MAX(0,(Inputs!$X$49-O151))) -> 1.151808315 | Q151: =params!$C$15*P151*(E151-Inputs!$X$26) -> -37696.86341 | R151: -164931.412
A152: 2001-01-07 | B152: 07:00:00 | C152: 0 | D152: 10 | E152: -4 | F152: -6 | G152: 84 | H152: =Inputs!$X$37*Inputs!$X$32*(E152-Inputs!$X$26) -> -86068.22406 | I152: =Inputs!$X$33*C152*Inputs!$X$38 -> 0 | J152: =params!$C$15*Inputs!$X$29*(E152-Inputs!$X$26) -> -8941.6335 | K152: =Inputs!$X$40*Inputs!$X$41/8760 -> 5342.465753 | L152: =-Inputs!$X$45*Inputs!$X$33 -> -30000 | M152: 453.5153204 | N152: 0.002796404355 | O152: 0.002348979658 | P152: =-L152/(1.202*2465560*MAX(0,(Inputs!$X$49-O152))) -> 1.170361103 | Q152: =params!$C$15*P152*(E152-Inputs!$X$26) -> -35478.35695 | R152: -155145.7488
A153: 2001-01-07 | B153: 08:00:00 | C153: 0 | D153: 10 | E153: -4 | F153: -6 | G153: 84 | H153: =Inputs!$X$37*Inputs!$X$32*(E153-Inputs!$X$26) -> -86068.22406 | I153: =Inputs!$X$33*C153*Inputs!$X$38 -> 0 | J153: =params!$C$15*Inputs!$X$29*(E153-Inputs!$X$26) -> -8941.6335 | K153: =Inputs!$X$40*Inputs!$X$41/8760 -> 5342.465753 | L153: =-Inputs!$X$45*Inputs!$X$33 -> -30000 | M153: 453.5153204 | N153: 0.002796404355 | O153: 0.002348979658 | P153: =-L153/(1.202*2465560*MAX(0,(Inputs!$X$49-O153))) -> 1.170361103 | Q153: =params!$C$15*P153*(E153-Inputs!$X$26) -> -35478.35695 | R153: -155145.7488
A154: 2001-01-07 | B154: 09:00:00 | C154: 21 | D154: 10 | E154: -4 | F154: -6 | G154: 84 | H154: =Inputs!$X$37*Inputs!$X$32*(E154-Inputs!$X$26) -> -86068.22406 | I154: =Inputs!$X$33*C154*Inputs!$X$38 -> 4097.028029 | J154: =params!$C$15*Inputs!$X$29*(E154-Inputs!$X$26) -> -8941.6335 | K154: =Inputs!$X$40*Inputs!$X$41/8760 -> 5342.465753 | L154: =-Inputs!$X$45*Inputs!$X$33 -> -30000 | M154: 453.5153204 | N154: 0.002796404355 | O154: 0.002348979658 | P154: =-L154/(1.202*2465560*MAX(0,(Inputs!$X$49-O154))) -> 1.170361103 | Q154: =params!$C$15*P154*(E154-Inputs!$X$26) -> -35478.35695 | R154: -151048.7207
A155: 2001-01-07 | B155: 10:00:00 | C155: 58 | D155: 10 | E155: -3 | F155: -5 | G155: 84 | H155: =Inputs!$X$37*Inputs!$X$32*(E155-Inputs!$X$26) -> -82640.72841 | I155: =Inputs!$X$33*C155*Inputs!$X$38 -> 11315.60122 | J155: =params!$C$15*Inputs!$X$29*(E155-Inputs!$X$26) -> -8585.55075 | K155: =Inputs!$X$40*Inputs!$X$41/8760 -> 5342.465753 | L155: =-Inputs!$X$45*Inputs!$X$33 -> -30000 | M155: 488.7362191 | N155: 0.003014631266 | O155: 0.002532290264 | P155: =-L155/(1.202*2465560*MAX(0,(Inputs!$X$49-O155))) -> 1.195702431 | Q155: =params!$C$15*P155*(E155-Inputs!$X$26) -> -34803.10776 | R155: -139371.3199
A156: 2001-01-07 | B156: 11:00:00 | C156: 78 | D156: 10 | E156: -1 | F156: -4 | G156: 78 | H156: =Inputs!$X$37*Inputs!$X$32*(E156-Inputs!$X$26) -> -75785.73711 | I156: =Inputs!$X$33*C156*Inputs!$X$38 -> 15217.53268 | J156: =params!$C$15*Inputs!$X$29*(E156-Inputs!$X$26) -> -7873.38525 | K156: =Inputs!$X$40*Inputs!$X$41/8760 -> 5342.465753 | L156: =-Inputs!$X$45*Inputs!$X$33 -> -30000 | M156: 566.5431037 | N156: 0.00349725959 | O156: 0.00272786248 | P156: =-L156/(1.202*2465560*MAX(0,(Inputs!$X$49-O156))) -> 1.223977421 | Q156: =params!$C$15*P156*(E156-Inputs!$X$26) -> -32670.94248 | R156: -125770.0664
A157: 2001-01-07 | B157: 12:00:00 | C157: 118 | D157: 10 | E157: 1 | F157: -3 | G157: 72 | H157: =Inputs!$X$37*Inputs!$X$32*(E157-Inputs!$X$26) -> -68930.74582 | I157: =Inputs!$X$33*C157*Inputs!$X$38 -> 23021.39559 | J157: =params!$C$15*Inputs!$X$29*(E157-Inputs!$X$26) -> -7161.21975 | K157: =Inputs!$X$40*Inputs!$X$41/8760 -> 5342.465753 | L157: =-Inputs!$X$45*Inputs!$X$33 -> -30000 | M157: 655.1437377 | N157: 0.00404774892 | O157: 0.002914379223 | P157: =-L157/(1.202*2465560*MAX(0,(Inputs!$X$49-O157))) -> 1.252217758 | Q157: =params!$C$15*P157*(E157-Inputs!$X$26) -> -30401.4021 | R157: -108129.5063
A158: 2001-01-07 | B158: 13:00:00 | C158: 78 | D158: 10 | E158: 2 | F158: -3 | G158: 67 | H158: =Inputs!$X$37*Inputs!$X$32*(E158-Inputs!$X$26) -> -65503.25017 | I158: =Inputs!$X$33*C158*Inputs!$X$38 -> 15217.53268 | J158: =params!$C$15*Inputs!$X$29*(E158-Inputs!$X$26) -> -6805.137 | K158: =Inputs!$X$40*Inputs!$X$41/8760 -> 5342.465753 | L158: =-Inputs!$X$45*Inputs!$X$33 -> -30000 | M158: 703.8830162 | N158: 0.004350986866 | O158: 0.0029151612 | P158: =-L158/(1.202*2465560*MAX(0,(Inputs!$X$49-O158))) -> 1.2523389 | Q158: =params!$C$15*P158*(E158-Inputs!$X$26) -> -28892.52502 | R158: -110640.9138
A159: 2001-01-07 | B159: 14:00:00 | C159: 92 | D159: 10 | E159: 1 | F159: -3 | G159: 72 | H159: =Inputs!$X$37*Inputs!$X$32*(E159-Inputs!$X$26) -> -68930.74582 | I159: =Inputs!$X$33*C159*Inputs!$X$38 -> 17948.8847 | J159: =params!$C$15*Inputs!$X$29*(E159-Inputs!$X$26) -> -7161.21975 | K159: =Inputs!$X$40*Inputs!$X$41/8760 -> 5342.465753 | L159: =-Inputs!$X$45*Inputs!$X$33 -> -30000 | M159: 655.1437377 | N159: 0.00404774892 | O159: 0.002914379223 | P159: =-L159/(1.202*2465560*MAX(0,(Inputs!$X$49-O159))) -> 1.252217758 | Q159: =params!$C$15*P159*(E159-Inputs!$X$26) -> -30401.4021 | R159: -113202.0172
A160: 2001-01-07 | B160: 15:00:00 | C160: 65 | D160: 10 | E160: 1 | F160: -3 | G160: 72 | H160: =Inputs!$X$37*Inputs!$X$32*(E160-Inputs!$X$26) -> -68930.74582 | I160: =Inputs!$X$33*C160*Inputs!$X$38 -> 12681.27723 | J160: =params!$C$15*Inputs!$X$29*(E160-Inputs!$X$26) -> -7161.21975 | K160: =Inputs!$X$40*Inputs!$X$41/8760 -> 5342.465753 | L160: =-Inputs!$X$45*Inputs!$X$33 -> -30000 | M160: 655.1437377 | N160: 0.00404774892 | O160: 0.002914379223 | P160: =-L160/(1.202*2465560*MAX(0,(Inputs!$X$49-O160))) -> 1.252217758 | Q160: =params!$C$15*P160*(E160-Inputs!$X$26) -> -30401.4021 | R160: -118469.6247
A161: 2001-01-07 | B161: 16:00:00 | C161: 90 | D161: 10 | E161: 1 | F161: -3 | G161: 72 | H161: =Inputs!$X$37*Inputs!$X$32*(E161-Inputs!$X$26) -> -68930.74582 | I161: =Inputs!$X$33*C161*Inputs!$X$38 -> 17558.69155 | J161: =params!$C$15*Inputs!$X$29*(E161-Inputs!$X$26) -> -7161.21975 | K161: =Inputs!$X$40*Inputs!$X$41/8760 -> 5342.465753 | L161: =-Inputs!$X$45*Inputs!$X$33 -> -30000 | M161: 655.1437377 | N161: 0.00404774892 | O161: 0.002914379223 | P161: =-L161/(1.202*2465560*MAX(0,(Inputs!$X$49-O161))) -> 1.252217758 | Q161: =params!$C$15*P161*(E161-Inputs!$X$26) -> -30401.4021 | R161: -113592.2104
A162: 2001-01-07 | B162: 17:00:00 | C162: 9 | D162: 10 | E162: 1 | F162: -3 | G162: 72 | H162: =Inputs!$X$37*Inputs!$X$32*(E162-Inputs!$X$26) -> -68930.74582 | I162: =Inputs!$X$33*C162*Inputs!$X$38 -> 1755.869155 | J162: =params!$C$15*Inputs!$X$29*(E162-Inputs!$X$26) -> -7161.21975 | K162: =Inputs!$X$40*Inputs!$X$41/8760 -> 5342.465753 | L162: =-Inputs!$X$45*Inputs!$X$33 -> -30000 | M162: 655.1437377 | N162: 0.00404774892 | O162: 0.002914379223 | P162: =-L162/(1.202*2465560*MAX(0,(Inputs!$X$49-O162))) -> 1.252217758 | Q162: =params!$C$15*P162*(E162-Inputs!$X$26) -> -30401.4021 | R162: -129395.0328
A163: 2001-01-07 | B163: 18:00:00 | C163: 0 | D163: 10 | E163: 1 | F163: -3 | G163: 72 | H163: =Inputs!$X$37*Inputs!$X$32*(E163-Inputs!$X$26) -> -68930.74582 | I163: =Inputs!$X$33*C163*Inputs!$X$38 -> 0 | J163: =params!$C$15*Inputs!$X$29*(E163-Inputs!$X$26) -> -7161.21975 | K163: =Inputs!$X$40*Inputs!$X$41/8760 -> 5342.465753 | L163: =-Inputs!$X$45*Inputs!$X$33 -> -30000 | M163: 655.1437377 | N163: 0.00404774892 | O163: 0.002914379223 | P163: =-L163/(1.202*2465560*MAX(0,(Inputs!$X$49-O163))) -> 1.252217758 | Q163: =params!$C$15*P163*(E163-Inputs!$X$26) -> -30401.4021 | R163: -131150.9019
A164: 2001-01-07 | B164: 19:00:00 | C164: 0 | D164: 10 | E164: -1 | F164: -2 | G164: 92 | H164: =Inputs!$X$37*Inputs!$X$32*(E164-Inputs!$X$26) -> -75785.73711 | I164: =Inputs!$X$33*C164*Inputs!$X$38 -> 0 | J164: =params!$C$15*Inputs!$X$29*(E164-Inputs!$X$26) -> -7873.38525 | K164: =Inputs!$X$40*Inputs!$X$41/8760 -> 5342.465753 | L164: =-Inputs!$X$45*Inputs!$X$33 -> -30000 | M164: 566.5431037 | N164: 0.00349725959 | O164: 0.003217478823 | P164: =-L164/(1.202*2465560*MAX(0,(Inputs!$X$49-O164))) -> 1.300997614 | Q164: =params!$C$15*P164*(E164-Inputs!$X$26) -> -34726.79927 | R164: -143043.4559
A165: 2001-01-07 | B165: 20:00:00 | C165: 0 | D165: 10 | E165: -1 | F165: -3 | G165: 85 | H165: =Inputs!$X$37*Inputs!$X$32*(E165-Inputs!$X$26) -> -75785.73711 | I165: =Inputs!$X$33*C165*Inputs!$X$38 -> 0 | J165: =params!$C$15*Inputs!$X$29*(E165-Inputs!$X$26) -> -7873.38525 | K165: =Inputs!$X$40*Inputs!$X$41/8760 -> 5342.465753 | L165: =-Inputs!$X$45*Inputs!$X$33 -> -30000 | M165: 566.5431037 | N165: 0.00349725959 | O165: 0.002972670652 | P165: =-L165/(1.202*2465560*MAX(0,(Inputs!$X$49-O165))) -> 1.261312831 | Q165: =params!$C$15*P165*(E165-Inputs!$X$26) -> -33667.51562 | R165: -141984.1722
A166: 2001-01-07 | B166: 21:00:00 | C166: 0 | D166: 10 | E166: -1 | F166: -3 | G166: 85 | H166: =Inputs!$X$37*Inputs!$X$32*(E166-Inputs!$X$26) -> -75785.73711 | I166: =Inputs!$X$33*C166*Inputs!$X$38 -> 0 | J166: =params!$C$15*Inputs!$X$29*(E166-Inputs!$X$26) -> -7873.38525 | K166: =Inputs!$X$40*Inputs!$X$41/8760 -> 5342.465753 | L166: =-Inputs!$X$45*Inputs!$X$33 -> -30000 | M166: 566.5431037 | N166: 0.00349725959 | O166: 0.002972670652 | P166: =-L166/(1.202*2465560*MAX(0,(Inputs!$X$49-O166))) -> 1.261312831 | Q166: =params!$C$15*P166*(E166-Inputs!$X$26) -> -33667.51562 | R166: -141984.1722
A167: 2001-01-07 | B167: 22:00:00 | C167: 0 | D167: 10 | E167: -1 | F167: -3 | G167: 85 | H167: =Inputs!$X$37*Inputs!$X$32*(E167-Inputs!$X$26) -> -75785.73711 | I167: =Inputs!$X$33*C167*Inputs!$X$38 -> 0 | J167: =params!$C$15*Inputs!$X$29*(E167-Inputs!$X$26) -> -7873.38525 | K167: =Inputs!$X$40*Inputs!$X$41/8760 -> 5342.465753 | L167: =-Inputs!$X$45*Inputs!$X$33 -> -30000 | M167: 566.5431037 | N167: 0.00349725959 | O167: 0.002972670652 | P167: =-L167/(1.202*2465560*MAX(0,(Inputs!$X$49-O167))) -> 1.261312831 | Q167: =params!$C$15*P167*(E167-Inputs!$X$26) -> -33667.51562 | R167: -141984.1722
A168: 2001-01-07 | B168: 23:00:00 | C168: 0 | D168: 10 | E168: -1 | F168: -3 | G168: 85 | H168: =Inputs!$X$37*Inputs!$X$32*(E168-Inputs!$X$26) -> -75785.73711 | I168: =Inputs!$X$33*C168*Inputs!$X$38 -> 0 | J168: =params!$C$15*Inputs!$X$29*(E168-Inputs!$X$26) -> -7873.38525 | K168: =Inputs!$X$40*Inputs!$X$41/8760 -> 5342.465753 | L168: =-Inputs!$X$45*Inputs!$X$33 -> -30000 | M168: 566.5431037 | N168: 0.00349725959 | O168: 0.002972670652 | P168: =-L168/(1.202*2465560*MAX(0,(Inputs!$X$49-O168))) -> 1.261312831 | Q168: =params!$C$15*P168*(E168-Inputs!$X$26) -> -33667.51562 | R168: -141984.1722
A169: 2001-01-07 | B169: 1 | C169: 0 | D169: 10 | E169: -1 | F169: -3 | G169: 85 | H169: =Inputs!$X$37*Inputs!$X$32*(E169-Inputs!$X$26) -> -75785.73711 | I169: =Inputs!$X$33*C169*Inputs!$X$38 -> 0 | J169: =params!$C$15*Inputs!$X$29*(E169-Inputs!$X$26) -> -7873.38525 | K169: =Inputs!$X$40*Inputs!$X$41/8760 -> 5342.465753 | L169: =-Inputs!$X$45*Inputs!$X$33 -> -30000 | M169: 566.5431037 | N169: 0.00349725959 | O169: 0.002972670652 | P169: =-L169/(1.202*2465560*MAX(0,(Inputs!$X$49-O169))) -> 1.261312831 | Q169: =params!$C$15*P169*(E169-Inputs!$X$26) -> -33667.51562 | R169: -141984.1722
A170: 2001-01-08 | B170: 01:00:00 | C170: 0 | D170: 10 | E170: -1 | F170: -3 | G170: 85 | H170: =Inputs!$X$37*Inputs!$X$32*(E170-Inputs!$X$26) -> -75785.73711 | I170: =Inputs!$X$33*C170*Inputs!$X$38 -> 0 | J170: =params!$C$15*Inputs!$X$29*(E170-Inputs!$X$26) -> -7873.38525 | K170: =Inputs!$X$40*Inputs!$X$41/8760 -> 5342.465753 | L170: =-Inputs!$X$45*Inputs!$X$33 -> -30000 | M170: 566.5431037 | N170: 0.00349725959 | O170: 0.002972670652 | P170: =-L170/(1.202*2465560*MAX(0,(Inputs!$X$49-O170))) -> 1.261312831 | Q170: =params!$C$15*P170*(E170-Inputs!$X$26) -> -33667.51562 | R170: -141984.1722
A171: 2001-01-08 | B171: 02:00:00 | C171: 0 | D171: 10 | E171: -1 | F171: -3 | G171: 85 | H171: =Inputs!$X$37*Inputs!$X$32*(E171-Inputs!$X$26) -> -75785.73711 | I171: =Inputs!$X$33*C171*Inputs!$X$38 -> 0 | J171: =params!$C$15*Inputs!$X$29*(E171-Inputs!$X$26) -> -7873.38525 | K171: =Inputs!$X$40*Inputs!$X$41/8760 -> 5342.465753 | L171: =-Inputs!$X$45*Inputs!$X$33 -> -30000 | M171: 566.5431037 | N171: 0.00349725959 | O171: 0.002972670652 | P171: =-L171/(1.202*2465560*MAX(0,(Inputs!$X$49-O171))) -> 1.261312831 | Q171: =params!$C$15*P171*(E171-Inputs!$X$26) -> -33667.51562 | R171: -141984.1722
A172: 2001-01-08 | B172: 03:00:00 | C172: 0 | D172: 10 | E172: -2 | F172: -3 | G172: 92 | H172: =Inputs!$X$37*Inputs!$X$32*(E172-Inputs!$X$26) -> -79213.23276 | I172: =Inputs!$X$33*C172*Inputs!$X$38 -> 0 | J172: =params!$C$15*Inputs!$X$29*(E172-Inputs!$X$26) -> -8229.468 | K172: =Inputs!$X$40*Inputs!$X$41/8760 -> 5342.465753 | L172: =-Inputs!$X$45*Inputs!$X$33 -> -30000 | M172: 526.3651631 | N172: 0.003247946807 | O172: 0.002988111062 | P172: =-L172/(1.202*2465560*MAX(0,(Inputs!$X$49-O172))) -> 1.263744137 | Q172: =params!$C$15*P172*(E172-Inputs!$X$26) -> -35257.99962 | R172: -147358.2346
A173: 2001-01-08 | B173: 04:00:00 | C173: 0 | D173: 10 | E173: -2 | F173: -3 | G173: 92 | H173: =Inputs!$X$37*Inputs!$X$32*(E173-Inputs!$X$26) -> -79213.23276 | I173: =Inputs!$X$33*C173*Inputs!$X$38 -> 0 | J173: =params!$C$15*Inputs!$X$29*(E173-Inputs!$X$26) -> -8229.468 | K173: =Inputs!$X$40*Inputs!$X$41/8760 -> 5342.465753 | L173: =-Inputs!$X$45*Inputs!$X$33 -> -30000 | M173: 526.3651631 | N173: 0.003247946807 | O173: 0.002988111062 | P173: =-L173/(1.202*2465560*MAX(0,(Inputs!$X$49-O173))) -> 1.263744137 | Q173: =params!$C$15*P173*(E173-Inputs!$X$26) -> -35257.99962 | R173: -147358.2346
A174: 2001-01-08 | B174: 05:00:00 | C174: 0 | D174: 10 | E174: -1 | F174: -3 | G174: 85 | H174: =Inputs!$X$37*Inputs!$X$32*(E174-Inputs!$X$26) -> -75785.73711 | I174: =Inputs!$X$33*C174*Inputs!$X$38 -> 0 | J174: =params!$C$15*Inputs!$X$29*(E174-Inputs!$X$26) -> -7873.38525 | K174: =Inputs!$X$40*Inputs!$X$41/8760 -> 5342.465753 | L174: =-Inputs!$X$45*Inputs!$X$33 -> -30000 | M174: 566.5431037 | N174: 0.00349725959 | O174: 0.002972670652 | P174: =-L174/(1.202*2465560*MAX(0,(Inputs!$X$49-O174))) -> 1.261312831 | Q174: =params!$C$15*P174*(E174-Inputs!$X$26) -> -33667.51562 | R174: -141984.1722
A175: 2001-01-08 | B175: 06:00:00 | C175: 0 | D175: 10 | E175: -2 | F175: -3 | G175: 92 | H175: =Inputs!$X$37*Inputs!$X$32*(E175-Inputs!$X$26) -> -79213.23276 | I175: =Inputs!$X$33*C175*Inputs!$X$38 -> 0 | J175: =params!$C$15*Inputs!$X$29*(E175-Inputs!$X$26) -> -8229.468 | K175: =Inputs!$X$40*Inputs!$X$41/8760 -> 5342.465753 | L175: =-Inputs!$X$45*Inputs!$X$33 -> -30000 | M175: 526.3651631 | N175: 0.003247946807 | O175: 0.002988111062 | P175: =-L175/(1.202*2465560*MAX(0,(Inputs!$X$49-O175))) -> 1.263744137 | Q175: =params!$C$15*P175*(E175-Inputs!$X$26) -> -35257.99962 | R175: -147358.2346
A176: 2001-01-08 | B176: 07:00:00 | C176: 0 | D176: 10 | E176: -2 | F176: -3 | G176: 92 | H176: =Inputs!$X$37*Inputs!$X$32*(E176-Inputs!$X$26) -> -79213.23276 | I176: =Inputs!$X$33*C176*Inputs!$X$38 -> 0 | J176: =params!$C$15*Inputs!$X$29*(E176-Inputs!$X$26) -> -8229.468 | K176: =Inputs!$X$40*Inputs!$X$41/8760 -> 5342.465753 | L176: =-Inputs!$X$45*Inputs!$X$33 -> -30000 | M176: 526.3651631 | N176: 0.003247946807 | O176: 0.002988111062 | P176: =-L176/(1.202*2465560*MAX(0,(Inputs!$X$49-O176))) -> 1.263744137 | Q176: =params!$C$15*P176*(E176-Inputs!$X$26) -> -35257.99962 | R176: -147358.2346
A177: 2001-01-08 | B177: 08:00:00 | C177: 0 | D177: 10 | E177: -2 | F177: -3 | G177: 92 | H177: =Inputs!$X$37*Inputs!$X$32*(E177-Inputs!$X$26) -> -79213.23276 | I177: =Inputs!$X$33*C177*Inputs!$X$38 -> 0 | J177: =params!$C$15*Inputs!$X$29*(E177-Inputs!$X$26) -> -8229.468 | K177: =Inputs!$X$40*Inputs!$X$41/8760 -> 5342.465753 | L177: =-Inputs!$X$45*Inputs!$X$33 -> -30000 | M177: 526.3651631 | N177: 0.003247946807 | O177: 0.002988111062 | P177: =-L177/(1.202*2465560*MAX(0,(Inputs!$X$49-O177))) -> 1.263744137 | Q177: =params!$C$15*P177*(E177-Inputs!$X$26) -> -35257.99962 | R177: -147358.2346
A178: 2001-01-08 | B178: 09:00:00 | C178: 115 | D178: 10 | E178: -1 | F178: -3 | G178: 85 | H178: =Inputs!$X$37*Inputs!$X$32*(E178-Inputs!$X$26) -> -75785.73711 | I178: =Inputs!$X$33*C178*Inputs!$X$38 -> 22436.10587 | J178: =params!$C$15*Inputs!$X$29*(E178-Inputs!$X$26) -> -7873.38525 | K178: =Inputs!$X$40*Inputs!$X$41/8760 -> 5342.465753 | L178: =-Inputs!$X$45*Inputs!$X$33 -> -30000 | M178: 566.5431037 | N178: 0.00349725959 | O178: 0.002972670652 | P178: =-L178/(1.202*2465560*MAX(0,(Inputs!$X$49-O178))) -> 1.261312831 | Q178: =params!$C$15*P178*(E178-Inputs!$X$26) -> -33667.51562 | R178: -119548.0664
A179: 2001-01-08 | B179: 10:00:00 | C179: 137 | D179: 10 | E179: -1 | F179: -2 | G179: 92 | H179: =Inputs!$X$37*Inputs!$X$32*(E179-Inputs!$X$26) -> -75785.73711 | I179: =Inputs!$X$33*C179*Inputs!$X$38 -> 26728.23047 | J179: =params!$C$15*Inputs!$X$29*(E179-Inputs!$X$26) -> -7873.38525 | K179: =Inputs!$X$40*Inputs!$X$41/8760 -> 5342.465753 | L179: =-Inputs!$X$45*Inputs!$X$33 -> -30000 | M179: 566.5431037 | N179: 0.00349725959 | O179: 0.003217478823 | P179: =-L179/(1.202*2465560*MAX(0,(Inputs!$X$49-O179))) -> 1.300997614 | Q179: =params!$C$15*P179*(E179-Inputs!$X$26) -> -34726.79927 | R179: -116315.2254
A180: 2001-01-08 | B180: 11:00:00 | C180: 137 | D180: 10 | E180: 1 | F180: -2 | G180: 79 | H180: =Inputs!$X$37*Inputs!$X$32*(E180-Inputs!$X$26) -> -68930.74582 | I180: =Inputs!$X$33*C180*Inputs!$X$38 -> 26728.23047 | J180: =params!$C$15*Inputs!$X$29*(E180-Inputs!$X$26) -> -7161.21975 | K180: =Inputs!$X$40*Inputs!$X$41/8760 -> 5342.465753 | L180: =-Inputs!$X$45*Inputs!$X$33 -> -30000 | M180: 655.1437377 | N180: 0.00404774892 | O180: 0.003197721647 | P180: =-L180/(1.202*2465560*MAX(0,(Inputs!$X$49-O180))) -> 1.297702463 | Q180: =params!$C$15*P180*(E180-Inputs!$X$26) -> -31505.68192 | R180: -105526.9513
A181: 2001-01-08 | B181: 12:00:00 | C181: 136 | D181: 10 | E181: 1 | F181: -2 | G181: 79 | H181: =Inputs!$X$37*Inputs!$X$32*(E181-Inputs!$X$26) -> -68930.74582 | I181: =Inputs!$X$33*C181*Inputs!$X$38 -> 26533.1339 | J181: =params!$C$15*Inputs!$X$29*(E181-Inputs!$X$26) -> -7161.21975 | K181: =Inputs!$X$40*Inputs!$X$41/8760 -> 5342.465753 | L181: =-Inputs!$X$45*Inputs!$X$33 -> -30000 | M181: 655.1437377 | N181: 0.00404774892 | O181: 0.003197721647 | P181: =-L181/(1.202*2465560*MAX(0,(Inputs!$X$49-O181))) -> 1.297702463 | Q181: =params!$C$15*P181*(E181-Inputs!$X$26) -> -31505.68192 | R181: -105722.0478
A182: 2001-01-08 | B182: 13:00:00 | C182: 107 | D182: 10 | E182: 1 | F182: -2 | G182: 79 | H182: =Inputs!$X$37*Inputs!$X$32*(E182-Inputs!$X$26) -> -68930.74582 | I182: =Inputs!$X$33*C182*Inputs!$X$38 -> 20875.33329 | J182: =params!$C$15*Inputs!$X$29*(E182-Inputs!$X$26) -> -7161.21975 | K182: =Inputs!$X$40*Inputs!$X$41/8760 -> 5342.465753 | L182: =-Inputs!$X$45*Inputs!$X$33 -> -30000 | M182: 655.1437377 | N182: 0.00404774892 | O182: 0.003197721647 | P182: =-L182/(1.202*2465560*MAX(0,(Inputs!$X$49-O182))) -> 1.297702463 | Q182: =params!$C$15*P182*(E182-Inputs!$X$26) -> -31505.68192 | R182: -111379.8484
A183: 2001-01-08 | B183: 14:00:00 | C183: 121 | D183: 10 | E183: 1 | F183: -4 | G183: 67 | H183: =Inputs!$X$37*Inputs!$X$32*(E183-Inputs!$X$26) -> -68930.74582 | I183: =Inputs!$X$33*C183*Inputs!$X$38 -> 23606.68531 | J183: =params!$C$15*Inputs!$X$29*(E183-Inputs!$X$26) -> -7161.21975 | K183: =Inputs!$X$40*Inputs!$X$41/8760 -> 5342.465753 | L183: =-Inputs!$X$45*Inputs!$X$33 -> -30000 | M183: 655.1437377 | N183: 0.00404774892 | O183: 0.002711991777 | P183: =-L183/(1.202*2465560*MAX(0,(Inputs!$X$49-O183))) -> 1.221633143 | Q183: =params!$C$15*P183*(E183-Inputs!$X$26) -> -29658.86736 | R183: -106801.6819
A184: 2001-01-08 | B184: 15:00:00 | C184: 98 | D184: 10 | E184: 1 | F184: -3 | G184: 72 | H184: =Inputs!$X$37*Inputs!$X$32*(E184-Inputs!$X$26) -> -68930.74582 | I184: =Inputs!$X$33*C184*Inputs!$X$38 -> 19119.46413 | J184: =params!$C$15*Inputs!$X$29*(E184-Inputs!$X$26) -> -7161.21975 | K184: =Inputs!$X$40*Inputs!$X$41/8760 -> 5342.465753 | L184: =-Inputs!$X$45*Inputs!$X$33 -> -30000 | M184: 655.1437377 | N184: 0.00404774892 | O184: 0.002914379223 | P184: =-L184/(1.202*2465560*MAX(0,(Inputs!$X$49-O184))) -> 1.252217758 | Q184: =params!$C$15*P184*(E184-Inputs!$X$26) -> -30401.4021 | R184: -112031.4378
A185: 2001-01-08 | B185: 16:00:00 | C185: 52 | D185: 10 | E185: -1 | F185: -4 | G185: 78 | H185: =Inputs!$X$37*Inputs!$X$32*(E185-Inputs!$X$26) -> -75785.73711 | I185: =Inputs!$X$33*C185*Inputs!$X$38 -> 10145.02179 | J185: =params!$C$15*Inputs!$X$29*(E185-Inputs!$X$26) -> -7873.38525 | K185: =Inputs!$X$40*Inputs!$X$41/8760 -> 5342.465753 | L185: =-Inputs!$X$45*Inputs!$X$33 -> -30000 | M185: 566.5431037 | N185: 0.00349725959 | O185: 0.00272786248 | P185: =-L185/(1.202*2465560*MAX(0,(Inputs!$X$49-O185))) -> 1.223977421 | Q185: =params!$C$15*P185*(E185-Inputs!$X$26) -> -32670.94248 | R185: -130842.5773
A186: 2001-01-08 | B186: 17:00:00 | C186: 27 | D186: 10 | E186: -2 | F186: -5 | G186: 78 | H186: =Inputs!$X$37*Inputs!$X$32*(E186-Inputs!$X$26) -> -79213.23276 | I186: =Inputs!$X$33*C186*Inputs!$X$38 -> 5267.607466 | J186: =params!$C$15*Inputs!$X$29*(E186-Inputs!$X$26) -> -8229.468 | K186: =Inputs!$X$40*Inputs!$X$41/8760 -> 5342.465753 | L186: =-Inputs!$X$45*Inputs!$X$33 -> -30000 | M186: 526.3651631 | N186: 0.003247946807 | O186: 0.002533398509 | P186: =-L186/(1.202*2465560*MAX(0,(Inputs!$X$49-O186))) -> 1.195858976 | Q186: =params!$C$15*P186*(E186-Inputs!$X$26) -> -33364.02843 | R186: -140196.656
A187: 2001-01-08 | B187: 18:00:00 | C187: 0 | D187: 10 | E187: -2 | F187: -5 | G187: 78 | H187: =Inputs!$X$37*Inputs!$X$32*(E187-Inputs!$X$26) -> -79213.23276 | I187: =Inputs!$X$33*C187*Inputs!$X$38 -> 0 | J187: =params!$C$15*Inputs!$X$29*(E187-Inputs!$X$26) -> -8229.468 | K187: =Inputs!$X$40*Inputs!$X$41/8760 -> 5342.465753 | L187: =-Inputs!$X$45*Inputs!$X$33 -> -30000 | M187: 526.3651631 | N187: 0.003247946807 | O187: 0.002533398509 | P187: =-L187/(1.202*2465560*MAX(0,(Inputs!$X$49-O187))) -> 1.195858976 | Q187: =params!$C$15*P187*(E187-Inputs!$X$26) -> -33364.02843 | R187: -145464.2634
A188: 2001-01-08 | B188: 19:00:00 | C188: 0 | D188: 10 | E188: -2 | F188: -5 | G188: 78 | H188: =Inputs!$X$37*Inputs!$X$32*(E188-Inputs!$X$26) -> -79213.23276 | I188: =Inputs!$X$33*C188*Inputs!$X$38 -> 0 | J188: =params!$C$15*Inputs!$X$29*(E188-Inputs!$X$26) -> -8229.468 | K188: =Inputs!$X$40*Inputs!$X$41/8760 -> 5342.465753 | L188: =-Inputs!$X$45*Inputs!$X$33 -> -30000 | M188: 526.3651631 | N188: 0.003247946807 | O188: 0.002533398509 | P188: =-L188/(1.202*2465560*MAX(0,(Inputs!$X$49-O188))) -> 1.195858976 | Q188: =params!$C$15*P188*(E188-Inputs!$X$26) -> -33364.02843 | R188: -145464.2634
A189: 2001-01-08 | B189: 20:00:00 | C189: 0 | D189: 10 | E189: -2 | F189: -5 | G189: 78 | H189: =Inputs!$X$37*Inputs!$X$32*(E189-Inputs!$X$26) -> -79213.23276 | I189: =Inputs!$X$33*C189*Inputs!$X$38 -> 0 | J189: =params!$C$15*Inputs!$X$29*(E189-Inputs!$X$26) -> -8229.468 | K189: =Inputs!$X$40*Inputs!$X$41/8760 -> 5342.465753 | L189: =-Inputs!$X$45*Inputs!$X$33 -> -30000 | M189: 526.3651631 | N189: 0.003247946807 | O189: 0.002533398509 | P189: =-L189/(1.202*2465560*MAX(0,(Inputs!$X$49-O189))) -> 1.195858976 | Q189: =params!$C$15*P189*(E189-Inputs!$X$26) -> -33364.02843 | R189: -145464.2634
A190: 2001-01-08 | B190: 21:00:00 | C190: 0 | D190: 10 | E190: -3 | F190: -6 | G190: 77 | H190: =Inputs!$X$37*Inputs!$X$32*(E190-Inputs!$X$26) -> -82640.72841 | I190: =Inputs!$X$33*C190*Inputs!$X$38 -> 0 | J190: =params!$C$15*Inputs!$X$29*(E190-Inputs!$X$26) -> -8585.55075 | K190: =Inputs!$X$40*Inputs!$X$41/8760 -> 5342.465753 | L190: =-Inputs!$X$45*Inputs!$X$33 -> -30000 | M190: 488.7362191 | N190: 0.003014631266 | O190: 0.002321266075 | P190: =-L190/(1.202*2465560*MAX(0,(Inputs!$X$49-O190))) -> 1.16662308 | Q190: =params!$C$15*P190*(E190-Inputs!$X$26) -> -33956.70004 | R190: -149840.5134
A191: 2001-01-08 | B191: 22:00:00 | C191: 0 | D191: 10 | E191: -3 | F191: -7 | G191: 71 | H191: =Inputs!$X$37*Inputs!$X$32*(E191-Inputs!$X$26) -> -82640.72841 | I191: =Inputs!$X$33*C191*Inputs!$X$38 -> 0 | J191: =params!$C$15*Inputs!$X$29*(E191-Inputs!$X$26) -> -8585.55075 | K191: =Inputs!$X$40*Inputs!$X$41/8760 -> 5342.465753 | L191: =-Inputs!$X$45*Inputs!$X$33 -> -30000 | M191: 488.7362191 | N191: 0.003014631266 | O191: 0.002140388199 | P191: =-L191/(1.202*2465560*MAX(0,(Inputs!$X$49-O191))) -> 1.142800692 | Q191: =params!$C$15*P191*(E191-Inputs!$X$26) -> -33263.30583 | R191: -149147.1192
A192: 2001-01-08 | B192: 23:00:00 | C192: 0 | D192: 10 | E192: -4 | F192: -7 | G192: 77 | H192: =Inputs!$X$37*Inputs!$X$32*(E192-Inputs!$X$26) -> -86068.22406 | I192: =Inputs!$X$33*C192*Inputs!$X$38 -> 0 | J192: =params!$C$15*Inputs!$X$29*(E192-Inputs!$X$26) -> -8941.6335 | K192: =Inputs!$X$40*Inputs!$X$41/8760 -> 5342.465753 | L192: =-Inputs!$X$45*Inputs!$X$33 -> -30000 | M192: 453.5153204 | N192: 0.002796404355 | O192: 0.002153231353 | P192: =-L192/(1.202*2465560*MAX(0,(Inputs!$X$49-O192))) -> 1.144460056 | Q192: =params!$C$15*P192*(E192-Inputs!$X$26) -> -34693.19194 | R192: -154360.5837
A193: 2001-01-08 | B193: 1 | C193: 0 | D193: 10 | E193: -4 | F193: -8 | G193: 71 | H193: =Inputs!$X$37*Inputs!$X$32*(E193-Inputs!$X$26) -> -86068.22406 | I193: =Inputs!$X$33*C193*Inputs!$X$38 -> 0 | J193: =params!$C$15*Inputs!$X$29*(E193-Inputs!$X$26) -> -8941.6335 | K193: =Inputs!$X$40*Inputs!$X$41/8760 -> 5342.465753 | L193: =-Inputs!$X$45*Inputs!$X$33 -> -30000 | M193: 453.5153204 | N193: 0.002796404355 | O193: 0.001985447092 | P193: =-L193/(1.202*2465560*MAX(0,(Inputs!$X$49-O193))) -> 1.123154631 | Q193: =params!$C$15*P193*(E193-Inputs!$X$26) -> -34047.33873 | R193: -153714.7305
A194: 2001-01-09 | B194: 01:00:00 | C194: 0 | D194: 10 | E194: -4 | F194: -9 | G194: 65 | H194: =Inputs!$X$37*Inputs!$X$32*(E194-Inputs!$X$26) -> -86068.22406 | I194: =Inputs!$X$33*C194*Inputs!$X$38 -> 0 | J194: =params!$C$15*Inputs!$X$29*(E194-Inputs!$X$26) -> -8941.6335 | K194: =Inputs!$X$40*Inputs!$X$41/8760 -> 5342.465753 | L194: =-Inputs!$X$45*Inputs!$X$33 -> -30000 | M194: 453.5153204 | N194: 0.002796404355 | O194: 0.00181766283 | P194: =-L194/(1.202*2465560*MAX(0,(Inputs!$X$49-O194))) -> 1.102627958 | Q194: =params!$C$15*P194*(E194-Inputs!$X$26) -> -33425.09264 | R194: -153092.4844
A195: 2001-01-09 | B195: 02:00:00 | C195: 0 | D195: 10 | E195: -6 | F195: -9 | G195: 77 | H195: =Inputs!$X$37*Inputs!$X$32*(E195-Inputs!$X$26) -> -92923.21535 | I195: =Inputs!$X$33*C195*Inputs!$X$38 -> 0 | J195: =params!$C$15*Inputs!$X$29*(E195-Inputs!$X$26) -> -9653.799 | K195: =Inputs!$X$40*Inputs!$X$41/8760 -> 5342.465753 | L195: =-Inputs!$X$45*Inputs!$X$33 -> -30000 | M195: =EXP(77.345+0.0057*(E195+273.15)-7235/(E195+273.15))/(E195+273.15)^8.2 -> 389.766162 | N195: =0.62198*M195/(101325-M195) -> 0.00240180508 | O195: =N195*G195/100 -> 0.001849389912 | P195: =-L195/(1.202*2465560*MAX(0,(Inputs!$X$49-O195))) -> 1.106451716 | Q195: =params!$C$15*P195*(E195-Inputs!$X$26) -> -36212.4137 | R195: =H195+I195+J195+K195+L195+Q195 -> -163446.9623
A196: 2001-01-09 | B196: 03:00:00 | C196: 0 | D196: 10 | E196: -6 | F196: -10 | G196: 70 | H196: =Inputs!$X$37*Inputs!$X$32*(E196-Inputs!$X$26) -> -92923.21535 | I196: =Inputs!$X$33*C196*Inputs!$X$38 -> 0 | J196: =params!$C$15*Inputs!$X$29*(E196-Inputs!$X$26) -> -9653.799 | K196: =Inputs!$X$40*Inputs!$X$41/8760 -> 5342.465753 | L196: =-Inputs!$X$45*Inputs!$X$33 -> -30000 | M196: 389.766162 | N196: 0.00240180508 | O196: 0.001681263556 | P196: =-L196/(1.202*2465560*MAX(0,(Inputs!$X$49-O196))) -> 1.086485716 | Q196: =params!$C$15*P196*(E196-Inputs!$X$26) -> -35558.9581 | R196: -162793.5067
A197: 2001-01-09 | B197: 04:00:00 | C197: 0 | D197: 10 | E197: -7 | F197: -11 | G197: 70 | H197: =Inputs!$X$37*Inputs!$X$32*(E197-Inputs!$X$26) -> -96350.711 | I197: =Inputs!$X$33*C197*Inputs!$X$38 -> 0 | J197: =params!$C$15*Inputs!$X$29*(E197-Inputs!$X$26) -> -10009.88175 | K197: =Inputs!$X$40*Inputs!$X$41/8760 -> 5342.465753 | L197: =-Inputs!$X$45*Inputs!$X$33 -> -30000 | M197: 360.9876215 | N197: 0.002223832785 | O197: 0.00155668295 | P197: =-L197/(1.202*2465560*MAX(0,(Inputs!$X$49-O197))) -> 1.072149693 | Q197: =params!$C$15*P197*(E197-Inputs!$X$26) -> -36384.0573 | R197: -167402.1843
A198: 2001-01-09 | B198: 05:00:00 | C198: 0 | D198: 8 | E198: -8 | F198: -11 | G198: 77 | H198: =Inputs!$X$37*Inputs!$X$32*(E198-Inputs!$X$26) -> -99778.20665 | I198: =Inputs!$X$33*C198*Inputs!$X$38 -> 0 | J198: =params!$C$15*Inputs!$X$29*(E198-Inputs!$X$26) -> -10365.9645 | K198: =Inputs!$X$40*Inputs!$X$41/8760 -> 5342.465753 | L198: =-Inputs!$X$45*Inputs!$X$33 -> -30000 | M198: 334.1161189 | N198: 0.002057745567 | O198: 0.001584464087 | P198: =-L198/(1.202*2465560*MAX(0,(Inputs!$X$49-O198))) -> 1.075313715 | Q198: =params!$C$15*P198*(E198-Inputs!$X$26) -> -37789.54443 | R198: -172591.2498
A199: 2001-01-09 | B199: 06:00:00 | C199: 0 | D199: 10 | E199: -8 | F199: -12 | G199: 70 | H199: =Inputs!$X$37*Inputs!$X$32*(E199-Inputs!$X$26) -> -99778.20665 | I199: =Inputs!$X$33*C199*Inputs!$X$38 -> 0 | J199: =params!$C$15*Inputs!$X$29*(E199-Inputs!$X$26) -> -10365.9645 | K199: =Inputs!$X$40*Inputs!$X$41/8760 -> 5342.465753 | L199: =-Inputs!$X$45*Inputs!$X$33 -> -30000 | M199: 334.1161189 | N199: 0.002057745567 | O199: 0.001440421897 | P199: =-L199/(1.202*2465560*MAX(0,(Inputs!$X$49-O199))) -> 1.059108156 | Q199: =params!$C$15*P199*(E199-Inputs!$X$26) -> -37220.03558 | R199: -172021.741
A200: 2001-01-09 | B200: 07:00:00 | C200: 0 | D200: 10 | E200: -9 | F200: -13 | G200: 70 | H200: =Inputs!$X$37*Inputs!$X$32*(E200-Inputs!$X$26) -> -103205.7023 | I200: =Inputs!$X$33*C200*Inputs!$X$38 -> 0 | J200: =params!$C$15*Inputs!$X$29*(E200-Inputs!$X$26) -> -10722.04725 | K200: =Inputs!$X$40*Inputs!$X$41/8760 -> 5342.465753 | L200: =-Inputs!$X$45*Inputs!$X$33 -> -30000 | M200: 309.040986 | N200: 0.001902841039 | O200: 0.001331988728 | P200: =-L200/(1.202*2465560*MAX(0,(Inputs!$X$49-O200))) -> 1.04722745 | Q200: =params!$C$15*P200*(E200-Inputs!$X$26) -> -38066.72269 | R200: -176652.0065
... 4300 more rows

Sheet nyc (hidden)
A1: Date (MM/DD/YYYY) | B1: Time (HH:MM) | C1: GHI (W/m^2) | D1: TotCld (tenths) | E1: Dry-bulb (C) | F1: Dew-point (C) | G1: RHum (%) | H1: Conduction (W) | I1: Solar (W) | J1: Infiltration (W) | K1: Lights (W) | L1: ET (W) | M1: pws (Pa) | N1: hrsat (kg/kg) | O1: hr (kg/kg) | P1: Ventilation (m3/s) | Q1: Vent load (W) | R1: Htg Load (W)
A2: 1999-01-01 | B2: 01:00:00 | C2: 0 | D2: 8 | E2: -4.4 | F2: -9.4 | G2: 65 | H2: =Inputs!$X$37*Inputs!$X$32*(E2-Inputs!$X$26) -> -87439.22232 | I2: =Inputs!$X$33*C2*Inputs!$X$38 -> 0 | J2: =params!$C$15*Inputs!$X$29*(E2-Inputs!$X$26) -> -9084.0666 | K2: =Inputs!$X$40*Inputs!$X$41/8760 -> 5342.465753 | L2: =-Inputs!$X$45*Inputs!$X$33 -> -30000 | M2: =EXP(77.345+0.0057*(E2+273.15)-7235/(E2+273.15))/(E2+273.15)^8.2 -> 440.0708849 | N2: =0.62198*M2/(101325-M2) -> 0.002713143493 | O2: =N2*G2/100 -> 0.001763543271 | P2: =-L2/(1.202*2465560*MAX(0,(Inputs!$X$49-O2))) -> 1.096166085 | Q2: =params!$C$15*P2*(E2-Inputs!$X$26) -> -33758.52206 | R2: =H2+I2+J2+K2+L2+Q2 -> -154939.3452
A3: 1999-01-01 | B3: 02:00:00 | C3: 0 | D3: 8 | E3: -4.4 | F3: -8.9 | G3: 68 | H3: =Inputs!$X$37*Inputs!$X$32*(E3-Inputs!$X$26) -> -87439.22232 | I3: =Inputs!$X$33*C3*Inputs!$X$38 -> 0 | J3: =params!$C$15*Inputs!$X$29*(E3-Inputs!$X$26) -> -9084.0666 | K3: =Inputs!$X$40*Inputs!$X$41/8760 -> 5342.465753 | L3: =-Inputs!$X$45*Inputs!$X$33 -> -30000 | M3: =EXP(77.345+0.0057*(E3+273.15)-7235/(E3+273.15))/(E3+273.15)^8.2 -> 440.0708849 | N3: =0.62198*M3/(101325-M3) -> 0.002713143493 | O3: =N3*G3/100 -> 0.001844937575 | P3: =-L3/(1.202*2465560*MAX(0,(Inputs!$X$49-O3))) -> 1.10591352 | Q3: =params!$C$15*P3*(E3-Inputs!$X$26) -> -34058.71288 | R3: =H3+I3+J3+K3+L3+Q3 -> -155239.536
A4: 1999-01-01 | B4: 03:00:00 | C4: 0 | D4: 10 | E4: -3.9 | F4: -9.4 | G4: 62 | H4: =Inputs!$X$37*Inputs!$X$32*(E4-Inputs!$X$26) -> -85725.47449 | I4: =Inputs!$X$33*C4*Inputs!$X$38 -> 0 | J4: =params!$C$15*Inputs!$X$29*(E4-Inputs!$X$26) -> -8906.025225 | K4: =Inputs!$X$40*Inputs!$X$41/8760 -> 5342.465753 | L4: =-Inputs!$X$45*Inputs!$X$33 -> -30000 | M4: 456.9329299 | N4: 0.002817573014 | O4: 0.001746895268 | P4: =-L4/(1.202*2465560*MAX(0,(Inputs!$X$49-O4))) -> 1.09419352 | Q4: =params!$C$15*P4*(E4-Inputs!$X$26) -> -33037.32028 | R4: -152326.3542
A5: 1999-01-01 | B5: 04:00:00 | C5: 0 | D5: 10 | E5: -3.3 | F5: -10 | G5: 56 | H5: =Inputs!$X$37*Inputs!$X$32*(E5-Inputs!$X$26) -> -83668.9771 | I5: =Inputs!$X$33*C5*Inputs!$X$38 -> 0 | J5: =params!$C$15*Inputs!$X$29*(E5-Inputs!$X$26) -> -8692.375575 | K5: =Inputs!$X$40*Inputs!$X$41/8760 -> 5342.465753 | L5: =-Inputs!$X$45*Inputs!$X$33 -> -30000 | M5: 477.9233457 | N5: 0.002947619033 | O5: 0.001650666659 | P5: =-L5/(1.202*2465560*MAX(0,(Inputs!$X$49-O5))) -> 1.0829294 | Q5: =params!$C$15*P5*(E5-Inputs!$X$26) -> -31912.8346 | R5: -148931.7215
A6: 1999-01-01 | B6: 05:00:00 | C6: 0 | D6: 8 | E6: -3.3 | F6: -9.4 | G6: 59 | H6: =Inputs!$X$37*Inputs!$X$32*(E6-Inputs!$X$26) -> -83668.9771 | I6: =Inputs!$X$33*C6*Inputs!$X$38 -> 0 | J6: =params!$C$15*Inputs!$X$29*(E6-Inputs!$X$26) -> -8692.375575 | K6: =Inputs!$X$40*Inputs!$X$41/8760 -> 5342.465753 | L6: =-Inputs!$X$45*Inputs!$X$33 -> -30000 | M6: 477.9233457 | N6: 0.002947619033 | O6: 0.00173909523 | P6: =-L6/(1.202*2465560*MAX(0,(Inputs!$X$49-O6))) -> 1.09327176 | Q6: =params!$C$15*P6*(E6-Inputs!$X$26) -> -32217.6135 | R6: -149236.5004
A7: 1999-01-01 | B7: 06:00:00 | C7: 0 | D7: 8 | E7: -3.9 | F7: -9.4 | G7: 62 | H7: =Inputs!$X$37*Inputs!$X$32*(E7-Inputs!$X$26) -> -85725.47449 | I7: =Inputs!$X$33*C7*Inputs!$X$38 -> 0 | J7: =params!$C$15*Inputs!$X$29*(E7-Inputs!$X$26) -> -8906.025225 | K7: =Inputs!$X$40*Inputs!$X$41/8760 -> 5342.465753 | L7: =-Inputs!$X$45*Inputs!$X$33 -> -30000 | M7: 456.9329299 | N7: 0.002817573014 | O7: 0.001746895268 | P7: =-L7/(1.202*2465560*MAX(0,(Inputs!$X$49-O7))) -> 1.09419352 | Q7: =params!$C$15*P7*(E7-Inputs!$X$26) -> -33037.32028 | R7: -152326.3542
A8: 1999-01-01 | B8: 07:00:00 | C8: 0 | D8: 5 | E8: -4.4 | F8: -8.9 | G8: 68 | H8: =Inputs!$X$37*Inputs!$X$32*(E8-Inputs!$X$26) -> -87439.22232 | I8: =Inputs!$X$33*C8*Inputs!$X$38 -> 0 | J8: =params!$C$15*Inputs!$X$29*(E8-Inputs!$X$26) -> -9084.0666 | K8: =Inputs!$X$40*Inputs!$X$41/8760 -> 5342.465753 | L8: =-Inputs!$X$45*Inputs!$X$33 -> -30000 | M8: 440.0708849 | N8: 0.002713143493 | O8: 0.001844937575 | P8: =-L8/(1.202*2465560*MAX(0,(Inputs!$X$49-O8))) -> 1.10591352 | Q8: =params!$C$15*P8*(E8-Inputs!$X$26) -> -34058.71288 | R8: -155239.536
A9: 1999-01-01 | B9: 08:00:00 | C9: 5 | D9: 4 | E9: -3.3 | F9: -9.4 | G9: 59 | H9: =Inputs!$X$37*Inputs!$X$32*(E9-Inputs!$X$26) -> -83668.9771 | I9: =Inputs!$X$33*C9*Inputs!$X$38 -> 975.482864 | J9: =params!$C$15*Inputs!$X$29*(E9-Inputs!$X$26) -> -8692.375575 | K9: =Inputs!$X$40*Inputs!$X$41/8760 -> 5342.465753 | L9: =-Inputs!$X$45*Inputs!$X$33 -> -30000 | M9: 477.9233457 | N9: 0.002947619033 | O9: 0.00173909523 | P9: =-L9/(1.202*2465560*MAX(0,(Inputs!$X$49-O9))) -> 1.09327176 | Q9: =params!$C$15*P9*(E9-Inputs!$X$26) -> -32217.6135 | R9: -148261.0176
A10: 1999-01-01 | B10: 09:00:00 | C10: 131 | D10: 3 | E10: -2.8 | F10: -11.1 | G10: 49 | H10: =Inputs!$X$37*Inputs!$X$32*(E10-Inputs!$X$26) -> -81955.22928 | I10: =Inputs!$X$33*C10*Inputs!$X$38 -> 25557.65104 | J10: =params!$C$15*Inputs!$X$29*(E10-Inputs!$X$26) -> -8514.3342 | K10: =Inputs!$X$40*Inputs!$X$41/8760 -> 5342.465753 | L10: =-Inputs!$X$45*Inputs!$X$33 -> -30000 | M10: 496.064949 | N10: 0.003060058869 | O10: 0.001499428846 | P10: =-L10/(1.202*2465560*MAX(0,(Inputs!$X$49-O10))) -> 1.065687341 | Q10: =params!$C$15*P10*(E10-Inputs!$X$26) -> -30761.48195 | R10: -120330.9286
A11: 1999-01-01 | B11: 10:00:00 | C11: 270 | D11: 3 | E11: -2.2 | F11: -13.3 | G11: 38 | H11: =Inputs!$X$37*Inputs!$X$32*(E11-Inputs!$X$26) -> -79898.73189 | I11: =Inputs!$X$33*C11*Inputs!$X$38 -> 52676.07466 | J11: =params!$C$15*Inputs!$X$29*(E11-Inputs!$X$26) -> -8300.68455 | K11: =Inputs!$X$40*Inputs!$X$41/8760 -> 5342.465753 | L11: =-Inputs!$X$45*Inputs!$X$33 -> -30000 | M11: 518.6400606 | N11: 0.003200033659 | O11: 0.001216012791 | P11: =-L11/(1.202*2465560*MAX(0,(Inputs!$X$49-O11))) -> 1.034811811 | Q11: =params!$C$15*P11*(E11-Inputs!$X$26) -> -29120.71546 | R11: -89301.59149
A12: 1999-01-01 | B12: 11:00:00 | C12: 346 | D12: 5 | E12: -1.1 | F12: -13.3 | G12: 35 | H12: =Inputs!$X$37*Inputs!$X$32*(E12-Inputs!$X$26) -> -76128.48668 | I12: =Inputs!$X$33*C12*Inputs!$X$38 -> 67503.41419 | J12: =params!$C$15*Inputs!$X$29*(E12-Inputs!$X$26) -> -7908.993525 | K12: =Inputs!$X$40*Inputs!$X$41/8760 -> 5342.465753 | L12: =-Inputs!$X$45*Inputs!$X$33 -> -30000 | M12: 562.4064494 | N12: 0.003471581577 | O12: 0.001215053552 | P12: =-L12/(1.202*2465560*MAX(0,(Inputs!$X$49-O12))) -> 1.034710348 | Q12: =params!$C$15*P12*(E12-Inputs!$X$26) -> -27743.85249 | R12: -68935.45275
A13: 1999-01-01 | B13: 12:00:00 | C13: 264 | D13: 8 | E13: -1.7 | F13: -14.4 | G13: 33 | H13: =Inputs!$X$37*Inputs!$X$32*(E13-Inputs!$X$26) -> -78184.98407 | I13: =Inputs!$X$33*C13*Inputs!$X$38 -> 51505.49522 | J13: =params!$C$15*Inputs!$X$29*(E13-Inputs!$X$26) -> -8122.643175 | K13: =Inputs!$X$40*Inputs!$X$41/8760 -> 5342.465753 | L13: =-Inputs!$X$45*Inputs!$X$33 -> -30000 | M13: 538.144313 | N13: 0.003321018376 | O13: 0.001095936064 | P13: =-L13/(1.202*2465560*MAX(0,(Inputs!$X$49-O13))) -> 1.022263597 | Q13: =params!$C$15*P13*(E13-Inputs!$X$26) -> -28150.55913 | R13: -87610.2254
A14: 1999-01-01 | B14: 13:00:00 | C14: 390 | D14: 8 | E14: -2.2 | F14: -15 | G14: 32 | H14: =Inputs!$X$37*Inputs!$X$32*(E14-Inputs!$X$26) -> -79898.73189 | I14: =Inputs!$X$33*C14*Inputs!$X$38 -> 76087.66339 | J14: =params!$C$15*Inputs!$X$29*(E14-Inputs!$X$26) -> -8300.68455 | K14: =Inputs!$X$40*Inputs!$X$41/8760 -> 5342.465753 | L14: =-Inputs!$X$45*Inputs!$X$33 -> -30000 | M14: 518.6400606 | N14: 0.003200033659 | O14: 0.001024010771 | P14: =-L14/(1.202*2465560*MAX(0,(Inputs!$X$49-O14))) -> 1.014891974 | Q14: =params!$C$15*P14*(E14-Inputs!$X$26) -> -28560.14986 | R14: -65329.43715
A15: 1999-01-01 | B15: 14:00:00 | C15: 74 | D15: 8 | E15: -3.3 | F15: -12.2 | G15: 46 | H15: =Inputs!$X$37*Inputs!$X$32*(E15-Inputs!$X$26) -> -83668.9771 | I15: =Inputs!$X$33*C15*Inputs!$X$38 -> 14437.14639 | J15: =params!$C$15*Inputs!$X$29*(E15-Inputs!$X$26) -> -8692.375575 | K15: =Inputs!$X$40*Inputs!$X$41/8760 -> 5342.465753 | L15: =-Inputs!$X$45*Inputs!$X$33 -> -30000 | M15: 477.9233457 | N15: 0.002947619033 | O15: 0.001355904755 | P15: =-L15/(1.202*2465560*MAX(0,(Inputs!$X$49-O15))) -> 1.049824891 | Q15: =params!$C$15*P15*(E15-Inputs!$X$26) -> -30937.27819 | R15: -133519.0187
A16: 1999-01-01 | B16: 15:00:00 | C16: 207 | D16: 5 | E16: -2.8 | F16: -15.6 | G16: 32 | H16: =Inputs!$X$37*Inputs!$X$32*(E16-Inputs!$X$26) -> -81955.22928 | I16: =Inputs!$X$33*C16*Inputs!$X$38 -> 40384.99057 | J16: =params!$C$15*Inputs!$X$29*(E16-Inputs!$X$26) -> -8514.3342 | K16: =Inputs!$X$40*Inputs!$X$41/8760 -> 5342.465753 | L16: =-Inputs!$X$45*Inputs!$X$33 -> -30000 | M16: 496.064949 | N16: 0.003060058869 | O16: 0.0009792188382 | P16: =-L16/(1.202*2465560*MAX(0,(Inputs!$X$49-O16))) -> 1.010354728 | Q16: =params!$C$15*P16*(E16-Inputs!$X$26) -> -29164.28444 | R16: -103906.3916
A17: 1999-01-01 | B17: 16:00:00 | C17: 72 | D17: 4 | E17: -2.8 | F17: -18.9 | G17: 24 | H17: =Inputs!$X$37*Inputs!$X$32*(E17-Inputs!$X$26) -> -81955.22928 | I17: =Inputs!$X$33*C17*Inputs!$X$38 -> 14046.95324 | J17: =params!$C$15*Inputs!$X$29*(E17-Inputs!$X$26) -> -8514.3342 | K17: =Inputs!$X$40*Inputs!$X$41/8760 -> 5342.465753 | L17: =-Inputs!$X$45*Inputs!$X$33 -> -30000 | M17: 496.064949 | N17: 0.003060058869 | O17: 0.0007344141287 | P17: =-L17/(1.202*2465560*MAX(0,(Inputs!$X$49-O17))) -> 0.9862566515 | Q17: =params!$C$15*P17*(E17-Inputs!$X$26) -> -28468.68403 | R17: -129548.8285
A18: 1999-01-01 | B18: 17:00:00 | C18: 5 | D18: 5 | E18: -5 | F18: -16.7 | G18: 35 | H18: =Inputs!$X$37*Inputs!$X$32*(E18-Inputs!$X$26) -> -89495.71971 | I18: =Inputs!$X$33*C18*Inputs!$X$38 -> 975.482864 | J18: =params!$C$15*Inputs!$X$29*(E18-Inputs!$X$26) -> -9297.71625 | K18: =Inputs!$X$40*Inputs!$X$41/8760 -> 5342.465753 | L18: =-Inputs!$X$45*Inputs!$X$33 -> -30000 | M18: 420.5680235 | N18: 0.002592402475 | O18: 0.0009073408664 | P18: =-L18/(1.202*2465560*MAX(0,(Inputs!$X$49-O18))) -> 1.003157955 | Q18: =params!$C$15*P18*(E18-Inputs!$X$26) -> -31620.76437 | R18: -154096.2517
A19: 1999-01-01 | B19: 18:00:00 | C19: 0 | D19: 3 | E19: -5.6 | F19: -18.9 | G19: 30 | H19: =Inputs!$X$37*Inputs!$X$32*(E19-Inputs!$X$26) -> -91552.21709 | I19: =Inputs!$X$33*C19*Inputs!$X$38 -> 0 | J19: =params!$C$15*Inputs!$X$29*(E19-Inputs!$X$26) -> -9511.3659 | K19: =Inputs!$X$40*Inputs!$X$41/8760 -> 5342.465753 | L19: =-Inputs!$X$45*Inputs!$X$33 -> -30000 | M19: 401.8374026 | N19: 0.002476486282 | O19: 0.0007429458845 | P19: =-L19/(1.202*2465560*MAX(0,(Inputs!$X$49-O19))) -> 0.9870771508 | Q19: =params!$C$15*P19*(E19-Inputs!$X$26) -> -31828.83496 | R19: -157549.9522
A20: 1999-01-01 | B20: 19:00:00 | C20: 0 | D20: 9 | E20: -6.1 | F20: -18.9 | G20: 31 | H20: =Inputs!$X$37*Inputs!$X$32*(E20-Inputs!$X$26) -> -93265.96492 | I20: =Inputs!$X$33*C20*Inputs!$X$38 -> 0 | J20: =params!$C$15*Inputs!$X$29*(E20-Inputs!$X$26) -> -9689.407275 | K20: =Inputs!$X$40*Inputs!$X$41/8760 -> 5342.465753 | L20: =-Inputs!$X$45*Inputs!$X$33 -> -30000 | M20: 386.7992221 | N20: 0.002383452234 | O20: 0.0007388701927 | P20: =-L20/(1.202*2465560*MAX(0,(Inputs!$X$49-O20))) -> 0.9866850211 | Q20: =params!$C$15*P20*(E20-Inputs!$X$26) -> -32411.7515 | R20: -160024.6579
A21: 1999-01-01 | B21: 20:00:00 | C21: 0 | D21: 3 | E21: -6.7 | F21: -18.9 | G21: 33 | H21: =Inputs!$X$37*Inputs!$X$32*(E21-Inputs!$X$26) -> -95322.46231 | I21: =Inputs!$X$33*C21*Inputs!$X$38 -> 0 | J21: =params!$C$15*Inputs!$X$29*(E21-Inputs!$X$26) -> -9903.056925 | K21: =Inputs!$X$40*Inputs!$X$41/8760 -> 5342.465753 | L21: =-Inputs!$X$45*Inputs!$X$33 -> -30000 | M21: 369.4157643 | N21: 0.002275943612 | O21: 0.0007510613921 | P21: =-L21/(1.202*2465560*MAX(0,(Inputs!$X$49-O21))) -> 0.9878588875 | Q21: =params!$C$15*P21*(E21-Inputs!$X$26) -> -33165.83541 | R21: -163048.8889
A22: 1999-01-01 | B22: 21:00:00 | C22: 0 | D22: 0 | E22: -8.3 | F22: -23.9 | G22: 23 | H22: =Inputs!$X$37*Inputs!$X$32*(E22-Inputs!$X$26) -> -100806.4553 | I22: =Inputs!$X$33*C22*Inputs!$X$38 -> 0 | J22: =params!$C$15*Inputs!$X$29*(E22-Inputs!$X$26) -> -10472.78932 | K22: =Inputs!$X$40*Inputs!$X$41/8760 -> 5342.465753 | L22: =-Inputs!$X$45*Inputs!$X$33 -> -30000 | M22: 326.4098523 | N22: 0.002010131029 | O22: 0.0004623301367 | P22: =-L22/(1.202*2465560*MAX(0,(Inputs!$X$49-O22))) -> 0.9607872376 | Q22: =params!$C$15*P22*(E22-Inputs!$X$26) -> -34112.7198 | R22: -170049.4987
A23: 1999-01-01 | B23: 22:00:00 | C23: 0 | D23: 0 | E23: -9.4 | F23: -23.9 | G23: 26 | H23: =Inputs!$X$37*Inputs!$X$32*(E23-Inputs!$X$26) -> -104576.7006 | I23: =Inputs!$X$33*C23*Inputs!$X$38 -> 0 | J23: =params!$C$15*Inputs!$X$29*(E23-Inputs!$X$26) -> -10864.48035 | K23: =Inputs!$X$40*Inputs!$X$41/8760 -> 5342.465753 | L23: =-Inputs!$X$45*Inputs!$X$33 -> -30000 | M23: 299.4901605 | N23: 0.001843859935 | O23: 0.0004794035831 | P23: =-L23/(1.202*2465560*MAX(0,(Inputs!$X$49-O23))) -> 0.9623467139 | Q23: =params!$C$15*P23*(E23-Inputs!$X$26) -> -35446.00389 | R23: -175544.719
A24: 1999-01-01 | B24: 23:00:00 | C24: 0 | D24: 2 | E24: -10 | F24: -23.3 | G24: 29 | H24: =Inputs!$X$37*Inputs!$X$32*(E24-Inputs!$X$26) -> -106633.1979 | I24: =Inputs!$X$33*C24*Inputs!$X$38 -> 0 | J24: =params!$C$15*Inputs!$X$29*(E24-Inputs!$X$26) -> -11078.13 | K24: =Inputs!$X$40*Inputs!$X$41/8760 -> 5342.465753 | L24: =-Inputs!$X$45*Inputs!$X$33 -> -30000 | M24: 285.6569595 | N24: 0.0017584528 | O24: 0.0005099513119 | P24: =-L24/(1.202*2465560*MAX(0,(Inputs!$X$49-O24))) -> 0.9651495901 | Q24: =params!$C$15*P24*(E24-Inputs!$X$26) -> -36248.31657 | R24: -178617.1788
A25: 1999-01-01 | B25: 1 | C25: 0 | D25: 1 | E25: -10.6 | F25: -21.7 | G25: 36 | H25: =Inputs!$X$37*Inputs!$X$32*(E25-Inputs!$X$26) -> -108689.6953 | I25: =Inputs!$X$33*C25*Inputs!$X$38 -> 0 | J25: =params!$C$15*Inputs!$X$29*(E25-Inputs!$X$26) -> -11291.77965 | K25: =Inputs!$X$40*Inputs!$X$41/8760 -> 5342.465753 | L25: =-Inputs!$X$45*Inputs!$X$33 -> -30000 | M25: 272.3964376 | N25: 0.001676603376 | O25: 0.0006035772152 | P25: =-L25/(1.202*2465560*MAX(0,(Inputs!$X$49-O25))) -> 0.9738427623 | Q25: =params!$C$15*P25*(E25-Inputs!$X$26) -> -37280.17907 | R25: -181919.1883
A26: 1999-01-02 | B26: 01:00:00 | C26: 0 | D26: 1 | E26: -11.1 | F26: -21.1 | G26: 39 | H26: =Inputs!$X$37*Inputs!$X$32*(E26-Inputs!$X$26) -> -110403.4432 | I26: =Inputs!$X$33*C26*Inputs!$X$38 -> 0 | J26: =params!$C$15*Inputs!$X$29*(E26-Inputs!$X$26) -> -11469.82102 | K26: =Inputs!$X$40*Inputs!$X$41/8760 -> 5342.465753 | L26: =-Inputs!$X$45*Inputs!$X$33 -> -30000 | M26: 261.7684813 | N26: 0.001611018741 | O26: 0.0006282973091 | P26: =-L26/(1.202*2465560*MAX(0,(Inputs!$X$49-O26))) -> 0.9761642192 | Q26: =params!$C$15*P26*(E26-Inputs!$X$26) -> -37958.25861 | R26: -184489.057
A27: 1999-01-02 | B27: 02:00:00 | C27: 0 | D27: 4 | E27: -11.7 | F27: -21.1 | G27: 42 | H27: =Inputs!$X$37*Inputs!$X$32*(E27-Inputs!$X$26) -> -112459.9405 | I27: =Inputs!$X$33*C27*Inputs!$X$38 -> 0 | J27: =params!$C$15*Inputs!$X$29*(E27-Inputs!$X$26) -> -11683.47067 | K27: =Inputs!$X$40*Inputs!$X$41/8760 -> 5342.465753 | L27: =-Inputs!$X$45*Inputs!$X$33 -> -30000 | M27: 249.5044524 | N27: 0.001535355117 | O27: 0.0006448491492 | P27: =-L27/(1.202*2465560*MAX(0,(Inputs!$X$49-O27))) -> 0.977724794 | Q27: =params!$C$15*P27*(E27-Inputs!$X$26) -> -38727.12485 | R27: -187528.0703
A28: 1999-01-02 | B28: 03:00:00 | C28: 0 | D28: 0 | E28: -11.7 | F28: -20.6 | G28: 44 | H28: =Inputs!$X$37*Inputs!$X$32*(E28-Inputs!$X$26) -> -112459.9405 | I28: =Inputs!$X$33*C28*Inputs!$X$38 -> 0 | J28: =params!$C$15*Inputs!$X$29*(E28-Inputs!$X$26) -> -11683.47067 | K28: =Inputs!$X$40*Inputs!$X$41/8760 -> 5342.465753 | L28: =-Inputs!$X$45*Inputs!$X$33 -> -30000 | M28: 249.5044524 | N28: 0.001535355117 | O28: 0.0006755562515 | P28: =-L28/(1.202*2465560*MAX(0,(Inputs!$X$49-O28))) -> 0.980633239 | Q28: =params!$C$15*P28*(E28-Inputs!$X$26) -> -38842.32671 | R28: -187643.2722
A29: 1999-01-02 | B29: 04:00:00 | C29: 0 | D29: 1 | E29: -11.7 | F29: -20 | G29: 46 | H29: =Inputs!$X$37*Inputs!$X$32*(E29-Inputs!$X$26) -> -112459.9405 | I29: =Inputs!$X$33*C29*Inputs!$X$38 -> 0 | J29: =params!$C$15*Inputs!$X$29*(E29-Inputs!$X$26) -> -11683.47067 | K29: =Inputs!$X$40*Inputs!$X$41/8760 -> 5342.465753 | L29: =-Inputs!$X$45*Inputs!$X$33 -> -30000 | M29: 249.5044524 | N29: 0.001535355117 | O29: 0.0007062633539 | P29: =-L29/(1.202*2465560*MAX(0,(Inputs!$X$49-O29))) -> 0.9835590392 | Q29: =params!$C$15*P29*(E29-Inputs!$X$26) -> -38958.216 | R29: -187759.1615
A30: 1999-01-02 | B30: 05:00:00 | C30: 0 | D30: 1 | E30: -12.2 | F30: -19.4 | G30: 51 | H30: =Inputs!$X$37*Inputs!$X$32*(E30-Inputs!$X$26) -> -114173.6884 | I30: =Inputs!$X$33*C30*Inputs!$X$38 -> 0 | J30: =params!$C$15*Inputs!$X$29*(E30-Inputs!$X$26) -> -11861.51205 | K30: =Inputs!$X$40*Inputs!$X$41/8760 -> 5342.465753 | L30: =-Inputs!$X$45*Inputs!$X$33 -> -30000 | M30: 239.6790549 | N30: 0.001474750015 | O30: 0.0007521225076 | P30: =-L30/(1.202*2465560*MAX(0,(Inputs!$X$49-O30))) -> 0.9879611924 | Q30: =params!$C$15*P30*(E30-Inputs!$X$26) -> -39728.91406 | R30: -190421.6487
A31: 1999-01-02 | B31: 06:00:00 | C31: 0 | D31: 3 | E31: -11.7 | F31: -19.4 | G31: 49 | H31: =Inputs!$X$37*Inputs!$X$32*(E31-Inputs!$X$26) -> -112459.9405 | I31: =Inputs!$X$33*C31*Inputs!$X$38 -> 0 | J31: =params!$C$15*Inputs!$X$29*(E31-Inputs!$X$26) -> -11683.47067 | K31: =Inputs!$X$40*Inputs!$X$41/8760 -> 5342.465753 | L31: =-Inputs!$X$45*Inputs!$X$33 -> -30000 | M31: 249.5044524 | N31: 0.001535355117 | O31: 0.0007523240074 | P31: =-L31/(1.202*2465560*MAX(0,(Inputs!$X$49-O31))) -> 0.9879806219 | Q31: =params!$C$15*P31*(E31-Inputs!$X$26) -> -39133.35238 | R31: -187934.2979
A32: 1999-01-02 | B32: 07:00:00 | C32: 0 | D32: 3 | E32: -11.7 | F32: -19.4 | G32: 49 | H32: =Inputs!$X$37*Inputs!$X$32*(E32-Inputs!$X$26) -> -112459.9405 | I32: =Inputs!$X$33*C32*Inputs!$X$38 -> 0 | J32: =params!$C$15*Inputs!$X$29*(E32-Inputs!$X$26) -> -11683.47067 | K32: =Inputs!$X$40*Inputs!$X$41/8760 -> 5342.465753 | L32: =-Inputs!$X$45*Inputs!$X$33 -> -30000 | M32: 249.5044524 | N32: 0.001535355117 | O32: 0.0007523240074 | P32: =-L32/(1.202*2465560*MAX(0,(Inputs!$X$49-O32))) -> 0.9879806219 | Q32: =params!$C$15*P32*(E32-Inputs!$X$26) -> -39133.35238 | R32: -187934.2979
A33: 1999-01-02 | B33: 08:00:00 | C33: 5 | D33: 4 | E33: -11.1 | F33: -18.9 | G33: 49 | H33: =Inputs!$X$37*Inputs!$X$32*(E33-Inputs!$X$26) -> -110403.4432 | I33: =Inputs!$X$33*C33*Inputs!$X$38 -> 975.482864 | J33: =params!$C$15*Inputs!$X$29*(E33-Inputs!$X$26) -> -11469.82102 | K33: =Inputs!$X$40*Inputs!$X$41/8760 -> 5342.465753 | L33: =-Inputs!$X$45*Inputs!$X$33 -> -30000 | M33: 261.7684813 | N33: 0.001611018741 | O33: 0.0007893991832 | P33: =-L33/(1.202*2465560*MAX(0,(Inputs!$X$49-O33))) -> 0.9915686283 | Q33: =params!$C$15*P33*(E33-Inputs!$X$26) -> -38557.26084 | R33: -184112.5764
A34: 1999-01-02 | B34: 09:00:00 | C34: 148 | D34: 4 | E34: -10.6 | F34: -18.9 | G34: 47 | H34: =Inputs!$X$37*Inputs!$X$32*(E34-Inputs!$X$26) -> -108689.6953 | I34: =Inputs!$X$33*C34*Inputs!$X$38 -> 28874.29277 | J34: =params!$C$15*Inputs!$X$29*(E34-Inputs!$X$26) -> -11291.77965 | K34: =Inputs!$X$40*Inputs!$X$41/8760 -> 5342.465753 | L34: =-Inputs!$X$45*Inputs!$X$33 -> -30000 | M34: 272.3964376 | N34: 0.001676603376 | O34: 0.0007880035865 | P34: =-L34/(1.202*2465560*MAX(0,(Inputs!$X$49-O34))) -> 0.9914330953 | Q34: =params!$C$15*P34*(E34-Inputs!$X$26) -> -37953.56372 | R34: -153718.2802
A35: 1999-01-02 | B35: 10:00:00 | C35: 194 | D35: 8 | E35: -8.9 | F35: -18.9 | G35: 40 | H35: =Inputs!$X$37*Inputs!$X$32*(E35-Inputs!$X$26) -> -102862.9527 | I35: =Inputs!$X$33*C35*Inputs!$X$38 -> 37848.73512 | J35: =params!$C$15*Inputs!$X$29*(E35-Inputs!$X$26) -> -10686.43897 | K35: =Inputs!$X$40*Inputs!$X$41/8760 -> 5342.465753 | L35: =-Inputs!$X$45*Inputs!$X$33 -> -30000 | M35: 311.470704 | N35: 0.001917847538 | O35: 0.0007671390153 | P35: =-L35/(1.202*2465560*MAX(0,(Inputs!$X$49-O35))) -> 0.9894112473 | Q35: =params!$C$15*P35*(E35-Inputs!$X$26) -> -35845.66216 | R35: -136203.853
A36: 1999-01-02 | B36: 11:00:00 | C36: 314 | D36: 6 | E36: -8.3 | F36: -19.4 | G36: 36 | H36: =Inputs!$X$37*Inputs!$X$32*(E36-Inputs!$X$26) -> -100806.4553 | I36: =Inputs!$X$33*C36*Inputs!$X$38 -> 61260.32386 | J36: =params!$C$15*Inputs!$X$29*(E36-Inputs!$X$26) -> -10472.78932 | K36: =Inputs!$X$40*Inputs!$X$41/8760 -> 5342.465753 | L36: =-Inputs!$X$45*Inputs!$X$33 -> -30000 | M36: 326.4098523 | N36: 0.002010131029 | O36: 0.0007236471704 | P36: =-L36/(1.202*2465560*MAX(0,(Inputs!$X$49-O36))) -> 0.9852231375 | Q36: =params!$C$15*P36*(E36-Inputs!$X$26) -> -34980.31564 | R36: -109656.7707
A37: 1999-01-02 | B37: 12:00:00 | C37: 380 | D37: 5 | E37: -7.2 | F37: -18.3 | G37: 37 | H37: =Inputs!$X$37*Inputs!$X$32*(E37-Inputs!$X$26) -> -97036.21013 | I37: =Inputs!$X$33*C37*Inputs!$X$38 -> 74136.69767 | J37: =params!$C$15*Inputs!$X$29*(E37-Inputs!$X$26) -> -10081.0983 | K37: =Inputs!$X$40*Inputs!$X$41/8760 -> 5342.465753 | L37: =-Inputs!$X$45*Inputs!$X$33 -> -30000 | M37: 355.4643789 | N37: 0.002189687543 | O37: 0.0008101843909 | P37: =-L37/(1.202*2465560*MAX(0,(Inputs!$X$49-O37))) -> 0.9935915722 | Q37: =params!$C$15*P37*(E37-Inputs!$X$26) -> -33958.03119 | R37: -91596.1762
A38: 1999-01-02 | B38: 13:00:00 | C38: 331 | D38: 8 | E38: -6.1 | F38: -17.8 | G38: 35 | H38: =Inputs!$X$37*Inputs!$X$32*(E38-Inputs!$X$26) -> -93265.96492 | I38: =Inputs!$X$33*C38*Inputs!$X$38 -> 64576.9656 | J38: =params!$C$15*Inputs!$X$29*(E38-Inputs!$X$26) -> -9689.407275 | K38: =Inputs!$X$40*Inputs!$X$41/8760 -> 5342.465753 | L38: =-Inputs!$X$45*Inputs!$X$33 -> -30000 | M38: 386.7992221 | N38: 0.002383452234 | O38: 0.000834208282 | P38: =-L38/(1.202*2465560*MAX(0,(Inputs!$X$49-O38))) -> 0.9959400325 | Q38: =params!$C$15*P38*(E38-Inputs!$X$26) -> -32715.77064 | R38: -95751.71148
A39: 1999-01-02 | B39: 14:00:00 | C39: 221 | D39: 10 | E39: -6.1 | F39: -17.8 | G39: 35 | H39: =Inputs!$X$37*Inputs!$X$32*(E39-Inputs!$X$26) -> -93265.96492 | I39: =Inputs!$X$33*C39*Inputs!$X$38 -> 43116.34259 | J39: =params!$C$15*Inputs!$X$29*(E39-Inputs!$X$26) -> -9689.407275 | K39: =Inputs!$X$40*Inputs!$X$41/8760 -> 5342.465753 | L39: =-Inputs!$X$45*Inputs!$X$33 -> -30000 | M39: 386.7992221 | N39: 0.002383452234 | O39: 0.000834208282 | P39: =-L39/(1.202*2465560*MAX(0,(Inputs!$X$49-O39))) -> 0.9959400325 | Q39: =params!$C$15*P39*(E39-Inputs!$X$26) -> -32715.77064 | R39: -117212.3345
A40: 1999-01-02 | B40: 15:00:00 | C40: 85 | D40: 7 | E40: -6.1 | F40: -18.3 | G40: 33 | H40: =Inputs!$X$37*Inputs!$X$32*(E40-Inputs!$X$26) -> -93265.96492 | I40: =Inputs!$X$33*C40*Inputs!$X$38 -> 16583.20869 | J40: =params!$C$15*Inputs!$X$29*(E40-Inputs!$X$26) -> -9689.407275 | K40: =Inputs!$X$40*Inputs!$X$41/8760 -> 5342.465753 | L40: =-Inputs!$X$45*Inputs!$X$33 -> -30000 | M40: 386.7992221 | N40: 0.002383452234 | O40: 0.0007865392373 | P40: =-L40/(1.202*2465560*MAX(0,(Inputs!$X$49-O40))) -> 0.9912909253 | Q40: =params!$C$15*P40*(E40-Inputs!$X$26) -> -32563.05148 | R40: -143592.7492
A41: 1999-01-02 | B41: 16:00:00 | C41: 76 | D41: 8 | E41: -6.1 | F41: -17.8 | G41: 35 | H41: =Inputs!$X$37*Inputs!$X$32*(E41-Inputs!$X$26) -> -93265.96492 | I41: =Inputs!$X$33*C41*Inputs!$X$38 -> 14827.33953 | J41: =params!$C$15*Inputs!$X$29*(E41-Inputs!$X$26) -> -9689.407275 | K41: =Inputs!$X$40*Inputs!$X$41/8760 -> 5342.465753 | L41: =-Inputs!$X$45*Inputs!$X$33 -> -30000 | M41: 386.7992221 | N41: 0.002383452234 | O41: 0.000834208282 | P41: =-L41/(1.202*2465560*MAX(0,(Inputs!$X$49-O41))) -> 0.9959400325 | Q41: =params!$C$15*P41*(E41-Inputs!$X$26) -> -32715.77064 | R41: -145501.3375
A42: 1999-01-02 | B42: 17:00:00 | C42: 4 | D42: 10 | E42: -5.6 | F42: -18.3 | G42: 32 | H42: =Inputs!$X$37*Inputs!$X$32*(E42-Inputs!$X$26) -> -91552.21709 | I42: =Inputs!$X$33*C42*Inputs!$X$38 -> 780.3862912 | J42: =params!$C$15*Inputs!$X$29*(E42-Inputs!$X$26) -> -9511.3659 | K42: =Inputs!$X$40*Inputs!$X$41/8760 -> 5342.465753 | L42: =-Inputs!$X$45*Inputs!$X$33 -> -30000 | M42: 401.8374026 | N42: 0.002476486282 | O42: 0.0007924756101 | P42: =-L42/(1.202*2465560*MAX(0,(Inputs!$X$49-O42))) -> 0.9918675255 | Q42: =params!$C$15*P42*(E42-Inputs!$X$26) -> -31983.30318 | R42: -156924.0341
A43: 1999-01-02 | B43: 18:00:00 | C43: 0 | D43: 8 | E43: -5 | F43: -20 | G43: 26 | H43: =Inputs!$X$37*Inputs!$X$32*(E43-Inputs!$X$26) -> -89495.71971 | I43: =Inputs!$X$33*C43*Inputs!$X$38 -> 0 | J43: =params!$C$15*Inputs!$X$29*(E43-Inputs!$X$26) -> -9297.71625 | K43: =Inputs!$X$40*Inputs!$X$41/8760 -> 5342.465753 | L43: =-Inputs!$X$45*Inputs!$X$33 -> -30000 | M43: 420.5680235 | N43: 0.002592402475 | O43: 0.0006740246436 | P43: =-L43/(1.202*2465560*MAX(0,(Inputs!$X$49-O43))) -> 0.9804877617 | Q43: =params!$C$15*P43*(E43-Inputs!$X$26) -> -30906.17218 | R43: -154357.1424
A44: 1999-01-02 | B44: 19:00:00 | C44: 0 | D44: 10 | E44: -5 | F44: -19.4 | G44: 27 | H44: =Inputs!$X$37*Inputs!$X$32*(E44-Inputs!$X$26) -> -89495.71971 | I44: =Inputs!$X$33*C44*Inputs!$X$38 -> 0 | J44: =params!$C$15*Inputs!$X$29*(E44-Inputs!$X$26) -> -9297.71625 | K44: =Inputs!$X$40*Inputs!$X$41/8760 -> 5342.465753 | L44: =-Inputs!$X$45*Inputs!$X$33 -> -30000 | M44: 420.5680235 | N44: 0.002592402475 | O44: 0.0006999486683 | P44: =-L44/(1.202*2465560*MAX(0,(Inputs!$X$49-O44))) -> 0.9829559452 | Q44: =params!$C$15*P44*(E44-Inputs!$X$26) -> -30983.97234 | R44: -154434.9425
A45: 1999-01-02 | B45: 20:00:00 | C45: 0 | D45: 10 | E45: -4.4 | F45: -19.4 | G45: 26 | H45: =Inputs!$X$37*Inputs!$X$32*(E45-Inputs!$X$26) -> -87439.22232 | I45: =Inputs!$X$33*C45*Inputs!$X$38 -> 0 | J45: =params!$C$15*Inputs!$X$29*(E45-Inputs!$X$26) -> -9084.0666 | K45: =Inputs!$X$40*Inputs!$X$41/8760 -> 5342.465753 | L45: =-Inputs!$X$45*Inputs!$X$33 -> -30000 | M45: 440.0708849 | N45: 0.002713143493 | O45: 0.0007054173083 | P45: =-L45/(1.202*2465560*MAX(0,(Inputs!$X$49-O45))) -> 0.9834781934 | Q45: =params!$C$15*P45*(E45-Inputs!$X$26) -> -30288.08383 | R45: -151468.907
A46: 1999-01-02 | B46: 21:00:00 | C46: 0 | D46: 10 | E46: -4.4 | F46: -18.3 | G46: 29 | H46: =Inputs!$X$37*Inputs!$X$32*(E46-Inputs!$X$26) -> -87439.22232 | I46: =Inputs!$X$33*C46*Inputs!$X$38 -> 0 | J46: =params!$C$15*Inputs!$X$29*(E46-Inputs!$X$26) -> -9084.0666 | K46: =Inputs!$X$40*Inputs!$X$41/8760 -> 5342.465753 | L46: =-Inputs!$X$45*Inputs!$X$33 -> -30000 | M46: 440.0708849 | N46: 0.002713143493 | O46: 0.0007868116131 | P46: =-L46/(1.202*2465560*MAX(0,(Inputs!$X$49-O46))) -> 0.9913173665 | Q46: =params!$C$15*P46*(E46-Inputs!$X$26) -> -30529.5061 | R46: -151710.3293
A47: 1999-01-02 | B47: 22:00:00 | C47: 0 | D47: 10 | E47: -4.4 | F47: -18.3 | G47: 29 | H47: =Inputs!$X$37*Inputs!$X$32*(E47-Inputs!$X$26) -> -87439.22232 | I47: =Inputs!$X$33*C47*Inputs!$X$38 -> 0 | J47: =params!$C$15*Inputs!$X$29*(E47-Inputs!$X$26) -> -9084.0666 | K47: =Inputs!$X$40*Inputs!$X$41/8760 -> 5342.465753 | L47: =-Inputs!$X$45*Inputs!$X$33 -> -30000 | M47: 440.0708849 | N47: 0.002713143493 | O47: 0.0007868116131 | P47: =-L47/(1.202*2465560*MAX(0,(Inputs!$X$49-O47))) -> 0.9913173665 | Q47: =params!$C$15*P47*(E47-Inputs!$X$26) -> -30529.5061 | R47: -151710.3293
A48: 1999-01-02 | B48: 23:00:00 | C48: 0 | D48: 10 | E48: -4.4 | F48: -17.8 | G48: 30 | H48: =Inputs!$X$37*Inputs!$X$32*(E48-Inputs!$X$26) -> -87439.22232 | I48: =Inputs!$X$33*C48*Inputs!$X$38 -> 0 | J48: =params!$C$15*Inputs!$X$29*(E48-Inputs!$X$26) -> -9084.0666 | K48: =Inputs!$X$40*Inputs!$X$41/8760 -> 5342.465753 | L48: =-Inputs!$X$45*Inputs!$X$33 -> -30000 | M48: 440.0708849 | N48: 0.002713143493 | O48: 0.000813943048 | P48: =-L48/(1.202*2465560*MAX(0,(Inputs!$X$49-O48))) -> 0.9939582693 | Q48: =params!$C$15*P48*(E48-Inputs!$X$26) -> -30610.83773 | R48: -151791.6609
A49: 1999-01-02 | B49: 1 | C49: 0 | D49: 10 | E49: -3.9 | F49: -15.6 | G49: 35 | H49: =Inputs!$X$37*Inputs!$X$32*(E49-Inputs!$X$26) -> -85725.47449 | I49: =Inputs!$X$33*C49*Inputs!$X$38 -> 0 | J49: =params!$C$15*Inputs!$X$29*(E49-Inputs!$X$26) -> -8906.025225 | K49: =Inputs!$X$40*Inputs!$X$41/8760 -> 5342.465753 | L49: =-Inputs!$X$45*Inputs!$X$33 -> -30000 | M49: 456.9329299 | N49: 0.002817573014 | O49: 0.0009861505548 | P49: =-L49/(1.202*2465560*MAX(0,(Inputs!$X$49-O49))) -> 1.011054228 | Q49: =params!$C$15*P49*(E49-Inputs!$X$26) -> -30527.07017 | R49: -149816.1041
A50: 1999-01-03 | B50: 01:00:00 | C50: 0 | D50: 10 | E50: -3.9 | F50: -12.8 | G50: 46 | H50: =Inputs!$X$37*Inputs!$X$32*(E50-Inputs!$X$26) -> -85725.47449 | I50: =Inputs!$X$33*C50*Inputs!$X$38 -> 0 | J50: =params!$C$15*Inputs!$X$29*(E50-Inputs!$X$26) -> -8906.025225 | K50: =Inputs!$X$40*Inputs!$X$41/8760 -> 5342.465753 | L50: =-Inputs!$X$45*Inputs!$X$33 -> -30000 | M50: 456.9329299 | N50: 0.002817573014 | O50: 0.001296083586 | P50: =-L50/(1.202*2465560*MAX(0,(Inputs!$X$49-O50))) -> 1.043351954 | Q50: =params!$C$15*P50*(E50-Inputs!$X$26) -> -31502.24529 | R50: -150791.2793
A51: 1999-01-03 | B51: 02:00:00 | C51: 0 | D51: 10 | E51: -2.8 | F51: -8.3 | G51: 62 | H51: =Inputs!$X$37*Inputs!$X$32*(E51-Inputs!$X$26) -> -81955.22928 | I51: =Inputs!$X$33*C51*Inputs!$X$38 -> 0 | J51: =params!$C$15*Inputs!$X$29*(E51-Inputs!$X$26) -> -8514.3342 | K51: =Inputs!$X$40*Inputs!$X$41/8760 -> 5342.465753 | L51: =-Inputs!$X$45*Inputs!$X$33 -> -30000 | M51: 496.064949 | N51: 0.003060058869 | O51: 0.001897236499 | P51: =-L51/(1.202*2465560*MAX(0,(Inputs!$X$49-O51))) -> 1.11226862 | Q51: =params!$C$15*P51*(E51-Inputs!$X$26) -> -32106.0688 | R51: -147233.1665
A52: 1999-01-03 | B52: 03:00:00 | C52: 0 | D52: 10 | E52: -1.1 | F52: -5 | G52: 72 | H52: =Inputs!$X$37*Inputs!$X$32*(E52-Inputs!$X$26) -> -76128.48668 | I52: =Inputs!$X$33*C52*Inputs!$X$38 -> 0 | J52: =params!$C$15*Inputs!$X$29*(E52-Inputs!$X$26) -> -7908.993525 | K52: =Inputs!$X$40*Inputs!$X$41/8760 -> 5342.465753 | L52: =-Inputs!$X$45*Inputs!$X$33 -> -30000 | M52: 562.4064494 | N52: 0.003471581577 | O52: 0.002499538735 | P52: =-L52/(1.202*2465560*MAX(0,(Inputs!$X$49-O52))) -> 1.191094566 | Q52: =params!$C$15*P52*(E52-Inputs!$X$26) -> -31937.00731 | R52: -140632.0218
A53: 1999-01-03 | B53: 04:00:00 | C53: 0 | D53: 10 | E53: 2.2 | F53: 0 | G53: 85 | H53: =Inputs!$X$37*Inputs!$X$32*(E53-Inputs!$X$26) -> -64817.75104 | I53: =Inputs!$X$33*C53*Inputs!$X$38 -> 0 | J53: =params!$C$15*Inputs!$X$29*(E53-Inputs!$X$26) -> -6733.92045 | K53: =Inputs!$X$40*Inputs!$X$41/8760 -> 5342.465753 | L53: =-Inputs!$X$45*Inputs!$X$33 -> -30000 | M53: 714.0072365 | N53: 0.00441401291 | O53: 0.003751910973 | P53: =-L53/(1.202*2465560*MAX(0,(Inputs!$X$49-O53))) -> 1.396948327 | Q53: =params!$C$15*P53*(E53-Inputs!$X$26) -> -31891.50965 | R53: -128100.7154
A54: 1999-01-03 | B54: 05:00:00 | C54: 0 | D54: 10 | E54: 3.9 | F54: 0 | G54: 76 | H54: =Inputs!$X$37*Inputs!$X$32*(E54-Inputs!$X$26) -> -58991.00844 | I54: =Inputs!$X$33*C54*Inputs!$X$38 -> 0 | J54: =params!$C$15*Inputs!$X$29*(E54-Inputs!$X$26) -> -6128.579775 | K54: =Inputs!$X$40*Inputs!$X$41/8760 -> 5342.465753 | L54: =-Inputs!$X$45*Inputs!$X$33 -> -30000 | M54: 805.4021022 | N54: 0.004983545597 | O54: 0.003787494654 | P54: =-L54/(1.202*2465560*MAX(0,(Inputs!$X$49-O54))) -> 1.403841961 | Q54: =params!$C$15*P54*(E54-Inputs!$X$26) -> -29167.87683 | R54: -118944.9993
A55: 1999-01-03 | B55: 06:00:00 | C55: 0 | D55: 10 | E55: 4 | F55: 3 | G55: 93 | H55: =Inputs!$X$37*Inputs!$X$32*(E55-Inputs!$X$26) -> -58648.25887 | I55: =Inputs!$X$33*C55*Inputs!$X$38 -> 0 | J55: =params!$C$15*Inputs!$X$29*(E55-Inputs!$X$26) -> -6092.9715 | K55: =Inputs!$X$40*Inputs!$X$41/8760 -> 5342.465753 | L55: =-Inputs!$X$45*Inputs!$X$33 -> -30000 | M55: 811.0866761 | N55: 0.00501900358 | O55: 0.004667673329 | P55: =-L55/(1.202*2465560*MAX(0,(Inputs!$X$49-O55))) -> 1.599025527 | Q55: =params!$C$15*P55*(E55-Inputs!$X$26) -> -33030.20719 | R55: -122428.9718
A56: 1999-01-03 | B56: 07:00:00 | C56: 0 | D56: 10 | E56: 5.6 | F56: 4.4 | G56: 92 | H56: =Inputs!$X$37*Inputs!$X$32*(E56-Inputs!$X$26) -> -53164.26583 | I56: =Inputs!$X$33*C56*Inputs!$X$38 -> 0 | J56: =params!$C$15*Inputs!$X$29*(E56-Inputs!$X$26) -> -5523.2391 | K56: =Inputs!$X$40*Inputs!$X$41/8760 -> 5342.465753 | L56: =-Inputs!$X$45*Inputs!$X$33 -> -30000 | M56: 906.9908869 | N56: 0.005617818923 | O56: 0.00516839341 | P56: =-L56/(1.202*2465560*MAX(0,(Inputs!$X$49-O56))) -> 1.736363228 | Q56: =params!$C$15*P56*(E56-Inputs!$X$26) -> -32513.30952 | R56: -115858.3487
A57: 1999-01-03 | B57: 08:00:00 | C57: 1 | D57: 10 | E57: 7.8 | F57: 6.7 | G57: 93 | H57: =Inputs!$X$37*Inputs!$X$32*(E57-Inputs!$X$26) -> -45623.77541 | I57: =Inputs!$X$33*C57*Inputs!$X$38 -> 195.0965728 | J57: =params!$C$15*Inputs!$X$29*(E57-Inputs!$X$26) -> -4739.85705 | K57: =Inputs!$X$40*Inputs!$X$41/8760 -> 5342.465753 | L57: =-Inputs!$X$45*Inputs!$X$33 -> -30000 | M57: 1055.165351 | N57: 0.00654525608 | O57: 0.006087088154 | P57: =-L57/(1.202*2465560*MAX(0,(Inputs!$X$49-O57))) -> 2.061169412 | Q57: =params!$C$15*P57*(E57-Inputs!$X$26) -> -33121.17132 | R57: -107947.2415
A58: 1999-01-03 | B58: 09:00:00 | C58: 26 | D58: 10 | E58: 8.3 | F58: 7.2 | G58: 93 | H58: =Inputs!$X$37*Inputs!$X$32*(E58-Inputs!$X$26) -> -43910.02758 | I58: =Inputs!$X$33*C58*Inputs!$X$38 -> 5072.510893 | J58: =params!$C$15*Inputs!$X$29*(E58-Inputs!$X$26) -> -4561.815675 | K58: =Inputs!$X$40*Inputs!$X$41/8760 -> 5342.465753 | L58: =-Inputs!$X$45*Inputs!$X$33 -> -30000 | M58: 1091.677777 | N58: 0.006774211698 | O58: 0.00630001688 | P58: =-L58/(1.202*2465560*MAX(0,(Inputs!$X$49-O58))) -> 2.154582979 | Q58: =params!$C$15*P58*(E58-Inputs!$X$26) -> -33321.74313 | R58: -101378.6097
A59: 1999-01-03 | B59: 10:00:00 | C59: 48 | D59: 10 | E59: 10 | F59: 8.9 | G59: 93 | H59: =Inputs!$X$37*Inputs!$X$32*(E59-Inputs!$X$26) -> -38083.28498 | I59: =Inputs!$X$33*C59*Inputs!$X$38 -> 9364.635495 | J59: =params!$C$15*Inputs!$X$29*(E59-Inputs!$X$26) -> -3956.475 | K59: =Inputs!$X$40*Inputs!$X$41/8760 -> 5342.465753 | L59: =-Inputs!$X$45*Inputs!$X$33 -> -30000 | M59: 1224.291573 | N59: 0.007607187646 | O59: 0.007074684511 | P59: =-L59/(1.202*2465560*MAX(0,(Inputs!$X$49-O59))) -> 2.5799792 | Q59: =params!$C$15*P59*(E59-Inputs!$X$26) -> -34605.99852 | R59: -91938.65726
A60: 1999-01-03 | B60: 11:00:00 | C60: 64 | D60: 10 | E60: 12 | F60: 11 | G60: 94 | H60: =Inputs!$X$37*Inputs!$X$32*(E60-Inputs!$X$26) -> -31228.29368 | I60: =Inputs!$X$33*C60*Inputs!$X$38 -> 12486.18066 | J60: =params!$C$15*Inputs!$X$29*(E60-Inputs!$X$26) -> -3244.3095 | K60: =Inputs!$X$40*Inputs!$X$41/8760 -> 5342.465753 | L60: =-Inputs!$X$45*Inputs!$X$33 -> -30000 | M60: 1398.307927 | N60: 0.008703576056 | O60: 0.008181361493 | P60: =-L60/(1.202*2465560*MAX(0,(Inputs!$X$49-O60))) -> 3.593567788 | Q60: =params!$C$15*P60*(E60-Inputs!$X$26) -> -39525.27264 | R60: -86169.22941
A61: 1999-01-03 | B61: 12:00:00 | C61: 68 | D61: 10 | E61: 10.6 | F61: 10 | G61: 96 | H61: =Inputs!$X$37*Inputs!$X$32*(E61-Inputs!$X$26) -> -36026.78759 | I61: =Inputs!$X$33*C61*Inputs!$X$38 -> 13266.56695 | J61: =params!$C$15*Inputs!$X$29*(E61-Inputs!$X$26) -> -3742.82535 | K61: =Inputs!$X$40*Inputs!$X$41/8760 -> 5342.465753 | L61: =-Inputs!$X$45*Inputs!$X$33 -> -30000 | M61: 1274.374029 | N61: 0.007922340821 | O61: 0.007605447188 | P61: =-L61/(1.202*2465560*MAX(0,(Inputs!$X$49-O61))) -> 2.983581117 | Q61: =params!$C$15*P61*(E61-Inputs!$X$26) -> -37858.56657 | R61: -89019.14681
A62: 1999-01-03 | B62: 13:00:00 | C62: 77 | D62: 10 | E62: 10 | F62: 9.4 | G62: 96 | H62: =Inputs!$X$37*Inputs!$X$32*(E62-Inputs!$X$26) -> -38083.28498 | I62: =Inputs!$X$33*C62*Inputs!$X$38 -> 15022.43611 | J62: =params!$C$15*Inputs!$X$29*(E62-Inputs!$X$26) -> -3956.475 | K62: =Inputs!$X$40*Inputs!$X$41/8760 -> 5342.465753 | L62: =-Inputs!$X$45*Inputs!$X$33 -> -30000 | M62: 1224.291573 | N62: 0.007607187646 | O62: 0.00730290014 | P62: =-L62/(1.202*2465560*MAX(0,(Inputs!$X$49-O62))) -> 2.739310711 | Q62: =params!$C$15*P62*(E62-Inputs!$X$26) -> -36743.15762 | R62: -88418.01574
A63: 1999-01-03 | B63: 14:00:00 | C63: 63 | D63: 10 | E63: 10 | F63: 9.4 | G63: 96 | H63: =Inputs!$X$37*Inputs!$X$32*(E63-Inputs!$X$26) -> -38083.28498 | I63: =Inputs!$X$33*C63*Inputs!$X$38 -> 12291.08409 | J63: =params!$C$15*Inputs!$X$29*(E63-Inputs!$X$26) -> -3956.475 | K63: =Inputs!$X$40*Inputs!$X$41/8760 -> 5342.465753 | L63: =-Inputs!$X$45*Inputs!$X$33 -> -30000 | M63: 1224.291573 | N63: 0.007607187646 | O63: 0.00730290014 | P63: =-L63/(1.202*2465560*MAX(0,(Inputs!$X$49-O63))) -> 2.739310711 | Q63: =params!$C$15*P63*(E63-Inputs!$X$26) -> -36743.15762 | R63: -91149.36776
A64: 1999-01-03 | B64: 15:00:00 | C64: 43 | D64: 10 | E64: 10 | F64: 10 | G64: 100 | H64: =Inputs!$X$37*Inputs!$X$32*(E64-Inputs!$X$26) -> -38083.28498 | I64: =Inputs!$X$33*C64*Inputs!$X$38 -> 8389.152631 | J64: =params!$C$15*Inputs!$X$29*(E64-Inputs!$X$26) -> -3956.475 | K64: =Inputs!$X$40*Inputs!$X$41/8760 -> 5342.465753 | L64: =-Inputs!$X$45*Inputs!$X$33 -> -30000 | M64: 1224.291573 | N64: 0.007607187646 | O64: 0.007607187646 | P64: =-L64/(1.202*2465560*MAX(0,(Inputs!$X$49-O64))) -> 2.985112418 | Q64: =params!$C$15*P64*(E64-Inputs!$X$26) -> -40040.16619 | R64: -98348.30778
A65: 1999-01-03 | B65: 16:00:00 | C65: 54 | D65: 10 | E65: 10 | F65: 10 | G65: 100 | H65: =Inputs!$X$37*Inputs!$X$32*(E65-Inputs!$X$26) -> -38083.28498 | I65: =Inputs!$X$33*C65*Inputs!$X$38 -> 10535.21493 | J65: =params!$C$15*Inputs!$X$29*(E65-Inputs!$X$26) -> -3956.475 | K65: =Inputs!$X$40*Inputs!$X$41/8760 -> 5342.465753 | L65: =-Inputs!$X$45*Inputs!$X$33 -> -30000 | M65: 1224.291573 | N65: 0.007607187646 | O65: 0.007607187646 | P65: =-L65/(1.202*2465560*MAX(0,(Inputs!$X$49-O65))) -> 2.985112418 | Q65: =params!$C$15*P65*(E65-Inputs!$X$26) -> -40040.16619 | R65: -96202.24548
A66: 1999-01-03 | B66: 17:00:00 | C66: 3 | D66: 10 | E66: 5.6 | F66: 4.4 | G66: 92 | H66: =Inputs!$X$37*Inputs!$X$32*(E66-Inputs!$X$26) -> -53164.26583 | I66: =Inputs!$X$33*C66*Inputs!$X$38 -> 585.2897184 | J66: =params!$C$15*Inputs!$X$29*(E66-Inputs!$X$26) -> -5523.2391 | K66: =Inputs!$X$40*Inputs!$X$41/8760 -> 5342.465753 | L66: =-Inputs!$X$45*Inputs!$X$33 -> -30000 | M66: 906.9908869 | N66: 0.005617818923 | O66: 0.00516839341 | P66: =-L66/(1.202*2465560*MAX(0,(Inputs!$X$49-O66))) -> 1.736363228 | Q66: =params!$C$15*P66*(E66-Inputs!$X$26) -> -32513.30952 | R66: -115273.059
A67: 1999-01-03 | B67: 18:00:00 | C67: 0 | D67: 10 | E67: 6.1 | F67: 4.4 | G67: 89 | H67: =Inputs!$X$37*Inputs!$X$32*(E67-Inputs!$X$26) -> -51450.51801 | I67: =Inputs!$X$33*C67*Inputs!$X$38 -> 0 | J67: =params!$C$15*Inputs!$X$29*(E67-Inputs!$X$26) -> -5345.197725 | K67: =Inputs!$X$40*Inputs!$X$41/8760 -> 5342.465753 | L67: =-Inputs!$X$45*Inputs!$X$33 -> -30000 | M67: =EXP(77.345+0.0057*(E67+273.15)-7235/(E67+273.15))/(E67+273.15)^8.2 -> 938.9479383 | N67: =0.62198*M67/(101325-M67) -> 0.005817609386 | O67: =N67*G67/100 -> 0.005177672353 | P67: =-L67/(1.202*2465560*MAX(0,(Inputs!$X$49-O67))) -> 1.739131255 | Q67: =params!$C$15*P67*(E67-Inputs!$X$26) -> -31515.40476 | R67: =H67+I67+J67+K67+L67+Q67 -> -112968.6547
A68: 1999-01-03 | B68: 19:00:00 | C68: 0 | D68: 10 | E68: 7.8 | F68: 5.6 | G68: 86 | H68: =Inputs!$X$37*Inputs!$X$32*(E68-Inputs!$X$26) -> -45623.77541 | I68: =Inputs!$X$33*C68*Inputs!$X$38 -> 0 | J68: =params!$C$15*Inputs!$X$29*(E68-Inputs!$X$26) -> -4739.85705 | K68: =Inputs!$X$40*Inputs!$X$41/8760 -> 5342.465753 | L68: =-Inputs!$X$45*Inputs!$X$33 -> -30000 | M68: 1055.165351 | N68: 0.00654525608 | O68: 0.005628920229 | P68: =-L68/(1.202*2465560*MAX(0,(Inputs!$X$49-O68))) -> 1.885289882 | Q68: =params!$C$15*P68*(E68-Inputs!$X$26) -> -30294.94267 | R68: -105316.1094
A69: 1999-01-03 | B69: 20:00:00 | C69: 0 | D69: 10 | E69: 7.2 | F69: 5 | G69: 86 | H69: =Inputs!$X$37*Inputs!$X$32*(E69-Inputs!$X$26) -> -47680.2728 | I69: =Inputs!$X$33*C69*Inputs!$X$38 -> 0 | J69: =params!$C$15*Inputs!$X$29*(E69-Inputs!$X$26) -> -4953.5067 | K69: =Inputs!$X$40*Inputs!$X$41/8760 -> 5342.465753 | L69: =-Inputs!$X$45*Inputs!$X$33 -> -30000 | M69: 1012.775362 | N69: 0.00627965357 | O69: 0.00540050207 | P69: =-L69/(1.202*2465560*MAX(0,(Inputs!$X$49-O69))) -> 1.808360446 | Q69: =params!$C$15*P69*(E69-Inputs!$X$26) -> -30368.5816 | R69: -107659.8953
A70: 1999-01-03 | B70: 21:00:00 | C70: 0 | D70: 3 | E70: 5.6 | F70: 3.9 | G70: 89 | H70: =Inputs!$X$37*Inputs!$X$32*(E70-Inputs!$X$26) -> -53164.26583 | I70: =Inputs!$X$33*C70*Inputs!$X$38 -> 0 | J70: =params!$C$15*Inputs!$X$29*(E70-Inputs!$X$26) -> -5523.2391 | K70: =Inputs!$X$40*Inputs!$X$41/8760 -> 5342.465753 | L70: =-Inputs!$X$45*Inputs!$X$33 -> -30000 | M70: 906.9908869 | N70: 0.005617818923 | O70: 0.004999858842 | P70: =-L70/(1.202*2465560*MAX(0,(Inputs!$X$49-O70))) -> 1.687577577 | Q70: =params!$C$15*P70*(E70-Inputs!$X$26) -> -31599.80078 | R70: -114944.84
A71: 1999-01-03 | B71: 22:00:00 | C71: 0 | D71: 0 | E71: 3.3 | F71: 1.1 | G71: 85 | H71: =Inputs!$X$37*Inputs!$X$32*(E71-Inputs!$X$26) -> -61047.50582 | I71: =Inputs!$X$33*C71*Inputs!$X$38 -> 0 | J71: =params!$C$15*Inputs!$X$29*(E71-Inputs!$X$26) -> -6342.229425 | K71: =Inputs!$X$40*Inputs!$X$41/8760 -> 5342.465753 | L71: =-Inputs!$X$45*Inputs!$X$33 -> -30000 | M71: 772.0284298 | N71: 0.004775455516 | O71: 0.004059137189 | P71: =-L71/(1.202*2465560*MAX(0,(Inputs!$X$49-O71))) -> 1.458797279 | Q71: =params!$C$15*P71*(E71-Inputs!$X$26) -> -31366.32566 | R71: -123413.5952
A72: 1999-01-03 | B72: 23:00:00 | C72: 0 | D72: 0 | E72: 1.1 | F72: -0.6 | G72: 88 | H72: =Inputs!$X$37*Inputs!$X$32*(E72-Inputs!$X$26) -> -68587.99625 | I72: =Inputs!$X$33*C72*Inputs!$X$38 -> 0 | J72: =params!$C$15*Inputs!$X$29*(E72-Inputs!$X$26) -> -7125.611475 | K72: =Inputs!$X$40*Inputs!$X$41/8760 -> 5342.465753 | L72: =-Inputs!$X$45*Inputs!$X$33 -> -30000 | M72: 659.8793327 | N72: 0.004077199179 | O72: 0.003587935278 | P72: =-L72/(1.202*2465560*MAX(0,(Inputs!$X$49-O72))) -> 1.366036762 | Q72: =params!$C$15*P72*(E72-Inputs!$X$26) -> -32999.79788 | R72: -133370.9399
A73: 1999-01-03 | B73: 1 | C73: 0 | D73: 0 | E73: 0.6 | F73: -2.2 | G73: 80 | H73: =Inputs!$X$37*Inputs!$X$32*(E73-Inputs!$X$26) -> -70301.74408 | I73: =Inputs!$X$33*C73*Inputs!$X$38 -> 0 | J73: =params!$C$15*Inputs!$X$29*(E73-Inputs!$X$26) -> -7303.65285 | K73: =Inputs!$X$40*Inputs!$X$41/8760 -> 5342.465753 | L73: =-Inputs!$X$45*Inputs!$X$33 -> -30000 | M73: 636.5009754 | N73: 0.0039318381 | O73: 0.00314547048 | P73: =-L73/(1.202*2465560*MAX(0,(Inputs!$X$49-O73))) -> 1.289067795 | Q73: =params!$C$15*P73*(E73-Inputs!$X$26) -> -31918.51188 | R73: -134181.4431
A74: 1999-01-04 | B74: 01:00:00 | C74: 0 | D74: 0 | E74: 0 | F74: -3.3 | G74: 76 | H74: =Inputs!$X$37*Inputs!$X$32*(E74-Inputs!$X$26) -> -72358.24146 | I74: =Inputs!$X$33*C74*Inputs!$X$38 -> 0 | J74: =params!$C$15*Inputs!$X$29*(E74-Inputs!$X$26) -> -7517.3025 | K74: =Inputs!$X$40*Inputs!$X$41/8760 -> 5342.465753 | L74: =-Inputs!$X$45*Inputs!$X$33 -> -30000 | M74: 609.4177359 | N74: 0.003763525314 | O74: 0.002860279239 | P74: =-L74/(1.202*2465560*MAX(0,(Inputs!$X$49-O74))) -> 1.243893244 | Q74: =params!$C$15*P74*(E74-Inputs!$X$26) -> -31700.92176 | R74: -136234
A75: 1999-01-04 | B75: 02:00:00 | C75: 0 | D75: 0 | E75: -0.5 | F75: -4.4 | G75: 72 | H75: =Inputs!$X$37*Inputs!$X$32*(E75-Inputs!$X$26) -> -74071.98929 | I75: =Inputs!$X$33*C75*Inputs!$X$38 -> 0 | J75: =params!$C$15*Inputs!$X$29*(E75-Inputs!$X$26) -> -7695.343875 | K75: =Inputs!$X$40*Inputs!$X$41/8760 -> 5342.465753 | L75: =-Inputs!$X$45*Inputs!$X$33 -> -30000 | M75: 587.6338325 | N75: 0.003628211706 | O75: 0.002612312428 | P75: =-L75/(1.202*2465560*MAX(0,(Inputs!$X$49-O75))) -> 1.207112279 | Q75: =params!$C$15*P75*(E75-Inputs!$X$26) -> -31492.16031 | R75: -137917.0277
A76: 1999-01-04 | B76: 03:00:00 | C76: 0 | D76: 0 | E76: -1.1 | F76: -6.7 | G76: 62 | H76: =Inputs!$X$37*Inputs!$X$32*(E76-Inputs!$X$26) -> -76128.48668 | I76: =Inputs!$X$33*C76*Inputs!$X$38 -> 0 | J76: =params!$C$15*Inputs!$X$29*(E76-Inputs!$X$26) -> -7908.993525 | K76: =Inputs!$X$40*Inputs!$X$41/8760 -> 5342.465753 | L76: =-Inputs!$X$45*Inputs!$X$33 -> -30000 | M76: 562.4064494 | N76: 0.003471581577 | O76: 0.002152380578 | P76: =-L76/(1.202*2465560*MAX(0,(Inputs!$X$49-O76))) -> 1.144349985 | Q76: =params!$C$15*P76*(E76-Inputs!$X$26) -> -30683.63745 | R76: -139378.6519
A77: 1999-01-04 | B77: 04:00:00 | C77: 0 | D77: 0 | E77: -1.7 | F77: -8.3 | G77: 57 | H77: =Inputs!$X$37*Inputs!$X$32*(E77-Inputs!$X$26) -> -78184.98407 | I77: =Inputs!$X$33*C77*Inputs!$X$38 -> 0 | J77: =params!$C$15*Inputs!$X$29*(E77-Inputs!$X$26) -> -8122.643175 | K77: =Inputs!$X$40*Inputs!$X$41/8760 -> 5342.465753 | L77: =-Inputs!$X$45*Inputs!$X$33 -> -30000 | M77: 538.144313 | N77: 0.003321018376 | O77: 0.001892980474 | P77: =-L77/(1.202*2465560*MAX(0,(Inputs!$X$49-O77))) -> 1.111748721 | Q77: =params!$C$15*P77*(E77-Inputs!$X$26) -> -30614.75357 | R77: -141579.9151
A78: 1999-01-04 | B78: 05:00:00 | C78: 0 | D78: 0 | E78: -2.8 | F78: -9.4 | G78: 57 | H78: =Inputs!$X$37*Inputs!$X$32*(E78-Inputs!$X$26) -> -81955.22928 | I78: =Inputs!$X$33*C78*Inputs!$X$38 -> 0 | J78: =params!$C$15*Inputs!$X$29*(E78-Inputs!$X$26) -> -8514.3342 | K78: =Inputs!$X$40*Inputs!$X$41/8760 -> 5342.465753 | L78: =-Inputs!$X$45*Inputs!$X$33 -> -30000 | M78: 496.064949 | N78: 0.003060058869 | O78: 0.001744233556 | P78: =-L78/(1.202*2465560*MAX(0,(Inputs!$X$49-O78))) -> 1.093878801 | Q78: =params!$C$15*P78*(E78-Inputs!$X$26) -> -31575.23947 | R78: -146702.3372
A79: 1999-01-04 | B79: 06:00:00 | C79: 0 | D79: 0 | E79: -3.3 | F79: -11.7 | G79: 48 | H79: =Inputs!$X$37*Inputs!$X$32*(E79-Inputs!$X$26) -> -83668.9771 | I79: =Inputs!$X$33*C79*Inputs!$X$38 -> 0 | J79: =params!$C$15*Inputs!$X$29*(E79-Inputs!$X$26) -> -8692.375575 | K79: =Inputs!$X$40*Inputs!$X$41/8760 -> 5342.465753 | L79: =-Inputs!$X$45*Inputs!$X$33 -> -30000 | M79: 477.9233457 | N79: 0.002947619033 | O79: 0.001414857136 | P79: =-L79/(1.202*2465560*MAX(0,(Inputs!$X$49-O79))) -> 1.056282879 | Q79: =params!$C$15*P79*(E79-Inputs!$X$26) -> -31127.58857 | R79: -148146.4755
A80: 1999-01-04 | B80: 07:00:00 | C80: 0 | D80: 0 | E80: -3.9 | F80: -13.3 | G80: 44 | H80: =Inputs!$X$37*Inputs!$X$32*(E80-Inputs!$X$26) -> -85725.47449 | I80: =Inputs!$X$33*C80*Inputs!$X$38 -> 0 | J80: =params!$C$15*Inputs!$X$29*(E80-Inputs!$X$26) -> -8906.025225 | K80: =Inputs!$X$40*Inputs!$X$41/8760 -> 5342.465753 | L80: =-Inputs!$X$45*Inputs!$X$33 -> -30000 | M80: 456.9329299 | N80: 0.002817573014 | O80: 0.001239732126 | P80: =-L80/(1.202*2465560*MAX(0,(Inputs!$X$49-O80))) -> 1.037327045 | Q80: =params!$C$15*P80*(E80-Inputs!$X$26) -> -31320.33336 | R80: -150609.3673
A81: 1999-01-04 | B81: 08:00:00 | C81: 4 | D81: 2 | E81: -3.9 | F81: -13.3 | G81: 44 | H81: =Inputs!$X$37*Inputs!$X$32*(E81-Inputs!$X$26) -> -85725.47449 | I81: =Inputs!$X$33*C81*Inputs!$X$38 -> 780.3862912 | J81: =params!$C$15*Inputs!$X$29*(E81-Inputs!$X$26) -> -8906.025225 | K81: =Inputs!$X$40*Inputs!$X$41/8760 -> 5342.465753 | L81: =-Inputs!$X$45*Inputs!$X$33 -> -30000 | M81: 456.9329299 | N81: 0.002817573014 | O81: 0.001239732126 | P81: =-L81/(1.202*2465560*MAX(0,(Inputs!$X$49-O81))) -> 1.037327045 | Q81: =params!$C$15*P81*(E81-Inputs!$X$26) -> -31320.33336 | R81: -149828.981
A82: 1999-01-04 | B82: 09:00:00 | C82: 105 | D82: 1 | E82: -3.3 | F82: -12.8 | G82: 44 | H82: =Inputs!$X$37*Inputs!$X$32*(E82-Inputs!$X$26) -> -83668.9771 | I82: =Inputs!$X$33*C82*Inputs!$X$38 -> 20485.14014 | J82: =params!$C$15*Inputs!$X$29*(E82-Inputs!$X$26) -> -8692.375575 | K82: =Inputs!$X$40*Inputs!$X$41/8760 -> 5342.465753 | L82: =-Inputs!$X$45*Inputs!$X$33 -> -30000 | M82: 477.9233457 | N82: 0.002947619033 | O82: 0.001296952375 | P82: =-L82/(1.202*2465560*MAX(0,(Inputs!$X$49-O82))) -> 1.043445389 | Q82: =params!$C$15*P82*(E82-Inputs!$X$26) -> -30749.28073 | R82: -127283.0275
A83: 1999-01-04 | B83: 10:00:00 | C83: 284 | D83: 1 | E83: -3.3 | F83: -11.7 | G83: 48 | H83: =Inputs!$X$37*Inputs!$X$32*(E83-Inputs!$X$26) -> -83668.9771 | I83: =Inputs!$X$33*C83*Inputs!$X$38 -> 55407.42668 | J83: =params!$C$15*Inputs!$X$29*(E83-Inputs!$X$26) -> -8692.375575 | K83: =Inputs!$X$40*Inputs!$X$41/8760 -> 5342.465753 | L83: =-Inputs!$X$45*Inputs!$X$33 -> -30000 | M83: 477.9233457 | N83: 0.002947619033 | O83: 0.001414857136 | P83: =-L83/(1.202*2465560*MAX(0,(Inputs!$X$49-O83))) -> 1.056282879 | Q83: =params!$C$15*P83*(E83-Inputs!$X$26) -> -31127.58857 | R83: -92739.04882
A84: 1999-01-04 | B84: 11:00:00 | C84: 378 | D84: 1 | E84: -2.8 | F84: -11.7 | G84: 46 | H84: =Inputs!$X$37*Inputs!$X$32*(E84-Inputs!$X$26) -> -81955.22928 | I84: =Inputs!$X$33*C84*Inputs!$X$38 -> 73746.50452 | J84: =params!$C$15*Inputs!$X$29*(E84-Inputs!$X$26) -> -8514.3342 | K84: =Inputs!$X$40*Inputs!$X$41/8760 -> 5342.465753 | L84: =-Inputs!$X$45*Inputs!$X$33 -> -30000 | M84: 496.064949 | N84: 0.003060058869 | O84: 0.00140762708 | P84: =-L84/(1.202*2465560*MAX(0,(Inputs!$X$49-O84))) -> 1.055486585 | Q84: =params!$C$15*P84*(E84-Inputs!$X$26) -> -30467.03314 | R84: -71847.62635
A85: 1999-01-04 | B85: 12:00:00 | C85: 387 | D85: 2 | E85: -2.8 | F85: -12.2 | G85: 44 | H85: =Inputs!$X$37*Inputs!$X$32*(E85-Inputs!$X$26) -> -81955.22928 | I85: =Inputs!$X$33*C85*Inputs!$X$38 -> 75502.37367 | J85: =params!$C$15*Inputs!$X$29*(E85-Inputs!$X$26) -> -8514.3342 | K85: =Inputs!$X$40*Inputs!$X$41/8760 -> 5342.465753 | L85: =-Inputs!$X$45*Inputs!$X$33 -> -30000 | M85: 496.064949 | N85: 0.003060058869 | O85: 0.001346425903 | P85: =-L85/(1.202*2465560*MAX(0,(Inputs!$X$49-O85))) -> 1.048793884 | Q85: =params!$C$15*P85*(E85-Inputs!$X$26) -> -30273.84571 | R85: -69898.56976
A86: 1999-01-04 | B86: 13:00:00 | C86: 308 | D86: 2 | E86: -2.2 | F86: -11.1 | G86: 46 | H86: =Inputs!$X$37*Inputs!$X$32*(E86-Inputs!$X$26) -> -79898.73189 | I86: =Inputs!$X$33*C86*Inputs!$X$38 -> 60089.74442 | J86: =params!$C$15*Inputs!$X$29*(E86-Inputs!$X$26) -> -8300.68455 | K86: =Inputs!$X$40*Inputs!$X$41/8760 -> 5342.465753 | L86: =-Inputs!$X$45*Inputs!$X$33 -> -30000 | M86: 518.6400606 | N86: 0.003200033659 | O86: 0.001472015483 | P86: =-L86/(1.202*2465560*MAX(0,(Inputs!$X$49-O86))) -> 1.062620656 | Q86: =params!$C$15*P86*(E86-Inputs!$X$26) -> -29903.28622 | R86: -82670.49248
A87: 1999-01-04 | B87: 14:00:00 | C87: 364 | D87: 3 | E87: -1.7 | F87: -11.1 | G87: 44 | H87: =Inputs!$X$37*Inputs!$X$32*(E87-Inputs!$X$26) -> -78184.98407 | I87: =Inputs!$X$33*C87*Inputs!$X$38 -> 71015.1525 | J87: =params!$C$15*Inputs!$X$29*(E87-Inputs!$X$26) -> -8122.643175 | K87: =Inputs!$X$40*Inputs!$X$41/8760 -> 5342.465753 | L87: =-Inputs!$X$45*Inputs!$X$33 -> -30000 | M87: 538.144313 | N87: 0.003321018376 | O87: 0.001461248085 | P87: =-L87/(1.202*2465560*MAX(0,(Inputs!$X$49-O87))) -> 1.061420948 | Q87: =params!$C$15*P87*(E87-Inputs!$X$26) -> -29228.85374 | R87: -69178.86273
A88: 1999-01-04 | B88: 15:00:00 | C88: 261 | D88: 3 | E88: -1.7 | F88: -14.4 | G88: 33 | H88: =Inputs!$X$37*Inputs!$X$32*(E88-Inputs!$X$26) -> -78184.98407 | I88: =Inputs!$X$33*C88*Inputs!$X$38 -> 50920.2055 | J88: =params!$C$15*Inputs!$X$29*(E88-Inputs!$X$26) -> -8122.643175 | K88: =Inputs!$X$40*Inputs!$X$41/8760 -> 5342.465753 | L88: =-Inputs!$X$45*Inputs!$X$33 -> -30000 | M88: 538.144313 | N88: 0.003321018376 | O88: 0.001095936064 | P88: =-L88/(1.202*2465560*MAX(0,(Inputs!$X$49-O88))) -> 1.022263597 | Q88: =params!$C$15*P88*(E88-Inputs!$X$26) -> -28150.55913 | R88: -88195.51512
A89: 1999-01-04 | B89: 16:00:00 | C89: 118 | D89: 3 | E89: -2.2 | F89: -14.4 | G89: 34 | H89: =Inputs!$X$37*Inputs!$X$32*(E89-Inputs!$X$26) -> -79898.73189 | I89: =Inputs!$X$33*C89*Inputs!$X$38 -> 23021.39559 | J89: =params!$C$15*Inputs!$X$29*(E89-Inputs!$X$26) -> -8300.68455 | K89: =Inputs!$X$40*Inputs!$X$41/8760 -> 5342.465753 | L89: =-Inputs!$X$45*Inputs!$X$33 -> -30000 | M89: 518.6400606 | N89: 0.003200033659 | O89: 0.001088011444 | P89: =-L89/(1.202*2465560*MAX(0,(Inputs!$X$49-O89))) -> 1.021446158 | Q89: =params!$C$15*P89*(E89-Inputs!$X$26) -> -28744.59163 | R89: -118580.1467
A90: 1999-01-04 | B90: 17:00:00 | C90: 6 | D90: 3 | E90: -2.8 | F90: -14.4 | G90: 36 | H90: =Inputs!$X$37*Inputs!$X$32*(E90-Inputs!$X$26) -> -81955.22928 | I90: =Inputs!$X$33*C90*Inputs!$X$38 -> 1170.579437 | J90: =params!$C$15*Inputs!$X$29*(E90-Inputs!$X$26) -> -8514.3342 | K90: =Inputs!$X$40*Inputs!$X$41/8760 -> 5342.465753 | L90: =-Inputs!$X$45*Inputs!$X$33 -> -30000 | M90: 496.064949 | N90: 0.003060058869 | O90: 0.001101621193 | P90: =-L90/(1.202*2465560*MAX(0,(Inputs!$X$49-O90))) -> 1.022850835 | Q90: =params!$C$15*P90*(E90-Inputs!$X$26) -> -29524.98946 | R90: -143481.5078
A91: 1999-01-04 | B91: 18:00:00 | C91: 0 | D91: 3 | E91: -3.3 | F91: -14.4 | G91: 38 | H91: =Inputs!$X$37*Inputs!$X$32*(E91-Inputs!$X$26) -> -83668.9771 | I91: =Inputs!$X$33*C91*Inputs!$X$38 -> 0 | J91: =params!$C$15*Inputs!$X$29*(E91-Inputs!$X$26) -> -8692.375575 | K91: =Inputs!$X$40*Inputs!$X$41/8760 -> 5342.465753 | L91: =-Inputs!$X$45*Inputs!$X$33 -> -30000 | M91: 477.9233457 | N91: 0.002947619033 | O91: 0.001120095233 | P91: =-L91/(1.202*2465560*MAX(0,(Inputs!$X$49-O91))) -> 1.024763755 | Q91: =params!$C$15*P91*(E91-Inputs!$X$26) -> -30198.75185 | R91: -147217.6388
A92: 1999-01-04 | B92: 19:00:00 | C92: 0 | D92: 2 | E92: -3.3 | F92: -14.4 | G92: 38 | H92: =Inputs!$X$37*Inputs!$X$32*(E92-Inputs!$X$26) -> -83668.9771 | I92: =Inputs!$X$33*C92*Inputs!$X$38 -> 0 | J92: =params!$C$15*Inputs!$X$29*(E92-Inputs!$X$26) -> -8692.375575 | K92: =Inputs!$X$40*Inputs!$X$41/8760 -> 5342.465753 | L92: =-Inputs!$X$45*Inputs!$X$33 -> -30000 | M92: 477.9233457 | N92: 0.002947619033 | O92: 0.001120095233 | P92: =-L92/(1.202*2465560*MAX(0,(Inputs!$X$49-O92))) -> 1.024763755 | Q92: =params!$C$15*P92*(E92-Inputs!$X$26) -> -30198.75185 | R92: -147217.6388
A93: 1999-01-04 | B93: 20:00:00 | C93: 0 | D93: 3 | E93: -3.9 | F93: -13.9 | G93: 41 | H93: =Inputs!$X$37*Inputs!$X$32*(E93-Inputs!$X$26) -> -85725.47449 | I93: =Inputs!$X$33*C93*Inputs!$X$38 -> 0 | J93: =params!$C$15*Inputs!$X$29*(E93-Inputs!$X$26) -> -8906.025225 | K93: =Inputs!$X$40*Inputs!$X$41/8760 -> 5342.465753 | L93: =-Inputs!$X$45*Inputs!$X$33 -> -30000 | M93: 456.9329299 | N93: 0.002817573014 | O93: 0.001155204936 | P93: =-L93/(1.202*2465560*MAX(0,(Inputs!$X$49-O93))) -> 1.028419028 | Q93: =params!$C$15*P93*(E93-Inputs!$X$26) -> -31051.37088 | R93: -150340.4048
A94: 1999-01-04 | B94: 21:00:00 | C94: 0 | D94: 0 | E94: -4.4 | F94: -15.6 | G94: 37 | H94: =Inputs!$X$37*Inputs!$X$32*(E94-Inputs!$X$26) -> -87439.22232 | I94: =Inputs!$X$33*C94*Inputs!$X$38 -> 0 | J94: =params!$C$15*Inputs!$X$29*(E94-Inputs!$X$26) -> -9084.0666 | K94: =Inputs!$X$40*Inputs!$X$41/8760 -> 5342.465753 | L94: =-Inputs!$X$45*Inputs!$X$33 -> -30000 | M94: 440.0708849 | N94: 0.002713143493 | O94: 0.001003863093 | P94: =-L94/(1.202*2465560*MAX(0,(Inputs!$X$49-O94))) -> 1.012846061 | Q94: =params!$C$15*P94*(E94-Inputs!$X$26) -> -31192.52324 | R94: -152373.3464
A95: 1999-01-04 | B95: 22:00:00 | C95: 0 | D95: 0 | E95: -5 | F95: -15.6 | G95: 39 | H95: =Inputs!$X$37*Inputs!$X$32*(E95-Inputs!$X$26) -> -89495.71971 | I95: =Inputs!$X$33*C95*Inputs!$X$38 -> 0 | J95: =params!$C$15*Inputs!$X$29*(E95-Inputs!$X$26) -> -9297.71625 | K95: =Inputs!$X$40*Inputs!$X$41/8760 -> 5342.465753 | L95: =-Inputs!$X$45*Inputs!$X$33 -> -30000 | M95: 420.5680235 | N95: 0.002592402475 | O95: 0.001011036965 | P95: =-L95/(1.202*2465560*MAX(0,(Inputs!$X$49-O95))) -> 1.013573592 | Q95: =params!$C$15*P95*(E95-Inputs!$X$26) -> -31949.07796 | R95: -155400.0482
A96: 1999-01-04 | B96: 23:00:00 | C96: 0 | D96: 0 | E96: -5.6 | F96: -15.6 | G96: 41 | H96: =Inputs!$X$37*Inputs!$X$32*(E96-Inputs!$X$26) -> -91552.21709 | I96: =Inputs!$X$33*C96*Inputs!$X$38 -> 0 | J96: =params!$C$15*Inputs!$X$29*(E96-Inputs!$X$26) -> -9511.3659 | K96: =Inputs!$X$40*Inputs!$X$41/8760 -> 5342.465753 | L96: =-Inputs!$X$45*Inputs!$X$33 -> -30000 | M96: 401.8374026 | N96: 0.002476486282 | O96: 0.001015359375 | P96: =-L96/(1.202*2465560*MAX(0,(Inputs!$X$49-O96))) -> 1.014012449 | Q96: =params!$C$15*P96*(E96-Inputs!$X$26) -> -32697.37817 | R96: -158418.4954
A97: 1999-01-04 | B97: 1 | C97: 0 | D97: 0 | E97: -6.1 | F97: -15.6 | G97: 43 | H97: =Inputs!$X$37*Inputs!$X$32*(E97-Inputs!$X$26) -> -93265.96492 | I97: =Inputs!$X$33*C97*Inputs!$X$38 -> 0 | J97: =params!$C$15*Inputs!$X$29*(E97-Inputs!$X$26) -> -9689.407275 | K97: =Inputs!$X$40*Inputs!$X$41/8760 -> 5342.465753 | L97: =-Inputs!$X$45*Inputs!$X$33 -> -30000 | M97: 386.7992221 | N97: 0.002383452234 | O97: 0.001024884461 | P97: =-L97/(1.202*2465560*MAX(0,(Inputs!$X$49-O97))) -> 1.01498088 | Q97: =params!$C$15*P97*(E97-Inputs!$X$26) -> -33341.24605 | R97: -160954.1525
A98: 1999-01-05 | B98: 01:00:00 | C98: 0 | D98: 0 | E98: -6.1 | F98: -15.6 | G98: 43 | H98: =Inputs!$X$37*Inputs!$X$32*(E98-Inputs!$X$26) -> -93265.96492 | I98: =Inputs!$X$33*C98*Inputs!$X$38 -> 0 | J98: =params!$C$15*Inputs!$X$29*(E98-Inputs!$X$26) -> -9689.407275 | K98: =Inputs!$X$40*Inputs!$X$41/8760 -> 5342.465753 | L98: =-Inputs!$X$45*Inputs!$X$33 -> -30000 | M98: 386.7992221 | N98: 0.002383452234 | O98: 0.001024884461 | P98: =-L98/(1.202*2465560*MAX(0,(Inputs!$X$49-O98))) -> 1.01498088 | Q98: =params!$C$15*P98*(E98-Inputs!$X$26) -> -33341.24605 | R98: -160954.1525
A99: 1999-01-05 | B99: 02:00:00 | C99: 0 | D99: 0 | E99: -6.7 | F99: -15 | G99: 48 | H99: =Inputs!$X$37*Inputs!$X$32*(E99-Inputs!$X$26) -> -95322.46231 | I99: =Inputs!$X$33*C99*Inputs!$X$38 -> 0 | J99: =params!$C$15*Inputs!$X$29*(E99-Inputs!$X$26) -> -9903.056925 | K99: =Inputs!$X$40*Inputs!$X$41/8760 -> 5342.465753 | L99: =-Inputs!$X$45*Inputs!$X$33 -> -30000 | M99: 369.4157643 | N99: 0.002275943612 | O99: 0.001092452934 | P99: =-L99/(1.202*2465560*MAX(0,(Inputs!$X$49-O99))) -> 1.021904145 | Q99: =params!$C$15*P99*(E99-Inputs!$X$26) -> -34308.8523 | R99: -164191.9058
A100: 1999-01-05 | B100: 03:00:00 | C100: 0 | D100: 0 | E100: -7.2 | F100: -15 | G100: 50 | H100: =Inputs!$X$37*Inputs!$X$32*(E100-Inputs!$X$26) -> -97036.21013 | I100: =Inputs!$X$33*C100*Inputs!$X$38 -> 0 | J100: =params!$C$15*Inputs!$X$29*(E100-Inputs!$X$26) -> -10081.0983 | K100: =Inputs!$X$40*Inputs!$X$41/8760 -> 5342.465753 | L100: =-Inputs!$X$45*Inputs!$X$33 -> -30000 | M100: 355.4643789 | N100: 0.002189687543 | O100: 0.001094843771 | P100: =-L100/(1.202*2465560*MAX(0,(Inputs!$X$49-O100))) -> 1.022150847 | Q100: =params!$C$15*P100*(E100-Inputs!$X$26) -> -34934.10303 | R100: -166708.9457
A101: 1999-01-05 | B101: 04:00:00 | C101: 0 | D101: 0 | E101: -7.2 | F101: -15 | G101: 50 | H101: =Inputs!$X$37*Inputs!$X$32*(E101-Inputs!$X$26) -> -97036.21013 | I101: =Inputs!$X$33*C101*Inputs!$X$38 -> 0 | J101: =params!$C$15*Inputs!$X$29*(E101-Inputs!$X$26) -> -10081.0983 | K101: =Inputs!$X$40*Inputs!$X$41/8760 -> 5342.465753 | L101: =-Inputs!$X$45*Inputs!$X$33 -> -30000 | M101: 355.4643789 | N101: 0.002189687543 | O101: 0.001094843771 | P101: =-L101/(1.202*2465560*MAX(0,(Inputs!$X$49-O101))) -> 1.022150847 | Q101: =params!$C$15*P101*(E101-Inputs!$X$26) -> -34934.10303 | R101: -166708.9457
A102: 1999-01-05 | B102: 05:00:00 | C102: 0 | D102: 0 | E102: -7.8 | F102: -15 | G102: 52 | H102: =Inputs!$X$37*Inputs!$X$32*(E102-Inputs!$X$26) -> -99092.70752 | I102: =Inputs!$X$33*C102*Inputs!$X$38 -> 0 | J102: =params!$C$15*Inputs!$X$29*(E102-Inputs!$X$26) -> -10294.74795 | K102: =Inputs!$X$40*Inputs!$X$41/8760 -> 5342.465753 | L102: =-Inputs!$X$45*Inputs!$X$33 -> -30000 | M102: 339.3432476 | N102: 0.002090046447 | O102: 0.001086824153 | P102: =-L102/(1.202*2465560*MAX(0,(Inputs!$X$49-O102))) -> 1.021323799 | Q102: =params!$C$15*P102*(E102-Inputs!$X$26) -> -35645.59959 | R102: -169690.5893
A103: 1999-01-05 | B103: 06:00:00 | C103: 0 | D103: 0 | E103: -7.8 | F103: -15 | G103: 52 | H103: =Inputs!$X$37*Inputs!$X$32*(E103-Inputs!$X$26) -> -99092.70752 | I103: =Inputs!$X$33*C103*Inputs!$X$38 -> 0 | J103: =params!$C$15*Inputs!$X$29*(E103-Inputs!$X$26) -> -10294.74795 | K103: =Inputs!$X$40*Inputs!$X$41/8760 -> 5342.465753 | L103: =-Inputs!$X$45*Inputs!$X$33 -> -30000 | M103: 339.3432476 | N103: 0.002090046447 | O103: 0.001086824153 | P103: =-L103/(1.202*2465560*MAX(0,(Inputs!$X$49-O103))) -> 1.021323799 | Q103: =params!$C$15*P103*(E103-Inputs!$X$26) -> -35645.59959 | R103: -169690.5893
A104: 1999-01-05 | B104: 07:00:00 | C104: 0 | D104: 3 | E104: -7.8 | F104: -14.4 | G104: 55 | H104: =Inputs!$X$37*Inputs!$X$32*(E104-Inputs!$X$26) -> -99092.70752 | I104: =Inputs!$X$33*C104*Inputs!$X$38 -> 0 | J104: =params!$C$15*Inputs!$X$29*(E104-Inputs!$X$26) -> -10294.74795 | K104: =Inputs!$X$40*Inputs!$X$41/8760 -> 5342.465753 | L104: =-Inputs!$X$45*Inputs!$X$33 -> -30000 | M104: 339.3432476 | N104: 0.002090046447 | O104: 0.001149525546 | P104: =-L104/(1.202*2465560*MAX(0,(Inputs!$X$49-O104))) -> 1.027825979 | Q104: =params!$C$15*P104*(E104-Inputs!$X$26) -> -35872.5346 | R104: -169917.5243
A105: 1999-01-05 | B105: 08:00:00 | C105: 5 | D105: 3 | E105: -7.2 | F105: -14.4 | G105: 53 | H105: =Inputs!$X$37*Inputs!$X$32*(E105-Inputs!$X$26) -> -97036.21013 | I105: =Inputs!$X$33*C105*Inputs!$X$38 -> 975.482864 | J105: =params!$C$15*Inputs!$X$29*(E105-Inputs!$X$26) -> -10081.0983 | K105: =Inputs!$X$40*Inputs!$X$41/8760 -> 5342.465753 | L105: =-Inputs!$X$45*Inputs!$X$33 -> -30000 | M105: 355.4643789 | N105: 0.002189687543 | O105: 0.001160534398 | P105: =-L105/(1.202*2465560*MAX(0,(Inputs!$X$49-O105))) -> 1.028976159 | Q105: =params!$C$15*P105*(E105-Inputs!$X$26) -> -35167.37207 | R105: -165966.7319
A106: 1999-01-05 | B106: 09:00:00 | C106: 140 | D106: 0 | E106: -6.7 | F106: -13.9 | G106: 53 | H106: =Inputs!$X$37*Inputs!$X$32*(E106-Inputs!$X$26) -> -95322.46231 | I106: =Inputs!$X$33*C106*Inputs!$X$38 -> 27313.52019 | J106: =params!$C$15*Inputs!$X$29*(E106-Inputs!$X$26) -> -9903.056925 | K106: =Inputs!$X$40*Inputs!$X$41/8760 -> 5342.465753 | L106: =-Inputs!$X$45*Inputs!$X$33 -> -30000 | M106: 369.4157643 | N106: 0.002275943612 | O106: 0.001206250115 | P106: =-L106/(1.202*2465560*MAX(0,(Inputs!$X$49-O106))) -> 1.033780102 | Q106: =params!$C$15*P106*(E106-Inputs!$X$26) -> -34707.56921 | R106: -137277.1025
A107: 1999-01-05 | B107: 10:00:00 | C107: 270 | D107: 0 | E107: -5 | F107: -13.9 | G107: 46 | H107: =Inputs!$X$37*Inputs!$X$32*(E107-Inputs!$X$26) -> -89495.71971 | I107: =Inputs!$X$33*C107*Inputs!$X$38 -> 52676.07466 | J107: =params!$C$15*Inputs!$X$29*(E107-Inputs!$X$26) -> -9297.71625 | K107: =Inputs!$X$40*Inputs!$X$41/8760 -> 5342.465753 | L107: =-Inputs!$X$45*Inputs!$X$33 -> -30000 | M107: 420.5680235 | N107: 0.002592402475 | O107: 0.001192505139 | P107: =-L107/(1.202*2465560*MAX(0,(Inputs!$X$49-O107))) -> 1.03233103 | Q107: =params!$C$15*P107*(E107-Inputs!$X$26) -> -32540.33533 | R107: -103315.2309
A108: 1999-01-05 | B108: 11:00:00 | C108: 372 | D108: 0 | E108: -3.9 | F108: -13.3 | G108: 44 | H108: =Inputs!$X$37*Inputs!$X$32*(E108-Inputs!$X$26) -> -85725.47449 | I108: =Inputs!$X$33*C108*Inputs!$X$38 -> 72575.92508 | J108: =params!$C$15*Inputs!$X$29*(E108-Inputs!$X$26) -> -8906.025225 | K108: =Inputs!$X$40*Inputs!$X$41/8760 -> 5342.465753 | L108: =-Inputs!$X$45*Inputs!$X$33 -> -30000 | M108: 456.9329299 | N108: 0.002817573014 | O108: 0.001239732126 | P108: =-L108/(1.202*2465560*MAX(0,(Inputs!$X$49-O108))) -> 1.037327045 | Q108: =params!$C$15*P108*(E108-Inputs!$X$26) -> -31320.33336 | R108: -78033.44224
A109: 1999-01-05 | B109: 12:00:00 | C109: 436 | D109: 0 | E109: -3.3 | F109: -13.9 | G109: 39 | H109: =Inputs!$X$37*Inputs!$X$32*(E109-Inputs!$X$26) -> -83668.9771 | I109: =Inputs!$X$33*C109*Inputs!$X$38 -> 85062.10574 | J109: =params!$C$15*Inputs!$X$29*(E109-Inputs!$X$26) -> -8692.375575 | K109: =Inputs!$X$40*Inputs!$X$41/8760 -> 5342.465753 | L109: =-Inputs!$X$45*Inputs!$X$33 -> -30000 | M109: 477.9233457 | N109: 0.002947619033 | O109: 0.001149571423 | P109: =-L109/(1.202*2465560*MAX(0,(Inputs!$X$49-O109))) -> 1.027830767 | Q109: =params!$C$15*P109*(E109-Inputs!$X$26) -> -30289.1336 | R109: -62245.91478
A110: 1999-01-05 | B110: 13:00:00 | C110: 415 | D110: 0 | E110: -2.2 | F110: -13.9 | G110: 36 | H110: =Inputs!$X$37*Inputs!$X$32*(E110-Inputs!$X$26) -> -79898.73189 | I110: =Inputs!$X$33*C110*Inputs!$X$38 -> 80965.07771 | J110: =params!$C$15*Inputs!$X$29*(E110-Inputs!$X$26) -> -8300.68455 | K110: =Inputs!$X$40*Inputs!$X$41/8760 -> 5342.465753 | L110: =-Inputs!$X$45*Inputs!$X$33 -> -30000 | M110: 518.6400606 | N110: 0.003200033659 | O110: 0.001152012117 | P110: =-L110/(1.202*2465560*MAX(0,(Inputs!$X$49-O110))) -> 1.028085546 | Q110: =params!$C$15*P110*(E110-Inputs!$X$26) -> -28931.43115 | R110: -60823.30412
A111: 1999-01-05 | B111: 14:00:00 | C111: 358 | D111: 0 | E111: -1.7 | F111: -13.9 | G111: 34 | H111: =Inputs!$X$37*Inputs!$X$32*(E111-Inputs!$X$26) -> -78184.98407 | I111: =Inputs!$X$33*C111*Inputs!$X$38 -> 69844.57306 | J111: =params!$C$15*Inputs!$X$29*(E111-Inputs!$X$26) -> -8122.643175 | K111: =Inputs!$X$40*Inputs!$X$41/8760 -> 5342.465753 | L111: =-Inputs!$X$45*Inputs!$X$33 -> -30000 | M111: 538.144313 | N111: 0.003321018376 | O111: 0.001129146248 | P111: =-L111/(1.202*2465560*MAX(0,(Inputs!$X$49-O111))) -> 1.025703568 | Q111: =params!$C$15*P111*(E111-Inputs!$X$26) -> -28245.28726 | R111: -69365.87569
A112: 1999-01-05 | B112: 15:00:00 | C112: 251 | D112: 3 | E112: -1.7 | F112: -15 | G112: 31 | H112: =Inputs!$X$37*Inputs!$X$32*(E112-Inputs!$X$26) -> -78184.98407 | I112: =Inputs!$X$33*C112*Inputs!$X$38 -> 48969.23977 | J112: =params!$C$15*Inputs!$X$29*(E112-Inputs!$X$26) -> -8122.643175 | K112: =Inputs!$X$40*Inputs!$X$41/8760 -> 5342.465753 | L112: =-Inputs!$X$45*Inputs!$X$33 -> -30000 | M112: 538.144313 | N112: 0.003321018376 | O112: 0.001029515697 | P112: =-L112/(1.202*2465560*MAX(0,(Inputs!$X$49-O112))) -> 1.015452414 | Q112: =params!$C$15*P112*(E112-Inputs!$X$26) -> -27962.99635 | R112: -89958.91807
A113: 1999-01-05 | B113: 16:00:00 | C113: 128 | D113: 3 | E113: -2.2 | F113: -15 | G113: 32 | H113: =Inputs!$X$37*Inputs!$X$32*(E113-Inputs!$X$26) -> -79898.73189 | I113: =Inputs!$X$33*C113*Inputs!$X$38 -> 24972.36132 | J113: =params!$C$15*Inputs!$X$29*(E113-Inputs!$X$26) -> -8300.68455 | K113: =Inputs!$X$40*Inputs!$X$41/8760 -> 5342.465753 | L113: =-Inputs!$X$45*Inputs!$X$33 -> -30000 | M113: 518.6400606 | N113: 0.003200033659 | O113: 0.001024010771 | P113: =-L113/(1.202*2465560*MAX(0,(Inputs!$X$49-O113))) -> 1.014891974 | Q113: =params!$C$15*P113*(E113-Inputs!$X$26) -> -28560.14986 | R113: -116444.7392
A114: 1999-01-05 | B114: 17:00:00 | C114: 5 | D114: 3 | E114: -2.8 | F114: -15 | G114: 34 | H114: =Inputs!$X$37*Inputs!$X$32*(E114-Inputs!$X$26) -> -81955.22928 | I114: =Inputs!$X$33*C114*Inputs!$X$38 -> 975.482864 | J114: =params!$C$15*Inputs!$X$29*(E114-Inputs!$X$26) -> -8514.3342 | K114: =Inputs!$X$40*Inputs!$X$41/8760 -> 5342.465753 | L114: =-Inputs!$X$45*Inputs!$X$33 -> -30000 | M114: 496.064949 | N114: 0.003060058869 | O114: 0.001040420016 | P114: =-L114/(1.202*2465560*MAX(0,(Inputs!$X$49-O114))) -> 1.016564381 | Q114: =params!$C$15*P114*(E114-Inputs!$X$26) -> -29343.5285 | R114: -143495.1434
A115: 1999-01-05 | B115: 18:00:00 | C115: 0 | D115: 3 | E115: -3.9 | F115: -14.4 | G115: 40 | H115: =Inputs!$X$37*Inputs!$X$32*(E115-Inputs!$X$26) -> -85725.47449 | I115: =Inputs!$X$33*C115*Inputs!$X$38 -> 0 | J115: =params!$C$15*Inputs!$X$29*(E115-Inputs!$X$26) -> -8906.025225 | K115: =Inputs!$X$40*Inputs!$X$41/8760 -> 5342.465753 | L115: =-Inputs!$X$45*Inputs!$X$33 -> -30000 | M115: 456.9329299 | N115: 0.002817573014 | O115: 0.001127029205 | P115: =-L115/(1.202*2465560*MAX(0,(Inputs!$X$49-O115))) -> 1.025483591 | Q115: =params!$C$15*P115*(E115-Inputs!$X$26) -> -30962.74033 | R115: -150251.7743
A116: 1999-01-05 | B116: 19:00:00 | C116: 0 | D116: 4 | E116: -3.3 | F116: -14.4 | G116: 38 | H116: =Inputs!$X$37*Inputs!$X$32*(E116-Inputs!$X$26) -> -83668.9771 | I116: =Inputs!$X$33*C116*Inputs!$X$38 -> 0 | J116: =params!$C$15*Inputs!$X$29*(E116-Inputs!$X$26) -> -8692.375575 | K116: =Inputs!$X$40*Inputs!$X$41/8760 -> 5342.465753 | L116: =-Inputs!$X$45*Inputs!$X$33 -> -30000 | M116: 477.9233457 | N116: 0.002947619033 | O116: 0.001120095233 | P116: =-L116/(1.202*2465560*MAX(0,(Inputs!$X$49-O116))) -> 1.024763755 | Q116: =params!$C$15*P116*(E116-Inputs!$X$26) -> -30198.75185 | R116: -147217.6388
A117: 1999-01-05 | B117: 20:00:00 | C117: 0 | D117: 3 | E117: -4.4 | F117: -14.4 | G117: 41 | H117: =Inputs!$X$37*Inputs!$X$32*(E117-Inputs!$X$26) -> -87439.22232 | I117: =Inputs!$X$33*C117*Inputs!$X$38 -> 0 | J117: =params!$C$15*Inputs!$X$29*(E117-Inputs!$X$26) -> -9084.0666 | K117: =Inputs!$X$40*Inputs!$X$41/8760 -> 5342.465753 | L117: =-Inputs!$X$45*Inputs!$X$33 -> -30000 | M117: 440.0708849 | N117: 0.002713143493 | O117: 0.001112388832 | P117: =-L117/(1.202*2465560*MAX(0,(Inputs!$X$49-O117))) -> 1.023964916 | Q117: =params!$C$15*P117*(E117-Inputs!$X$26) -> -31534.94956 | R117: -152715.7727
A118: 1999-01-05 | B118: 21:00:00 | C118: 0 | D118: 3 | E118: -3.9 | F118: -14.4 | G118: 40 | H118: =Inputs!$X$37*Inputs!$X$32*(E118-Inputs!$X$26) -> -85725.47449 | I118: =Inputs!$X$33*C118*Inputs!$X$38 -> 0 | J118: =params!$C$15*Inputs!$X$29*(E118-Inputs!$X$26) -> -8906.025225 | K118: =Inputs!$X$40*Inputs!$X$41/8760 -> 5342.465753 | L118: =-Inputs!$X$45*Inputs!$X$33 -> -30000 | M118: 456.9329299 | N118: 0.002817573014 | O118: 0.001127029205 | P118: =-L118/(1.202*2465560*MAX(0,(Inputs!$X$49-O118))) -> 1.025483591 | Q118: =params!$C$15*P118*(E118-Inputs!$X$26) -> -30962.74033 | R118: -150251.7743
A119: 1999-01-05 | B119: 22:00:00 | C119: 0 | D119: 3 | E119: -3.9 | F119: -12.8 | G119: 46 | H119: =Inputs!$X$37*Inputs!$X$32*(E119-Inputs!$X$26) -> -85725.47449 | I119: =Inputs!$X$33*C119*Inputs!$X$38 -> 0 | J119: =params!$C$15*Inputs!$X$29*(E119-Inputs!$X$26) -> -8906.025225 | K119: =Inputs!$X$40*Inputs!$X$41/8760 -> 5342.465753 | L119: =-Inputs!$X$45*Inputs!$X$33 -> -30000 | M119: 456.9329299 | N119: 0.002817573014 | O119: 0.001296083586 | P119: =-L119/(1.202*2465560*MAX(0,(Inputs!$X$49-O119))) -> 1.043351954 | Q119: =params!$C$15*P119*(E119-Inputs!$X$26) -> -31502.24529 | R119: -150791.2793
A120: 1999-01-05 | B120: 23:00:00 | C120: 0 | D120: 0 | E120: -4.4 | F120: -13.3 | G120: 46 | H120: =Inputs!$X$37*Inputs!$X$32*(E120-Inputs!$X$26) -> -87439.22232 | I120: =Inputs!$X$33*C120*Inputs!$X$38 -> 0 | J120: =params!$C$15*Inputs!$X$29*(E120-Inputs!$X$26) -> -9084.0666 | K120: =Inputs!$X$40*Inputs!$X$41/8760 -> 5342.465753 | L120: =-Inputs!$X$45*Inputs!$X$33 -> -30000 | M120: 440.0708849 | N120: 0.002713143493 | O120: 0.001248046007 | P120: =-L120/(1.202*2465560*MAX(0,(Inputs!$X$49-O120))) -> 1.038211557 | Q120: =params!$C$15*P120*(E120-Inputs!$X$26) -> -31973.70201 | R120: -153154.5252
A121: 1999-01-05 | B121: 1 | C121: 0 | D121: 0 | E121: -4.4 | F121: -13.3 | G121: 46 | H121: =Inputs!$X$37*Inputs!$X$32*(E121-Inputs!$X$26) -> -87439.22232 | I121: =Inputs!$X$33*C121*Inputs!$X$38 -> 0 | J121: =params!$C$15*Inputs!$X$29*(E121-Inputs!$X$26) -> -9084.0666 | K121: =Inputs!$X$40*Inputs!$X$41/8760 -> 5342.465753 | L121: =-Inputs!$X$45*Inputs!$X$33 -> -30000 | M121: 440.0708849 | N121: 0.002713143493 | O121: 0.001248046007 | P121: =-L121/(1.202*2465560*MAX(0,(Inputs!$X$49-O121))) -> 1.038211557 | Q121: =params!$C$15*P121*(E121-Inputs!$X$26) -> -31973.70201 | R121: -153154.5252
A122: 1999-01-06 | B122: 01:00:00 | C122: 0 | D122: 0 | E122: -5.6 | F122: -11.1 | G122: 62 | H122: =Inputs!$X$37*Inputs!$X$32*(E122-Inputs!$X$26) -> -91552.21709 | I122: =Inputs!$X$33*C122*Inputs!$X$38 -> 0 | J122: =params!$C$15*Inputs!$X$29*(E122-Inputs!$X$26) -> -9511.3659 | K122: =Inputs!$X$40*Inputs!$X$41/8760 -> 5342.465753 | L122: =-Inputs!$X$45*Inputs!$X$33 -> -30000 | M122: 401.8374026 | N122: 0.002476486282 | O122: 0.001535421495 | P122: =-L122/(1.202*2465560*MAX(0,(Inputs!$X$49-O122))) -> 1.069740754 | Q122: =params!$C$15*P122*(E122-Inputs!$X$26) -> -34494.36743 | R122: -160215.4847
A123: 1999-01-06 | B123: 02:00:00 | C123: 0 | D123: 0 | E123: -5 | F123: -12.8 | G123: 50 | H123: =Inputs!$X$37*Inputs!$X$32*(E123-Inputs!$X$26) -> -89495.71971 | I123: =Inputs!$X$33*C123*Inputs!$X$38 -> 0 | J123: =params!$C$15*Inputs!$X$29*(E123-Inputs!$X$26) -> -9297.71625 | K123: =Inputs!$X$40*Inputs!$X$41/8760 -> 5342.465753 | L123: =-Inputs!$X$45*Inputs!$X$33 -> -30000 | M123: 420.5680235 | N123: 0.002592402475 | O123: 0.001296201238 | P123: =-L123/(1.202*2465560*MAX(0,(Inputs!$X$49-O123))) -> 1.043364606 | Q123: =params!$C$15*P123*(E123-Inputs!$X$26) -> -32888.12712 | R123: -156339.0973
A124: 1999-01-06 | B124: 03:00:00 | C124: 0 | D124: 0 | E124: -6.1 | F124: -11.7 | G124: 61 | H124: =Inputs!$X$37*Inputs!$X$32*(E124-Inputs!$X$26) -> -93265.96492 | I124: =Inputs!$X$33*C124*Inputs!$X$38 -> 0 | J124: =params!$C$15*Inputs!$X$29*(E124-Inputs!$X$26) -> -9689.407275 | K124: =Inputs!$X$40*Inputs!$X$41/8760 -> 5342.465753 | L124: =-Inputs!$X$45*Inputs!$X$33 -> -30000 | M124: 386.7992221 | N124: 0.002383452234 | O124: 0.001453905863 | P124: =-L124/(1.202*2465560*MAX(0,(Inputs!$X$49-O124))) -> 1.060604427 | Q124: =params!$C$15*P124*(E124-Inputs!$X$26) -> -34839.94019 | R124: -162452.8466
A125: 1999-01-06 | B125: 04:00:00 | C125: 0 | D125: 0 | E125: -6.7 | F125: -11.7 | G125: 64 | H125: =Inputs!$X$37*Inputs!$X$32*(E125-Inputs!$X$26) -> -95322.46231 | I125: =Inputs!$X$33*C125*Inputs!$X$38 -> 0 | J125: =params!$C$15*Inputs!$X$29*(E125-Inputs!$X$26) -> -9903.056925 | K125: =Inputs!$X$40*Inputs!$X$41/8760 -> 5342.465753 | L125: =-Inputs!$X$45*Inputs!$X$33 -> -30000 | M125: 369.4157643 | N125: 0.002275943612 | O125: 0.001456603912 | P125: =-L125/(1.202*2465560*MAX(0,(Inputs!$X$49-O125))) -> 1.060904328 | Q125: =params!$C$15*P125*(E125-Inputs!$X$26) -> -35618.22319 | R125: -165501.2767
A126: 1999-01-06 | B126: 05:00:00 | C126: 0 | D126: 0 | E126: -7.2 | F126: -11.7 | G126: 67 | H126: =Inputs!$X$37*Inputs!$X$32*(E126-Inputs!$X$26) -> -97036.21013 | I126: =Inputs!$X$33*C126*Inputs!$X$38 -> 0 | J126: =params!$C$15*Inputs!$X$29*(E126-Inputs!$X$26) -> -10081.0983 | K126: =Inputs!$X$40*Inputs!$X$41/8760 -> 5342.465753 | L126: =-Inputs!$X$45*Inputs!$X$33 -> -30000 | M126: 355.4643789 | N126: 0.002189687543 | O126: 0.001467090654 | P126: =-L126/(1.202*2465560*MAX(0,(Inputs!$X$49-O126))) -> 1.062071593 | Q126: =params!$C$15*P126*(E126-Inputs!$X$26) -> -36298.47645 | R126: -168073.3191
A127: 1999-01-06 | B127: 06:00:00 | C127: 0 | D127: 1 | E127: -7.2 | F127: -12.8 | G127: 61 | H127: =Inputs!$X$37*Inputs!$X$32*(E127-Inputs!$X$26) -> -97036.21013 | I127: =Inputs!$X$33*C127*Inputs!$X$38 -> 0 | J127: =params!$C$15*Inputs!$X$29*(E127-Inputs!$X$26) -> -10081.0983 | K127: =Inputs!$X$40*Inputs!$X$41/8760 -> 5342.465753 | L127: =-Inputs!$X$45*Inputs!$X$33 -> -30000 | M127: 355.4643789 | N127: 0.002189687543 | O127: 0.001335709401 | P127: =-L127/(1.202*2465560*MAX(0,(Inputs!$X$49-O127))) -> 1.047630695 | Q127: =params!$C$15*P127*(E127-Inputs!$X$26) -> -35804.92913 | R127: -167579.7718
A128: 1999-01-06 | B128: 07:00:00 | C128: 0 | D128: 3 | E128: -7.2 | F128: -11.7 | G128: 67 | H128: =Inputs!$X$37*Inputs!$X$32*(E128-Inputs!$X$26) -> -97036.21013 | I128: =Inputs!$X$33*C128*Inputs!$X$38 -> 0 | J128: =params!$C$15*Inputs!$X$29*(E128-Inputs!$X$26) -> -10081.0983 | K128: =Inputs!$X$40*Inputs!$X$41/8760 -> 5342.465753 | L128: =-Inputs!$X$45*Inputs!$X$33 -> -30000 | M128: 355.4643789 | N128: 0.002189687543 | O128: 0.001467090654 | P128: =-L128/(1.202*2465560*MAX(0,(Inputs!$X$49-O128))) -> 1.062071593 | Q128: =params!$C$15*P128*(E128-Inputs!$X$26) -> -36298.47645 | R128: -168073.3191
A129: 1999-01-06 | B129: 08:00:00 | C129: 5 | D129: 0 | E129: -6.7 | F129: -11.1 | G129: 68 | H129: =Inputs!$X$37*Inputs!$X$32*(E129-Inputs!$X$26) -> -95322.46231 | I129: =Inputs!$X$33*C129*Inputs!$X$38 -> 975.482864 | J129: =params!$C$15*Inputs!$X$29*(E129-Inputs!$X$26) -> -9903.056925 | K129: =Inputs!$X$40*Inputs!$X$41/8760 -> 5342.465753 | L129: =-Inputs!$X$45*Inputs!$X$33 -> -30000 | M129: 369.4157643 | N129: 0.002275943612 | O129: 0.001547641656 | P129: =-L129/(1.202*2465560*MAX(0,(Inputs!$X$49-O129))) -> 1.071123983 | Q129: =params!$C$15*P129*(E129-Inputs!$X$26) -> -35961.33232 | R129: -164868.9029
A130: 1999-01-06 | B130: 09:00:00 | C130: 131 | D130: 0 | E130: -5 | F130: -12.8 | G130: 50 | H130: =Inputs!$X$37*Inputs!$X$32*(E130-Inputs!$X$26) -> -89495.71971 | I130: =Inputs!$X$33*C130*Inputs!$X$38 -> 25557.65104 | J130: =params!$C$15*Inputs!$X$29*(E130-Inputs!$X$26) -> -9297.71625 | K130: =Inputs!$X$40*Inputs!$X$41/8760 -> 5342.465753 | L130: =-Inputs!$X$45*Inputs!$X$33 -> -30000 | M130: 420.5680235 | N130: 0.002592402475 | O130: 0.001296201238 | P130: =-L130/(1.202*2465560*MAX(0,(Inputs!$X$49-O130))) -> 1.043364606 | Q130: =params!$C$15*P130*(E130-Inputs!$X$26) -> -32888.12712 | R130: -130781.4463
A131: 1999-01-06 | B131: 10:00:00 | C131: 270 | D131: 0 | E131: -4.4 | F131: -12.8 | G131: 48 | H131: =Inputs!$X$37*Inputs!$X$32*(E131-Inputs!$X$26) -> -87439.22232 | I131: =Inputs!$X$33*C131*Inputs!$X$38 -> 52676.07466 | J131: =params!$C$15*Inputs!$X$29*(E131-Inputs!$X$26) -> -9084.0666 | K131: =Inputs!$X$40*Inputs!$X$41/8760 -> 5342.465753 | L131: =-Inputs!$X$45*Inputs!$X$33 -> -30000 | M131: =EXP(77.345+0.0057*(E131+273.15)-7235/(E131+273.15))/(E131+273.15)^8.2 -> 440.0708849 | N131: =0.62198*M131/(101325-M131) -> 0.002713143493 | O131: =N131*G131/100 -> 0.001302308877 | P131: =-L131/(1.202*2465560*MAX(0,(Inputs!$X$49-O131))) -> 1.044021836 | Q131: =params!$C$15*P131*(E131-Inputs!$X$26) -> -32152.64061 | R131: =H131+I131+J131+K131+L131+Q131 -> -100657.3891
A132: 1999-01-06 | B132: 11:00:00 | C132: 346 | D132: 8 | E132: -3.9 | F132: -12.8 | G132: 46 | H132: =Inputs!$X$37*Inputs!$X$32*(E132-Inputs!$X$26) -> -85725.47449 | I132: =Inputs!$X$33*C132*Inputs!$X$38 -> 67503.41419 | J132: =params!$C$15*Inputs!$X$29*(E132-Inputs!$X$26) -> -8906.025225 | K132: =Inputs!$X$40*Inputs!$X$41/8760 -> 5342.465753 | L132: =-Inputs!$X$45*Inputs!$X$33 -> -30000 | M132: 456.9329299 | N132: 0.002817573014 | O132: 0.001296083586 | P132: =-L132/(1.202*2465560*MAX(0,(Inputs!$X$49-O132))) -> 1.043351954 | Q132: =params!$C$15*P132*(E132-Inputs!$X$26) -> -31502.24529 | R132: -83287.86506
A133: 1999-01-06 | B133: 12:00:00 | C133: 239 | D133: 10 | E133: -2.8 | F133: -13.3 | G133: 40 | H133: =Inputs!$X$37*Inputs!$X$32*(E133-Inputs!$X$26) -> -81955.22928 | I133: =Inputs!$X$33*C133*Inputs!$X$38 -> 46628.0809 | J133: =params!$C$15*Inputs!$X$29*(E133-Inputs!$X$26) -> -8514.3342 | K133: =Inputs!$X$40*Inputs!$X$41/8760 -> 5342.465753 | L133: =-Inputs!$X$45*Inputs!$X$33 -> -30000 | M133: 496.064949 | N133: 0.003060058869 | O133: 0.001224023548 | P133: =-L133/(1.202*2465560*MAX(0,(Inputs!$X$49-O133))) -> 1.035659918 | Q133: =params!$C$15*P133*(E133-Inputs!$X$26) -> -29894.72865 | R133: -98393.74548
A134: 1999-01-06 | B134: 13:00:00 | C134: 154 | D134: 10 | E134: -2.2 | F134: -12.8 | G134: 40 | H134: =Inputs!$X$37*Inputs!$X$32*(E134-Inputs!$X$26) -> -79898.73189 | I134: =Inputs!$X$33*C134*Inputs!$X$38 -> 30044.87221 | J134: =params!$C$15*Inputs!$X$29*(E134-Inputs!$X$26) -> -8300.68455 | K134: =Inputs!$X$40*Inputs!$X$41/8760 -> 5342.465753 | L134: =-Inputs!$X$45*Inputs!$X$33 -> -30000 | M134: 518.6400606 | N134: 0.003200033659 | O134: 0.001280013464 | P134: =-L134/(1.202*2465560*MAX(0,(Inputs!$X$49-O134))) -> 1.041626668 | Q134: =params!$C$15*P134*(E134-Inputs!$X$26) -> -29312.49287 | R134: -112124.5713
A135: 1999-01-06 | B135: 14:00:00 | C135: 102 | D135: 10 | E135: -1.7 | F135: -11.1 | G135: 44 | H135: =Inputs!$X$37*Inputs!$X$32*(E135-Inputs!$X$26) -> -78184.98407 | I135: =Inputs!$X$33*C135*Inputs!$X$38 -> 19899.85043 | J135: =params!$C$15*Inputs!$X$29*(E135-Inputs!$X$26) -> -8122.643175 | K135: =Inputs!$X$40*Inputs!$X$41/8760 -> 5342.465753 | L135: =-Inputs!$X$45*Inputs!$X$33 -> -30000 | M135: 538.144313 | N135: 0.003321018376 | O135: 0.001461248085 | P135: =-L135/(1.202*2465560*MAX(0,(Inputs!$X$49-O135))) -> 1.061420948 | Q135: =params!$C$15*P135*(E135-Inputs!$X$26) -> -29228.85374 | R135: -120294.1648
A136: 1999-01-06 | B136: 15:00:00 | C136: 53 | D136: 10 | E136: -0.6 | F136: -9.4 | G136: 47 | H136: =Inputs!$X$37*Inputs!$X$32*(E136-Inputs!$X$26) -> -74414.73885 | I136: =Inputs!$X$33*C136*Inputs!$X$38 -> 10340.11836 | J136: =params!$C$15*Inputs!$X$29*(E136-Inputs!$X$26) -> -7730.95215 | K136: =Inputs!$X$40*Inputs!$X$41/8760 -> 5342.465753 | L136: =-Inputs!$X$45*Inputs!$X$33 -> -30000 | M136: 583.3608507 | N136: 0.003601676377 | O136: 0.001692787897 | P136: =-L136/(1.202*2465560*MAX(0,(Inputs!$X$49-O136))) -> 1.087831268 | Q136: =params!$C$15*P136*(E136-Inputs!$X$26) -> -28511.57949 | R136: -124974.6864
A137: 1999-01-06 | B137: 16:00:00 | C137: 50 | D137: 10 | E137: 0 | F137: -11.7 | G137: 37 | H137: =Inputs!$X$37*Inputs!$X$32*(E137-Inputs!$X$26) -> -72358.24146 | I137: =Inputs!$X$33*C137*Inputs!$X$38 -> 9754.82864 | J137: =params!$C$15*Inputs!$X$29*(E137-Inputs!$X$26) -> -7517.3025 | K137: =Inputs!$X$40*Inputs!$X$41/8760 -> 5342.465753 | L137: =-Inputs!$X$45*Inputs!$X$33 -> -30000 | M137: 609.4177359 | N137: 0.003763525314 | O137: 0.001392504366 | P137: =-L137/(1.202*2465560*MAX(0,(Inputs!$X$49-O137))) -> 1.053824896 | Q137: =params!$C$15*P137*(E137-Inputs!$X$26) -> -26856.98369 | R137: -121635.2333
